Workbook

Sheet 00 Alimenta (hidden)
A2: PRG | B2: 4
A4: SP | B4: Conto | C4: Descrizione conto | D4: Esercizio 2016 | E4: Incrementi 2017 | F4: Decrementi 2017 | G4: Esercizio 2017 | H4: Incrementi 2018 | I4: Decrementi 2018
A5: AAA140 | B5: 0101010602 | C5: Licenze d'uso software | D5: 1985432.37 | E5: 209841.59 | F5: 7129.38 | G5: 2188144.58 | H5: 131197.56 | I5: 11461.65
A6: AAA300 | B6: 0101020102 | C6: Terreni indisponibili | D6: 942655.12 | E6: 0 | F6: 0 | G6: 942655.12 | H6: 0 | I6: 0
A7: AAA360 | B7: 0101020301 | C7: Fabbricati strumentali (indisponibili) | D7: 169096559.2 | E7: 0 | F7: 0 | G7: 169096559.2 | H7: 2087230 | I7: 0
A8: AAA390 | B8: 0101020404 | C8: Macchinari generici | D8: 5947030.48 | E8: 219918.7 | F8: 171.65 | G8: 6166777.53 | H8: 653192.51 | I8: 17647.73
A9: AAA420 | B9: 0101020502 | C9: Attrezzature generiche | D9: 79051702.27 | E9: 5812839.07 | F9: 146692.8 | G9: 84717848.54 | H9: 4303427.61 | I9: 5885338.17
A10: AAA450 | B10: 0101020601 | C10: Mobili e arredi | D10: 10368797.42 | E10: 241394.07 | F10: 12215.84 | G10: 10597975.65 | H10: 339281.25 | I10: 91861.65
A11: AAA480 | B11: 0101020702 | C11: Ambulanze | D11: 0 | E11: 0 | F11: 0 | G11: 0 | H11: 73346.4 | I11: 0
A12: AAA480 | B12: 0101020703 | C12: Altri mezzi di trasporto | D12: 1839959.11 | E12: 123029.66 | F12: 0 | G12: 1962988.77 | H12: 19850.57 | I12: 149825.11
A13: AAA520 | B13: 0101020903 | C13: Computer e macchinari elettronici | D13: 5230170.92 | E13: 261895.29 | F13: 2012.8 | G13: 5490053.41 | H13: 253573.24 | I13: 327240.58
A14: AAA520 | B14: 0101020904 | C14: Altri beni materiali | D14: 423919.86 | E14: 4021.71 | F14: 0 | G14: 427941.57 | H14: 14224.53 | I14: 3249.6
A15: AAA540 | B15: 0101021001 | C15: Fabbricati in costruzione | D15: 8622770.27 | E15: 950522.09 | F15: 102440.22 | G15: 9470852.14 | H15: 1449834.4 | I15: 2396699.18
A16: AAA540 | B16: 0101021005 | C16: Acconti su future acquisizioni di immobilizzazioni materiali | D16: 142125.31 | E16: 1527272.03 | F16: 142296.91 | G16: 1527100.43 | H16: 66213.3 | I16: 1527100.33
A17: AAA690 | B17: 0101030404 | C17: Depositi cauzionali | D17: 14036.45 | E17: 0 | F17: 0 | G17: 14036.45 | H17: 0 | I17: 0
A18: ABA020 | B18: 0102010101 | C18: Medicinali con AIC | D18: 4636666.55 | E18: 4388956 | F18: 4636666.55 | G18: 4388956 | H18: 9637765.4 | I18: 4388956
A19: ABA020 | B19: 0102010102 | C19: Soluzioni infusionali con AIC | D19: 1437.61 | E19: 1398.76 | F19: 1437.61 | G19: 1398.76 | H19: 4720.81 | I19: 1398.76
A20: ABA020 | B20: 0102010103 | C20: Ossigeno con AIC | D20: 10294.49 | E20: 1633.04 | F20: 10294.49 | G20: 1633.04 | H20: 1919.27 | I20: 1633.04
A21: ABA020 | B21: 0102010104 | C21: Altri gas medicali con AIC | D21: 2368.85 | E21: 9993.46 | F21: 2368.85 | G21: 9993.46 | H21: 18281.7 | I21: 9993.46
A22: ABA020 | B22: 0102010105 | C22: Emoderivati con AIC | D22: 298115.4 | E22: 415087.34 | F22: 298115.4 | G22: 415087.34 | H22: 299372.47 | I22: 415087.34
A23: ABA020 | B23: 0102010106 | C23: Medicinali senza AIC | D23: 126880.91 | E23: 220505.73 | F23: 126880.91 | G23: 220505.73 | H23: 153849.16 | I23: 220505.73
A24: ABA020 | B24: 0102010108 | C24: Farmaci innovativi | D24: 406045.08 | E24: 796557.79 | F24: 406045.08 | G24: 796557.79 | H24: 425624.06 | I24: 796557.79
A25: ABA040 | B25: 0102010301 | C25: Strumentazione per bioimmagini e radioterapia | D25: 0 | E25: 22325.73 | F25: 0 | G25: 22325.73 | H25: 57070.16 | I25: 22325.73
A26: ABA040 | B26: 0102010302 | C26: Materiale per sterilizzazione | D26: 13554.18 | E26: 44744.42 | F26: 13554.18 | G26: 44744.42 | H26: 8572.01 | I26: 44744.42
A27: ABA040 | B27: 0102010303 | C27: Dispositivi per chirurgia mini-invasiva ed elettrochirurgia | D27: 174192.21 | E27: 191192.48 | F27: 174192.21 | G27: 191192.48 | H27: 237459.44 | I27: 191192.48
A28: ABA040 | B28: 0102010304 | C28: Protesi ortopediche e mezzi per osteosintesi e sintesi tendineo-legamentosa | D28: 50150.67 | E28: 156988.5 | F28: 50150.67 | G28: 156988.5 | H28: 125902.79 | I28: 156988.5
A29: ABA040 | B29: 0102010305 | C29: Protesi oculistiche | D29: 24968.06 | E29: 21294.52 | F29: 24968.06 | G29: 21294.52 | H29: 28295.8 | I29: 21294.52
A30: ABA040 | B30: 0102010306 | C30: Protesi vascolari e cardiache | D30: 1839.24 | E30: 7516.08 | F30: 1839.24 | G30: 7516.08 | H30: 4904.64 | I30: 7516.08
A31: ABA040 | B31: 0102010307 | C31: Altri dispositivi protesici impiantabili e prodotti per osteosintesi | D31: 10862.72 | E31: 15680.73 | F31: 10862.72 | G31: 15680.73 | H31: 8142.05 | I31: 15680.73
A32: ABA040 | B32: 0102010308 | C32: Supporti e ausili tecnici per persone disabili | D32: 21594.97 | E32: 32718.44 | F32: 21594.97 | G32: 32718.44 | H32: 15277.66 | I32: 32718.44
A33: ABA040 | B33: 0102010309 | C33: Dispositivi per emotrasfusione ed ematologia | D33: 45796.36 | E33: 58519.51 | F33: 45796.36 | G33: 58519.51 | H33: 43182.99 | I33: 58519.51
A34: ABA040 | B34: 0102010310 | C34: Dispositivi per dialisi | D34: 179690.46 | E34: 78184.86 | F34: 179690.46 | G34: 78184.86 | H34: 349609.43 | I34: 78184.86
A35: ABA040 | B35: 0102010311 | C35: Dispositivi medico-diagnostici in vitro (D.Lgs. 332/2000) | D35: 1255177.4 | E35: 1482372.12 | F35: 1255177.4 | G35: 1482372.12 | H35: 1412543.58 | I35: 1482372.12
A36: ABA040 | B36: 0102010312 | C36: Strumentazione per esplorazioni funzionali ed interventi terapeutici | D36: 104045.91 | E36: 270520.31 | F36: 104045.91 | G36: 270520.31 | H36: 349679.38 | I36: 270520.31
A37: ABA040 | B37: 0102010313 | C37: Strumentazione per radiologia diagnostica ed interventistica | D37: 589.26 | E37: 712.51 | F37: 589.26 | G37: 712.51 | H37: 971.05 | I37: 712.51
A38: ABA040 | B38: 0102010314 | C38: Strumentario chirurgico pluriuso o riusabile | D38: 55549.76 | E38: 92097.5 | F38: 55549.76 | G38: 92097.5 | H38: 59941.67 | I38: 92097.5
A39: ABA040 | B39: 0102010315 | C39: Dispositivi protesici impiantabili - vari | D39: 28003.05 | E39: 80004.3 | F39: 28003.05 | G39: 80004.3 | H39: 36165.23 | I39: 80004.3
A40: ABA040 | B40: 0102010316 | C40: Dispositivi per sistema artero-venoso | D40: 132460.47 | E40: 196661.87 | F40: 132460.47 | G40: 196661.87 | H40: 341902.99 | I40: 196661.87
A41: ABA040 | B41: 0102010317 | C41: Guide per apparato cardiocircolatorio | D41: 9174.4 | E41: 16525.53 | F41: 9174.4 | G41: 16525.53 | H41: 51496.86 | I41: 16525.53
A42: ABA040 | B42: 0102010318 | C42: Altri dispositivi per apparato cardiocircolatorio | D42: 124428.45 | E42: 123103.54 | F42: 124428.45 | G42: 123103.54 | H42: 192131.49 | I42: 123103.54
A43: ABA040 | B43: 0102010319 | C43: Disinfettanti, antisettici e proteolitici (D.Lgs. 46/97) | D43: 29235.99 | E43: 22348.48 | F43: 29235.99 | G43: 22348.48 | H43: 23214.09 | I43: 22348.48
A44: ABA040 | B44: 0102010320 | C44: Dispositivi per apparato gastrointestinale | D44: 59952.07 | E44: 83693.42 | F44: 59952.07 | G44: 83693.42 | H44: 108873.9 | I44: 83693.42
A45: ABA040 | B45: 0102010321 | C45: Dispositivi da sutura | D45: 396218.06 | E45: 349748.67 | F45: 396218.06 | G45: 349748.67 | H45: 199430.7 | I45: 349748.67
A46: ABA040 | B46: 0102010322 | C46: Dispositivi per sistema nervoso e midollare | D46: 12511.97 | E46: 28260.43 | F46: 12511.97 | G46: 28260.43 | H46: 24648.4 | I46: 28260.43
A47: ABA040 | B47: 0102010323 | C47: Dispositivi per odontoiatria, oftalmologoa e otorinolaringoiatria | D47: 105207.2 | E47: 71817.28 | F47: 105207.2 | G47: 71817.28 | H47: 77787.69 | I47: 71817.28
A48: ABA040 | B48: 0102010324 | C48: Dispositivi per apparato respiratorio e anestesia | D48: 125642.41 | E48: 182238.66 | F48: 125642.41 | G48: 182238.66 | H48: 226521.29 | I48: 182238.66
A49: ABA040 | B49: 0102010325 | C49: Dispositivi di protezione e ausili per incontinenza (D.Lgs. 46/97) | D49: 212601.7 | E49: 196921.3 | F49: 212601.7 | G49: 196921.3 | H49: 188552.61 | I49: 196921.3
A50: ABA040 | B50: 0102010326 | C50: Dispositivi per apparato urogenitale | D50: 65964.79 | E50: 51126.59 | F50: 65964.79 | G50: 51126.59 | H50: 58158.49 | I50: 51126.59
A51: ABA040 | B51: 0102010327 | C51: Dispositivi vari | D51: 234985.3 | E51: 304842.72 | F51: 234985.3 | G51: 304842.72 | H51: 302955.27 | I51: 304842.72
A52: ABA040 | B52: 0102010328 | C52: Dispositivi da somministrazione, prelievo e raccolta | D52: 559635.57 | E52: 569117.95 | F52: 559635.57 | G52: 569117.95 | H52: 632496.82 | I52: 569117.95
A53: ABA040 | B53: 0102010329 | C53: Dispositivi per medicazioni generali e specialistiche | D53: 312836.58 | E53: 357449.92 | F53: 312836.58 | G53: 357449.92 | H53: 347297.22 | I53: 357449.92
A54: ABA040 | B54: 0102010330 | C54: Dispositivi impiantabili attivi | D54: 58041 | E54: 30319.56 | F54: 58041 | G54: 30319.56 | H54: 31197.03 | I54: 30319.56
A55: ABA050 | B55: 0102010401 | C55: Prodotti dietetici | D55: 4508.83 | E55: 5615.65 | F55: 4508.83 | G55: 5615.65 | H55: 5237.29 | I55: 5615.65
A56: ABA050 | B56: 0102010402 | C56: Alimenti per nutrizione artificiale senza AIC | D56: 63760.33 | E56: 58004.47 | F56: 63760.33 | G56: 58004.47 | H56: 66412.52 | I56: 58004.47
A57: ABA060 | B57: 0102010503 | C57: Altri Vaccini | D57: 0 | E57: 1112.76 | F57: 0 | G57: 1112.76 | H57: 2856.7 | I57: 1112.76
A58: ABA090 | B58: 0102010801 | C58: Vetrerie e materiale plastico per laboratorio | D58: 26506.58 | E58: 42717.86 | F58: 26506.58 | G58: 42717.86 | H58: 22568.66 | I58: 42717.86
A59: ABA090 | B59: 0102010802 | C59: Materiali di consumo non specifici per strumentazione diagnostica | D59: 82188.66 | E59: 125485.73 | F59: 82188.66 | G59: 125485.73 | H59: 93627.14 | I59: 125485.73
A60: ABA090 | B60: 0102010803 | C60: Altri beni e prodotti sanitari | D60: 102717.74 | E60: 127988.56 | F60: 102717.74 | G60: 127988.56 | H60: 180987.44 | I60: 127988.56
A61: ABA130 | B61: 0102011101 | C61: Materiali di guardaroba, di pulizia, e di convivenza in genere | D61: 35073.03 | E61: 29727.94 | F61: 35073.03 | G61: 29727.94 | H61: 29504.9 | I61: 29727.94
A62: ABA150 | B62: 0102011301 | C62: Supporti informatici | D62: 171772.85 | E62: 192555.39 | F62: 171772.85 | G62: 192555.39 | H62: 102147.29 | I62: 192555.39
A63: ABA150 | B63: 0102011302 | C63: Cancelleria e stampati | D63: 161363.28 | E63: 169734.96 | F63: 161363.28 | G63: 169734.96 | H63: 107409.14 | I63: 169734.96
A64: ABA160 | B64: 0102011401 | C64: Materiale per la manutenzione di immobili e loro pertinenze | D64: 55250.31 | E64: 85875.45 | F64: 55250.31 | G64: 85875.45 | H64: 139324.97 | I64: 85875.45
A65: ABA160 | B65: 0102011403 | C65: Materiale per la manutenzione di attrezzature tecnico scientifiche sanitarie | D65: 25964.41 | E65: 26463.29 | F65: 25964.41 | G65: 26463.29 | H65: 15166.69 | I65: 26463.29
A66: ABA160 | B66: 0102011405 | C66: Materiale per la manutenzione di altro | D66: 3934.22 | E66: 5031.4 | F66: 3934.22 | G66: 5031.4 | H66: 4064.04 | I66: 5031.4
A67: ABA170 | B67: 0102011501 | C67: Altri beni e prodotti non sanitari | D67: 2869.46 | E67: 1229.74 | F67: 2869.46 | G67: 1229.74 | H67: 502.43 | I67: 1229.74
A68: ABA210 | B68: 0102020101 | C68: Crediti v/Stato per spesa corrente - Integrazione a norma del D.L.vo 56/2000 | D68: 5970.26 | E68: 12202.45 | F68: 18172.71 | G68: 0 | H68: 50822.1 | I68: 48520.58
A69: ABA310 | B69: 0102020902 | C69: Crediti v/Stato per ricerca finalizzata - Ministero della Salute | D69: 4620 | E69: 0 | F69: 0 | G69: 4620 | H69: 10300 | I69: 10300
A70: ABA340 | B70: 0102021001 | C70: Crediti v/prefetture | D70: 93462.74 | E70: 0 | F70: 0 | G70: 93462.74 | H70: 93462.74 | I70: 186925.48
A71: ABA390 | B71: 0102021103 | C71: Crediti v/Regione o Provincia Autonoma per quota FSR | D71: 149470398.2 | E71: 611234256.9 | F71: 641777089 | G71: 118927566.1 | H71: 699144829.1 | I71: 673828882.2
A72: ABA400 | B72: 0102021104 | C72: Crediti v/Regione o Provincia Autonoma per mobilità attiva intraregionale | D72: 1343946.39 | E72: 98488215.59 | F72: 98575322.59 | G72: 1256839.39 | H72: 99510381.01 | I72: 99510381
A73: ABA410 | B73: 0102021107 | C73: Crediti v/Regione o Provincia Autonoma per mobilità attiva extraregionale | D73: 19005500.29 | E73: 17628432.4 | F73: 17628432.4 | G73: 19005500.29 | H73: 23288119.72 | I73: 23288119.72
A74: ABA420 | B74: 0102021109 | C74: Crediti v/Regione o Provincia Autonoma per acconto quota FSR | D74: 0 | E74: 546891755 | F74: 546891755 | G74: 0 | H74: 581529568.5 | I74: 581529568.5
A75: ABA430 | B75: 0102021111 | C75: Crediti v/Regione o Provincia Autonoma per finanziamento sanitario aggiuntivo corrente LEA | D75: 11868474.89 | E75: 5146816.37 | F75: 6631200.24 | G75: 10384091.02 | H75: 2899011.66 | I75: 3904796.15
A76: ABA400 | B76: 0102021115 | C76: Netting mobilità intraregionale ante 2007 | D76: 15592903.99 | E76: 0 | F76: 0 | G76: 15592903.99 | H76: 0 | I76: 0
A77: ABA420 | B77: 0102021117 | C77: Crediti v/Regione o Provincia Autonoma per acconto quota FSR per DPC | D77: 0 | E77: 0 | F77: 0 | G77: 0 | H77: 21620901.28 | I77: 21620901.28
A78: ABA480 | B78: 0102021201 | C78: Crediti v/Regione o Provincia Autonoma per finanziamenti per investimenti | D78: 38255 | E78: 0 | F78: 0 | G78: 38255 | H78: 0 | I78: 0
A79: ABA500 | B79: 0102021203 | C79: Crediti v/Regione o Provincia Autonoma per ripiano perdite | D79: 21602059.57 | E79: 14264710 | F79: 21602059.57 | G79: 14264710 | H79: 13609624 | I79: 0
A80: ABA530 | B80: 0102021301 | C80: Crediti v/Comuni | D80: 82801.82 | E80: 115218.01 | F80: 34661.25 | G80: 163358.58 | H80: 111857.28 | I80: 91803.89
A81: ABA530 | B81: 0102021302 | C81: Fatture da emettere v/Comuni | D81: 5505.16 | E81: 58770.9 | F81: 5505.16 | G81: 58770.9 | H81: 53342.51 | I81: 58770.9
A82: ABA580 | B82: 0102021418 | C82: Crediti v/ASL Avezzano Sulmona L'Aquila per altre prestazioni | D82: 677413.43 | E82: 4655668.13 | F82: 4847041.6 | G82: 486039.96 | H82: 214056.28 | I82: 210042.87
A83: ABA580 | B83: 0102021419 | C83: Fatture da emettere v/ASL Avezzano Sulmona L'Aquila per altre prestazioni | D83: 18535.41 | E83: 8143.77 | F83: 18535.41 | G83: 8143.77 | H83: 37721.2 | I83: 8143.77
A84: ABA580 | B84: 0102021420 | C84: Crediti v/ASL Lanciano Vasto Chieti per altre prestazioni | D84: 281885.16 | E84: 127601.11 | F84: 175640.8 | G84: 233845.47 | H84: 110654.79 | I84: 99868.92
A85: ABA580 | B85: 0102021421 | C85: Fatture da emettere v/ASL Lanciano Vasto Chieti per altre prestazioni | D85: 5700.13 | E85: 1282.71 | F85: 5700.13 | G85: 1282.71 | H85: 25919.58 | I85: 1282.71
A86: ABA580 | B86: 0102021424 | C86: Crediti v/ASL Teramo per altre prestazioni | D86: 4005697.04 | E86: 62418.61 | F86: 212668.34 | G86: 3855447.31 | H86: 11975.84 | I86: 29003.38
A87: ABA580 | B87: 0102021425 | C87: Fatture da emettere v/ASL Teramo per altre prestazioni | D87: 563.75 | E87: 5559.81 | F87: 563.75 | G87: 5559.81 | H87: 4159.83 | I87: 5559.81
A88: ABA600 | B88: 0102021601 | C88: Crediti v/Aziende sanitarie pubbliche Extraregione | D88: 153298.79 | E88: 161597.98 | F88: 186310.75 | G88: 128586.02 | H88: 238832 | I88: 210160.77
A89: ABA600 | B89: 0102021602 | C89: Fatture da emettere v/Aziende Sanitarie Pubbliche Extraregione | D89: 47833.03 | E89: 85649.52 | F89: 47833.03 | G89: 85649.52 | H89: 44097.25 | I89: 85649.52
A90: ABA620 | B90: 0102021701 | C90: Crediti v/ARTA | D90: 5931.31 | E90: 0 | F90: 0 | G90: 5931.31 | H90: 0 | I90: 0
A91: ABA650 | B91: 0102022001 | C91: Erario c/Ires | D91: 236 | E91: 0 | F91: 236 | G91: 0 | H91: 81792 | I91: 81792
A92: ABA650 | B92: 0102022002 | C92: Erario c/Ires per acconti versati | D92: 0 | E92: 490066 | F92: 490066 | G92: 0 | H92: 408274 | I92: 408274
A93: ABA650 | B93: 0102022003 | C93: Erario c/ritenute | D93: 133.95 | E93: 6.45 | F93: 140.4 | G93: 0 | H93: 80.5 | I93: 0
A94: ABA650 | B94: 0102022005 | C94: Erario c/Iva per acconti versati | D94: 10317 | E94: 6806 | F94: 10209 | G94: 6914 | H94: 15421 | I94: 6806
A95: ABA650 | B95: 0102022006 | C95: Erario c/Iva chiesta a rimborso | D95: 1295.04 | E95: 0 | F95: 0 | G95: 1295.04 | H95: 0 | I95: 0
A96: ABA650 | B96: 0102022011 | C96: Altri crediti verso Erario | D96: 25.17 | E96: 0 | F96: 25.17 | G96: 0 | H96: 0 | I96: 0
A97: ABA670 | B97: 0102022101 | C97: Crediti v/clienti privati | D97: 4482065.57 | E97: 7010533.39 | F97: 6901036.57 | G97: 4591562.39 | H97: 9715318.34 | I97: 9771870.08
A98: ABA670 | B98: 0102022102 | C98: Fatture da emettere v/clienti privati | D98: 434714.74 | E98: 190888.78 | F98: 434714.74 | G98: 190888.78 | H98: 608342.13 | I98: 190888.78
A99: ABA670 | B99: 0102022103 | C99: Crediti v/utenza per proventi da ticket | D99: 30761.84 | E99: 8483861.84 | F99: 8476602.5 | G99: 38021.18 | H99: 8500208.7 | I99: 8524029.65
A100: ABA670 | B100: 0102022109 | C100: Crediti v/dipendenti | D100: 112928.29 | E100: 168312.19 | F100: 203256.06 | G100: 77984.42 | H100: 103264.73 | I100: 179303.71
A101: ABA670 | B101: 0102022111 | C101: Acconti verso altri fornitori | D101: 2309 | E101: 0 | F101: 2309 | G101: 0 | H101: 432985.28 | I101: 432985.28
A102: ABA690 | B102: 0102022301 | C102: Crediti v/altri soggetti pubblici | D102: 377131.4 | E102: 421422.51 | F102: 404603.36 | G102: 393950.55 | H102: 288535.49 | I102: 464939.33
A103: ABA690 | B103: 0102022302 | C103: Fatture da emettere v/altri soggetti pubblici | D103: 75.28 | E103: 585.44 | F103: 75.28 | G103: 585.44 | H103: 0 | I103: 585.44
A104: ABA710 | B104: 0102022501 | C104: Altri Crediti diversi | D104: 881137.05 | E104: 1921398.5 | F104: 1616680.59 | G104: 1185854.96 | H104: 739010.91 | I104: 1059463.17
A105: PDA210 | B105: 0102022623 | C105: Note credito da ricevere v/ASL Lanciano Vasto Chieti per altre prestazioni | D105: 0 | E105: 0 | F105: 0 | G105: 0 | H105: 57.75 | I105: 0
A106: PDA220 | B106: 0102022626 | C106: Note credito da ricevere v/Aziende sanitarie pubbliche Extraregione | D106: 60.85 | E106: 0 | F106: 60.85 | G106: 0 | H106: 0 | I106: 0
A107: PDA290 | B107: 0102022634 | C107: Note di credito v/IRCCS privati e Policlinici | D107: 130.68 | E107: 0 | F107: 130.68 | G107: 0 | H107: 0 | I107: 0
A108: PDA290 | B108: 0102022636 | C108: Note credito da ricevere v/Case di Cura | D108: 11856.03 | E108: 1930071.03 | F108: 11856.03 | G108: 1930071.03 | H108: 4610.61 | I108: 1930071.03
A109: PDA290 | B109: 0102022637 | C109: Note credito da ricevere v/altri erogatori di prestazioni sanitarie - intraregione | D109: 32465151.42 | E109: 101316.42 | F109: 5232350.32 | G109: 27334117.52 | H109: 2829706.77 | I109: 4272293.94
A110: PDA300 | B110: 0102022638 | C110: Note credito da ricevere verso altri fornitori nazionali | D110: 1988690.31 | E110: 1123439.08 | F110: 1988690.31 | G110: 1123439.08 | H110: 1282410.64 | I110: 1123439.08
A111: PDA300 | B111: 0102022639 | C111: Note credito da ricevere verso altri fornitori esteri | D111: 0 | E111: 6362 | F111: 0 | G111: 6362 | H111: 0 | I111: 6362
A112: PDA380 | B112: 0102022641 | C112: Note credito da ricevere per altri debiti diversi | D112: 295.04 | E112: 5013.58 | F112: 295.04 | G112: 5013.58 | H112: 2286.01 | I112: 5013.58
A113: ABA760 | B113: 0102040101 | C113: Cassa ticket | D113: 20000 | E113: 0 | F113: 0 | G113: 20000 | H113: 0 | I113: 0
A114: ABA760 | B114: 0102040102 | C114: Cassa economale | D114: 0 | E114: 90884.92 | F114: 90884.92 | G114: 0 | H114: 52671.15 | I114: 52671.15
A115: ABA770 | B115: 0102040201 | C115: Istituto Tesoriere | D115: 26889884.4 | E115: 674025083 | F115: 631356001 | G115: 69558966.35 | H115: 625609944.8 | I115: 648972836.8
A116: ABA790 | B116: 0102040401 | C116: Conto corrente postale | D116: 1570006.74 | E116: 1732809.77 | F116: 75200.34 | G116: 3227616.17 | H116: 1458253.24 | I116: 3393835
A117: ACA040 | B117: 0103020101 | C117: Risconti attivi | D117: 1502862.22 | E117: 8698.51 | F117: 1502862.22 | G117: 8698.51 | H117: 10533.97 | I117: 8698.51
A118: PAA020 | B118: 0201020101 | C118: Finanziamenti per beni di prima dotazione | D118: 67286349.67 | E118: 0 | F118: 3577467.93 | G118: 63708881.74 | H118: 0 | I118: 3577467.93
A119: PAA070 | B119: 0201020501 | C119: Finanziamenti da Regione per investimenti | D119: 38902957.8 | E119: 122252.5 | F119: 1468544.84 | G119: 37556665.46 | H119: 2138846.64 | I119: 1674245.68
A120: PAA090 | B120: 0201020701 | C120: Finanziamenti per investimenti da rettifica contributi in conto esercizio | D120: 16121598.27 | E120: 6506318.89 | F120: 4730694.31 | G120: 17897222.85 | H120: 4347846.81 | I120: 5185207.28
A121: PAA100 | B121: 0201030101 | C121: Riserve da donazioni e lasciti vincolati ad investimenti | D121: 170994.85 | E121: 78486.47 | F121: 48286.07 | G121: 201195.25 | H121: 114032.88 | I121: 54754.03
A122: PAA160 | B122: 0201040501 | C122: Riserve diverse | D122: 2730000 | E122: 0 | F122: 0 | G122: 2730000 | H122: 0 | I122: 0
A123: PAA200 | B123: 0201050301 | C123: Altro - contributi per ripiano perdite | D123: 30778127.57 | E123: 14264710 | F123: 30778127.57 | G123: 14264710 | H123: 13609624 | I123: 0
A124: PAA210 | B124: 0201060102 | C124: PERDITE PORTATI A NUOVO | D124: -30778127.57 | E124: 30778127.57 | F124: 14264709.56 | G124: -14264709.56 | H124: 0 | I124: 13609624.26
A125: PAA220 | B125: 0201070101 | C125: UTILE D'ESERCIZIO | D125: 0 | E125: 0 | F125: 0 | G125: 0 | H125: 1677.34 | I125: 0
A126: PAA220 | B126: 0201070102 | C126: PERDITA D'ESERCIZIO | D126: -14264709.56 | E126: 14264709.56 | F126: 13609624.26 | G126: -13609624.26 | H126: 13609624.26 | I126: 0
A127: AAA150 | B127: 0202010601 | C127: F.do Amm.to licenze d'uso software | D127: -1558625.15 | E127: -136552.39 | F127: 0 | G127: -1695177.54 | H127: -160938.81 | I127: -11461.65
A128: AAA370 | B128: 0202020301 | C128: F.do Amm.to Fabbricati strumentali (indisponibili) | D128: -85911487.29 | E128: -4970287.05 | F128: 0 | G128: -90881774.34 | H128: -4970458.61 | I128: 0
A129: AAA400 | B129: 0202020701 | C129: F.do ammortamento macchinari generici | D129: -4888094.19 | E129: -263002.39 | F129: 0 | G129: -5151096.58 | H129: -243006.53 | I129: -244.8
A130: AAA430 | B130: 0202021001 | C130: F.do Amm.to Attrezzature generiche | D130: -66333749.01 | E130: -4163720.13 | F130: -70.78 | G130: -70497398.36 | H130: -4807326.23 | I130: -5868448.49
A131: AAA460 | B131: 0202021201 | C131: F.do Amm.to mobili e arredi | D131: -8722595.67 | E131: -361188.29 | F131: 0 | G131: -9083783.96 | H131: -354383.59 | I131: -89444.45
A132: AAA490 | B132: 0202021601 | C132: F.do Amm.to Ambulanze | D132: 0 | E132: 0 | F132: 0 | G132: 0 | H132: -601.44 | I132: 0
A133: AAA490 | B133: 0202021701 | C133: F.do Amm.to Altri mezzi di trasporto | D133: -1605809.11 | E133: -122740.86 | F133: 0 | G133: -1728549.97 | H133: -92937.66 | I133: -149825.11
A134: AAA530 | B134: 0202022001 | C134: F.do Amm.to computer e macchinari elettronici | D134: -4633056.04 | E134: -228512.78 | F134: -2012.8 | G134: -4859556.02 | H134: -237629.17 | I134: -308936.13
A135: AAA530 | B135: 0202022101 | C135: F.do Amm.to altri beni materiali | D135: -379763.03 | E135: -16373.87 | F135: 0 | G135: -396136.9 | H135: -14155.8 | I135: -3249.6
A136: ABA580 | B136: 0202030518 | C136: F.do svalutazione Crediti v/Aziende sanitarie pubbliche della Regione | D136: -3259926.7 | E136: 0 | F136: 0 | G136: -3259926.7 | H136: 0 | I136: 0
A137: ABA670 | B137: 0202030524 | C137: F.do svalutazione crediti verso clienti privati | D137: -2874726.99 | E137: 0 | F137: 0 | G137: -2874726.99 | H137: 0 | I137: 0
A138: ABA710 | B138: 0202030528 | C138: F.do svalutazione altri crediti diversi | D138: 0 | E138: -300000 | F138: 0 | G138: -300000 | H138: 0 | I138: 0
A139: ABA390 | B139: 0202030529 | C139: F.do svalutazione crediti v/Regione o Provincia Autonoma per quota FSR | D139: -3047520.97 | E139: 0 | F139: 0 | G139: -3047520.97 | H139: 0 | I139: 0
A140: PBA020 | B140: 0203020101 | C140: Fondo rischi per cause civili ed oneri processuali | D140: -7150000 | E140: -9280260.16 | F140: -165038.16 | G140: -16265222 | H140: -1357811.38 | I140: -6579085.16
A141: PBA030 | B141: 0203020201 | C141: Fondo rischi per contenzioso personale dipendente | D141: -1250000 | E141: -563110.28 | F141: -563110.28 | G141: -1250000 | H141: 0 | I141: -254237.67
A142: PBA040 | B142: 0203020301 | C142: Fondo rischi connessi all'acquisto di prestazioni sanitarie da privato | D142: -22630382.34 | E142: -4358962 | F142: -3664507.83 | G142: -23324836.51 | H142: -272176.8 | I142: -1311382.44
A143: PBA050 | B143: 0203020401 | C143: Fondo rischi per copertura diretta dei rischi (autoassicurazione) | D143: -5500000 | E143: -3111381.31 | F143: -3111381.31 | G143: -5500000 | H143: -2297725.78 | I143: -2297725.68
A144: PBA160 | B144: 0203040113 | C144: Quote inutilizzate contributi da Regione per Progetti di PSN L 662/96 | D144: -30310050.78 | E144: -7206482.55 | F144: -5006728.56 | G144: -32509804.77 | H144: -7216729.63 | I144: -6978711.73
A145: PBA160 | B145: 0203040118 | C145: Quote inutilizzate contributi da Regione per quota gioco d'azzardo Patologico (GAP) Legge 190/2014 e ss.mm.ii. | D145: 0 | E145: -220805 | F145: 0 | G145: -220805 | H145: 0 | I145: -220805
A146: PBA170 | B146: 0203040201 | C146: Quote inutilizzate contributi vincolati da soggetti pubblici (extra fondo) | D146: -180605.96 | E146: -50302.4 | F146: -92452.46 | G146: -138455.9 | H146: -53105.86 | I146: 0
A147: PBA210 | B147: 0203050101 | C147: Fondi integrativi pensione | D147: 0 | E147: 0 | F147: 0 | G147: 0 | H147: 0 | I147: 0
A148: PBA230 | B148: 0203050201 | C148: Fondo rinnovi contrattuali personale dipendente | D148: -675624 | E148: -1841073 | F148: 0 | G148: -2516697 | H148: -2658672 | I148: -1421530.85
A149: PBA240 | B149: 0203050301 | C149: Fondo rinnovi convenzioni MMG/PLS/MCA | D149: -3153969.15 | E149: -653733 | F149: 0 | G149: -3807702.15 | H149: -1507157 | I149: -1600163.84
A150: PBA250 | B150: 0203050401 | C150: Fondo rinnovi convenzioni medici Sumai | D150: -136116 | E150: -82934 | F150: 0 | G150: -219050 | H150: -309790.5 | I150: -327842.5
A151: PBA260 | B151: 0203050501 | C151: Altri fondi per oneri e spese | D151: 0 | E151: 0 | F151: 0 | G151: 0 | H151: -2400000 | I151: 0
A152: PCA000 | B152: 0204010101 | C152: Fondo per premi operosità medici SUMAI | D152: -2195943.02 | E152: -223015.56 | F152: -217866.17 | G152: -2201092.41 | H152: -264664.11 | I152: -197944.41
A153: PDA090 | B153: 0205030201 | C153: Debiti v/Regione o Provincia Autonoma per mobilità passiva intraregionale | D153: -20766344.58 | E153: -51271679.93 | F153: -51272368.93 | G153: -20765655.58 | H153: -49387581.23 | I153: -49387581.23
A154: PDA100 | B154: 0205030301 | C154: Debiti v/Regione o Provincia Autonoma per mobilità passiva extraregionale | D154: -9530548.09 | E154: -57173157.46 | F154: -57173157.46 | G154: -9530548.09 | H154: -33463665.77 | I154: -33463665.77
A155: PDA110 | B155: 0205030401 | C155: Acconto quota FSR da Regione o Provincia Autonoma | D155: 0 | E155: -546891755 | F155: -546891755 | G155: 0 | H155: -565644818.5 | I155: -565644818.5
A156: PDA110 | B156: 0205030402 | C156: Acconto quota FSR per DPC da Regione o Provincia Autonoma | D156: 0 | E156: 0 | F156: 0 | G156: 0 | H156: -15884750 | I156: -15884750
A157: PDA120 | B157: 0205030501 | C157: Altri debiti v/Regione o Provincia Autonoma | D157: 0 | E157: -983421148.7 | F157: -983421148.7 | G157: 0 | H157: 0 | I157: 0
A158: PDA130 | B158: 0205040101 | C158: Debiti v/Comuni | D158: -150000 | E158: 0 | F158: 0 | G158: -150000 | H158: 0 | I158: 0
A159: PDA210 | B159: 0205050601 | C159: Debiti v/ASL Avezzano Sulmona L'Aquila per altre prestazioni | D159: -67126.28 | E159: -272401.8 | F159: -74123.62 | G159: -265404.46 | H159: -197162.76 | I159: -203272.68
A160: PDA210 | B160: 0205050602 | C160: Fatture da ricevere v/ASL Avezzano Sulmona L'Aquila per altre prestazioni | D160: -198130.85 | E160: -84346.32 | F160: -198130.85 | G160: -84346.32 | H160: -236845.56 | I160: -84346.32
A161: PDA210 | B161: 0205050603 | C161: Debiti v/ASL Lanciano Vasto Chieti per altre prestazioni | D161: -70222.4 | E161: -58278.06 | F161: -69229.15 | G161: -59271.31 | H161: -56200.12 | I161: -50633.11
A162: PDA210 | B162: 0205050604 | C162: Fatture da ricevere v/ASL Lanciano Vasto Chieti per altre prestazioni | D162: -27859.87 | E162: -23505.12 | F162: -27859.87 | G162: -23505.12 | H162: -9926 | I162: -23505.12
A163: PDA210 | B163: 0205050607 | C163: Debiti v/ASL Teramo per altre prestazioni | D163: -1740888.78 | E163: -280639.09 | F163: -94079 | G163: -1927448.87 | H163: -152571.81 | I163: -11954.4
A164: PDA210 | B164: 0205050608 | C164: Fatture da ricevere v/ASL Teramo per altre prestazioni | D164: -32310.93 | E164: -29786 | F164: -32310.93 | G164: -29786 | H164: -26706 | I164: -29786
A165: PDA220 | B165: 0205050701 | C165: Debiti v/Aziende sanitarie pubbliche Extraregione | D165: -152664.66 | E165: -207261.11 | F165: -265226.41 | G165: -94699.36 | H165: -170921.16 | I165: -190667.38
A166: PDA220 | B166: 0205050702 | C166: Fatture da ricevere v/Aziende sanitarie pubbliche Extraregione | D166: -36898.55 | E166: -15263.65 | F166: -36898.55 | G166: -15263.65 | H166: -45840.65 | I166: -15263.65
A167: PDA220 | B167: 0205050703 | C167: Debiti v/Aziende Ospedaliere, IRCCS, Policlinici, Fondazioni Extraregione | D167: -30315.64 | E167: -81219.11 | F167: -54298.28 | G167: -57236.47 | H167: -56381.91 | I167: -57423.86
A168: PDA220 | B168: 0205050704 | C168: Fatture da ricevere v/Aziende Ospedaliere, IRCCS, Policlinici, Fondazioni Extraregione | D168: -35195.34 | E168: -33826.42 | F168: -35195.34 | G168: -33826.42 | H168: -22127.28 | I168: -33826.42
A169: PDA290 | B169: 0205070101 | C169: Debiti v/medici di base | D169: -1886031.55 | E169: -22027402.87 | F169: -22164628.67 | G169: -1748805.75 | H169: -26794195.95 | I169: -26629894.27
A170: PDA290 | B170: 0205070102 | C170: Debiti v/farmacie | D170: -7700028.76 | E170: -52286610.91 | F170: -56980917.47 | G170: -3005722.2 | H170: -50001509.33 | I170: -46696588.42
A171: PDA290 | B171: 0205070103 | C171: Debiti v/medici SUMAI | D171: 0 | E171: -2870787.24 | F171: -2870787.23 | G171: -0.01 | H171: -2821622.54 | I171: -2819880.2
A172: PDA290 | B172: 0205070107 | C172: Fatture da ricevere v/Ospedali Classificati | D172: 0 | E172: -9382.08 | F172: 0 | G172: -9382.08 | H172: 0 | I172: -9382.08
A173: PDA290 | B173: 0205070108 | C173: Debiti v/Case di Cura | D173: -26713072.46 | E173: -90789013.55 | F173: -88317822.11 | G173: -29184263.9 | H173: -90451579.67 | I173: -90508054.3
A174: PDA290 | B174: 0205070109 | C174: Fatture da ricevere v/Case di Cura | D174: -7968416.62 | E174: -7390453.02 | F174: -7968416.62 | G174: -7390453.02 | H174: -6431798.53 | I174: -7390453.02
A175: PDA290 | B175: 0205070110 | C175: Debiti v/altri erogatori di prestazioni sanitarie - intraregione | D175: -76299590.49 | E175: -29383017.21 | F175: -46042284.13 | G175: -59640323.57 | H175: -30157319.18 | I175: -30753773.26
A176: PDA290 | B176: 0205070111 | C176: Fatture da ricevere v/altri erogatori di prestazioni sanitarie - intraregione | D176: -2785600.51 | E176: -2195879.32 | F176: -2785600.51 | G176: -2195879.32 | H176: -2404175.02 | I176: -2195879.32
A177: PDA300 | B177: 0205070201 | C177: Debiti verso altri fornitori nazionali | D177: -34289418.84 | E177: -287511239.1 | F177: -283661530.7 | G177: -38139127.18 | H177: -315905697.3 | I177: -319150938.9
A178: PDA300 | B178: 0205070202 | C178: Fatture da ricevere verso altri fornitori nazionali | D178: -9359359.11 | E178: -14638757.89 | F178: -9359359.11 | G178: -14638757.89 | H178: -14320195.09 | I178: -14638757.89
A179: PDA300 | B179: 0205070203 | C179: Debiti verso altri fornitori esteri | D179: -33664.84 | E179: -1046725.94 | F179: -1025764.24 | G179: -54626.54 | H179: -1069392.08 | I179: -1039446.08
A180: PDA300 | B180: 0205070204 | C180: Fatture da ricevere verso altri fornitori esteri | D180: -127330.11 | E180: -51772.21 | F180: -127330.11 | G180: -51772.21 | H180: -49807.02 | I180: -51772.21
A181: PDA300 | B181: 0205070205 | C181: Debiti verso professionisti e collaboratori (ad esclusione degli organi diretti) | D181: -14394.15 | E181: -416392.57 | F181: -350886.89 | G181: -79899.83 | H181: -345039.97 | I181: -340717.73
A182: PDA310 | B182: 0205080101 | C182: Debiti v/istituto tesoriere | D182: 0 | E182: 0 | F182: 0 | G182: 0 | H182: 0 | I182: 0
A183: PDA320 | B183: 0205090101 | C183: Erario c/Ires | D183: 0 | E183: -557806.42 | F183: -557806.42 | G183: 0 | H183: -408341.33 | I183: -408341.33
A184: PDA320 | B184: 0205090102 | C184: Erario c/ritenute su lavoro autonomo | D184: -493265.24 | E184: -6154670.93 | F184: -6175742 | G184: -472194.17 | H184: -7403740.42 | I184: -7409718.55
A185: PDA320 | B185: 0205090103 | C185: Erario c/ritenute su lavoro dipendente | D185: -844000.74 | E185: -33463877.68 | F185: -33517252.37 | G185: -790626.05 | H185: -33744103.08 | I185: -33740612.57
A186: PDA320 | B186: 0205090104 | C186: Erario c/I.V.A. | D186: -2790049.46 | E186: -24692527.18 | F186: -25900361.96 | G186: -1582214.68 | H186: -7936966.37 | I186: -9504287.13
A187: PDA320 | B187: 0205090105 | C187: Erario c/Irap | D187: -217711.49 | E187: -12241857.25 | F187: -12229581.37 | G187: -229987.37 | H187: -12420854.32 | I187: -12429626.13
A188: PDA320 | B188: 0205090106 | C188: Altre imposte e tasse | D188: -28779.93 | E188: 0 | F188: -28779.93 | G188: 0 | H188: -785.13 | I188: -785.13
A189: PDA320 | B189: 0205090107 | C189: Erario c/IVA - split payment | D189: 0 | E189: 0 | F189: 0 | G189: 0 | H189: -19856036.09 | I189: -17216476.27
A190: PDA330 | B190: 0205100101 | C190: Debiti verso INPDAP | D190: -711407.61 | E190: -48238495.86 | F190: -48109591.21 | G190: -840312.26 | H190: -49146093.64 | I190: -49241289.7
A191: PDA330 | B191: 0205100102 | C191: Debiti verso INPS lavoratori dipendenti | D191: -785.59 | E191: -253039.95 | F191: -253200.01 | G191: -625.53 | H191: -258155.4 | I191: -257642.79
A192: PDA330 | B192: 0205100104 | C192: Debiti verso INAIL | D192: -4177.45 | E192: -1695871.72 | F192: -1700049.17 | G192: 0 | H192: -1681196.55 | I192: -1675236.8
A193: PDA330 | B193: 0205100105 | C193: Debiti verso ENPAM | D193: -510508.54 | E193: -8593062.7 | F193: -8554648.12 | G193: -548923.12 | H193: -10041013.43 | I193: -9994193.96
A194: PDA330 | B194: 0205100106 | C194: Debiti verso ONAOSI | D194: -54862.47 | E194: -111905.78 | F194: -112752.96 | G194: -54015.29 | H194: -110977.37 | I194: -110312.56
A195: PDA330 | B195: 0205100107 | C195: Debiti verso altri Istituti Previdenziali | D195: -110806.05 | E195: -646338.15 | F195: -682489.79 | G195: -74654.41 | H195: -643937.53 | I195: -600773.68
A196: PDA360 | B196: 0205110203 | C196: Debiti verso personale retribuzioni esercizi precedenti | D196: -283633.54 | E196: -447192.1 | F196: -143843.88 | G196: -586981.76 | H196: -407111.65 | I196: -274168.63
A197: PDA360 | B197: 0205110204 | C197: Debiti verso il personale dipendente per fondi aziendali esercizi precedenti | D197: -12654666.48 | E197: -8508847.99 | F197: -10201928.81 | G197: -10961585.66 | H197: -9300106.04 | I197: -7619278.9
A198: PDA360 | B198: 0205110206 | C198: Altri debiti verso il personale per ferie maturate e non godute | D198: -22000 | E198: -75182.12 | F198: -22000 | G198: -75182.12 | H198: -97736.77 | I198: -22303.13
A199: PDA360 | B199: 0205110207 | C199: Altri debiti verso il personale dipendente | D199: -2058131.25 | E199: -87054195.27 | F199: -86880830.62 | G199: -2231495.9 | H199: -88756803.8 | I199: -88990120.45
A200: PDA370 | B200: 0205110301 | C200: Debiti v/gestioni liquidatorie | D200: 0 | E200: 0 | F200: 0 | G200: 0 | H200: 0 | I200: 0
A201: PDA380 | B201: 0205110402 | C201: Debiti verso organi direttivi e istituzionali | D201: -6864.08 | E201: -191036.95 | F201: -195883.3 | G201: -2017.73 | H201: -218364.24 | I201: -219978.17
A202: PDA380 | B202: 0205110403 | C202: Debiti verso assistiti | D202: -193094.81 | E202: -1704684.22 | F202: -1649097.7 | G202: -248681.33 | H202: -1931513.49 | I202: -1937335.26
... 7 more rows

Sheet 00 PDC SP
C2: ANNO | F2: 2018
A4: Aggr | C4: Cod SP 2012 | D4: RF | E4: TIPO | F4: Conto | G4: Descrizione Conto | H4: =IF($F$2="","Saldo SP T-2","Esercizio "&F2-2) -> Esercizio 2016 | I4: =IF($F$2="","Incrementi T-1","Incrementi "&$F$2-1) -> Incrementi 2017 | J4: =IF($F$2="","Decrementi T-1","Decrementi "&$F$2-1) -> Decrementi 2017 | K4: =IF($F$2="","Saldo SP T-1","Esercizio "&$F$2-1) -> Esercizio 2017 | L4: =IF($F$2="","Incrementi T","Incrementi "&$F$2) -> Incrementi 2018 | M4: =IF($F$2="","Decrementi T","Decrementi "&$F$2) -> Decrementi 2018 | N4: =IF($F$2="","Saldo SP T","Esercizio "&$F$2) -> Esercizio 2018
A5: =IF(E5="",C5,C5&E5) -> AAA020 | B5: =LEFT(C5,2) -> AA | C5: AAA020 | D5: 34 | F5: 0101010101 | G5: Costi di impianto e di ampliamento | H5: =SUMIF('00 Alimenta'!$B:$B,'00 PDC SP'!$F5,'00 Alimenta'!D:D) -> 0 | I5: =SUMIF('00 Alimenta'!$B:$B,'00 PDC SP'!$F5,'00 Alimenta'!E:E) -> 0 | J5: =SUMIF('00 Alimenta'!$B:$B,'00 PDC SP'!$F5,'00 Alimenta'!F:F) -> 0 | K5: =SUMIF('00 Alimenta'!$B:$B,'00 PDC SP'!$F5,'00 Alimenta'!G:G) -> 0 | L5: =SUMIF('00 Alimenta'!$B:$B,'00 PDC SP'!$F5,'00 Alimenta'!H:H) -> 0 | M5: =SUMIF('00 Alimenta'!$B:$B,'00 PDC SP'!$F5,'00 Alimenta'!I:I) -> 0 | N5: =K5+L5-M5 -> 0
A6: =IF(E6="",C6,C6&E6) -> AAA050 | B6: =LEFT(C6,2) -> AA | C6: AAA050 | D6: 35 | F6: 0101010201 | G6: Costi di ricerca e sviluppo | H6: =SUMIF('00 Alimenta'!$B:$B,'00 PDC SP'!$F6,'00 Alimenta'!D:D) -> 0 | I6: =SUMIF('00 Alimenta'!$B:$B,'00 PDC SP'!$F6,'00 Alimenta'!E:E) -> 0 | J6: =SUMIF('00 Alimenta'!$B:$B,'00 PDC SP'!$F6,'00 Alimenta'!F:F) -> 0 | K6: =SUMIF('00 Alimenta'!$B:$B,'00 PDC SP'!$F6,'00 Alimenta'!G:G) -> 0 | L6: =SUMIF('00 Alimenta'!$B:$B,'00 PDC SP'!$F6,'00 Alimenta'!H:H) -> 0 | M6: =SUMIF('00 Alimenta'!$B:$B,'00 PDC SP'!$F6,'00 Alimenta'!I:I) -> 0 | N6: =K6+L6-M6 -> 0
A7: AAA080 | B7: AA | C7: AAA080 | D7: 36 | F7: 0101010301 | G7: Diritti di brevetto e diritti di utilizzazione delle opere d'ingegno - derivanti dall'attività di ricerca | H7: =SUMIF('00 Alimenta'!$B:$B,'00 PDC SP'!$F7,'00 Alimenta'!D:D) -> 0 | I7: =SUMIF('00 Alimenta'!$B:$B,'00 PDC SP'!$F7,'00 Alimenta'!E:E) -> 0 | J7: =SUMIF('00 Alimenta'!$B:$B,'00 PDC SP'!$F7,'00 Alimenta'!F:F) -> 0 | K7: =SUMIF('00 Alimenta'!$B:$B,'00 PDC SP'!$F7,'00 Alimenta'!G:G) -> 0 | L7: =SUMIF('00 Alimenta'!$B:$B,'00 PDC SP'!$F7,'00 Alimenta'!H:H) -> 0 | M7: =SUMIF('00 Alimenta'!$B:$B,'00 PDC SP'!$F7,'00 Alimenta'!I:I) -> 0 | N7: 0
A8: AAA100 | B8: AA | C8: AAA100 | D8: 36 | F8: 0101010401 | G8: Diritti di brevetto e diritti di utilizzazione delle opere d'ingegno - altri | H8: =SUMIF('00 Alimenta'!$B:$B,'00 PDC SP'!$F8,'00 Alimenta'!D:D) -> 0 | I8: =SUMIF('00 Alimenta'!$B:$B,'00 PDC SP'!$F8,'00 Alimenta'!E:E) -> 0 | J8: =SUMIF('00 Alimenta'!$B:$B,'00 PDC SP'!$F8,'00 Alimenta'!F:F) -> 0 | K8: =SUMIF('00 Alimenta'!$B:$B,'00 PDC SP'!$F8,'00 Alimenta'!G:G) -> 0 | L8: =SUMIF('00 Alimenta'!$B:$B,'00 PDC SP'!$F8,'00 Alimenta'!H:H) -> 0 | M8: =SUMIF('00 Alimenta'!$B:$B,'00 PDC SP'!$F8,'00 Alimenta'!I:I) -> 0 | N8: 0
A9: AAA120 | B9: AA | C9: AAA120 | D9: 37 | F9: 0101010501 | G9: Immobilizzazioni immateriali in corso | H9: =SUMIF('00 Alimenta'!$B:$B,'00 PDC SP'!$F9,'00 Alimenta'!D:D) -> 0 | I9: =SUMIF('00 Alimenta'!$B:$B,'00 PDC SP'!$F9,'00 Alimenta'!E:E) -> 0 | J9: =SUMIF('00 Alimenta'!$B:$B,'00 PDC SP'!$F9,'00 Alimenta'!F:F) -> 0 | K9: =SUMIF('00 Alimenta'!$B:$B,'00 PDC SP'!$F9,'00 Alimenta'!G:G) -> 0 | L9: =SUMIF('00 Alimenta'!$B:$B,'00 PDC SP'!$F9,'00 Alimenta'!H:H) -> 0 | M9: =SUMIF('00 Alimenta'!$B:$B,'00 PDC SP'!$F9,'00 Alimenta'!I:I) -> 0 | N9: 0
A10: AAA120 | B10: AA | C10: AAA120 | D10: 37 | F10: 0101010502 | G10: Acconti su future acquisizioni immobilizzazioni immateriali | H10: =SUMIF('00 Alimenta'!$B:$B,'00 PDC SP'!$F10,'00 Alimenta'!D:D) -> 0 | I10: =SUMIF('00 Alimenta'!$B:$B,'00 PDC SP'!$F10,'00 Alimenta'!E:E) -> 0 | J10: =SUMIF('00 Alimenta'!$B:$B,'00 PDC SP'!$F10,'00 Alimenta'!F:F) -> 0 | K10: =SUMIF('00 Alimenta'!$B:$B,'00 PDC SP'!$F10,'00 Alimenta'!G:G) -> 0 | L10: =SUMIF('00 Alimenta'!$B:$B,'00 PDC SP'!$F10,'00 Alimenta'!H:H) -> 0 | M10: =SUMIF('00 Alimenta'!$B:$B,'00 PDC SP'!$F10,'00 Alimenta'!I:I) -> 0 | N10: 0
A11: AAA140 | B11: AA | C11: AAA140 | D11: 38 | F11: 0101010601 | G11: Concessioni pluriennali | H11: =SUMIF('00 Alimenta'!$B:$B,'00 PDC SP'!$F11,'00 Alimenta'!D:D) -> 0 | I11: =SUMIF('00 Alimenta'!$B:$B,'00 PDC SP'!$F11,'00 Alimenta'!E:E) -> 0 | J11: =SUMIF('00 Alimenta'!$B:$B,'00 PDC SP'!$F11,'00 Alimenta'!F:F) -> 0 | K11: =SUMIF('00 Alimenta'!$B:$B,'00 PDC SP'!$F11,'00 Alimenta'!G:G) -> 0 | L11: =SUMIF('00 Alimenta'!$B:$B,'00 PDC SP'!$F11,'00 Alimenta'!H:H) -> 0 | M11: =SUMIF('00 Alimenta'!$B:$B,'00 PDC SP'!$F11,'00 Alimenta'!I:I) -> 0 | N11: 0
A12: AAA140 | B12: AA | C12: AAA140 | D12: 38 | F12: 0101010602 | G12: Licenze d'uso software | H12: =SUMIF('00 Alimenta'!$B:$B,'00 PDC SP'!$F12,'00 Alimenta'!D:D) -> 1985432.37 | I12: =SUMIF('00 Alimenta'!$B:$B,'00 PDC SP'!$F12,'00 Alimenta'!E:E) -> 209841.59 | J12: =SUMIF('00 Alimenta'!$B:$B,'00 PDC SP'!$F12,'00 Alimenta'!F:F) -> 7129.38 | K12: =SUMIF('00 Alimenta'!$B:$B,'00 PDC SP'!$F12,'00 Alimenta'!G:G) -> 2188144.58 | L12: =SUMIF('00 Alimenta'!$B:$B,'00 PDC SP'!$F12,'00 Alimenta'!H:H) -> 131197.56 | M12: =SUMIF('00 Alimenta'!$B:$B,'00 PDC SP'!$F12,'00 Alimenta'!I:I) -> 11461.65 | N12: 2307880.49
A13: AAA140 | B13: AA | C13: AAA140 | D13: 38 | F13: 0101010603 | G13: Marchi e diritti simili | H13: =SUMIF('00 Alimenta'!$B:$B,'00 PDC SP'!$F13,'00 Alimenta'!D:D) -> 0 | I13: =SUMIF('00 Alimenta'!$B:$B,'00 PDC SP'!$F13,'00 Alimenta'!E:E) -> 0 | J13: =SUMIF('00 Alimenta'!$B:$B,'00 PDC SP'!$F13,'00 Alimenta'!F:F) -> 0 | K13: =SUMIF('00 Alimenta'!$B:$B,'00 PDC SP'!$F13,'00 Alimenta'!G:G) -> 0 | L13: =SUMIF('00 Alimenta'!$B:$B,'00 PDC SP'!$F13,'00 Alimenta'!H:H) -> 0 | M13: =SUMIF('00 Alimenta'!$B:$B,'00 PDC SP'!$F13,'00 Alimenta'!I:I) -> 0 | N13: 0
A14: AAA160 | B14: AA | C14: AAA160 | D14: 38 | F14: 0101010701 | G14: Migliorie su beni di terzi | H14: =SUMIF('00 Alimenta'!$B:$B,'00 PDC SP'!$F14,'00 Alimenta'!D:D) -> 0 | I14: =SUMIF('00 Alimenta'!$B:$B,'00 PDC SP'!$F14,'00 Alimenta'!E:E) -> 0 | J14: =SUMIF('00 Alimenta'!$B:$B,'00 PDC SP'!$F14,'00 Alimenta'!F:F) -> 0 | K14: =SUMIF('00 Alimenta'!$B:$B,'00 PDC SP'!$F14,'00 Alimenta'!G:G) -> 0 | L14: =SUMIF('00 Alimenta'!$B:$B,'00 PDC SP'!$F14,'00 Alimenta'!H:H) -> 0 | M14: =SUMIF('00 Alimenta'!$B:$B,'00 PDC SP'!$F14,'00 Alimenta'!I:I) -> 0 | N14: 0
A15: AAA180 | B15: AA | C15: AAA180 | D15: 38 | F15: 0101010801 | G15: Pubblicità | H15: =SUMIF('00 Alimenta'!$B:$B,'00 PDC SP'!$F15,'00 Alimenta'!D:D) -> 0 | I15: =SUMIF('00 Alimenta'!$B:$B,'00 PDC SP'!$F15,'00 Alimenta'!E:E) -> 0 | J15: =SUMIF('00 Alimenta'!$B:$B,'00 PDC SP'!$F15,'00 Alimenta'!F:F) -> 0 | K15: =SUMIF('00 Alimenta'!$B:$B,'00 PDC SP'!$F15,'00 Alimenta'!G:G) -> 0 | L15: =SUMIF('00 Alimenta'!$B:$B,'00 PDC SP'!$F15,'00 Alimenta'!H:H) -> 0 | M15: =SUMIF('00 Alimenta'!$B:$B,'00 PDC SP'!$F15,'00 Alimenta'!I:I) -> 0 | N15: 0
A16: AAA200 | B16: AA | C16: AAA200 | D16: 38 | F16: 0101010901 | G16: Altre immobilizzazioni immateriali | H16: =SUMIF('00 Alimenta'!$B:$B,'00 PDC SP'!$F16,'00 Alimenta'!D:D) -> 0 | I16: =SUMIF('00 Alimenta'!$B:$B,'00 PDC SP'!$F16,'00 Alimenta'!E:E) -> 0 | J16: =SUMIF('00 Alimenta'!$B:$B,'00 PDC SP'!$F16,'00 Alimenta'!F:F) -> 0 | K16: =SUMIF('00 Alimenta'!$B:$B,'00 PDC SP'!$F16,'00 Alimenta'!G:G) -> 0 | L16: =SUMIF('00 Alimenta'!$B:$B,'00 PDC SP'!$F16,'00 Alimenta'!H:H) -> 0 | M16: =SUMIF('00 Alimenta'!$B:$B,'00 PDC SP'!$F16,'00 Alimenta'!I:I) -> 0 | N16: 0
A17: AAA290 | B17: AA | C17: AAA290 | D17: 39 | F17: 0101020101 | G17: Terreni disponibili | H17: =SUMIF('00 Alimenta'!$B:$B,'00 PDC SP'!$F17,'00 Alimenta'!D:D) -> 0 | I17: =SUMIF('00 Alimenta'!$B:$B,'00 PDC SP'!$F17,'00 Alimenta'!E:E) -> 0 | J17: =SUMIF('00 Alimenta'!$B:$B,'00 PDC SP'!$F17,'00 Alimenta'!F:F) -> 0 | K17: =SUMIF('00 Alimenta'!$B:$B,'00 PDC SP'!$F17,'00 Alimenta'!G:G) -> 0 | L17: =SUMIF('00 Alimenta'!$B:$B,'00 PDC SP'!$F17,'00 Alimenta'!H:H) -> 0 | M17: =SUMIF('00 Alimenta'!$B:$B,'00 PDC SP'!$F17,'00 Alimenta'!I:I) -> 0 | N17: 0
A18: AAA300 | B18: AA | C18: AAA300 | D18: 39 | F18: 0101020102 | G18: Terreni indisponibili | H18: =SUMIF('00 Alimenta'!$B:$B,'00 PDC SP'!$F18,'00 Alimenta'!D:D) -> 942655.12 | I18: =SUMIF('00 Alimenta'!$B:$B,'00 PDC SP'!$F18,'00 Alimenta'!E:E) -> 0 | J18: =SUMIF('00 Alimenta'!$B:$B,'00 PDC SP'!$F18,'00 Alimenta'!F:F) -> 0 | K18: =SUMIF('00 Alimenta'!$B:$B,'00 PDC SP'!$F18,'00 Alimenta'!G:G) -> 942655.12 | L18: =SUMIF('00 Alimenta'!$B:$B,'00 PDC SP'!$F18,'00 Alimenta'!H:H) -> 0 | M18: =SUMIF('00 Alimenta'!$B:$B,'00 PDC SP'!$F18,'00 Alimenta'!I:I) -> 0 | N18: 942655.12
A19: AAA330 | B19: AA | C19: AAA330 | D19: 40 | F19: 0101020201 | G19: Fabbricati non strumentali (disponibili) | H19: =SUMIF('00 Alimenta'!$B:$B,'00 PDC SP'!$F19,'00 Alimenta'!D:D) -> 0 | I19: =SUMIF('00 Alimenta'!$B:$B,'00 PDC SP'!$F19,'00 Alimenta'!E:E) -> 0 | J19: =SUMIF('00 Alimenta'!$B:$B,'00 PDC SP'!$F19,'00 Alimenta'!F:F) -> 0 | K19: =SUMIF('00 Alimenta'!$B:$B,'00 PDC SP'!$F19,'00 Alimenta'!G:G) -> 0 | L19: =SUMIF('00 Alimenta'!$B:$B,'00 PDC SP'!$F19,'00 Alimenta'!H:H) -> 0 | M19: =SUMIF('00 Alimenta'!$B:$B,'00 PDC SP'!$F19,'00 Alimenta'!I:I) -> 0 | N19: 0
A20: AAA330 | B20: AA | C20: AAA330 | D20: 40 | F20: 0101020202 | G20: Costruzioni leggere | H20: =SUMIF('00 Alimenta'!$B:$B,'00 PDC SP'!$F20,'00 Alimenta'!D:D) -> 0 | I20: =SUMIF('00 Alimenta'!$B:$B,'00 PDC SP'!$F20,'00 Alimenta'!E:E) -> 0 | J20: =SUMIF('00 Alimenta'!$B:$B,'00 PDC SP'!$F20,'00 Alimenta'!F:F) -> 0 | K20: =SUMIF('00 Alimenta'!$B:$B,'00 PDC SP'!$F20,'00 Alimenta'!G:G) -> 0 | L20: =SUMIF('00 Alimenta'!$B:$B,'00 PDC SP'!$F20,'00 Alimenta'!H:H) -> 0 | M20: =SUMIF('00 Alimenta'!$B:$B,'00 PDC SP'!$F20,'00 Alimenta'!I:I) -> 0 | N20: 0
A21: AAA330 | B21: AA | C21: AAA330 | D21: 40 | F21: 0101020203 | G21: Manutenzioni e riparazioni straordinarie capitalizzabili fabbricati disponibili | H21: =SUMIF('00 Alimenta'!$B:$B,'00 PDC SP'!$F21,'00 Alimenta'!D:D) -> 0 | I21: =SUMIF('00 Alimenta'!$B:$B,'00 PDC SP'!$F21,'00 Alimenta'!E:E) -> 0 | J21: =SUMIF('00 Alimenta'!$B:$B,'00 PDC SP'!$F21,'00 Alimenta'!F:F) -> 0 | K21: =SUMIF('00 Alimenta'!$B:$B,'00 PDC SP'!$F21,'00 Alimenta'!G:G) -> 0 | L21: =SUMIF('00 Alimenta'!$B:$B,'00 PDC SP'!$F21,'00 Alimenta'!H:H) -> 0 | M21: =SUMIF('00 Alimenta'!$B:$B,'00 PDC SP'!$F21,'00 Alimenta'!I:I) -> 0 | N21: 0
A22: AAA360 | B22: AA | C22: AAA360 | D22: 40 | F22: 0101020301 | G22: Fabbricati strumentali (indisponibili) | H22: =SUMIF('00 Alimenta'!$B:$B,'00 PDC SP'!$F22,'00 Alimenta'!D:D) -> 169096559.2 | I22: =SUMIF('00 Alimenta'!$B:$B,'00 PDC SP'!$F22,'00 Alimenta'!E:E) -> 0 | J22: =SUMIF('00 Alimenta'!$B:$B,'00 PDC SP'!$F22,'00 Alimenta'!F:F) -> 0 | K22: =SUMIF('00 Alimenta'!$B:$B,'00 PDC SP'!$F22,'00 Alimenta'!G:G) -> 169096559.2 | L22: =SUMIF('00 Alimenta'!$B:$B,'00 PDC SP'!$F22,'00 Alimenta'!H:H) -> 2087230 | M22: =SUMIF('00 Alimenta'!$B:$B,'00 PDC SP'!$F22,'00 Alimenta'!I:I) -> 0 | N22: 171183789.2
A23: AAA360 | B23: AA | C23: AAA360 | D23: 40 | F23: 0101020302 | G23: Manutenzioni e riparazioni straordinarie capitalizzabili fabbricati indisponibili | H23: =SUMIF('00 Alimenta'!$B:$B,'00 PDC SP'!$F23,'00 Alimenta'!D:D) -> 0 | I23: =SUMIF('00 Alimenta'!$B:$B,'00 PDC SP'!$F23,'00 Alimenta'!E:E) -> 0 | J23: =SUMIF('00 Alimenta'!$B:$B,'00 PDC SP'!$F23,'00 Alimenta'!F:F) -> 0 | K23: =SUMIF('00 Alimenta'!$B:$B,'00 PDC SP'!$F23,'00 Alimenta'!G:G) -> 0 | L23: =SUMIF('00 Alimenta'!$B:$B,'00 PDC SP'!$F23,'00 Alimenta'!H:H) -> 0 | M23: =SUMIF('00 Alimenta'!$B:$B,'00 PDC SP'!$F23,'00 Alimenta'!I:I) -> 0 | N23: 0
A24: AAA390 | B24: AA | C24: AAA390 | D24: 41 | F24: 0101020401 | G24: Impianti sanitari | H24: =SUMIF('00 Alimenta'!$B:$B,'00 PDC SP'!$F24,'00 Alimenta'!D:D) -> 0 | I24: =SUMIF('00 Alimenta'!$B:$B,'00 PDC SP'!$F24,'00 Alimenta'!E:E) -> 0 | J24: =SUMIF('00 Alimenta'!$B:$B,'00 PDC SP'!$F24,'00 Alimenta'!F:F) -> 0 | K24: =SUMIF('00 Alimenta'!$B:$B,'00 PDC SP'!$F24,'00 Alimenta'!G:G) -> 0 | L24: =SUMIF('00 Alimenta'!$B:$B,'00 PDC SP'!$F24,'00 Alimenta'!H:H) -> 0 | M24: =SUMIF('00 Alimenta'!$B:$B,'00 PDC SP'!$F24,'00 Alimenta'!I:I) -> 0 | N24: 0
A25: AAA390 | B25: AA | C25: AAA390 | D25: 41 | F25: 0101020402 | G25: Impianti generici | H25: =SUMIF('00 Alimenta'!$B:$B,'00 PDC SP'!$F25,'00 Alimenta'!D:D) -> 0 | I25: =SUMIF('00 Alimenta'!$B:$B,'00 PDC SP'!$F25,'00 Alimenta'!E:E) -> 0 | J25: =SUMIF('00 Alimenta'!$B:$B,'00 PDC SP'!$F25,'00 Alimenta'!F:F) -> 0 | K25: =SUMIF('00 Alimenta'!$B:$B,'00 PDC SP'!$F25,'00 Alimenta'!G:G) -> 0 | L25: =SUMIF('00 Alimenta'!$B:$B,'00 PDC SP'!$F25,'00 Alimenta'!H:H) -> 0 | M25: =SUMIF('00 Alimenta'!$B:$B,'00 PDC SP'!$F25,'00 Alimenta'!I:I) -> 0 | N25: 0
A26: AAA390 | B26: AA | C26: AAA390 | D26: 41 | F26: 0101020403 | G26: Macchinari sanitari | H26: =SUMIF('00 Alimenta'!$B:$B,'00 PDC SP'!$F26,'00 Alimenta'!D:D) -> 0 | I26: =SUMIF('00 Alimenta'!$B:$B,'00 PDC SP'!$F26,'00 Alimenta'!E:E) -> 0 | J26: =SUMIF('00 Alimenta'!$B:$B,'00 PDC SP'!$F26,'00 Alimenta'!F:F) -> 0 | K26: =SUMIF('00 Alimenta'!$B:$B,'00 PDC SP'!$F26,'00 Alimenta'!G:G) -> 0 | L26: =SUMIF('00 Alimenta'!$B:$B,'00 PDC SP'!$F26,'00 Alimenta'!H:H) -> 0 | M26: =SUMIF('00 Alimenta'!$B:$B,'00 PDC SP'!$F26,'00 Alimenta'!I:I) -> 0 | N26: 0
A27: AAA390 | B27: AA | C27: AAA390 | D27: 41 | F27: 0101020404 | G27: Macchinari generici | H27: =SUMIF('00 Alimenta'!$B:$B,'00 PDC SP'!$F27,'00 Alimenta'!D:D) -> 5947030.48 | I27: =SUMIF('00 Alimenta'!$B:$B,'00 PDC SP'!$F27,'00 Alimenta'!E:E) -> 219918.7 | J27: =SUMIF('00 Alimenta'!$B:$B,'00 PDC SP'!$F27,'00 Alimenta'!F:F) -> 171.65 | K27: =SUMIF('00 Alimenta'!$B:$B,'00 PDC SP'!$F27,'00 Alimenta'!G:G) -> 6166777.53 | L27: =SUMIF('00 Alimenta'!$B:$B,'00 PDC SP'!$F27,'00 Alimenta'!H:H) -> 653192.51 | M27: =SUMIF('00 Alimenta'!$B:$B,'00 PDC SP'!$F27,'00 Alimenta'!I:I) -> 17647.73 | N27: 6802322.31
A28: AAA390 | B28: AA | C28: AAA390 | D28: 41 | F28: 0101020405 | G28: Impianti e macchinari < 516 euro | H28: =SUMIF('00 Alimenta'!$B:$B,'00 PDC SP'!$F28,'00 Alimenta'!D:D) -> 0 | I28: =SUMIF('00 Alimenta'!$B:$B,'00 PDC SP'!$F28,'00 Alimenta'!E:E) -> 0 | J28: =SUMIF('00 Alimenta'!$B:$B,'00 PDC SP'!$F28,'00 Alimenta'!F:F) -> 0 | K28: =SUMIF('00 Alimenta'!$B:$B,'00 PDC SP'!$F28,'00 Alimenta'!G:G) -> 0 | L28: =SUMIF('00 Alimenta'!$B:$B,'00 PDC SP'!$F28,'00 Alimenta'!H:H) -> 0 | M28: =SUMIF('00 Alimenta'!$B:$B,'00 PDC SP'!$F28,'00 Alimenta'!I:I) -> 0 | N28: 0
A29: AAA420 | B29: AA | C29: AAA420 | D29: 42 | F29: 0101020501 | G29: Attrezzature sanitarie e scientifiche | H29: =SUMIF('00 Alimenta'!$B:$B,'00 PDC SP'!$F29,'00 Alimenta'!D:D) -> 0 | I29: =SUMIF('00 Alimenta'!$B:$B,'00 PDC SP'!$F29,'00 Alimenta'!E:E) -> 0 | J29: =SUMIF('00 Alimenta'!$B:$B,'00 PDC SP'!$F29,'00 Alimenta'!F:F) -> 0 | K29: =SUMIF('00 Alimenta'!$B:$B,'00 PDC SP'!$F29,'00 Alimenta'!G:G) -> 0 | L29: =SUMIF('00 Alimenta'!$B:$B,'00 PDC SP'!$F29,'00 Alimenta'!H:H) -> 0 | M29: =SUMIF('00 Alimenta'!$B:$B,'00 PDC SP'!$F29,'00 Alimenta'!I:I) -> 0 | N29: 0
A30: AAA420 | B30: AA | C30: AAA420 | D30: 42 | F30: 0101020502 | G30: Attrezzature generiche | H30: =SUMIF('00 Alimenta'!$B:$B,'00 PDC SP'!$F30,'00 Alimenta'!D:D) -> 79051702.27 | I30: =SUMIF('00 Alimenta'!$B:$B,'00 PDC SP'!$F30,'00 Alimenta'!E:E) -> 5812839.07 | J30: =SUMIF('00 Alimenta'!$B:$B,'00 PDC SP'!$F30,'00 Alimenta'!F:F) -> 146692.8 | K30: =SUMIF('00 Alimenta'!$B:$B,'00 PDC SP'!$F30,'00 Alimenta'!G:G) -> 84717848.54 | L30: =SUMIF('00 Alimenta'!$B:$B,'00 PDC SP'!$F30,'00 Alimenta'!H:H) -> 4303427.61 | M30: =SUMIF('00 Alimenta'!$B:$B,'00 PDC SP'!$F30,'00 Alimenta'!I:I) -> 5885338.17 | N30: 83135937.98
A31: AAA420 | B31: AA | C31: AAA420 | D31: 42 | F31: 0101020503 | G31: Attrezzature sanitarie e scientifiche < 516 euro | H31: =SUMIF('00 Alimenta'!$B:$B,'00 PDC SP'!$F31,'00 Alimenta'!D:D) -> 0 | I31: =SUMIF('00 Alimenta'!$B:$B,'00 PDC SP'!$F31,'00 Alimenta'!E:E) -> 0 | J31: =SUMIF('00 Alimenta'!$B:$B,'00 PDC SP'!$F31,'00 Alimenta'!F:F) -> 0 | K31: =SUMIF('00 Alimenta'!$B:$B,'00 PDC SP'!$F31,'00 Alimenta'!G:G) -> 0 | L31: =SUMIF('00 Alimenta'!$B:$B,'00 PDC SP'!$F31,'00 Alimenta'!H:H) -> 0 | M31: =SUMIF('00 Alimenta'!$B:$B,'00 PDC SP'!$F31,'00 Alimenta'!I:I) -> 0 | N31: 0
A32: AAA450 | B32: AA | C32: AAA450 | D32: 43 | F32: 0101020601 | G32: Mobili e arredi | H32: =SUMIF('00 Alimenta'!$B:$B,'00 PDC SP'!$F32,'00 Alimenta'!D:D) -> 10368797.42 | I32: =SUMIF('00 Alimenta'!$B:$B,'00 PDC SP'!$F32,'00 Alimenta'!E:E) -> 241394.07 | J32: =SUMIF('00 Alimenta'!$B:$B,'00 PDC SP'!$F32,'00 Alimenta'!F:F) -> 12215.84 | K32: =SUMIF('00 Alimenta'!$B:$B,'00 PDC SP'!$F32,'00 Alimenta'!G:G) -> 10597975.65 | L32: =SUMIF('00 Alimenta'!$B:$B,'00 PDC SP'!$F32,'00 Alimenta'!H:H) -> 339281.25 | M32: =SUMIF('00 Alimenta'!$B:$B,'00 PDC SP'!$F32,'00 Alimenta'!I:I) -> 91861.65 | N32: 10845395.25
A33: AAA450 | B33: AA | C33: AAA450 | D33: 43 | F33: 0101020602 | G33: Mobili d'ufficio | H33: =SUMIF('00 Alimenta'!$B:$B,'00 PDC SP'!$F33,'00 Alimenta'!D:D) -> 0 | I33: =SUMIF('00 Alimenta'!$B:$B,'00 PDC SP'!$F33,'00 Alimenta'!E:E) -> 0 | J33: =SUMIF('00 Alimenta'!$B:$B,'00 PDC SP'!$F33,'00 Alimenta'!F:F) -> 0 | K33: =SUMIF('00 Alimenta'!$B:$B,'00 PDC SP'!$F33,'00 Alimenta'!G:G) -> 0 | L33: =SUMIF('00 Alimenta'!$B:$B,'00 PDC SP'!$F33,'00 Alimenta'!H:H) -> 0 | M33: =SUMIF('00 Alimenta'!$B:$B,'00 PDC SP'!$F33,'00 Alimenta'!I:I) -> 0 | N33: 0
A34: AAA450 | B34: AA | C34: AAA450 | D34: 43 | F34: 0101020603 | G34: Mobili d'ufficio < 516 euro | H34: =SUMIF('00 Alimenta'!$B:$B,'00 PDC SP'!$F34,'00 Alimenta'!D:D) -> 0 | I34: =SUMIF('00 Alimenta'!$B:$B,'00 PDC SP'!$F34,'00 Alimenta'!E:E) -> 0 | J34: =SUMIF('00 Alimenta'!$B:$B,'00 PDC SP'!$F34,'00 Alimenta'!F:F) -> 0 | K34: =SUMIF('00 Alimenta'!$B:$B,'00 PDC SP'!$F34,'00 Alimenta'!G:G) -> 0 | L34: =SUMIF('00 Alimenta'!$B:$B,'00 PDC SP'!$F34,'00 Alimenta'!H:H) -> 0 | M34: =SUMIF('00 Alimenta'!$B:$B,'00 PDC SP'!$F34,'00 Alimenta'!I:I) -> 0 | N34: 0
A35: AAA480 | B35: AA | C35: AAA480 | D35: 44 | F35: 0101020701 | G35: Elicotteri | H35: =SUMIF('00 Alimenta'!$B:$B,'00 PDC SP'!$F35,'00 Alimenta'!D:D) -> 0 | I35: =SUMIF('00 Alimenta'!$B:$B,'00 PDC SP'!$F35,'00 Alimenta'!E:E) -> 0 | J35: =SUMIF('00 Alimenta'!$B:$B,'00 PDC SP'!$F35,'00 Alimenta'!F:F) -> 0 | K35: =SUMIF('00 Alimenta'!$B:$B,'00 PDC SP'!$F35,'00 Alimenta'!G:G) -> 0 | L35: =SUMIF('00 Alimenta'!$B:$B,'00 PDC SP'!$F35,'00 Alimenta'!H:H) -> 0 | M35: =SUMIF('00 Alimenta'!$B:$B,'00 PDC SP'!$F35,'00 Alimenta'!I:I) -> 0 | N35: 0
A36: AAA480 | B36: AA | C36: AAA480 | D36: 44 | F36: 0101020702 | G36: Ambulanze | H36: =SUMIF('00 Alimenta'!$B:$B,'00 PDC SP'!$F36,'00 Alimenta'!D:D) -> 0 | I36: =SUMIF('00 Alimenta'!$B:$B,'00 PDC SP'!$F36,'00 Alimenta'!E:E) -> 0 | J36: =SUMIF('00 Alimenta'!$B:$B,'00 PDC SP'!$F36,'00 Alimenta'!F:F) -> 0 | K36: =SUMIF('00 Alimenta'!$B:$B,'00 PDC SP'!$F36,'00 Alimenta'!G:G) -> 0 | L36: =SUMIF('00 Alimenta'!$B:$B,'00 PDC SP'!$F36,'00 Alimenta'!H:H) -> 73346.4 | M36: =SUMIF('00 Alimenta'!$B:$B,'00 PDC SP'!$F36,'00 Alimenta'!I:I) -> 0 | N36: 73346.4
A37: AAA480 | B37: AA | C37: AAA480 | D37: 44 | F37: 0101020703 | G37: Altri mezzi di trasporto | H37: =SUMIF('00 Alimenta'!$B:$B,'00 PDC SP'!$F37,'00 Alimenta'!D:D) -> 1839959.11 | I37: =SUMIF('00 Alimenta'!$B:$B,'00 PDC SP'!$F37,'00 Alimenta'!E:E) -> 123029.66 | J37: =SUMIF('00 Alimenta'!$B:$B,'00 PDC SP'!$F37,'00 Alimenta'!F:F) -> 0 | K37: =SUMIF('00 Alimenta'!$B:$B,'00 PDC SP'!$F37,'00 Alimenta'!G:G) -> 1962988.77 | L37: =SUMIF('00 Alimenta'!$B:$B,'00 PDC SP'!$F37,'00 Alimenta'!H:H) -> 19850.57 | M37: =SUMIF('00 Alimenta'!$B:$B,'00 PDC SP'!$F37,'00 Alimenta'!I:I) -> 149825.11 | N37: 1833014.23
A38: AAA500 | B38: AA | C38: AAA500 | D38: 45 | F38: 0101020801 | G38: Oggetti d'arte | H38: =SUMIF('00 Alimenta'!$B:$B,'00 PDC SP'!$F38,'00 Alimenta'!D:D) -> 0 | I38: =SUMIF('00 Alimenta'!$B:$B,'00 PDC SP'!$F38,'00 Alimenta'!E:E) -> 0 | J38: =SUMIF('00 Alimenta'!$B:$B,'00 PDC SP'!$F38,'00 Alimenta'!F:F) -> 0 | K38: =SUMIF('00 Alimenta'!$B:$B,'00 PDC SP'!$F38,'00 Alimenta'!G:G) -> 0 | L38: =SUMIF('00 Alimenta'!$B:$B,'00 PDC SP'!$F38,'00 Alimenta'!H:H) -> 0 | M38: =SUMIF('00 Alimenta'!$B:$B,'00 PDC SP'!$F38,'00 Alimenta'!I:I) -> 0 | N38: 0
A39: AAA520 | B39: AA | C39: AAA520 | D39: 45 | F39: 0101020901 | G39: Attrezzature e macchine d'ufficio | H39: =SUMIF('00 Alimenta'!$B:$B,'00 PDC SP'!$F39,'00 Alimenta'!D:D) -> 0 | I39: =SUMIF('00 Alimenta'!$B:$B,'00 PDC SP'!$F39,'00 Alimenta'!E:E) -> 0 | J39: =SUMIF('00 Alimenta'!$B:$B,'00 PDC SP'!$F39,'00 Alimenta'!F:F) -> 0 | K39: =SUMIF('00 Alimenta'!$B:$B,'00 PDC SP'!$F39,'00 Alimenta'!G:G) -> 0 | L39: =SUMIF('00 Alimenta'!$B:$B,'00 PDC SP'!$F39,'00 Alimenta'!H:H) -> 0 | M39: =SUMIF('00 Alimenta'!$B:$B,'00 PDC SP'!$F39,'00 Alimenta'!I:I) -> 0 | N39: 0
A40: AAA520 | B40: AA | C40: AAA520 | D40: 45 | F40: 0101020902 | G40: Attrezzature tecnico - economali | H40: =SUMIF('00 Alimenta'!$B:$B,'00 PDC SP'!$F40,'00 Alimenta'!D:D) -> 0 | I40: =SUMIF('00 Alimenta'!$B:$B,'00 PDC SP'!$F40,'00 Alimenta'!E:E) -> 0 | J40: =SUMIF('00 Alimenta'!$B:$B,'00 PDC SP'!$F40,'00 Alimenta'!F:F) -> 0 | K40: =SUMIF('00 Alimenta'!$B:$B,'00 PDC SP'!$F40,'00 Alimenta'!G:G) -> 0 | L40: =SUMIF('00 Alimenta'!$B:$B,'00 PDC SP'!$F40,'00 Alimenta'!H:H) -> 0 | M40: =SUMIF('00 Alimenta'!$B:$B,'00 PDC SP'!$F40,'00 Alimenta'!I:I) -> 0 | N40: 0
A41: AAA520 | B41: AA | C41: AAA520 | D41: 45 | F41: 0101020903 | G41: Computer e macchinari elettronici | H41: =SUMIF('00 Alimenta'!$B:$B,'00 PDC SP'!$F41,'00 Alimenta'!D:D) -> 5230170.92 | I41: =SUMIF('00 Alimenta'!$B:$B,'00 PDC SP'!$F41,'00 Alimenta'!E:E) -> 261895.29 | J41: =SUMIF('00 Alimenta'!$B:$B,'00 PDC SP'!$F41,'00 Alimenta'!F:F) -> 2012.8 | K41: =SUMIF('00 Alimenta'!$B:$B,'00 PDC SP'!$F41,'00 Alimenta'!G:G) -> 5490053.41 | L41: =SUMIF('00 Alimenta'!$B:$B,'00 PDC SP'!$F41,'00 Alimenta'!H:H) -> 253573.24 | M41: =SUMIF('00 Alimenta'!$B:$B,'00 PDC SP'!$F41,'00 Alimenta'!I:I) -> 327240.58 | N41: 5416386.07
A42: AAA520 | B42: AA | C42: AAA520 | D42: 45 | F42: 0101020904 | G42: Altri beni materiali | H42: =SUMIF('00 Alimenta'!$B:$B,'00 PDC SP'!$F42,'00 Alimenta'!D:D) -> 423919.86 | I42: =SUMIF('00 Alimenta'!$B:$B,'00 PDC SP'!$F42,'00 Alimenta'!E:E) -> 4021.71 | J42: =SUMIF('00 Alimenta'!$B:$B,'00 PDC SP'!$F42,'00 Alimenta'!F:F) -> 0 | K42: =SUMIF('00 Alimenta'!$B:$B,'00 PDC SP'!$F42,'00 Alimenta'!G:G) -> 427941.57 | L42: =SUMIF('00 Alimenta'!$B:$B,'00 PDC SP'!$F42,'00 Alimenta'!H:H) -> 14224.53 | M42: =SUMIF('00 Alimenta'!$B:$B,'00 PDC SP'!$F42,'00 Alimenta'!I:I) -> 3249.6 | N42: 438916.5
A43: AAA520 | B43: AA | C43: AAA520 | D43: 45 | F43: 0101020905 | G43: Altri beni < 516 euro | H43: =SUMIF('00 Alimenta'!$B:$B,'00 PDC SP'!$F43,'00 Alimenta'!D:D) -> 0 | I43: =SUMIF('00 Alimenta'!$B:$B,'00 PDC SP'!$F43,'00 Alimenta'!E:E) -> 0 | J43: =SUMIF('00 Alimenta'!$B:$B,'00 PDC SP'!$F43,'00 Alimenta'!F:F) -> 0 | K43: =SUMIF('00 Alimenta'!$B:$B,'00 PDC SP'!$F43,'00 Alimenta'!G:G) -> 0 | L43: =SUMIF('00 Alimenta'!$B:$B,'00 PDC SP'!$F43,'00 Alimenta'!H:H) -> 0 | M43: =SUMIF('00 Alimenta'!$B:$B,'00 PDC SP'!$F43,'00 Alimenta'!I:I) -> 0 | N43: 0
A44: AAA540 | B44: AA | C44: AAA540 | D44: 45 | F44: 0101021001 | G44: Fabbricati in costruzione | H44: =SUMIF('00 Alimenta'!$B:$B,'00 PDC SP'!$F44,'00 Alimenta'!D:D) -> 8622770.27 | I44: =SUMIF('00 Alimenta'!$B:$B,'00 PDC SP'!$F44,'00 Alimenta'!E:E) -> 950522.09 | J44: =SUMIF('00 Alimenta'!$B:$B,'00 PDC SP'!$F44,'00 Alimenta'!F:F) -> 102440.22 | K44: =SUMIF('00 Alimenta'!$B:$B,'00 PDC SP'!$F44,'00 Alimenta'!G:G) -> 9470852.14 | L44: =SUMIF('00 Alimenta'!$B:$B,'00 PDC SP'!$F44,'00 Alimenta'!H:H) -> 1449834.4 | M44: =SUMIF('00 Alimenta'!$B:$B,'00 PDC SP'!$F44,'00 Alimenta'!I:I) -> 2396699.18 | N44: 8523987.36
A45: AAA540 | B45: AA | C45: AAA540 | D45: 45 | F45: 0101021002 | G45: Impianti e macchinari in costruzione | H45: =SUMIF('00 Alimenta'!$B:$B,'00 PDC SP'!$F45,'00 Alimenta'!D:D) -> 0 | I45: =SUMIF('00 Alimenta'!$B:$B,'00 PDC SP'!$F45,'00 Alimenta'!E:E) -> 0 | J45: =SUMIF('00 Alimenta'!$B:$B,'00 PDC SP'!$F45,'00 Alimenta'!F:F) -> 0 | K45: =SUMIF('00 Alimenta'!$B:$B,'00 PDC SP'!$F45,'00 Alimenta'!G:G) -> 0 | L45: =SUMIF('00 Alimenta'!$B:$B,'00 PDC SP'!$F45,'00 Alimenta'!H:H) -> 0 | M45: =SUMIF('00 Alimenta'!$B:$B,'00 PDC SP'!$F45,'00 Alimenta'!I:I) -> 0 | N45: 0
A46: AAA540 | B46: AA | C46: AAA540 | D46: 45 | F46: 0101021003 | G46: Attrezzature sanitarie e scientifiche in costruzione | H46: =SUMIF('00 Alimenta'!$B:$B,'00 PDC SP'!$F46,'00 Alimenta'!D:D) -> 0 | I46: =SUMIF('00 Alimenta'!$B:$B,'00 PDC SP'!$F46,'00 Alimenta'!E:E) -> 0 | J46: =SUMIF('00 Alimenta'!$B:$B,'00 PDC SP'!$F46,'00 Alimenta'!F:F) -> 0 | K46: =SUMIF('00 Alimenta'!$B:$B,'00 PDC SP'!$F46,'00 Alimenta'!G:G) -> 0 | L46: =SUMIF('00 Alimenta'!$B:$B,'00 PDC SP'!$F46,'00 Alimenta'!H:H) -> 0 | M46: =SUMIF('00 Alimenta'!$B:$B,'00 PDC SP'!$F46,'00 Alimenta'!I:I) -> 0 | N46: 0
A47: AAA540 | B47: AA | C47: AAA540 | D47: 45 | F47: 0101021004 | G47: Altre immobilizzazioni materiali in costruzione | H47: =SUMIF('00 Alimenta'!$B:$B,'00 PDC SP'!$F47,'00 Alimenta'!D:D) -> 0 | I47: =SUMIF('00 Alimenta'!$B:$B,'00 PDC SP'!$F47,'00 Alimenta'!E:E) -> 0 | J47: =SUMIF('00 Alimenta'!$B:$B,'00 PDC SP'!$F47,'00 Alimenta'!F:F) -> 0 | K47: =SUMIF('00 Alimenta'!$B:$B,'00 PDC SP'!$F47,'00 Alimenta'!G:G) -> 0 | L47: =SUMIF('00 Alimenta'!$B:$B,'00 PDC SP'!$F47,'00 Alimenta'!H:H) -> 0 | M47: =SUMIF('00 Alimenta'!$B:$B,'00 PDC SP'!$F47,'00 Alimenta'!I:I) -> 0 | N47: 0
A48: AAA540 | B48: AA | C48: AAA540 | D48: 45 | F48: 0101021005 | G48: Acconti su future acquisizioni di immobilizzazioni materiali | H48: =SUMIF('00 Alimenta'!$B:$B,'00 PDC SP'!$F48,'00 Alimenta'!D:D) -> 142125.31 | I48: =SUMIF('00 Alimenta'!$B:$B,'00 PDC SP'!$F48,'00 Alimenta'!E:E) -> 1527272.03 | J48: =SUMIF('00 Alimenta'!$B:$B,'00 PDC SP'!$F48,'00 Alimenta'!F:F) -> 142296.91 | K48: =SUMIF('00 Alimenta'!$B:$B,'00 PDC SP'!$F48,'00 Alimenta'!G:G) -> 1527100.43 | L48: =SUMIF('00 Alimenta'!$B:$B,'00 PDC SP'!$F48,'00 Alimenta'!H:H) -> 66213.3 | M48: =SUMIF('00 Alimenta'!$B:$B,'00 PDC SP'!$F48,'00 Alimenta'!I:I) -> 1527100.33 | N48: 66213.4
A49: AAA660 | B49: AA | C49: AAA660 | D49: 46 | F49: 0101030101 | G49: Crediti finanziari v/Stato | H49: =SUMIF('00 Alimenta'!$B:$B,'00 PDC SP'!$F49,'00 Alimenta'!D:D) -> 0 | I49: =SUMIF('00 Alimenta'!$B:$B,'00 PDC SP'!$F49,'00 Alimenta'!E:E) -> 0 | J49: =SUMIF('00 Alimenta'!$B:$B,'00 PDC SP'!$F49,'00 Alimenta'!F:F) -> 0 | K49: =SUMIF('00 Alimenta'!$B:$B,'00 PDC SP'!$F49,'00 Alimenta'!G:G) -> 0 | L49: =SUMIF('00 Alimenta'!$B:$B,'00 PDC SP'!$F49,'00 Alimenta'!H:H) -> 0 | M49: =SUMIF('00 Alimenta'!$B:$B,'00 PDC SP'!$F49,'00 Alimenta'!I:I) -> 0 | N49: 0
A50: AAA670 | B50: AA | C50: AAA670 | D50: 46 | F50: 0101030201 | G50: Crediti finanziari v/Regione | H50: =SUMIF('00 Alimenta'!$B:$B,'00 PDC SP'!$F50,'00 Alimenta'!D:D) -> 0 | I50: =SUMIF('00 Alimenta'!$B:$B,'00 PDC SP'!$F50,'00 Alimenta'!E:E) -> 0 | J50: =SUMIF('00 Alimenta'!$B:$B,'00 PDC SP'!$F50,'00 Alimenta'!F:F) -> 0 | K50: =SUMIF('00 Alimenta'!$B:$B,'00 PDC SP'!$F50,'00 Alimenta'!G:G) -> 0 | L50: =SUMIF('00 Alimenta'!$B:$B,'00 PDC SP'!$F50,'00 Alimenta'!H:H) -> 0 | M50: =SUMIF('00 Alimenta'!$B:$B,'00 PDC SP'!$F50,'00 Alimenta'!I:I) -> 0 | N50: 0
A51: AAA680 | B51: AA | C51: AAA680 | D51: 46 | F51: 0101030301 | G51: Crediti finanziari v/imprese controllate | H51: =SUMIF('00 Alimenta'!$B:$B,'00 PDC SP'!$F51,'00 Alimenta'!D:D) -> 0 | I51: =SUMIF('00 Alimenta'!$B:$B,'00 PDC SP'!$F51,'00 Alimenta'!E:E) -> 0 | J51: =SUMIF('00 Alimenta'!$B:$B,'00 PDC SP'!$F51,'00 Alimenta'!F:F) -> 0 | K51: =SUMIF('00 Alimenta'!$B:$B,'00 PDC SP'!$F51,'00 Alimenta'!G:G) -> 0 | L51: =SUMIF('00 Alimenta'!$B:$B,'00 PDC SP'!$F51,'00 Alimenta'!H:H) -> 0 | M51: =SUMIF('00 Alimenta'!$B:$B,'00 PDC SP'!$F51,'00 Alimenta'!I:I) -> 0 | N51: 0
A52: AAA680 | B52: AA | C52: AAA680 | D52: 46 | F52: 0101030302 | G52: Crediti finanziari v/imprese collegate | H52: =SUMIF('00 Alimenta'!$B:$B,'00 PDC SP'!$F52,'00 Alimenta'!D:D) -> 0 | I52: =SUMIF('00 Alimenta'!$B:$B,'00 PDC SP'!$F52,'00 Alimenta'!E:E) -> 0 | J52: =SUMIF('00 Alimenta'!$B:$B,'00 PDC SP'!$F52,'00 Alimenta'!F:F) -> 0 | K52: =SUMIF('00 Alimenta'!$B:$B,'00 PDC SP'!$F52,'00 Alimenta'!G:G) -> 0 | L52: =SUMIF('00 Alimenta'!$B:$B,'00 PDC SP'!$F52,'00 Alimenta'!H:H) -> 0 | M52: =SUMIF('00 Alimenta'!$B:$B,'00 PDC SP'!$F52,'00 Alimenta'!I:I) -> 0 | N52: 0
A53: AAA690 | B53: AA | C53: AAA690 | D53: 46 | F53: 0101030401 | G53: Crediti finanziari v/Provincia | H53: =SUMIF('00 Alimenta'!$B:$B,'00 PDC SP'!$F53,'00 Alimenta'!D:D) -> 0 | I53: =SUMIF('00 Alimenta'!$B:$B,'00 PDC SP'!$F53,'00 Alimenta'!E:E) -> 0 | J53: =SUMIF('00 Alimenta'!$B:$B,'00 PDC SP'!$F53,'00 Alimenta'!F:F) -> 0 | K53: =SUMIF('00 Alimenta'!$B:$B,'00 PDC SP'!$F53,'00 Alimenta'!G:G) -> 0 | L53: =SUMIF('00 Alimenta'!$B:$B,'00 PDC SP'!$F53,'00 Alimenta'!H:H) -> 0 | M53: =SUMIF('00 Alimenta'!$B:$B,'00 PDC SP'!$F53,'00 Alimenta'!I:I) -> 0 | N53: 0
A54: AAA690 | B54: AA | C54: AAA690 | D54: 46 | F54: 0101030402 | G54: Crediti finanziari v/Comuni | H54: =SUMIF('00 Alimenta'!$B:$B,'00 PDC SP'!$F54,'00 Alimenta'!D:D) -> 0 | I54: =SUMIF('00 Alimenta'!$B:$B,'00 PDC SP'!$F54,'00 Alimenta'!E:E) -> 0 | J54: =SUMIF('00 Alimenta'!$B:$B,'00 PDC SP'!$F54,'00 Alimenta'!F:F) -> 0 | K54: =SUMIF('00 Alimenta'!$B:$B,'00 PDC SP'!$F54,'00 Alimenta'!G:G) -> 0 | L54: =SUMIF('00 Alimenta'!$B:$B,'00 PDC SP'!$F54,'00 Alimenta'!H:H) -> 0 | M54: =SUMIF('00 Alimenta'!$B:$B,'00 PDC SP'!$F54,'00 Alimenta'!I:I) -> 0 | N54: 0
A55: AAA690 | B55: AA | C55: AAA690 | D55: 46 | F55: 0101030403 | G55: Crediti finanziari v/altri | H55: =SUMIF('00 Alimenta'!$B:$B,'00 PDC SP'!$F55,'00 Alimenta'!D:D) -> 0 | I55: =SUMIF('00 Alimenta'!$B:$B,'00 PDC SP'!$F55,'00 Alimenta'!E:E) -> 0 | J55: =SUMIF('00 Alimenta'!$B:$B,'00 PDC SP'!$F55,'00 Alimenta'!F:F) -> 0 | K55: =SUMIF('00 Alimenta'!$B:$B,'00 PDC SP'!$F55,'00 Alimenta'!G:G) -> 0 | L55: =SUMIF('00 Alimenta'!$B:$B,'00 PDC SP'!$F55,'00 Alimenta'!H:H) -> 0 | M55: =SUMIF('00 Alimenta'!$B:$B,'00 PDC SP'!$F55,'00 Alimenta'!I:I) -> 0 | N55: 0
A56: AAA690 | B56: AA | C56: AAA690 | D56: 46 | F56: 0101030404 | G56: Depositi cauzionali | H56: =SUMIF('00 Alimenta'!$B:$B,'00 PDC SP'!$F56,'00 Alimenta'!D:D) -> 14036.45 | I56: =SUMIF('00 Alimenta'!$B:$B,'00 PDC SP'!$F56,'00 Alimenta'!E:E) -> 0 | J56: =SUMIF('00 Alimenta'!$B:$B,'00 PDC SP'!$F56,'00 Alimenta'!F:F) -> 0 | K56: =SUMIF('00 Alimenta'!$B:$B,'00 PDC SP'!$F56,'00 Alimenta'!G:G) -> 14036.45 | L56: =SUMIF('00 Alimenta'!$B:$B,'00 PDC SP'!$F56,'00 Alimenta'!H:H) -> 0 | M56: =SUMIF('00 Alimenta'!$B:$B,'00 PDC SP'!$F56,'00 Alimenta'!I:I) -> 0 | N56: 14036.45
A57: AAA710CN | B57: AA | C57: AAA710 | D57: 47 | E57: CN | F57: 0101030501 | G57: Partecipazioni in imprese controllate | H57: =SUMIF('00 Alimenta'!$B:$B,'00 PDC SP'!$F57,'00 Alimenta'!D:D) -> 0 | I57: =SUMIF('00 Alimenta'!$B:$B,'00 PDC SP'!$F57,'00 Alimenta'!E:E) -> 0 | J57: =SUMIF('00 Alimenta'!$B:$B,'00 PDC SP'!$F57,'00 Alimenta'!F:F) -> 0 | K57: =SUMIF('00 Alimenta'!$B:$B,'00 PDC SP'!$F57,'00 Alimenta'!G:G) -> 0 | L57: =SUMIF('00 Alimenta'!$B:$B,'00 PDC SP'!$F57,'00 Alimenta'!H:H) -> 0 | M57: =SUMIF('00 Alimenta'!$B:$B,'00 PDC SP'!$F57,'00 Alimenta'!I:I) -> 0 | N57: 0
A58: AAA710CL | B58: AA | C58: AAA710 | D58: 47 | E58: CL | F58: 0101030502 | G58: Partecipazioni in imprese collegate | H58: =SUMIF('00 Alimenta'!$B:$B,'00 PDC SP'!$F58,'00 Alimenta'!D:D) -> 0 | I58: =SUMIF('00 Alimenta'!$B:$B,'00 PDC SP'!$F58,'00 Alimenta'!E:E) -> 0 | J58: =SUMIF('00 Alimenta'!$B:$B,'00 PDC SP'!$F58,'00 Alimenta'!F:F) -> 0 | K58: =SUMIF('00 Alimenta'!$B:$B,'00 PDC SP'!$F58,'00 Alimenta'!G:G) -> 0 | L58: =SUMIF('00 Alimenta'!$B:$B,'00 PDC SP'!$F58,'00 Alimenta'!H:H) -> 0 | M58: =SUMIF('00 Alimenta'!$B:$B,'00 PDC SP'!$F58,'00 Alimenta'!I:I) -> 0 | N58: 0
A59: AAA710AI | B59: AA | C59: AAA710 | D59: 47 | E59: AI | F59: 0101030503 | G59: Partecipazioni in altre imprese | H59: =SUMIF('00 Alimenta'!$B:$B,'00 PDC SP'!$F59,'00 Alimenta'!D:D) -> 0 | I59: =SUMIF('00 Alimenta'!$B:$B,'00 PDC SP'!$F59,'00 Alimenta'!E:E) -> 0 | J59: =SUMIF('00 Alimenta'!$B:$B,'00 PDC SP'!$F59,'00 Alimenta'!F:F) -> 0 | K59: =SUMIF('00 Alimenta'!$B:$B,'00 PDC SP'!$F59,'00 Alimenta'!G:G) -> 0 | L59: =SUMIF('00 Alimenta'!$B:$B,'00 PDC SP'!$F59,'00 Alimenta'!H:H) -> 0 | M59: =SUMIF('00 Alimenta'!$B:$B,'00 PDC SP'!$F59,'00 Alimenta'!I:I) -> 0 | N59: 0
A60: AAA730 | B60: AA | C60: AAA730 | D60: 47 | F60: 0101030601 | G60: Titoli di Stato | H60: =SUMIF('00 Alimenta'!$B:$B,'00 PDC SP'!$F60,'00 Alimenta'!D:D) -> 0 | I60: =SUMIF('00 Alimenta'!$B:$B,'00 PDC SP'!$F60,'00 Alimenta'!E:E) -> 0 | J60: =SUMIF('00 Alimenta'!$B:$B,'00 PDC SP'!$F60,'00 Alimenta'!F:F) -> 0 | K60: =SUMIF('00 Alimenta'!$B:$B,'00 PDC SP'!$F60,'00 Alimenta'!G:G) -> 0 | L60: =SUMIF('00 Alimenta'!$B:$B,'00 PDC SP'!$F60,'00 Alimenta'!H:H) -> 0 | M60: =SUMIF('00 Alimenta'!$B:$B,'00 PDC SP'!$F60,'00 Alimenta'!I:I) -> 0 | N60: 0
A61: AAA740 | B61: AA | C61: AAA740 | D61: 47 | F61: 0101030602 | G61: Altre Obbligazioni | H61: =SUMIF('00 Alimenta'!$B:$B,'00 PDC SP'!$F61,'00 Alimenta'!D:D) -> 0 | I61: =SUMIF('00 Alimenta'!$B:$B,'00 PDC SP'!$F61,'00 Alimenta'!E:E) -> 0 | J61: =SUMIF('00 Alimenta'!$B:$B,'00 PDC SP'!$F61,'00 Alimenta'!F:F) -> 0 | K61: =SUMIF('00 Alimenta'!$B:$B,'00 PDC SP'!$F61,'00 Alimenta'!G:G) -> 0 | L61: =SUMIF('00 Alimenta'!$B:$B,'00 PDC SP'!$F61,'00 Alimenta'!H:H) -> 0 | M61: =SUMIF('00 Alimenta'!$B:$B,'00 PDC SP'!$F61,'00 Alimenta'!I:I) -> 0 | N61: 0
A62: AAA750 | B62: AA | C62: AAA750 | D62: 47 | F62: 0101030603 | G62: Titoli azionari quotati in Borsa | H62: =SUMIF('00 Alimenta'!$B:$B,'00 PDC SP'!$F62,'00 Alimenta'!D:D) -> 0 | I62: =SUMIF('00 Alimenta'!$B:$B,'00 PDC SP'!$F62,'00 Alimenta'!E:E) -> 0 | J62: =SUMIF('00 Alimenta'!$B:$B,'00 PDC SP'!$F62,'00 Alimenta'!F:F) -> 0 | K62: =SUMIF('00 Alimenta'!$B:$B,'00 PDC SP'!$F62,'00 Alimenta'!G:G) -> 0 | L62: =SUMIF('00 Alimenta'!$B:$B,'00 PDC SP'!$F62,'00 Alimenta'!H:H) -> 0 | M62: =SUMIF('00 Alimenta'!$B:$B,'00 PDC SP'!$F62,'00 Alimenta'!I:I) -> 0 | N62: 0
A63: AAA760 | B63: AA | C63: AAA760 | D63: 47 | F63: 0101030604 | G63: Titoli diversi | H63: =SUMIF('00 Alimenta'!$B:$B,'00 PDC SP'!$F63,'00 Alimenta'!D:D) -> 0 | I63: =SUMIF('00 Alimenta'!$B:$B,'00 PDC SP'!$F63,'00 Alimenta'!E:E) -> 0 | J63: =SUMIF('00 Alimenta'!$B:$B,'00 PDC SP'!$F63,'00 Alimenta'!F:F) -> 0 | K63: =SUMIF('00 Alimenta'!$B:$B,'00 PDC SP'!$F63,'00 Alimenta'!G:G) -> 0 | L63: =SUMIF('00 Alimenta'!$B:$B,'00 PDC SP'!$F63,'00 Alimenta'!H:H) -> 0 | M63: =SUMIF('00 Alimenta'!$B:$B,'00 PDC SP'!$F63,'00 Alimenta'!I:I) -> 0 | N63: 0
A64: ABA020 | B64: AB | C64: ABA020 | D64: 31 | F64: 0102010101 | G64: Medicinali con AIC | H64: =SUMIF('00 Alimenta'!$B:$B,'00 PDC SP'!$F64,'00 Alimenta'!D:D) -> 4636666.55 | I64: =SUMIF('00 Alimenta'!$B:$B,'00 PDC SP'!$F64,'00 Alimenta'!E:E) -> 4388956 | J64: =SUMIF('00 Alimenta'!$B:$B,'00 PDC SP'!$F64,'00 Alimenta'!F:F) -> 4636666.55 | K64: =SUMIF('00 Alimenta'!$B:$B,'00 PDC SP'!$F64,'00 Alimenta'!G:G) -> 4388956 | L64: =SUMIF('00 Alimenta'!$B:$B,'00 PDC SP'!$F64,'00 Alimenta'!H:H) -> 9637765.4 | M64: =SUMIF('00 Alimenta'!$B:$B,'00 PDC SP'!$F64,'00 Alimenta'!I:I) -> 4388956 | N64: 9637765.4
A65: ABA020 | B65: AB | C65: ABA020 | D65: 31 | F65: 0102010102 | G65: Soluzioni infusionali con AIC | H65: =SUMIF('00 Alimenta'!$B:$B,'00 PDC SP'!$F65,'00 Alimenta'!D:D) -> 1437.61 | I65: =SUMIF('00 Alimenta'!$B:$B,'00 PDC SP'!$F65,'00 Alimenta'!E:E) -> 1398.76 | J65: =SUMIF('00 Alimenta'!$B:$B,'00 PDC SP'!$F65,'00 Alimenta'!F:F) -> 1437.61 | K65: =SUMIF('00 Alimenta'!$B:$B,'00 PDC SP'!$F65,'00 Alimenta'!G:G) -> 1398.76 | L65: =SUMIF('00 Alimenta'!$B:$B,'00 PDC SP'!$F65,'00 Alimenta'!H:H) -> 4720.81 | M65: =SUMIF('00 Alimenta'!$B:$B,'00 PDC SP'!$F65,'00 Alimenta'!I:I) -> 1398.76 | N65: 4720.81
A66: ABA020 | B66: AB | C66: ABA020 | D66: 31 | F66: 0102010103 | G66: Ossigeno con AIC | H66: =SUMIF('00 Alimenta'!$B:$B,'00 PDC SP'!$F66,'00 Alimenta'!D:D) -> 10294.49 | I66: =SUMIF('00 Alimenta'!$B:$B,'00 PDC SP'!$F66,'00 Alimenta'!E:E) -> 1633.04 | J66: =SUMIF('00 Alimenta'!$B:$B,'00 PDC SP'!$F66,'00 Alimenta'!F:F) -> 10294.49 | K66: =SUMIF('00 Alimenta'!$B:$B,'00 PDC SP'!$F66,'00 Alimenta'!G:G) -> 1633.04 | L66: =SUMIF('00 Alimenta'!$B:$B,'00 PDC SP'!$F66,'00 Alimenta'!H:H) -> 1919.27 | M66: =SUMIF('00 Alimenta'!$B:$B,'00 PDC SP'!$F66,'00 Alimenta'!I:I) -> 1633.04 | N66: 1919.27
A67: ABA020 | B67: AB | C67: ABA020 | D67: 31 | F67: 0102010104 | G67: Altri gas medicali con AIC | H67: =SUMIF('00 Alimenta'!$B:$B,'00 PDC SP'!$F67,'00 Alimenta'!D:D) -> 2368.85 | I67: =SUMIF('00 Alimenta'!$B:$B,'00 PDC SP'!$F67,'00 Alimenta'!E:E) -> 9993.46 | J67: =SUMIF('00 Alimenta'!$B:$B,'00 PDC SP'!$F67,'00 Alimenta'!F:F) -> 2368.85 | K67: =SUMIF('00 Alimenta'!$B:$B,'00 PDC SP'!$F67,'00 Alimenta'!G:G) -> 9993.46 | L67: =SUMIF('00 Alimenta'!$B:$B,'00 PDC SP'!$F67,'00 Alimenta'!H:H) -> 18281.7 | M67: =SUMIF('00 Alimenta'!$B:$B,'00 PDC SP'!$F67,'00 Alimenta'!I:I) -> 9993.46 | N67: 18281.7
A68: ABA020 | B68: AB | C68: ABA020 | D68: 31 | F68: 0102010105 | G68: Emoderivati con AIC | H68: =SUMIF('00 Alimenta'!$B:$B,'00 PDC SP'!$F68,'00 Alimenta'!D:D) -> 298115.4 | I68: =SUMIF('00 Alimenta'!$B:$B,'00 PDC SP'!$F68,'00 Alimenta'!E:E) -> 415087.34 | J68: =SUMIF('00 Alimenta'!$B:$B,'00 PDC SP'!$F68,'00 Alimenta'!F:F) -> 298115.4 | K68: =SUMIF('00 Alimenta'!$B:$B,'00 PDC SP'!$F68,'00 Alimenta'!G:G) -> 415087.34 | L68: =SUMIF('00 Alimenta'!$B:$B,'00 PDC SP'!$F68,'00 Alimenta'!H:H) -> 299372.47 | M68: =SUMIF('00 Alimenta'!$B:$B,'00 PDC SP'!$F68,'00 Alimenta'!I:I) -> 415087.34 | N68: 299372.47
A69: ABA020 | B69: AB | C69: ABA020 | D69: 31 | F69: 0102010106 | G69: Medicinali senza AIC | H69: =SUMIF('00 Alimenta'!$B:$B,'00 PDC SP'!$F69,'00 Alimenta'!D:D) -> 126880.91 | I69: =SUMIF('00 Alimenta'!$B:$B,'00 PDC SP'!$F69,'00 Alimenta'!E:E) -> 220505.73 | J69: =SUMIF('00 Alimenta'!$B:$B,'00 PDC SP'!$F69,'00 Alimenta'!F:F) -> 126880.91 | K69: =SUMIF('00 Alimenta'!$B:$B,'00 PDC SP'!$F69,'00 Alimenta'!G:G) -> 220505.73 | L69: =SUMIF('00 Alimenta'!$B:$B,'00 PDC SP'!$F69,'00 Alimenta'!H:H) -> 153849.16 | M69: =SUMIF('00 Alimenta'!$B:$B,'00 PDC SP'!$F69,'00 Alimenta'!I:I) -> 220505.73 | N69: 153849.16
A70: =IF(E70="",C70,C70&E70) -> ABA020 | B70: =LEFT(C70,2) -> AB | C70: ABA020 | D70: 31 | F70: 0102010107 | G70: Emoderivati di produzione regionale | H70: =SUMIF('00 Alimenta'!$B:$B,'00 PDC SP'!$F70,'00 Alimenta'!D:D) -> 0 | I70: =SUMIF('00 Alimenta'!$B:$B,'00 PDC SP'!$F70,'00 Alimenta'!E:E) -> 0 | J70: =SUMIF('00 Alimenta'!$B:$B,'00 PDC SP'!$F70,'00 Alimenta'!F:F) -> 0 | K70: =SUMIF('00 Alimenta'!$B:$B,'00 PDC SP'!$F70,'00 Alimenta'!G:G) -> 0 | L70: =SUMIF('00 Alimenta'!$B:$B,'00 PDC SP'!$F70,'00 Alimenta'!H:H) -> 0 | M70: =SUMIF('00 Alimenta'!$B:$B,'00 PDC SP'!$F70,'00 Alimenta'!I:I) -> 0 | N70: =K70+L70-M70 -> 0
A71: =IF(E71="",C71,C71&E71) -> ABA020 | B71: =LEFT(C71,2) -> AB | C71: ABA020 | D71: 31 | F71: 0102010108 | G71: Farmaci innovativi | H71: =SUMIF('00 Alimenta'!$B:$B,'00 PDC SP'!$F71,'00 Alimenta'!D:D) -> 406045.08 | I71: =SUMIF('00 Alimenta'!$B:$B,'00 PDC SP'!$F71,'00 Alimenta'!E:E) -> 796557.79 | J71: =SUMIF('00 Alimenta'!$B:$B,'00 PDC SP'!$F71,'00 Alimenta'!F:F) -> 406045.08 | K71: =SUMIF('00 Alimenta'!$B:$B,'00 PDC SP'!$F71,'00 Alimenta'!G:G) -> 796557.79 | L71: =SUMIF('00 Alimenta'!$B:$B,'00 PDC SP'!$F71,'00 Alimenta'!H:H) -> 425624.06 | M71: =SUMIF('00 Alimenta'!$B:$B,'00 PDC SP'!$F71,'00 Alimenta'!I:I) -> 796557.79 | N71: =K71+L71-M71 -> 425624.06
A72: ABA030 | B72: AB | C72: ABA030 | D72: 31 | F72: 0102010201 | G72: Sangue ed emocomponenti | H72: =SUMIF('00 Alimenta'!$B:$B,'00 PDC SP'!$F72,'00 Alimenta'!D:D) -> 0 | I72: =SUMIF('00 Alimenta'!$B:$B,'00 PDC SP'!$F72,'00 Alimenta'!E:E) -> 0 | J72: =SUMIF('00 Alimenta'!$B:$B,'00 PDC SP'!$F72,'00 Alimenta'!F:F) -> 0 | K72: =SUMIF('00 Alimenta'!$B:$B,'00 PDC SP'!$F72,'00 Alimenta'!G:G) -> 0 | L72: =SUMIF('00 Alimenta'!$B:$B,'00 PDC SP'!$F72,'00 Alimenta'!H:H) -> 0 | M72: =SUMIF('00 Alimenta'!$B:$B,'00 PDC SP'!$F72,'00 Alimenta'!I:I) -> 0 | N72: 0
A73: ABA040 | B73: AB | C73: ABA040 | D73: 31 | F73: 0102010301 | G73: Strumentazione per bioimmagini e radioterapia | H73: =SUMIF('00 Alimenta'!$B:$B,'00 PDC SP'!$F73,'00 Alimenta'!D:D) -> 0 | I73: =SUMIF('00 Alimenta'!$B:$B,'00 PDC SP'!$F73,'00 Alimenta'!E:E) -> 22325.73 | J73: =SUMIF('00 Alimenta'!$B:$B,'00 PDC SP'!$F73,'00 Alimenta'!F:F) -> 0 | K73: =SUMIF('00 Alimenta'!$B:$B,'00 PDC SP'!$F73,'00 Alimenta'!G:G) -> 22325.73 | L73: =SUMIF('00 Alimenta'!$B:$B,'00 PDC SP'!$F73,'00 Alimenta'!H:H) -> 57070.16 | M73: =SUMIF('00 Alimenta'!$B:$B,'00 PDC SP'!$F73,'00 Alimenta'!I:I) -> 22325.73 | N73: 57070.16
A74: ABA040 | B74: AB | C74: ABA040 | D74: 31 | F74: 0102010302 | G74: Materiale per sterilizzazione | H74: =SUMIF('00 Alimenta'!$B:$B,'00 PDC SP'!$F74,'00 Alimenta'!D:D) -> 13554.18 | I74: =SUMIF('00 Alimenta'!$B:$B,'00 PDC SP'!$F74,'00 Alimenta'!E:E) -> 44744.42 | J74: =SUMIF('00 Alimenta'!$B:$B,'00 PDC SP'!$F74,'00 Alimenta'!F:F) -> 13554.18 | K74: =SUMIF('00 Alimenta'!$B:$B,'00 PDC SP'!$F74,'00 Alimenta'!G:G) -> 44744.42 | L74: =SUMIF('00 Alimenta'!$B:$B,'00 PDC SP'!$F74,'00 Alimenta'!H:H) -> 8572.01 | M74: =SUMIF('00 Alimenta'!$B:$B,'00 PDC SP'!$F74,'00 Alimenta'!I:I) -> 44744.42 | N74: 8572.01
A75: ABA040 | B75: AB | C75: ABA040 | D75: 31 | F75: 0102010303 | G75: Dispositivi per chirurgia mini-invasiva ed elettrochirurgia | H75: =SUMIF('00 Alimenta'!$B:$B,'00 PDC SP'!$F75,'00 Alimenta'!D:D) -> 174192.21 | I75: =SUMIF('00 Alimenta'!$B:$B,'00 PDC SP'!$F75,'00 Alimenta'!E:E) -> 191192.48 | J75: =SUMIF('00 Alimenta'!$B:$B,'00 PDC SP'!$F75,'00 Alimenta'!F:F) -> 174192.21 | K75: =SUMIF('00 Alimenta'!$B:$B,'00 PDC SP'!$F75,'00 Alimenta'!G:G) -> 191192.48 | L75: =SUMIF('00 Alimenta'!$B:$B,'00 PDC SP'!$F75,'00 Alimenta'!H:H) -> 237459.44 | M75: =SUMIF('00 Alimenta'!$B:$B,'00 PDC SP'!$F75,'00 Alimenta'!I:I) -> 191192.48 | N75: 237459.44
A76: ABA040 | B76: AB | C76: ABA040 | D76: 31 | F76: 0102010304 | G76: Protesi ortopediche e mezzi per osteosintesi e sintesi tendineo-legamentosa | H76: =SUMIF('00 Alimenta'!$B:$B,'00 PDC SP'!$F76,'00 Alimenta'!D:D) -> 50150.67 | I76: =SUMIF('00 Alimenta'!$B:$B,'00 PDC SP'!$F76,'00 Alimenta'!E:E) -> 156988.5 | J76: =SUMIF('00 Alimenta'!$B:$B,'00 PDC SP'!$F76,'00 Alimenta'!F:F) -> 50150.67 | K76: =SUMIF('00 Alimenta'!$B:$B,'00 PDC SP'!$F76,'00 Alimenta'!G:G) -> 156988.5 | L76: =SUMIF('00 Alimenta'!$B:$B,'00 PDC SP'!$F76,'00 Alimenta'!H:H) -> 125902.79 | M76: =SUMIF('00 Alimenta'!$B:$B,'00 PDC SP'!$F76,'00 Alimenta'!I:I) -> 156988.5 | N76: 125902.79
A77: ABA040 | B77: AB | C77: ABA040 | D77: 31 | F77: 0102010305 | G77: Protesi oculistiche | H77: =SUMIF('00 Alimenta'!$B:$B,'00 PDC SP'!$F77,'00 Alimenta'!D:D) -> 24968.06 | I77: =SUMIF('00 Alimenta'!$B:$B,'00 PDC SP'!$F77,'00 Alimenta'!E:E) -> 21294.52 | J77: =SUMIF('00 Alimenta'!$B:$B,'00 PDC SP'!$F77,'00 Alimenta'!F:F) -> 24968.06 | K77: =SUMIF('00 Alimenta'!$B:$B,'00 PDC SP'!$F77,'00 Alimenta'!G:G) -> 21294.52 | L77: =SUMIF('00 Alimenta'!$B:$B,'00 PDC SP'!$F77,'00 Alimenta'!H:H) -> 28295.8 | M77: =SUMIF('00 Alimenta'!$B:$B,'00 PDC SP'!$F77,'00 Alimenta'!I:I) -> 21294.52 | N77: 28295.8
A78: ABA040 | B78: AB | C78: ABA040 | D78: 31 | F78: 0102010306 | G78: Protesi vascolari e cardiache | H78: =SUMIF('00 Alimenta'!$B:$B,'00 PDC SP'!$F78,'00 Alimenta'!D:D) -> 1839.24 | I78: =SUMIF('00 Alimenta'!$B:$B,'00 PDC SP'!$F78,'00 Alimenta'!E:E) -> 7516.08 | J78: =SUMIF('00 Alimenta'!$B:$B,'00 PDC SP'!$F78,'00 Alimenta'!F:F) -> 1839.24 | K78: =SUMIF('00 Alimenta'!$B:$B,'00 PDC SP'!$F78,'00 Alimenta'!G:G) -> 7516.08 | L78: =SUMIF('00 Alimenta'!$B:$B,'00 PDC SP'!$F78,'00 Alimenta'!H:H) -> 4904.64 | M78: =SUMIF('00 Alimenta'!$B:$B,'00 PDC SP'!$F78,'00 Alimenta'!I:I) -> 7516.08 | N78: 4904.64
A79: ABA040 | B79: AB | C79: ABA040 | D79: 31 | F79: 0102010307 | G79: Altri dispositivi protesici impiantabili e prodotti per osteosintesi | H79: =SUMIF('00 Alimenta'!$B:$B,'00 PDC SP'!$F79,'00 Alimenta'!D:D) -> 10862.72 | I79: =SUMIF('00 Alimenta'!$B:$B,'00 PDC SP'!$F79,'00 Alimenta'!E:E) -> 15680.73 | J79: =SUMIF('00 Alimenta'!$B:$B,'00 PDC SP'!$F79,'00 Alimenta'!F:F) -> 10862.72 | K79: =SUMIF('00 Alimenta'!$B:$B,'00 PDC SP'!$F79,'00 Alimenta'!G:G) -> 15680.73 | L79: =SUMIF('00 Alimenta'!$B:$B,'00 PDC SP'!$F79,'00 Alimenta'!H:H) -> 8142.05 | M79: =SUMIF('00 Alimenta'!$B:$B,'00 PDC SP'!$F79,'00 Alimenta'!I:I) -> 15680.73 | N79: 8142.05
A80: ABA040 | B80: AB | C80: ABA040 | D80: 31 | F80: 0102010308 | G80: Supporti e ausili tecnici per persone disabili | H80: =SUMIF('00 Alimenta'!$B:$B,'00 PDC SP'!$F80,'00 Alimenta'!D:D) -> 21594.97 | I80: =SUMIF('00 Alimenta'!$B:$B,'00 PDC SP'!$F80,'00 Alimenta'!E:E) -> 32718.44 | J80: =SUMIF('00 Alimenta'!$B:$B,'00 PDC SP'!$F80,'00 Alimenta'!F:F) -> 21594.97 | K80: =SUMIF('00 Alimenta'!$B:$B,'00 PDC SP'!$F80,'00 Alimenta'!G:G) -> 32718.44 | L80: =SUMIF('00 Alimenta'!$B:$B,'00 PDC SP'!$F80,'00 Alimenta'!H:H) -> 15277.66 | M80: =SUMIF('00 Alimenta'!$B:$B,'00 PDC SP'!$F80,'00 Alimenta'!I:I) -> 32718.44 | N80: 15277.66
A81: ABA040 | B81: AB | C81: ABA040 | D81: 31 | F81: 0102010309 | G81: Dispositivi per emotrasfusione ed ematologia | H81: =SUMIF('00 Alimenta'!$B:$B,'00 PDC SP'!$F81,'00 Alimenta'!D:D) -> 45796.36 | I81: =SUMIF('00 Alimenta'!$B:$B,'00 PDC SP'!$F81,'00 Alimenta'!E:E) -> 58519.51 | J81: =SUMIF('00 Alimenta'!$B:$B,'00 PDC SP'!$F81,'00 Alimenta'!F:F) -> 45796.36 | K81: =SUMIF('00 Alimenta'!$B:$B,'00 PDC SP'!$F81,'00 Alimenta'!G:G) -> 58519.51 | L81: =SUMIF('00 Alimenta'!$B:$B,'00 PDC SP'!$F81,'00 Alimenta'!H:H) -> 43182.99 | M81: =SUMIF('00 Alimenta'!$B:$B,'00 PDC SP'!$F81,'00 Alimenta'!I:I) -> 58519.51 | N81: 43182.99
A82: ABA040 | B82: AB | C82: ABA040 | D82: 31 | F82: 0102010310 | G82: Dispositivi per dialisi | H82: =SUMIF('00 Alimenta'!$B:$B,'00 PDC SP'!$F82,'00 Alimenta'!D:D) -> 179690.46 | I82: =SUMIF('00 Alimenta'!$B:$B,'00 PDC SP'!$F82,'00 Alimenta'!E:E) -> 78184.86 | J82: =SUMIF('00 Alimenta'!$B:$B,'00 PDC SP'!$F82,'00 Alimenta'!F:F) -> 179690.46 | K82: =SUMIF('00 Alimenta'!$B:$B,'00 PDC SP'!$F82,'00 Alimenta'!G:G) -> 78184.86 | L82: =SUMIF('00 Alimenta'!$B:$B,'00 PDC SP'!$F82,'00 Alimenta'!H:H) -> 349609.43 | M82: =SUMIF('00 Alimenta'!$B:$B,'00 PDC SP'!$F82,'00 Alimenta'!I:I) -> 78184.86 | N82: 349609.43
A83: ABA040 | B83: AB | C83: ABA040 | D83: 31 | F83: 0102010311 | G83: Dispositivi medico-diagnostici in vitro (D.Lgs. 332/2000) | H83: =SUMIF('00 Alimenta'!$B:$B,'00 PDC SP'!$F83,'00 Alimenta'!D:D) -> 1255177.4 | I83: =SUMIF('00 Alimenta'!$B:$B,'00 PDC SP'!$F83,'00 Alimenta'!E:E) -> 1482372.12 | J83: =SUMIF('00 Alimenta'!$B:$B,'00 PDC SP'!$F83,'00 Alimenta'!F:F) -> 1255177.4 | K83: =SUMIF('00 Alimenta'!$B:$B,'00 PDC SP'!$F83,'00 Alimenta'!G:G) -> 1482372.12 | L83: =SUMIF('00 Alimenta'!$B:$B,'00 PDC SP'!$F83,'00 Alimenta'!H:H) -> 1412543.58 | M83: =SUMIF('00 Alimenta'!$B:$B,'00 PDC SP'!$F83,'00 Alimenta'!I:I) -> 1482372.12 | N83: 1412543.58
A84: ABA040 | B84: AB | C84: ABA040 | D84: 31 | F84: 0102010312 | G84: Strumentazione per esplorazioni funzionali ed interventi terapeutici | H84: =SUMIF('00 Alimenta'!$B:$B,'00 PDC SP'!$F84,'00 Alimenta'!D:D) -> 104045.91 | I84: =SUMIF('00 Alimenta'!$B:$B,'00 PDC SP'!$F84,'00 Alimenta'!E:E) -> 270520.31 | J84: =SUMIF('00 Alimenta'!$B:$B,'00 PDC SP'!$F84,'00 Alimenta'!F:F) -> 104045.91 | K84: =SUMIF('00 Alimenta'!$B:$B,'00 PDC SP'!$F84,'00 Alimenta'!G:G) -> 270520.31 | L84: =SUMIF('00 Alimenta'!$B:$B,'00 PDC SP'!$F84,'00 Alimenta'!H:H) -> 349679.38 | M84: =SUMIF('00 Alimenta'!$B:$B,'00 PDC SP'!$F84,'00 Alimenta'!I:I) -> 270520.31 | N84: 349679.38
A85: ABA040 | B85: AB | C85: ABA040 | D85: 31 | F85: 0102010313 | G85: Strumentazione per radiologia diagnostica ed interventistica | H85: =SUMIF('00 Alimenta'!$B:$B,'00 PDC SP'!$F85,'00 Alimenta'!D:D) -> 589.26 | I85: =SUMIF('00 Alimenta'!$B:$B,'00 PDC SP'!$F85,'00 Alimenta'!E:E) -> 712.51 | J85: =SUMIF('00 Alimenta'!$B:$B,'00 PDC SP'!$F85,'00 Alimenta'!F:F) -> 589.26 | K85: =SUMIF('00 Alimenta'!$B:$B,'00 PDC SP'!$F85,'00 Alimenta'!G:G) -> 712.51 | L85: =SUMIF('00 Alimenta'!$B:$B,'00 PDC SP'!$F85,'00 Alimenta'!H:H) -> 971.05 | M85: =SUMIF('00 Alimenta'!$B:$B,'00 PDC SP'!$F85,'00 Alimenta'!I:I) -> 712.51 | N85: 971.05
A86: ABA040 | B86: AB | C86: ABA040 | D86: 31 | F86: 0102010314 | G86: Strumentario chirurgico pluriuso o riusabile | H86: =SUMIF('00 Alimenta'!$B:$B,'00 PDC SP'!$F86,'00 Alimenta'!D:D) -> 55549.76 | I86: =SUMIF('00 Alimenta'!$B:$B,'00 PDC SP'!$F86,'00 Alimenta'!E:E) -> 92097.5 | J86: =SUMIF('00 Alimenta'!$B:$B,'00 PDC SP'!$F86,'00 Alimenta'!F:F) -> 55549.76 | K86: =SUMIF('00 Alimenta'!$B:$B,'00 PDC SP'!$F86,'00 Alimenta'!G:G) -> 92097.5 | L86: =SUMIF('00 Alimenta'!$B:$B,'00 PDC SP'!$F86,'00 Alimenta'!H:H) -> 59941.67 | M86: =SUMIF('00 Alimenta'!$B:$B,'00 PDC SP'!$F86,'00 Alimenta'!I:I) -> 92097.5 | N86: 59941.67
A87: ABA040 | B87: AB | C87: ABA040 | D87: 31 | F87: 0102010315 | G87: Dispositivi protesici impiantabili - vari | H87: =SUMIF('00 Alimenta'!$B:$B,'00 PDC SP'!$F87,'00 Alimenta'!D:D) -> 28003.05 | I87: =SUMIF('00 Alimenta'!$B:$B,'00 PDC SP'!$F87,'00 Alimenta'!E:E) -> 80004.3 | J87: =SUMIF('00 Alimenta'!$B:$B,'00 PDC SP'!$F87,'00 Alimenta'!F:F) -> 28003.05 | K87: =SUMIF('00 Alimenta'!$B:$B,'00 PDC SP'!$F87,'00 Alimenta'!G:G) -> 80004.3 | L87: =SUMIF('00 Alimenta'!$B:$B,'00 PDC SP'!$F87,'00 Alimenta'!H:H) -> 36165.23 | M87: =SUMIF('00 Alimenta'!$B:$B,'00 PDC SP'!$F87,'00 Alimenta'!I:I) -> 80004.3 | N87: 36165.23
A88: ABA040 | B88: AB | C88: ABA040 | D88: 31 | F88: 0102010316 | G88: Dispositivi per sistema artero-venoso | H88: =SUMIF('00 Alimenta'!$B:$B,'00 PDC SP'!$F88,'00 Alimenta'!D:D) -> 132460.47 | I88: =SUMIF('00 Alimenta'!$B:$B,'00 PDC SP'!$F88,'00 Alimenta'!E:E) -> 196661.87 | J88: =SUMIF('00 Alimenta'!$B:$B,'00 PDC SP'!$F88,'00 Alimenta'!F:F) -> 132460.47 | K88: =SUMIF('00 Alimenta'!$B:$B,'00 PDC SP'!$F88,'00 Alimenta'!G:G) -> 196661.87 | L88: =SUMIF('00 Alimenta'!$B:$B,'00 PDC SP'!$F88,'00 Alimenta'!H:H) -> 341902.99 | M88: =SUMIF('00 Alimenta'!$B:$B,'00 PDC SP'!$F88,'00 Alimenta'!I:I) -> 196661.87 | N88: 341902.99
A89: ABA040 | B89: AB | C89: ABA040 | D89: 31 | F89: 0102010317 | G89: Guide per apparato cardiocircolatorio | H89: =SUMIF('00 Alimenta'!$B:$B,'00 PDC SP'!$F89,'00 Alimenta'!D:D) -> 9174.4 | I89: =SUMIF('00 Alimenta'!$B:$B,'00 PDC SP'!$F89,'00 Alimenta'!E:E) -> 16525.53 | J89: =SUMIF('00 Alimenta'!$B:$B,'00 PDC SP'!$F89,'00 Alimenta'!F:F) -> 9174.4 | K89: =SUMIF('00 Alimenta'!$B:$B,'00 PDC SP'!$F89,'00 Alimenta'!G:G) -> 16525.53 | L89: =SUMIF('00 Alimenta'!$B:$B,'00 PDC SP'!$F89,'00 Alimenta'!H:H) -> 51496.86 | M89: =SUMIF('00 Alimenta'!$B:$B,'00 PDC SP'!$F89,'00 Alimenta'!I:I) -> 16525.53 | N89: 51496.86
A90: ABA040 | B90: AB | C90: ABA040 | D90: 31 | F90: 0102010318 | G90: Altri dispositivi per apparato cardiocircolatorio | H90: =SUMIF('00 Alimenta'!$B:$B,'00 PDC SP'!$F90,'00 Alimenta'!D:D) -> 124428.45 | I90: =SUMIF('00 Alimenta'!$B:$B,'00 PDC SP'!$F90,'00 Alimenta'!E:E) -> 123103.54 | J90: =SUMIF('00 Alimenta'!$B:$B,'00 PDC SP'!$F90,'00 Alimenta'!F:F) -> 124428.45 | K90: =SUMIF('00 Alimenta'!$B:$B,'00 PDC SP'!$F90,'00 Alimenta'!G:G) -> 123103.54 | L90: =SUMIF('00 Alimenta'!$B:$B,'00 PDC SP'!$F90,'00 Alimenta'!H:H) -> 192131.49 | M90: =SUMIF('00 Alimenta'!$B:$B,'00 PDC SP'!$F90,'00 Alimenta'!I:I) -> 123103.54 | N90: 192131.49
A91: ABA040 | B91: AB | C91: ABA040 | D91: 31 | F91: 0102010319 | G91: Disinfettanti, antisettici e proteolitici (D.Lgs. 46/97) | H91: =SUMIF('00 Alimenta'!$B:$B,'00 PDC SP'!$F91,'00 Alimenta'!D:D) -> 29235.99 | I91: =SUMIF('00 Alimenta'!$B:$B,'00 PDC SP'!$F91,'00 Alimenta'!E:E) -> 22348.48 | J91: =SUMIF('00 Alimenta'!$B:$B,'00 PDC SP'!$F91,'00 Alimenta'!F:F) -> 29235.99 | K91: =SUMIF('00 Alimenta'!$B:$B,'00 PDC SP'!$F91,'00 Alimenta'!G:G) -> 22348.48 | L91: =SUMIF('00 Alimenta'!$B:$B,'00 PDC SP'!$F91,'00 Alimenta'!H:H) -> 23214.09 | M91: =SUMIF('00 Alimenta'!$B:$B,'00 PDC SP'!$F91,'00 Alimenta'!I:I) -> 22348.48 | N91: 23214.09
A92: ABA040 | B92: AB | C92: ABA040 | D92: 31 | F92: 0102010320 | G92: Dispositivi per apparato gastrointestinale | H92: =SUMIF('00 Alimenta'!$B:$B,'00 PDC SP'!$F92,'00 Alimenta'!D:D) -> 59952.07 | I92: =SUMIF('00 Alimenta'!$B:$B,'00 PDC SP'!$F92,'00 Alimenta'!E:E) -> 83693.42 | J92: =SUMIF('00 Alimenta'!$B:$B,'00 PDC SP'!$F92,'00 Alimenta'!F:F) -> 59952.07 | K92: =SUMIF('00 Alimenta'!$B:$B,'00 PDC SP'!$F92,'00 Alimenta'!G:G) -> 83693.42 | L92: =SUMIF('00 Alimenta'!$B:$B,'00 PDC SP'!$F92,'00 Alimenta'!H:H) -> 108873.9 | M92: =SUMIF('00 Alimenta'!$B:$B,'00 PDC SP'!$F92,'00 Alimenta'!I:I) -> 83693.42 | N92: 108873.9
A93: ABA040 | B93: AB | C93: ABA040 | D93: 31 | F93: 0102010321 | G93: Dispositivi da sutura | H93: =SUMIF('00 Alimenta'!$B:$B,'00 PDC SP'!$F93,'00 Alimenta'!D:D) -> 396218.06 | I93: =SUMIF('00 Alimenta'!$B:$B,'00 PDC SP'!$F93,'00 Alimenta'!E:E) -> 349748.67 | J93: =SUMIF('00 Alimenta'!$B:$B,'00 PDC SP'!$F93,'00 Alimenta'!F:F) -> 396218.06 | K93: =SUMIF('00 Alimenta'!$B:$B,'00 PDC SP'!$F93,'00 Alimenta'!G:G) -> 349748.67 | L93: =SUMIF('00 Alimenta'!$B:$B,'00 PDC SP'!$F93,'00 Alimenta'!H:H) -> 199430.7 | M93: =SUMIF('00 Alimenta'!$B:$B,'00 PDC SP'!$F93,'00 Alimenta'!I:I) -> 349748.67 | N93: 199430.7
A94: ABA040 | B94: AB | C94: ABA040 | D94: 31 | F94: 0102010322 | G94: Dispositivi per sistema nervoso e midollare | H94: =SUMIF('00 Alimenta'!$B:$B,'00 PDC SP'!$F94,'00 Alimenta'!D:D) -> 12511.97 | I94: =SUMIF('00 Alimenta'!$B:$B,'00 PDC SP'!$F94,'00 Alimenta'!E:E) -> 28260.43 | J94: =SUMIF('00 Alimenta'!$B:$B,'00 PDC SP'!$F94,'00 Alimenta'!F:F) -> 12511.97 | K94: =SUMIF('00 Alimenta'!$B:$B,'00 PDC SP'!$F94,'00 Alimenta'!G:G) -> 28260.43 | L94: =SUMIF('00 Alimenta'!$B:$B,'00 PDC SP'!$F94,'00 Alimenta'!H:H) -> 24648.4 | M94: =SUMIF('00 Alimenta'!$B:$B,'00 PDC SP'!$F94,'00 Alimenta'!I:I) -> 28260.43 | N94: 24648.4
A95: ABA040 | B95: AB | C95: ABA040 | D95: 31 | F95: 0102010323 | G95: Dispositivi per odontoiatria, oftalmologoa e otorinolaringoiatria | H95: =SUMIF('00 Alimenta'!$B:$B,'00 PDC SP'!$F95,'00 Alimenta'!D:D) -> 105207.2 | I95: =SUMIF('00 Alimenta'!$B:$B,'00 PDC SP'!$F95,'00 Alimenta'!E:E) -> 71817.28 | J95: =SUMIF('00 Alimenta'!$B:$B,'00 PDC SP'!$F95,'00 Alimenta'!F:F) -> 105207.2 | K95: =SUMIF('00 Alimenta'!$B:$B,'00 PDC SP'!$F95,'00 Alimenta'!G:G) -> 71817.28 | L95: =SUMIF('00 Alimenta'!$B:$B,'00 PDC SP'!$F95,'00 Alimenta'!H:H) -> 77787.69 | M95: =SUMIF('00 Alimenta'!$B:$B,'00 PDC SP'!$F95,'00 Alimenta'!I:I) -> 71817.28 | N95: 77787.69
A96: ABA040 | B96: AB | C96: ABA040 | D96: 31 | F96: 0102010324 | G96: Dispositivi per apparato respiratorio e anestesia | H96: =SUMIF('00 Alimenta'!$B:$B,'00 PDC SP'!$F96,'00 Alimenta'!D:D) -> 125642.41 | I96: =SUMIF('00 Alimenta'!$B:$B,'00 PDC SP'!$F96,'00 Alimenta'!E:E) -> 182238.66 | J96: =SUMIF('00 Alimenta'!$B:$B,'00 PDC SP'!$F96,'00 Alimenta'!F:F) -> 125642.41 | K96: =SUMIF('00 Alimenta'!$B:$B,'00 PDC SP'!$F96,'00 Alimenta'!G:G) -> 182238.66 | L96: =SUMIF('00 Alimenta'!$B:$B,'00 PDC SP'!$F96,'00 Alimenta'!H:H) -> 226521.29 | M96: =SUMIF('00 Alimenta'!$B:$B,'00 PDC SP'!$F96,'00 Alimenta'!I:I) -> 182238.66 | N96: 226521.29
A97: ABA040 | B97: AB | C97: ABA040 | D97: 31 | F97: 0102010325 | G97: Dispositivi di protezione e ausili per incontinenza (D.Lgs. 46/97) | H97: =SUMIF('00 Alimenta'!$B:$B,'00 PDC SP'!$F97,'00 Alimenta'!D:D) -> 212601.7 | I97: =SUMIF('00 Alimenta'!$B:$B,'00 PDC SP'!$F97,'00 Alimenta'!E:E) -> 196921.3 | J97: =SUMIF('00 Alimenta'!$B:$B,'00 PDC SP'!$F97,'00 Alimenta'!F:F) -> 212601.7 | K97: =SUMIF('00 Alimenta'!$B:$B,'00 PDC SP'!$F97,'00 Alimenta'!G:G) -> 196921.3 | L97: =SUMIF('00 Alimenta'!$B:$B,'00 PDC SP'!$F97,'00 Alimenta'!H:H) -> 188552.61 | M97: =SUMIF('00 Alimenta'!$B:$B,'00 PDC SP'!$F97,'00 Alimenta'!I:I) -> 196921.3 | N97: 188552.61
A98: ABA040 | B98: AB | C98: ABA040 | D98: 31 | F98: 0102010326 | G98: Dispositivi per apparato urogenitale | H98: =SUMIF('00 Alimenta'!$B:$B,'00 PDC SP'!$F98,'00 Alimenta'!D:D) -> 65964.79 | I98: =SUMIF('00 Alimenta'!$B:$B,'00 PDC SP'!$F98,'00 Alimenta'!E:E) -> 51126.59 | J98: =SUMIF('00 Alimenta'!$B:$B,'00 PDC SP'!$F98,'00 Alimenta'!F:F) -> 65964.79 | K98: =SUMIF('00 Alimenta'!$B:$B,'00 PDC SP'!$F98,'00 Alimenta'!G:G) -> 51126.59 | L98: =SUMIF('00 Alimenta'!$B:$B,'00 PDC SP'!$F98,'00 Alimenta'!H:H) -> 58158.49 | M98: =SUMIF('00 Alimenta'!$B:$B,'00 PDC SP'!$F98,'00 Alimenta'!I:I) -> 51126.59 | N98: 58158.49
A99: ABA040 | B99: AB | C99: ABA040 | D99: 31 | F99: 0102010327 | G99: Dispositivi vari | H99: =SUMIF('00 Alimenta'!$B:$B,'00 PDC SP'!$F99,'00 Alimenta'!D:D) -> 234985.3 | I99: =SUMIF('00 Alimenta'!$B:$B,'00 PDC SP'!$F99,'00 Alimenta'!E:E) -> 304842.72 | J99: =SUMIF('00 Alimenta'!$B:$B,'00 PDC SP'!$F99,'00 Alimenta'!F:F) -> 234985.3 | K99: =SUMIF('00 Alimenta'!$B:$B,'00 PDC SP'!$F99,'00 Alimenta'!G:G) -> 304842.72 | L99: =SUMIF('00 Alimenta'!$B:$B,'00 PDC SP'!$F99,'00 Alimenta'!H:H) -> 302955.27 | M99: =SUMIF('00 Alimenta'!$B:$B,'00 PDC SP'!$F99,'00 Alimenta'!I:I) -> 304842.72 | N99: 302955.27
A100: ABA040 | B100: AB | C100: ABA040 | D100: 31 | F100: 0102010328 | G100: Dispositivi da somministrazione, prelievo e raccolta | H100: =SUMIF('00 Alimenta'!$B:$B,'00 PDC SP'!$F100,'00 Alimenta'!D:D) -> 559635.57 | I100: =SUMIF('00 Alimenta'!$B:$B,'00 PDC SP'!$F100,'00 Alimenta'!E:E) -> 569117.95 | J100: =SUMIF('00 Alimenta'!$B:$B,'00 PDC SP'!$F100,'00 Alimenta'!F:F) -> 559635.57 | K100: =SUMIF('00 Alimenta'!$B:$B,'00 PDC SP'!$F100,'00 Alimenta'!G:G) -> 569117.95 | L100: =SUMIF('00 Alimenta'!$B:$B,'00 PDC SP'!$F100,'00 Alimenta'!H:H) -> 632496.82 | M100: =SUMIF('00 Alimenta'!$B:$B,'00 PDC SP'!$F100,'00 Alimenta'!I:I) -> 569117.95 | N100: 632496.82
A101: ABA040 | B101: AB | C101: ABA040 | D101: 31 | F101: 0102010329 | G101: Dispositivi per medicazioni generali e specialistiche | H101: =SUMIF('00 Alimenta'!$B:$B,'00 PDC SP'!$F101,'00 Alimenta'!D:D) -> 312836.58 | I101: =SUMIF('00 Alimenta'!$B:$B,'00 PDC SP'!$F101,'00 Alimenta'!E:E) -> 357449.92 | J101: =SUMIF('00 Alimenta'!$B:$B,'00 PDC SP'!$F101,'00 Alimenta'!F:F) -> 312836.58 | K101: =SUMIF('00 Alimenta'!$B:$B,'00 PDC SP'!$F101,'00 Alimenta'!G:G) -> 357449.92 | L101: =SUMIF('00 Alimenta'!$B:$B,'00 PDC SP'!$F101,'00 Alimenta'!H:H) -> 347297.22 | M101: =SUMIF('00 Alimenta'!$B:$B,'00 PDC SP'!$F101,'00 Alimenta'!I:I) -> 357449.92 | N101: 347297.22
A102: ABA040 | B102: AB | C102: ABA040 | D102: 31 | F102: 0102010330 | G102: Dispositivi impiantabili attivi | H102: =SUMIF('00 Alimenta'!$B:$B,'00 PDC SP'!$F102,'00 Alimenta'!D:D) -> 58041 | I102: =SUMIF('00 Alimenta'!$B:$B,'00 PDC SP'!$F102,'00 Alimenta'!E:E) -> 30319.56 | J102: =SUMIF('00 Alimenta'!$B:$B,'00 PDC SP'!$F102,'00 Alimenta'!F:F) -> 58041 | K102: =SUMIF('00 Alimenta'!$B:$B,'00 PDC SP'!$F102,'00 Alimenta'!G:G) -> 30319.56 | L102: =SUMIF('00 Alimenta'!$B:$B,'00 PDC SP'!$F102,'00 Alimenta'!H:H) -> 31197.03 | M102: =SUMIF('00 Alimenta'!$B:$B,'00 PDC SP'!$F102,'00 Alimenta'!I:I) -> 30319.56 | N102: 31197.03
A103: ABA050 | B103: AB | C103: ABA050 | D103: 31 | F103: 0102010401 | G103: Prodotti dietetici | H103: =SUMIF('00 Alimenta'!$B:$B,'00 PDC SP'!$F103,'00 Alimenta'!D:D) -> 4508.83 | I103: =SUMIF('00 Alimenta'!$B:$B,'00 PDC SP'!$F103,'00 Alimenta'!E:E) -> 5615.65 | J103: =SUMIF('00 Alimenta'!$B:$B,'00 PDC SP'!$F103,'00 Alimenta'!F:F) -> 4508.83 | K103: =SUMIF('00 Alimenta'!$B:$B,'00 PDC SP'!$F103,'00 Alimenta'!G:G) -> 5615.65 | L103: =SUMIF('00 Alimenta'!$B:$B,'00 PDC SP'!$F103,'00 Alimenta'!H:H) -> 5237.29 | M103: =SUMIF('00 Alimenta'!$B:$B,'00 PDC SP'!$F103,'00 Alimenta'!I:I) -> 5615.65 | N103: 5237.29
A104: ABA050 | B104: AB | C104: ABA050 | D104: 31 | F104: 0102010402 | G104: Alimenti per nutrizione artificiale senza AIC | H104: =SUMIF('00 Alimenta'!$B:$B,'00 PDC SP'!$F104,'00 Alimenta'!D:D) -> 63760.33 | I104: =SUMIF('00 Alimenta'!$B:$B,'00 PDC SP'!$F104,'00 Alimenta'!E:E) -> 58004.47 | J104: =SUMIF('00 Alimenta'!$B:$B,'00 PDC SP'!$F104,'00 Alimenta'!F:F) -> 63760.33 | K104: =SUMIF('00 Alimenta'!$B:$B,'00 PDC SP'!$F104,'00 Alimenta'!G:G) -> 58004.47 | L104: =SUMIF('00 Alimenta'!$B:$B,'00 PDC SP'!$F104,'00 Alimenta'!H:H) -> 66412.52 | M104: =SUMIF('00 Alimenta'!$B:$B,'00 PDC SP'!$F104,'00 Alimenta'!I:I) -> 58004.47 | N104: 66412.52
A105: ABA060 | B105: AB | C105: ABA060 | D105: 31 | F105: 0102010501 | G105: Sieri | H105: =SUMIF('00 Alimenta'!$B:$B,'00 PDC SP'!$F105,'00 Alimenta'!D:D) -> 0 | I105: =SUMIF('00 Alimenta'!$B:$B,'00 PDC SP'!$F105,'00 Alimenta'!E:E) -> 0 | J105: =SUMIF('00 Alimenta'!$B:$B,'00 PDC SP'!$F105,'00 Alimenta'!F:F) -> 0 | K105: =SUMIF('00 Alimenta'!$B:$B,'00 PDC SP'!$F105,'00 Alimenta'!G:G) -> 0 | L105: =SUMIF('00 Alimenta'!$B:$B,'00 PDC SP'!$F105,'00 Alimenta'!H:H) -> 0 | M105: =SUMIF('00 Alimenta'!$B:$B,'00 PDC SP'!$F105,'00 Alimenta'!I:I) -> 0 | N105: 0
A106: ABA060 | B106: AB | C106: ABA060 | D106: 31 | F106: 0102010502 | G106: Vaccini obbligatori | H106: =SUMIF('00 Alimenta'!$B:$B,'00 PDC SP'!$F106,'00 Alimenta'!D:D) -> 0 | I106: =SUMIF('00 Alimenta'!$B:$B,'00 PDC SP'!$F106,'00 Alimenta'!E:E) -> 0 | J106: =SUMIF('00 Alimenta'!$B:$B,'00 PDC SP'!$F106,'00 Alimenta'!F:F) -> 0 | K106: =SUMIF('00 Alimenta'!$B:$B,'00 PDC SP'!$F106,'00 Alimenta'!G:G) -> 0 | L106: =SUMIF('00 Alimenta'!$B:$B,'00 PDC SP'!$F106,'00 Alimenta'!H:H) -> 0 | M106: =SUMIF('00 Alimenta'!$B:$B,'00 PDC SP'!$F106,'00 Alimenta'!I:I) -> 0 | N106: 0
A107: ABA060 | B107: AB | C107: ABA060 | D107: 31 | F107: 0102010503 | G107: Altri Vaccini | H107: =SUMIF('00 Alimenta'!$B:$B,'00 PDC SP'!$F107,'00 Alimenta'!D:D) -> 0 | I107: =SUMIF('00 Alimenta'!$B:$B,'00 PDC SP'!$F107,'00 Alimenta'!E:E) -> 1112.76 | J107: =SUMIF('00 Alimenta'!$B:$B,'00 PDC SP'!$F107,'00 Alimenta'!F:F) -> 0 | K107: =SUMIF('00 Alimenta'!$B:$B,'00 PDC SP'!$F107,'00 Alimenta'!G:G) -> 1112.76 | L107: =SUMIF('00 Alimenta'!$B:$B,'00 PDC SP'!$F107,'00 Alimenta'!H:H) -> 2856.7 | M107: =SUMIF('00 Alimenta'!$B:$B,'00 PDC SP'!$F107,'00 Alimenta'!I:I) -> 1112.76 | N107: 2856.7
A108: ABA060 | B108: AB | C108: ABA060 | D108: 31 | F108: 0102010504 | G108: Altri materiali per la profilassi | H108: =SUMIF('00 Alimenta'!$B:$B,'00 PDC SP'!$F108,'00 Alimenta'!D:D) -> 0 | I108: =SUMIF('00 Alimenta'!$B:$B,'00 PDC SP'!$F108,'00 Alimenta'!E:E) -> 0 | J108: =SUMIF('00 Alimenta'!$B:$B,'00 PDC SP'!$F108,'00 Alimenta'!F:F) -> 0 | K108: =SUMIF('00 Alimenta'!$B:$B,'00 PDC SP'!$F108,'00 Alimenta'!G:G) -> 0 | L108: =SUMIF('00 Alimenta'!$B:$B,'00 PDC SP'!$F108,'00 Alimenta'!H:H) -> 0 | M108: =SUMIF('00 Alimenta'!$B:$B,'00 PDC SP'!$F108,'00 Alimenta'!I:I) -> 0 | N108: 0
A109: ABA070 | B109: AB | C109: ABA070 | D109: 31 | F109: 0102010601 | G109: Prodotti chimici | H109: =SUMIF('00 Alimenta'!$B:$B,'00 PDC SP'!$F109,'00 Alimenta'!D:D) -> 0 | I109: =SUMIF('00 Alimenta'!$B:$B,'00 PDC SP'!$F109,'00 Alimenta'!E:E) -> 0 | J109: =SUMIF('00 Alimenta'!$B:$B,'00 PDC SP'!$F109,'00 Alimenta'!F:F) -> 0 | K109: =SUMIF('00 Alimenta'!$B:$B,'00 PDC SP'!$F109,'00 Alimenta'!G:G) -> 0 | L109: =SUMIF('00 Alimenta'!$B:$B,'00 PDC SP'!$F109,'00 Alimenta'!H:H) -> 0 | M109: =SUMIF('00 Alimenta'!$B:$B,'00 PDC SP'!$F109,'00 Alimenta'!I:I) -> 0 | N109: 0
A110: ABA080 | B110: AB | C110: ABA080 | D110: 31 | F110: 0102010701 | G110: Medicinali ad uso veterinario | H110: =SUMIF('00 Alimenta'!$B:$B,'00 PDC SP'!$F110,'00 Alimenta'!D:D) -> 0 | I110: =SUMIF('00 Alimenta'!$B:$B,'00 PDC SP'!$F110,'00 Alimenta'!E:E) -> 0 | J110: =SUMIF('00 Alimenta'!$B:$B,'00 PDC SP'!$F110,'00 Alimenta'!F:F) -> 0 | K110: =SUMIF('00 Alimenta'!$B:$B,'00 PDC SP'!$F110,'00 Alimenta'!G:G) -> 0 | L110: =SUMIF('00 Alimenta'!$B:$B,'00 PDC SP'!$F110,'00 Alimenta'!H:H) -> 0 | M110: =SUMIF('00 Alimenta'!$B:$B,'00 PDC SP'!$F110,'00 Alimenta'!I:I) -> 0 | N110: 0
A111: ABA080 | B111: AB | C111: ABA080 | D111: 31 | F111: 0102010702 | G111: Materiali chirurgici, sanitari e diagnostici per uso veterinario | H111: =SUMIF('00 Alimenta'!$B:$B,'00 PDC SP'!$F111,'00 Alimenta'!D:D) -> 0 | I111: =SUMIF('00 Alimenta'!$B:$B,'00 PDC SP'!$F111,'00 Alimenta'!E:E) -> 0 | J111: =SUMIF('00 Alimenta'!$B:$B,'00 PDC SP'!$F111,'00 Alimenta'!F:F) -> 0 | K111: =SUMIF('00 Alimenta'!$B:$B,'00 PDC SP'!$F111,'00 Alimenta'!G:G) -> 0 | L111: =SUMIF('00 Alimenta'!$B:$B,'00 PDC SP'!$F111,'00 Alimenta'!H:H) -> 0 | M111: =SUMIF('00 Alimenta'!$B:$B,'00 PDC SP'!$F111,'00 Alimenta'!I:I) -> 0 | N111: 0
A112: ABA080 | B112: AB | C112: ABA080 | D112: 31 | F112: 0102010703 | G112: Altri materiali e beni sanitari per uso veterinario | H112: =SUMIF('00 Alimenta'!$B:$B,'00 PDC SP'!$F112,'00 Alimenta'!D:D) -> 0 | I112: =SUMIF('00 Alimenta'!$B:$B,'00 PDC SP'!$F112,'00 Alimenta'!E:E) -> 0 | J112: =SUMIF('00 Alimenta'!$B:$B,'00 PDC SP'!$F112,'00 Alimenta'!F:F) -> 0 | K112: =SUMIF('00 Alimenta'!$B:$B,'00 PDC SP'!$F112,'00 Alimenta'!G:G) -> 0 | L112: =SUMIF('00 Alimenta'!$B:$B,'00 PDC SP'!$F112,'00 Alimenta'!H:H) -> 0 | M112: =SUMIF('00 Alimenta'!$B:$B,'00 PDC SP'!$F112,'00 Alimenta'!I:I) -> 0 | N112: 0
A113: ABA090 | B113: AB | C113: ABA090 | D113: 31 | F113: 0102010801 | G113: Vetrerie e materiale plastico per laboratorio | H113: =SUMIF('00 Alimenta'!$B:$B,'00 PDC SP'!$F113,'00 Alimenta'!D:D) -> 26506.58 | I113: =SUMIF('00 Alimenta'!$B:$B,'00 PDC SP'!$F113,'00 Alimenta'!E:E) -> 42717.86 | J113: =SUMIF('00 Alimenta'!$B:$B,'00 PDC SP'!$F113,'00 Alimenta'!F:F) -> 26506.58 | K113: =SUMIF('00 Alimenta'!$B:$B,'00 PDC SP'!$F113,'00 Alimenta'!G:G) -> 42717.86 | L113: =SUMIF('00 Alimenta'!$B:$B,'00 PDC SP'!$F113,'00 Alimenta'!H:H) -> 22568.66 | M113: =SUMIF('00 Alimenta'!$B:$B,'00 PDC SP'!$F113,'00 Alimenta'!I:I) -> 42717.86 | N113: 22568.66
A114: ABA090 | B114: AB | C114: ABA090 | D114: 31 | F114: 0102010802 | G114: Materiali di consumo non specifici per strumentazione diagnostica | H114: =SUMIF('00 Alimenta'!$B:$B,'00 PDC SP'!$F114,'00 Alimenta'!D:D) -> 82188.66 | I114: =SUMIF('00 Alimenta'!$B:$B,'00 PDC SP'!$F114,'00 Alimenta'!E:E) -> 125485.73 | J114: =SUMIF('00 Alimenta'!$B:$B,'00 PDC SP'!$F114,'00 Alimenta'!F:F) -> 82188.66 | K114: =SUMIF('00 Alimenta'!$B:$B,'00 PDC SP'!$F114,'00 Alimenta'!G:G) -> 125485.73 | L114: =SUMIF('00 Alimenta'!$B:$B,'00 PDC SP'!$F114,'00 Alimenta'!H:H) -> 93627.14 | M114: =SUMIF('00 Alimenta'!$B:$B,'00 PDC SP'!$F114,'00 Alimenta'!I:I) -> 125485.73 | N114: 93627.14
A115: ABA090 | B115: AB | C115: ABA090 | D115: 31 | F115: 0102010803 | G115: Altri beni e prodotti sanitari | H115: =SUMIF('00 Alimenta'!$B:$B,'00 PDC SP'!$F115,'00 Alimenta'!D:D) -> 102717.74 | I115: =SUMIF('00 Alimenta'!$B:$B,'00 PDC SP'!$F115,'00 Alimenta'!E:E) -> 127988.56 | J115: =SUMIF('00 Alimenta'!$B:$B,'00 PDC SP'!$F115,'00 Alimenta'!F:F) -> 102717.74 | K115: =SUMIF('00 Alimenta'!$B:$B,'00 PDC SP'!$F115,'00 Alimenta'!G:G) -> 127988.56 | L115: =SUMIF('00 Alimenta'!$B:$B,'00 PDC SP'!$F115,'00 Alimenta'!H:H) -> 180987.44 | M115: =SUMIF('00 Alimenta'!$B:$B,'00 PDC SP'!$F115,'00 Alimenta'!I:I) -> 127988.56 | N115: 180987.44
A116: ABA100 | B116: AB | C116: ABA100 | D116: 32 | F116: 0102010901 | G116: Acconti per acquisto di beni e prodotti sanitari | H116: =SUMIF('00 Alimenta'!$B:$B,'00 PDC SP'!$F116,'00 Alimenta'!D:D) -> 0 | I116: =SUMIF('00 Alimenta'!$B:$B,'00 PDC SP'!$F116,'00 Alimenta'!E:E) -> 0 | J116: =SUMIF('00 Alimenta'!$B:$B,'00 PDC SP'!$F116,'00 Alimenta'!F:F) -> 0 | K116: =SUMIF('00 Alimenta'!$B:$B,'00 PDC SP'!$F116,'00 Alimenta'!G:G) -> 0 | L116: =SUMIF('00 Alimenta'!$B:$B,'00 PDC SP'!$F116,'00 Alimenta'!H:H) -> 0 | M116: =SUMIF('00 Alimenta'!$B:$B,'00 PDC SP'!$F116,'00 Alimenta'!I:I) -> 0 | N116: 0
A117: ABA120 | B117: AB | C117: ABA120 | D117: 31 | F117: 0102011001 | G117: Prodotti alimentari | H117: =SUMIF('00 Alimenta'!$B:$B,'00 PDC SP'!$F117,'00 Alimenta'!D:D) -> 0 | I117: =SUMIF('00 Alimenta'!$B:$B,'00 PDC SP'!$F117,'00 Alimenta'!E:E) -> 0 | J117: =SUMIF('00 Alimenta'!$B:$B,'00 PDC SP'!$F117,'00 Alimenta'!F:F) -> 0 | K117: =SUMIF('00 Alimenta'!$B:$B,'00 PDC SP'!$F117,'00 Alimenta'!G:G) -> 0 | L117: =SUMIF('00 Alimenta'!$B:$B,'00 PDC SP'!$F117,'00 Alimenta'!H:H) -> 0 | M117: =SUMIF('00 Alimenta'!$B:$B,'00 PDC SP'!$F117,'00 Alimenta'!I:I) -> 0 | N117: 0
A118: ABA130 | B118: AB | C118: ABA130 | D118: 31 | F118: 0102011101 | G118: Materiali di guardaroba, di pulizia, e di convivenza in genere | H118: =SUMIF('00 Alimenta'!$B:$B,'00 PDC SP'!$F118,'00 Alimenta'!D:D) -> 35073.03 | I118: =SUMIF('00 Alimenta'!$B:$B,'00 PDC SP'!$F118,'00 Alimenta'!E:E) -> 29727.94 | J118: =SUMIF('00 Alimenta'!$B:$B,'00 PDC SP'!$F118,'00 Alimenta'!F:F) -> 35073.03 | K118: =SUMIF('00 Alimenta'!$B:$B,'00 PDC SP'!$F118,'00 Alimenta'!G:G) -> 29727.94 | L118: =SUMIF('00 Alimenta'!$B:$B,'00 PDC SP'!$F118,'00 Alimenta'!H:H) -> 29504.9 | M118: =SUMIF('00 Alimenta'!$B:$B,'00 PDC SP'!$F118,'00 Alimenta'!I:I) -> 29727.94 | N118: 29504.9
A119: ABA140 | B119: AB | C119: ABA140 | D119: 31 | F119: 0102011201 | G119: Combustibili, carburanti e lubrificanti | H119: =SUMIF('00 Alimenta'!$B:$B,'00 PDC SP'!$F119,'00 Alimenta'!D:D) -> 0 | I119: =SUMIF('00 Alimenta'!$B:$B,'00 PDC SP'!$F119,'00 Alimenta'!E:E) -> 0 | J119: =SUMIF('00 Alimenta'!$B:$B,'00 PDC SP'!$F119,'00 Alimenta'!F:F) -> 0 | K119: =SUMIF('00 Alimenta'!$B:$B,'00 PDC SP'!$F119,'00 Alimenta'!G:G) -> 0 | L119: =SUMIF('00 Alimenta'!$B:$B,'00 PDC SP'!$F119,'00 Alimenta'!H:H) -> 0 | M119: =SUMIF('00 Alimenta'!$B:$B,'00 PDC SP'!$F119,'00 Alimenta'!I:I) -> 0 | N119: 0
A120: ABA150 | B120: AB | C120: ABA150 | D120: 31 | F120: 0102011301 | G120: Supporti informatici | H120: =SUMIF('00 Alimenta'!$B:$B,'00 PDC SP'!$F120,'00 Alimenta'!D:D) -> 171772.85 | I120: =SUMIF('00 Alimenta'!$B:$B,'00 PDC SP'!$F120,'00 Alimenta'!E:E) -> 192555.39 | J120: =SUMIF('00 Alimenta'!$B:$B,'00 PDC SP'!$F120,'00 Alimenta'!F:F) -> 171772.85 | K120: =SUMIF('00 Alimenta'!$B:$B,'00 PDC SP'!$F120,'00 Alimenta'!G:G) -> 192555.39 | L120: =SUMIF('00 Alimenta'!$B:$B,'00 PDC SP'!$F120,'00 Alimenta'!H:H) -> 102147.29 | M120: =SUMIF('00 Alimenta'!$B:$B,'00 PDC SP'!$F120,'00 Alimenta'!I:I) -> 192555.39 | N120: 102147.29
A121: ABA150 | B121: AB | C121: ABA150 | D121: 31 | F121: 0102011302 | G121: Cancelleria e stampati | H121: =SUMIF('00 Alimenta'!$B:$B,'00 PDC SP'!$F121,'00 Alimenta'!D:D) -> 161363.28 | I121: =SUMIF('00 Alimenta'!$B:$B,'00 PDC SP'!$F121,'00 Alimenta'!E:E) -> 169734.96 | J121: =SUMIF('00 Alimenta'!$B:$B,'00 PDC SP'!$F121,'00 Alimenta'!F:F) -> 161363.28 | K121: =SUMIF('00 Alimenta'!$B:$B,'00 PDC SP'!$F121,'00 Alimenta'!G:G) -> 169734.96 | L121: =SUMIF('00 Alimenta'!$B:$B,'00 PDC SP'!$F121,'00 Alimenta'!H:H) -> 107409.14 | M121: =SUMIF('00 Alimenta'!$B:$B,'00 PDC SP'!$F121,'00 Alimenta'!I:I) -> 169734.96 | N121: 107409.14
A122: ABA160 | B122: AB | C122: ABA160 | D122: 31 | F122: 0102011401 | G122: Materiale per la manutenzione di immobili e loro pertinenze | H122: =SUMIF('00 Alimenta'!$B:$B,'00 PDC SP'!$F122,'00 Alimenta'!D:D) -> 55250.31 | I122: =SUMIF('00 Alimenta'!$B:$B,'00 PDC SP'!$F122,'00 Alimenta'!E:E) -> 85875.45 | J122: =SUMIF('00 Alimenta'!$B:$B,'00 PDC SP'!$F122,'00 Alimenta'!F:F) -> 55250.31 | K122: =SUMIF('00 Alimenta'!$B:$B,'00 PDC SP'!$F122,'00 Alimenta'!G:G) -> 85875.45 | L122: =SUMIF('00 Alimenta'!$B:$B,'00 PDC SP'!$F122,'00 Alimenta'!H:H) -> 139324.97 | M122: =SUMIF('00 Alimenta'!$B:$B,'00 PDC SP'!$F122,'00 Alimenta'!I:I) -> 85875.45 | N122: 139324.97
A123: ABA160 | B123: AB | C123: ABA160 | D123: 31 | F123: 0102011402 | G123: Materiale per la manutenzione di mobili e macchine | H123: =SUMIF('00 Alimenta'!$B:$B,'00 PDC SP'!$F123,'00 Alimenta'!D:D) -> 0 | I123: =SUMIF('00 Alimenta'!$B:$B,'00 PDC SP'!$F123,'00 Alimenta'!E:E) -> 0 | J123: =SUMIF('00 Alimenta'!$B:$B,'00 PDC SP'!$F123,'00 Alimenta'!F:F) -> 0 | K123: =SUMIF('00 Alimenta'!$B:$B,'00 PDC SP'!$F123,'00 Alimenta'!G:G) -> 0 | L123: =SUMIF('00 Alimenta'!$B:$B,'00 PDC SP'!$F123,'00 Alimenta'!H:H) -> 0 | M123: =SUMIF('00 Alimenta'!$B:$B,'00 PDC SP'!$F123,'00 Alimenta'!I:I) -> 0 | N123: 0
A124: ABA160 | B124: AB | C124: ABA160 | D124: 31 | F124: 0102011403 | G124: Materiale per la manutenzione di attrezzature tecnico scientifiche sanitarie | H124: =SUMIF('00 Alimenta'!$B:$B,'00 PDC SP'!$F124,'00 Alimenta'!D:D) -> 25964.41 | I124: =SUMIF('00 Alimenta'!$B:$B,'00 PDC SP'!$F124,'00 Alimenta'!E:E) -> 26463.29 | J124: =SUMIF('00 Alimenta'!$B:$B,'00 PDC SP'!$F124,'00 Alimenta'!F:F) -> 25964.41 | K124: =SUMIF('00 Alimenta'!$B:$B,'00 PDC SP'!$F124,'00 Alimenta'!G:G) -> 26463.29 | L124: =SUMIF('00 Alimenta'!$B:$B,'00 PDC SP'!$F124,'00 Alimenta'!H:H) -> 15166.69 | M124: =SUMIF('00 Alimenta'!$B:$B,'00 PDC SP'!$F124,'00 Alimenta'!I:I) -> 26463.29 | N124: 15166.69
A125: ABA160 | B125: AB | C125: ABA160 | D125: 31 | F125: 0102011404 | G125: Materiale per la manutenzione di automezzi | H125: =SUMIF('00 Alimenta'!$B:$B,'00 PDC SP'!$F125,'00 Alimenta'!D:D) -> 0 | I125: =SUMIF('00 Alimenta'!$B:$B,'00 PDC SP'!$F125,'00 Alimenta'!E:E) -> 0 | J125: =SUMIF('00 Alimenta'!$B:$B,'00 PDC SP'!$F125,'00 Alimenta'!F:F) -> 0 | K125: =SUMIF('00 Alimenta'!$B:$B,'00 PDC SP'!$F125,'00 Alimenta'!G:G) -> 0 | L125: =SUMIF('00 Alimenta'!$B:$B,'00 PDC SP'!$F125,'00 Alimenta'!H:H) -> 0 | M125: =SUMIF('00 Alimenta'!$B:$B,'00 PDC SP'!$F125,'00 Alimenta'!I:I) -> 0 | N125: 0
A126: ABA160 | B126: AB | C126: ABA160 | D126: 31 | F126: 0102011405 | G126: Materiale per la manutenzione di altro | H126: =SUMIF('00 Alimenta'!$B:$B,'00 PDC SP'!$F126,'00 Alimenta'!D:D) -> 3934.22 | I126: =SUMIF('00 Alimenta'!$B:$B,'00 PDC SP'!$F126,'00 Alimenta'!E:E) -> 5031.4 | J126: =SUMIF('00 Alimenta'!$B:$B,'00 PDC SP'!$F126,'00 Alimenta'!F:F) -> 3934.22 | K126: =SUMIF('00 Alimenta'!$B:$B,'00 PDC SP'!$F126,'00 Alimenta'!G:G) -> 5031.4 | L126: =SUMIF('00 Alimenta'!$B:$B,'00 PDC SP'!$F126,'00 Alimenta'!H:H) -> 4064.04 | M126: =SUMIF('00 Alimenta'!$B:$B,'00 PDC SP'!$F126,'00 Alimenta'!I:I) -> 5031.4 | N126: 4064.04
A127: ABA170 | B127: AB | C127: ABA170 | D127: 31 | F127: 0102011501 | G127: Altri beni e prodotti non sanitari | H127: =SUMIF('00 Alimenta'!$B:$B,'00 PDC SP'!$F127,'00 Alimenta'!D:D) -> 2869.46 | I127: =SUMIF('00 Alimenta'!$B:$B,'00 PDC SP'!$F127,'00 Alimenta'!E:E) -> 1229.74 | J127: =SUMIF('00 Alimenta'!$B:$B,'00 PDC SP'!$F127,'00 Alimenta'!F:F) -> 2869.46 | K127: =SUMIF('00 Alimenta'!$B:$B,'00 PDC SP'!$F127,'00 Alimenta'!G:G) -> 1229.74 | L127: =SUMIF('00 Alimenta'!$B:$B,'00 PDC SP'!$F127,'00 Alimenta'!H:H) -> 502.43 | M127: =SUMIF('00 Alimenta'!$B:$B,'00 PDC SP'!$F127,'00 Alimenta'!I:I) -> 1229.74 | N127: 502.43
A128: ABA180 | B128: AB | C128: ABA180 | D128: 32 | F128: 0102011601 | G128: Acconti per acquisto di beni e prodotti non sanitari | H128: =SUMIF('00 Alimenta'!$B:$B,'00 PDC SP'!$F128,'00 Alimenta'!D:D) -> 0 | I128: =SUMIF('00 Alimenta'!$B:$B,'00 PDC SP'!$F128,'00 Alimenta'!E:E) -> 0 | J128: =SUMIF('00 Alimenta'!$B:$B,'00 PDC SP'!$F128,'00 Alimenta'!F:F) -> 0 | K128: =SUMIF('00 Alimenta'!$B:$B,'00 PDC SP'!$F128,'00 Alimenta'!G:G) -> 0 | L128: =SUMIF('00 Alimenta'!$B:$B,'00 PDC SP'!$F128,'00 Alimenta'!H:H) -> 0 | M128: =SUMIF('00 Alimenta'!$B:$B,'00 PDC SP'!$F128,'00 Alimenta'!I:I) -> 0 | N128: 0
A129: ABA210CR | B129: AB | C129: ABA210 | D129: 21 | E129: CR | F129: 0102020101 | G129: Crediti v/Stato per spesa corrente - Integrazione a norma del D.L.vo 56/2000 | H129: =SUMIF('00 Alimenta'!$B:$B,'00 PDC SP'!$F129,'00 Alimenta'!D:D) -> 5970.26 | I129: =SUMIF('00 Alimenta'!$B:$B,'00 PDC SP'!$F129,'00 Alimenta'!E:E) -> 12202.45 | J129: =SUMIF('00 Alimenta'!$B:$B,'00 PDC SP'!$F129,'00 Alimenta'!F:F) -> 18172.71 | K129: =SUMIF('00 Alimenta'!$B:$B,'00 PDC SP'!$F129,'00 Alimenta'!G:G) -> 0 | L129: =SUMIF('00 Alimenta'!$B:$B,'00 PDC SP'!$F129,'00 Alimenta'!H:H) -> 50822.1 | M129: =SUMIF('00 Alimenta'!$B:$B,'00 PDC SP'!$F129,'00 Alimenta'!I:I) -> 48520.58 | N129: 2301.52
A130: ABA220CR | B130: AB | C130: ABA220 | D130: 21 | E130: CR | F130: 0102020201 | G130: Crediti v/Stato per spesa corrente - FSN | H130: =SUMIF('00 Alimenta'!$B:$B,'00 PDC SP'!$F130,'00 Alimenta'!D:D) -> 0 | I130: =SUMIF('00 Alimenta'!$B:$B,'00 PDC SP'!$F130,'00 Alimenta'!E:E) -> 0 | J130: =SUMIF('00 Alimenta'!$B:$B,'00 PDC SP'!$F130,'00 Alimenta'!F:F) -> 0 | K130: =SUMIF('00 Alimenta'!$B:$B,'00 PDC SP'!$F130,'00 Alimenta'!G:G) -> 0 | L130: =SUMIF('00 Alimenta'!$B:$B,'00 PDC SP'!$F130,'00 Alimenta'!H:H) -> 0 | M130: =SUMIF('00 Alimenta'!$B:$B,'00 PDC SP'!$F130,'00 Alimenta'!I:I) -> 0 | N130: 0
A131: ABA230CR | B131: AB | C131: ABA230 | D131: 21 | E131: CR | F131: 0102020301 | G131: Crediti v/Stato per mobilità attiva pubblica extraregionale | H131: =SUMIF('00 Alimenta'!$B:$B,'00 PDC SP'!$F131,'00 Alimenta'!D:D) -> 0 | I131: =SUMIF('00 Alimenta'!$B:$B,'00 PDC SP'!$F131,'00 Alimenta'!E:E) -> 0 | J131: =SUMIF('00 Alimenta'!$B:$B,'00 PDC SP'!$F131,'00 Alimenta'!F:F) -> 0 | K131: =SUMIF('00 Alimenta'!$B:$B,'00 PDC SP'!$F131,'00 Alimenta'!G:G) -> 0 | L131: =SUMIF('00 Alimenta'!$B:$B,'00 PDC SP'!$F131,'00 Alimenta'!H:H) -> 0 | M131: =SUMIF('00 Alimenta'!$B:$B,'00 PDC SP'!$F131,'00 Alimenta'!I:I) -> 0 | N131: 0
A132: ABA230CR | B132: AB | C132: ABA230 | D132: 21 | E132: CR | F132: 0102020302 | G132: Crediti v/Stato per mobilità attiva privata extraregionale | H132: =SUMIF('00 Alimenta'!$B:$B,'00 PDC SP'!$F132,'00 Alimenta'!D:D) -> 0 | I132: =SUMIF('00 Alimenta'!$B:$B,'00 PDC SP'!$F132,'00 Alimenta'!E:E) -> 0 | J132: =SUMIF('00 Alimenta'!$B:$B,'00 PDC SP'!$F132,'00 Alimenta'!F:F) -> 0 | K132: =SUMIF('00 Alimenta'!$B:$B,'00 PDC SP'!$F132,'00 Alimenta'!G:G) -> 0 | L132: =SUMIF('00 Alimenta'!$B:$B,'00 PDC SP'!$F132,'00 Alimenta'!H:H) -> 0 | M132: =SUMIF('00 Alimenta'!$B:$B,'00 PDC SP'!$F132,'00 Alimenta'!I:I) -> 0 | N132: 0
A133: ABA240CR | B133: AB | C133: ABA240 | D133: 21 | E133: CR | F133: 0102020401 | G133: Crediti v/Stato per mobilità attiva internazionale | H133: =SUMIF('00 Alimenta'!$B:$B,'00 PDC SP'!$F133,'00 Alimenta'!D:D) -> 0 | I133: =SUMIF('00 Alimenta'!$B:$B,'00 PDC SP'!$F133,'00 Alimenta'!E:E) -> 0 | J133: =SUMIF('00 Alimenta'!$B:$B,'00 PDC SP'!$F133,'00 Alimenta'!F:F) -> 0 | K133: =SUMIF('00 Alimenta'!$B:$B,'00 PDC SP'!$F133,'00 Alimenta'!G:G) -> 0 | L133: =SUMIF('00 Alimenta'!$B:$B,'00 PDC SP'!$F133,'00 Alimenta'!H:H) -> 0 | M133: =SUMIF('00 Alimenta'!$B:$B,'00 PDC SP'!$F133,'00 Alimenta'!I:I) -> 0 | N133: 0
A134: ABA250CR | B134: AB | C134: ABA250 | D134: 21 | E134: CR | F134: 0102020501 | G134: Crediti v/Stato per acconto quota fabbisogno sanitario regionale standard | H134: =SUMIF('00 Alimenta'!$B:$B,'00 PDC SP'!$F134,'00 Alimenta'!D:D) -> 0 | I134: =SUMIF('00 Alimenta'!$B:$B,'00 PDC SP'!$F134,'00 Alimenta'!E:E) -> 0 | J134: =SUMIF('00 Alimenta'!$B:$B,'00 PDC SP'!$F134,'00 Alimenta'!F:F) -> 0 | K134: =SUMIF('00 Alimenta'!$B:$B,'00 PDC SP'!$F134,'00 Alimenta'!G:G) -> 0 | L134: =SUMIF('00 Alimenta'!$B:$B,'00 PDC SP'!$F134,'00 Alimenta'!H:H) -> 0 | M134: =SUMIF('00 Alimenta'!$B:$B,'00 PDC SP'!$F134,'00 Alimenta'!I:I) -> 0 | N134: 0
A135: =IF(E135="",C135,C135&E135) -> ABA260CR | B135: =LEFT(C135,2) -> AB | C135: ABA260 | D135: 21 | E135: CR | F135: 0102020601 | G135: Crediti v/Stato per finanziamento sanitario aggiuntivo corrente | H135: =SUMIF('00 Alimenta'!$B:$B,'00 PDC SP'!$F135,'00 Alimenta'!D:D) -> 0 | I135: =SUMIF('00 Alimenta'!$B:$B,'00 PDC SP'!$F135,'00 Alimenta'!E:E) -> 0 | J135: =SUMIF('00 Alimenta'!$B:$B,'00 PDC SP'!$F135,'00 Alimenta'!F:F) -> 0 | K135: =SUMIF('00 Alimenta'!$B:$B,'00 PDC SP'!$F135,'00 Alimenta'!G:G) -> 0 | L135: =SUMIF('00 Alimenta'!$B:$B,'00 PDC SP'!$F135,'00 Alimenta'!H:H) -> 0 | M135: =SUMIF('00 Alimenta'!$B:$B,'00 PDC SP'!$F135,'00 Alimenta'!I:I) -> 0 | N135: =K135+L135-M135 -> 0
A136: ABA270CR | B136: AB | C136: ABA270 | D136: 21 | E136: CR | F136: 0102020701 | G136: Crediti v/Stato per spesa corrente - altro | H136: =SUMIF('00 Alimenta'!$B:$B,'00 PDC SP'!$F136,'00 Alimenta'!D:D) -> 0 | I136: =SUMIF('00 Alimenta'!$B:$B,'00 PDC SP'!$F136,'00 Alimenta'!E:E) -> 0 | J136: =SUMIF('00 Alimenta'!$B:$B,'00 PDC SP'!$F136,'00 Alimenta'!F:F) -> 0 | K136: =SUMIF('00 Alimenta'!$B:$B,'00 PDC SP'!$F136,'00 Alimenta'!G:G) -> 0 | L136: =SUMIF('00 Alimenta'!$B:$B,'00 PDC SP'!$F136,'00 Alimenta'!H:H) -> 0 | M136: =SUMIF('00 Alimenta'!$B:$B,'00 PDC SP'!$F136,'00 Alimenta'!I:I) -> 0 | N136: 0
A137: ABA280CR | B137: AB | C137: ABA280 | D137: 48 | E137: CR | F137: 0102020801 | G137: Crediti v/Stato per finanziamenti per investimenti | H137: =SUMIF('00 Alimenta'!$B:$B,'00 PDC SP'!$F137,'00 Alimenta'!D:D) -> 0 | I137: =SUMIF('00 Alimenta'!$B:$B,'00 PDC SP'!$F137,'00 Alimenta'!E:E) -> 0 | J137: =SUMIF('00 Alimenta'!$B:$B,'00 PDC SP'!$F137,'00 Alimenta'!F:F) -> 0 | K137: =SUMIF('00 Alimenta'!$B:$B,'00 PDC SP'!$F137,'00 Alimenta'!G:G) -> 0 | L137: =SUMIF('00 Alimenta'!$B:$B,'00 PDC SP'!$F137,'00 Alimenta'!H:H) -> 0 | M137: =SUMIF('00 Alimenta'!$B:$B,'00 PDC SP'!$F137,'00 Alimenta'!I:I) -> 0 | N137: 0
A138: ABA300CR | B138: AB | C138: ABA300 | D138: 21 | E138: CR | F138: 0102020901 | G138: Crediti v/Stato per ricerca corrente - Ministero della Salute | H138: =SUMIF('00 Alimenta'!$B:$B,'00 PDC SP'!$F138,'00 Alimenta'!D:D) -> 0 | I138: =SUMIF('00 Alimenta'!$B:$B,'00 PDC SP'!$F138,'00 Alimenta'!E:E) -> 0 | J138: =SUMIF('00 Alimenta'!$B:$B,'00 PDC SP'!$F138,'00 Alimenta'!F:F) -> 0 | K138: =SUMIF('00 Alimenta'!$B:$B,'00 PDC SP'!$F138,'00 Alimenta'!G:G) -> 0 | L138: =SUMIF('00 Alimenta'!$B:$B,'00 PDC SP'!$F138,'00 Alimenta'!H:H) -> 0 | M138: =SUMIF('00 Alimenta'!$B:$B,'00 PDC SP'!$F138,'00 Alimenta'!I:I) -> 0 | N138: 0
A139: ABA310CR | B139: AB | C139: ABA310 | D139: 21 | E139: CR | F139: 0102020902 | G139: Crediti v/Stato per ricerca finalizzata - Ministero della Salute | H139: =SUMIF('00 Alimenta'!$B:$B,'00 PDC SP'!$F139,'00 Alimenta'!D:D) -> 4620 | I139: =SUMIF('00 Alimenta'!$B:$B,'00 PDC SP'!$F139,'00 Alimenta'!E:E) -> 0 | J139: =SUMIF('00 Alimenta'!$B:$B,'00 PDC SP'!$F139,'00 Alimenta'!F:F) -> 0 | K139: =SUMIF('00 Alimenta'!$B:$B,'00 PDC SP'!$F139,'00 Alimenta'!G:G) -> 4620 | L139: =SUMIF('00 Alimenta'!$B:$B,'00 PDC SP'!$F139,'00 Alimenta'!H:H) -> 10300 | M139: =SUMIF('00 Alimenta'!$B:$B,'00 PDC SP'!$F139,'00 Alimenta'!I:I) -> 10300 | N139: 4620
A140: ABA320CR | B140: AB | C140: ABA320 | D140: 21 | E140: CR | F140: 0102020903 | G140: Crediti v/Stato per ricerca - altre Amministrazioni centrali | H140: =SUMIF('00 Alimenta'!$B:$B,'00 PDC SP'!$F140,'00 Alimenta'!D:D) -> 0 | I140: =SUMIF('00 Alimenta'!$B:$B,'00 PDC SP'!$F140,'00 Alimenta'!E:E) -> 0 | J140: =SUMIF('00 Alimenta'!$B:$B,'00 PDC SP'!$F140,'00 Alimenta'!F:F) -> 0 | K140: =SUMIF('00 Alimenta'!$B:$B,'00 PDC SP'!$F140,'00 Alimenta'!G:G) -> 0 | L140: =SUMIF('00 Alimenta'!$B:$B,'00 PDC SP'!$F140,'00 Alimenta'!H:H) -> 0 | M140: =SUMIF('00 Alimenta'!$B:$B,'00 PDC SP'!$F140,'00 Alimenta'!I:I) -> 0 | N140: 0
A141: ABA330CR | B141: AB | C141: ABA330 | D141: 21 | E141: CR | F141: 0102020904 | G141: Crediti v/Stato per ricerca - finanziamenti per investimenti | H141: =SUMIF('00 Alimenta'!$B:$B,'00 PDC SP'!$F141,'00 Alimenta'!D:D) -> 0 | I141: =SUMIF('00 Alimenta'!$B:$B,'00 PDC SP'!$F141,'00 Alimenta'!E:E) -> 0 | J141: =SUMIF('00 Alimenta'!$B:$B,'00 PDC SP'!$F141,'00 Alimenta'!F:F) -> 0 | K141: =SUMIF('00 Alimenta'!$B:$B,'00 PDC SP'!$F141,'00 Alimenta'!G:G) -> 0 | L141: =SUMIF('00 Alimenta'!$B:$B,'00 PDC SP'!$F141,'00 Alimenta'!H:H) -> 0 | M141: =SUMIF('00 Alimenta'!$B:$B,'00 PDC SP'!$F141,'00 Alimenta'!I:I) -> 0 | N141: 0
A142: ABA340CR | B142: AB | C142: ABA340 | D142: 21 | E142: CR | F142: 0102021001 | G142: Crediti v/prefetture | H142: =SUMIF('00 Alimenta'!$B:$B,'00 PDC SP'!$F142,'00 Alimenta'!D:D) -> 93462.74 | I142: =SUMIF('00 Alimenta'!$B:$B,'00 PDC SP'!$F142,'00 Alimenta'!E:E) -> 0 | J142: =SUMIF('00 Alimenta'!$B:$B,'00 PDC SP'!$F142,'00 Alimenta'!F:F) -> 0 | K142: =SUMIF('00 Alimenta'!$B:$B,'00 PDC SP'!$F142,'00 Alimenta'!G:G) -> 93462.74 | L142: =SUMIF('00 Alimenta'!$B:$B,'00 PDC SP'!$F142,'00 Alimenta'!H:H) -> 93462.74 | M142: =SUMIF('00 Alimenta'!$B:$B,'00 PDC SP'!$F142,'00 Alimenta'!I:I) -> 186925.48 | N142: 0
A143: ABA370CR | B143: AB | C143: ABA370 | D143: 25 | E143: CR | F143: 0102021101 | G143: Crediti v/Regione o Provincia Autonoma per spesa corrente - IRAP | H143: =SUMIF('00 Alimenta'!$B:$B,'00 PDC SP'!$F143,'00 Alimenta'!D:D) -> 0 | I143: =SUMIF('00 Alimenta'!$B:$B,'00 PDC SP'!$F143,'00 Alimenta'!E:E) -> 0 | J143: =SUMIF('00 Alimenta'!$B:$B,'00 PDC SP'!$F143,'00 Alimenta'!F:F) -> 0 | K143: =SUMIF('00 Alimenta'!$B:$B,'00 PDC SP'!$F143,'00 Alimenta'!G:G) -> 0 | L143: =SUMIF('00 Alimenta'!$B:$B,'00 PDC SP'!$F143,'00 Alimenta'!H:H) -> 0 | M143: =SUMIF('00 Alimenta'!$B:$B,'00 PDC SP'!$F143,'00 Alimenta'!I:I) -> 0 | N143: 0
A144: ABA380CR | B144: AB | C144: ABA380 | D144: 25 | E144: CR | F144: 0102021102 | G144: Crediti v/Regione o Provincia Autonoma per spesa corrente - Addizionale IRPEF | H144: =SUMIF('00 Alimenta'!$B:$B,'00 PDC SP'!$F144,'00 Alimenta'!D:D) -> 0 | I144: =SUMIF('00 Alimenta'!$B:$B,'00 PDC SP'!$F144,'00 Alimenta'!E:E) -> 0 | J144: =SUMIF('00 Alimenta'!$B:$B,'00 PDC SP'!$F144,'00 Alimenta'!F:F) -> 0 | K144: =SUMIF('00 Alimenta'!$B:$B,'00 PDC SP'!$F144,'00 Alimenta'!G:G) -> 0 | L144: =SUMIF('00 Alimenta'!$B:$B,'00 PDC SP'!$F144,'00 Alimenta'!H:H) -> 0 | M144: =SUMIF('00 Alimenta'!$B:$B,'00 PDC SP'!$F144,'00 Alimenta'!I:I) -> 0 | N144: 0
A145: ABA390CR | B145: AB | C145: ABA390 | D145: 25 | E145: CR | F145: 0102021103 | G145: Crediti v/Regione o Provincia Autonoma per quota FSR | H145: =SUMIF('00 Alimenta'!$B:$B,'00 PDC SP'!$F145,'00 Alimenta'!D:D) -> 149470398.2 | I145: =SUMIF('00 Alimenta'!$B:$B,'00 PDC SP'!$F145,'00 Alimenta'!E:E) -> 611234256.9 | J145: =SUMIF('00 Alimenta'!$B:$B,'00 PDC SP'!$F145,'00 Alimenta'!F:F) -> 641777089 | K145: =SUMIF('00 Alimenta'!$B:$B,'00 PDC SP'!$F145,'00 Alimenta'!G:G) -> 118927566.1 | L145: =SUMIF('00 Alimenta'!$B:$B,'00 PDC SP'!$F145,'00 Alimenta'!H:H) -> 699144829.1 | M145: =SUMIF('00 Alimenta'!$B:$B,'00 PDC SP'!$F145,'00 Alimenta'!I:I) -> 673828882.2 | N145: 144243512.9
A146: ABA400CR | B146: AB | C146: ABA400 | D146: 25 | E146: CR | F146: 0102021104 | G146: Crediti v/Regione o Provincia Autonoma per mobilità attiva intraregionale | H146: =SUMIF('00 Alimenta'!$B:$B,'00 PDC SP'!$F146,'00 Alimenta'!D:D) -> 1343946.39 | I146: =SUMIF('00 Alimenta'!$B:$B,'00 PDC SP'!$F146,'00 Alimenta'!E:E) -> 98488215.59 | J146: =SUMIF('00 Alimenta'!$B:$B,'00 PDC SP'!$F146,'00 Alimenta'!F:F) -> 98575322.59 | K146: =SUMIF('00 Alimenta'!$B:$B,'00 PDC SP'!$F146,'00 Alimenta'!G:G) -> 1256839.39 | L146: =SUMIF('00 Alimenta'!$B:$B,'00 PDC SP'!$F146,'00 Alimenta'!H:H) -> 99510381.01 | M146: =SUMIF('00 Alimenta'!$B:$B,'00 PDC SP'!$F146,'00 Alimenta'!I:I) -> 99510381 | N146: 1256839.4
A147: ABA400FE | B147: AB | C147: ABA400 | D147: 25 | E147: FE | F147: 0102021105 | G147: Fatture da emettere v/Regione per mobilità attiva intraregionale | H147: =SUMIF('00 Alimenta'!$B:$B,'00 PDC SP'!$F147,'00 Alimenta'!D:D) -> 0 | I147: =SUMIF('00 Alimenta'!$B:$B,'00 PDC SP'!$F147,'00 Alimenta'!E:E) -> 0 | J147: =SUMIF('00 Alimenta'!$B:$B,'00 PDC SP'!$F147,'00 Alimenta'!F:F) -> 0 | K147: =SUMIF('00 Alimenta'!$B:$B,'00 PDC SP'!$F147,'00 Alimenta'!G:G) -> 0 | L147: =SUMIF('00 Alimenta'!$B:$B,'00 PDC SP'!$F147,'00 Alimenta'!H:H) -> 0 | M147: =SUMIF('00 Alimenta'!$B:$B,'00 PDC SP'!$F147,'00 Alimenta'!I:I) -> 0 | N147: 0
A148: ABA400FE | B148: AB | C148: ABA400 | D148: 25 | E148: FE | F148: 0102021106 | G148: Fatture da emettere v/Regione per mobilità attiva intraregionale da privato | H148: =SUMIF('00 Alimenta'!$B:$B,'00 PDC SP'!$F148,'00 Alimenta'!D:D) -> 0 | I148: =SUMIF('00 Alimenta'!$B:$B,'00 PDC SP'!$F148,'00 Alimenta'!E:E) -> 0 | J148: =SUMIF('00 Alimenta'!$B:$B,'00 PDC SP'!$F148,'00 Alimenta'!F:F) -> 0 | K148: =SUMIF('00 Alimenta'!$B:$B,'00 PDC SP'!$F148,'00 Alimenta'!G:G) -> 0 | L148: =SUMIF('00 Alimenta'!$B:$B,'00 PDC SP'!$F148,'00 Alimenta'!H:H) -> 0 | M148: =SUMIF('00 Alimenta'!$B:$B,'00 PDC SP'!$F148,'00 Alimenta'!I:I) -> 0 | N148: 0
A149: ABA410CR | B149: AB | C149: ABA410 | D149: 25 | E149: CR | F149: 0102021107 | G149: Crediti v/Regione o Provincia Autonoma per mobilità attiva extraregionale | H149: =SUMIF('00 Alimenta'!$B:$B,'00 PDC SP'!$F149,'00 Alimenta'!D:D) -> 19005500.29 | I149: =SUMIF('00 Alimenta'!$B:$B,'00 PDC SP'!$F149,'00 Alimenta'!E:E) -> 17628432.4 | J149: =SUMIF('00 Alimenta'!$B:$B,'00 PDC SP'!$F149,'00 Alimenta'!F:F) -> 17628432.4 | K149: =SUMIF('00 Alimenta'!$B:$B,'00 PDC SP'!$F149,'00 Alimenta'!G:G) -> 19005500.29 | L149: =SUMIF('00 Alimenta'!$B:$B,'00 PDC SP'!$F149,'00 Alimenta'!H:H) -> 23288119.72 | M149: =SUMIF('00 Alimenta'!$B:$B,'00 PDC SP'!$F149,'00 Alimenta'!I:I) -> 23288119.72 | N149: 19005500.29
A150: ABA410FE | B150: AB | C150: ABA410 | D150: 25 | E150: FE | F150: 0102021108 | G150: Fatture da emettere v/Regione per mobilità attiva extraregionale | H150: =SUMIF('00 Alimenta'!$B:$B,'00 PDC SP'!$F150,'00 Alimenta'!D:D) -> 0 | I150: =SUMIF('00 Alimenta'!$B:$B,'00 PDC SP'!$F150,'00 Alimenta'!E:E) -> 0 | J150: =SUMIF('00 Alimenta'!$B:$B,'00 PDC SP'!$F150,'00 Alimenta'!F:F) -> 0 | K150: =SUMIF('00 Alimenta'!$B:$B,'00 PDC SP'!$F150,'00 Alimenta'!G:G) -> 0 | L150: =SUMIF('00 Alimenta'!$B:$B,'00 PDC SP'!$F150,'00 Alimenta'!H:H) -> 0 | M150: =SUMIF('00 Alimenta'!$B:$B,'00 PDC SP'!$F150,'00 Alimenta'!I:I) -> 0 | N150: 0
A151: ABA420CR | B151: AB | C151: ABA420 | D151: 25 | E151: CR | F151: 0102021109 | G151: Crediti v/Regione o Provincia Autonoma per acconto quota FSR | H151: =SUMIF('00 Alimenta'!$B:$B,'00 PDC SP'!$F151,'00 Alimenta'!D:D) -> 0 | I151: =SUMIF('00 Alimenta'!$B:$B,'00 PDC SP'!$F151,'00 Alimenta'!E:E) -> 546891755 | J151: =SUMIF('00 Alimenta'!$B:$B,'00 PDC SP'!$F151,'00 Alimenta'!F:F) -> 546891755 | K151: =SUMIF('00 Alimenta'!$B:$B,'00 PDC SP'!$F151,'00 Alimenta'!G:G) -> 0 | L151: =SUMIF('00 Alimenta'!$B:$B,'00 PDC SP'!$F151,'00 Alimenta'!H:H) -> 581529568.5 | M151: =SUMIF('00 Alimenta'!$B:$B,'00 PDC SP'!$F151,'00 Alimenta'!I:I) -> 581529568.5 | N151: 0
A152: ABA420FE | B152: AB | C152: ABA420 | D152: 25 | E152: FE | F152: 0102021110 | G152: Fatture da emettere v/Regione per creditiv/Regione o Provincia Autonoma per acconto FSR | H152: =SUMIF('00 Alimenta'!$B:$B,'00 PDC SP'!$F152,'00 Alimenta'!D:D) -> 0 | I152: =SUMIF('00 Alimenta'!$B:$B,'00 PDC SP'!$F152,'00 Alimenta'!E:E) -> 0 | J152: =SUMIF('00 Alimenta'!$B:$B,'00 PDC SP'!$F152,'00 Alimenta'!F:F) -> 0 | K152: =SUMIF('00 Alimenta'!$B:$B,'00 PDC SP'!$F152,'00 Alimenta'!G:G) -> 0 | L152: =SUMIF('00 Alimenta'!$B:$B,'00 PDC SP'!$F152,'00 Alimenta'!H:H) -> 0 | M152: =SUMIF('00 Alimenta'!$B:$B,'00 PDC SP'!$F152,'00 Alimenta'!I:I) -> 0 | N152: 0
A153: ABA430CR | B153: AB | C153: ABA430 | D153: 25 | E153: CR | F153: 0102021111 | G153: Crediti v/Regione o Provincia Autonoma per finanziamento sanitario aggiuntivo corrente LEA | H153: =SUMIF('00 Alimenta'!$B:$B,'00 PDC SP'!$F153,'00 Alimenta'!D:D) -> 11868474.89 | I153: =SUMIF('00 Alimenta'!$B:$B,'00 PDC SP'!$F153,'00 Alimenta'!E:E) -> 5146816.37 | J153: =SUMIF('00 Alimenta'!$B:$B,'00 PDC SP'!$F153,'00 Alimenta'!F:F) -> 6631200.24 | K153: =SUMIF('00 Alimenta'!$B:$B,'00 PDC SP'!$F153,'00 Alimenta'!G:G) -> 10384091.02 | L153: =SUMIF('00 Alimenta'!$B:$B,'00 PDC SP'!$F153,'00 Alimenta'!H:H) -> 2899011.66 | M153: =SUMIF('00 Alimenta'!$B:$B,'00 PDC SP'!$F153,'00 Alimenta'!I:I) -> 3904796.15 | N153: 9378306.53
A154: ABA440CR | B154: AB | C154: ABA440 | D154: 25 | E154: CR | F154: 0102021112 | G154: Crediti v/Regione o Provincia Autonoma per finanziamento sanitario aggiuntivo corrente extra LEA | H154: =SUMIF('00 Alimenta'!$B:$B,'00 PDC SP'!$F154,'00 Alimenta'!D:D) -> 0 | I154: =SUMIF('00 Alimenta'!$B:$B,'00 PDC SP'!$F154,'00 Alimenta'!E:E) -> 0 | J154: =SUMIF('00 Alimenta'!$B:$B,'00 PDC SP'!$F154,'00 Alimenta'!F:F) -> 0 | K154: =SUMIF('00 Alimenta'!$B:$B,'00 PDC SP'!$F154,'00 Alimenta'!G:G) -> 0 | L154: =SUMIF('00 Alimenta'!$B:$B,'00 PDC SP'!$F154,'00 Alimenta'!H:H) -> 0 | M154: =SUMIF('00 Alimenta'!$B:$B,'00 PDC SP'!$F154,'00 Alimenta'!I:I) -> 0 | N154: 0
A155: ABA450CR | B155: AB | C155: ABA450 | D155: 25 | E155: CR | F155: 0102021113 | G155: Crediti v/Regione o Provincia Autonoma per spesa corrente - altro | H155: =SUMIF('00 Alimenta'!$B:$B,'00 PDC SP'!$F155,'00 Alimenta'!D:D) -> 0 | I155: =SUMIF('00 Alimenta'!$B:$B,'00 PDC SP'!$F155,'00 Alimenta'!E:E) -> 0 | J155: =SUMIF('00 Alimenta'!$B:$B,'00 PDC SP'!$F155,'00 Alimenta'!F:F) -> 0 | K155: =SUMIF('00 Alimenta'!$B:$B,'00 PDC SP'!$F155,'00 Alimenta'!G:G) -> 0 | L155: =SUMIF('00 Alimenta'!$B:$B,'00 PDC SP'!$F155,'00 Alimenta'!H:H) -> 0 | M155: =SUMIF('00 Alimenta'!$B:$B,'00 PDC SP'!$F155,'00 Alimenta'!I:I) -> 0 | N155: 0
A156: ABA460CR | B156: AB | C156: ABA460 | D156: 25 | E156: CR | F156: 0102021114 | G156: Crediti v/Regione o Provincia Autonoma per ricerca | H156: =SUMIF('00 Alimenta'!$B:$B,'00 PDC SP'!$F156,'00 Alimenta'!D:D) -> 0 | I156: =SUMIF('00 Alimenta'!$B:$B,'00 PDC SP'!$F156,'00 Alimenta'!E:E) -> 0 | J156: =SUMIF('00 Alimenta'!$B:$B,'00 PDC SP'!$F156,'00 Alimenta'!F:F) -> 0 | K156: =SUMIF('00 Alimenta'!$B:$B,'00 PDC SP'!$F156,'00 Alimenta'!G:G) -> 0 | L156: =SUMIF('00 Alimenta'!$B:$B,'00 PDC SP'!$F156,'00 Alimenta'!H:H) -> 0 | M156: =SUMIF('00 Alimenta'!$B:$B,'00 PDC SP'!$F156,'00 Alimenta'!I:I) -> 0 | N156: 0
A157: ABA400CR | B157: AB | C157: ABA400 | D157: 25 | E157: CR | F157: 0102021115 | G157: Netting mobilità intraregionale ante 2007 | H157: =SUMIF('00 Alimenta'!$B:$B,'00 PDC SP'!$F157,'00 Alimenta'!D:D) -> 15592903.99 | I157: =SUMIF('00 Alimenta'!$B:$B,'00 PDC SP'!$F157,'00 Alimenta'!E:E) -> 0 | J157: =SUMIF('00 Alimenta'!$B:$B,'00 PDC SP'!$F157,'00 Alimenta'!F:F) -> 0 | K157: =SUMIF('00 Alimenta'!$B:$B,'00 PDC SP'!$F157,'00 Alimenta'!G:G) -> 15592903.99 | L157: =SUMIF('00 Alimenta'!$B:$B,'00 PDC SP'!$F157,'00 Alimenta'!H:H) -> 0 | M157: =SUMIF('00 Alimenta'!$B:$B,'00 PDC SP'!$F157,'00 Alimenta'!I:I) -> 0 | N157: 15592903.99
A158: ABA410CR | B158: AB | C158: ABA410 | D158: 25 | E158: CR | F158: 0102021116 | G158: Netting mobilità extraregionale ante 2007 | H158: =SUMIF('00 Alimenta'!$B:$B,'00 PDC SP'!$F158,'00 Alimenta'!D:D) -> 0 | I158: =SUMIF('00 Alimenta'!$B:$B,'00 PDC SP'!$F158,'00 Alimenta'!E:E) -> 0 | J158: =SUMIF('00 Alimenta'!$B:$B,'00 PDC SP'!$F158,'00 Alimenta'!F:F) -> 0 | K158: =SUMIF('00 Alimenta'!$B:$B,'00 PDC SP'!$F158,'00 Alimenta'!G:G) -> 0 | L158: =SUMIF('00 Alimenta'!$B:$B,'00 PDC SP'!$F158,'00 Alimenta'!H:H) -> 0 | M158: =SUMIF('00 Alimenta'!$B:$B,'00 PDC SP'!$F158,'00 Alimenta'!I:I) -> 0 | N158: 0
A159: =IF(E159="",C159,C159&E159) -> ABA420CR | B159: =LEFT(C159,2) -> AB | C159: ABA420 | D159: 25 | E159: CR | F159: 0102021117 | G159: Crediti v/Regione o Provincia Autonoma per acconto quota FSR per DPC | K159: =SUMIF('00 Alimenta'!$B:$B,'00 PDC SP'!$F159,'00 Alimenta'!G:G) -> 0 | L159: =SUMIF('00 Alimenta'!$B:$B,'00 PDC SP'!$F159,'00 Alimenta'!H:H) -> 21620901.28 | M159: =SUMIF('00 Alimenta'!$B:$B,'00 PDC SP'!$F159,'00 Alimenta'!I:I) -> 21620901.28 | N159: =K159+L159-M159 -> 0
A160: ABA480CR | B160: AB | C160: ABA480 | D160: 49 | E160: CR | F160: 0102021201 | G160: Crediti v/Regione o Provincia Autonoma per finanziamenti per investimenti | H160: =SUMIF('00 Alimenta'!$B:$B,'00 PDC SP'!$F160,'00 Alimenta'!D:D) -> 38255 | I160: =SUMIF('00 Alimenta'!$B:$B,'00 PDC SP'!$F160,'00 Alimenta'!E:E) -> 0 | J160: =SUMIF('00 Alimenta'!$B:$B,'00 PDC SP'!$F160,'00 Alimenta'!F:F) -> 0 | K160: =SUMIF('00 Alimenta'!$B:$B,'00 PDC SP'!$F160,'00 Alimenta'!G:G) -> 38255 | L160: =SUMIF('00 Alimenta'!$B:$B,'00 PDC SP'!$F160,'00 Alimenta'!H:H) -> 0 | M160: =SUMIF('00 Alimenta'!$B:$B,'00 PDC SP'!$F160,'00 Alimenta'!I:I) -> 0 | N160: 38255
A161: ABA490CR | B161: AB | C161: ABA490 | D161: 50 | E161: CR | F161: 0102021202 | G161: Crediti v/Regione o Provincia Autonoma per incremento fondo dotazione | H161: =SUMIF('00 Alimenta'!$B:$B,'00 PDC SP'!$F161,'00 Alimenta'!D:D) -> 0 | I161: =SUMIF('00 Alimenta'!$B:$B,'00 PDC SP'!$F161,'00 Alimenta'!E:E) -> 0 | J161: =SUMIF('00 Alimenta'!$B:$B,'00 PDC SP'!$F161,'00 Alimenta'!F:F) -> 0 | K161: =SUMIF('00 Alimenta'!$B:$B,'00 PDC SP'!$F161,'00 Alimenta'!G:G) -> 0 | L161: =SUMIF('00 Alimenta'!$B:$B,'00 PDC SP'!$F161,'00 Alimenta'!H:H) -> 0 | M161: =SUMIF('00 Alimenta'!$B:$B,'00 PDC SP'!$F161,'00 Alimenta'!I:I) -> 0 | N161: 0
A162: ABA500CR | B162: AB | C162: ABA500 | D162: 51 | E162: CR | F162: 0102021203 | G162: Crediti v/Regione o Provincia Autonoma per ripiano perdite | H162: =SUMIF('00 Alimenta'!$B:$B,'00 PDC SP'!$F162,'00 Alimenta'!D:D) -> 21602059.57 | I162: =SUMIF('00 Alimenta'!$B:$B,'00 PDC SP'!$F162,'00 Alimenta'!E:E) -> 14264710 | J162: =SUMIF('00 Alimenta'!$B:$B,'00 PDC SP'!$F162,'00 Alimenta'!F:F) -> 21602059.57 | K162: =SUMIF('00 Alimenta'!$B:$B,'00 PDC SP'!$F162,'00 Alimenta'!G:G) -> 14264710 | L162: =SUMIF('00 Alimenta'!$B:$B,'00 PDC SP'!$F162,'00 Alimenta'!H:H) -> 13609624 | M162: =SUMIF('00 Alimenta'!$B:$B,'00 PDC SP'!$F162,'00 Alimenta'!I:I) -> 0 | N162: 27874334
A163: ABA510CR | B163: AB | C163: ABA510 | D163: 52 | E163: CR | F163: 0102021204 | G163: Crediti v/Regione per copertura debiti al 31/12/2005 | H163: =SUMIF('00 Alimenta'!$B:$B,'00 PDC SP'!$F163,'00 Alimenta'!D:D) -> 0 | I163: =SUMIF('00 Alimenta'!$B:$B,'00 PDC SP'!$F163,'00 Alimenta'!E:E) -> 0 | J163: =SUMIF('00 Alimenta'!$B:$B,'00 PDC SP'!$F163,'00 Alimenta'!F:F) -> 0 | K163: =SUMIF('00 Alimenta'!$B:$B,'00 PDC SP'!$F163,'00 Alimenta'!G:G) -> 0 | L163: =SUMIF('00 Alimenta'!$B:$B,'00 PDC SP'!$F163,'00 Alimenta'!H:H) -> 0 | M163: =SUMIF('00 Alimenta'!$B:$B,'00 PDC SP'!$F163,'00 Alimenta'!I:I) -> 0 | N163: 0
A164: ABA520CR | B164: AB | C164: ABA520 | D164: 49 | E164: CR | F164: 0102021205 | G164: Crediti v/Regione o Provincia Autonoma per ricostituzione risorse da investimenti esercizi precedenti | H164: =SUMIF('00 Alimenta'!$B:$B,'00 PDC SP'!$F164,'00 Alimenta'!D:D) -> 0 | I164: =SUMIF('00 Alimenta'!$B:$B,'00 PDC SP'!$F164,'00 Alimenta'!E:E) -> 0 | J164: =SUMIF('00 Alimenta'!$B:$B,'00 PDC SP'!$F164,'00 Alimenta'!F:F) -> 0 | K164: =SUMIF('00 Alimenta'!$B:$B,'00 PDC SP'!$F164,'00 Alimenta'!G:G) -> 0 | L164: =SUMIF('00 Alimenta'!$B:$B,'00 PDC SP'!$F164,'00 Alimenta'!H:H) -> 0 | M164: =SUMIF('00 Alimenta'!$B:$B,'00 PDC SP'!$F164,'00 Alimenta'!I:I) -> 0 | N164: 0
A165: ABA530CR | B165: AB | C165: ABA530 | D165: 26 | E165: CR | F165: 0102021301 | G165: Crediti v/Comuni | H165: =SUMIF('00 Alimenta'!$B:$B,'00 PDC SP'!$F165,'00 Alimenta'!D:D) -> 82801.82 | I165: =SUMIF('00 Alimenta'!$B:$B,'00 PDC SP'!$F165,'00 Alimenta'!E:E) -> 115218.01 | J165: =SUMIF('00 Alimenta'!$B:$B,'00 PDC SP'!$F165,'00 Alimenta'!F:F) -> 34661.25 | K165: =SUMIF('00 Alimenta'!$B:$B,'00 PDC SP'!$F165,'00 Alimenta'!G:G) -> 163358.58 | L165: =SUMIF('00 Alimenta'!$B:$B,'00 PDC SP'!$F165,'00 Alimenta'!H:H) -> 111857.28 | M165: =SUMIF('00 Alimenta'!$B:$B,'00 PDC SP'!$F165,'00 Alimenta'!I:I) -> 91803.89 | N165: 183411.97
A166: ABA530FE | B166: AB | C166: ABA530 | D166: 26 | E166: FE | F166: 0102021302 | G166: Fatture da emettere v/Comuni | H166: =SUMIF('00 Alimenta'!$B:$B,'00 PDC SP'!$F166,'00 Alimenta'!D:D) -> 5505.16 | I166: =SUMIF('00 Alimenta'!$B:$B,'00 PDC SP'!$F166,'00 Alimenta'!E:E) -> 58770.9 | J166: =SUMIF('00 Alimenta'!$B:$B,'00 PDC SP'!$F166,'00 Alimenta'!F:F) -> 5505.16 | K166: =SUMIF('00 Alimenta'!$B:$B,'00 PDC SP'!$F166,'00 Alimenta'!G:G) -> 58770.9 | L166: =SUMIF('00 Alimenta'!$B:$B,'00 PDC SP'!$F166,'00 Alimenta'!H:H) -> 53342.51 | M166: =SUMIF('00 Alimenta'!$B:$B,'00 PDC SP'!$F166,'00 Alimenta'!I:I) -> 58770.9 | N166: 53342.51
A167: ABA560CR | B167: AB | C167: ABA560 | D167: 27 | E167: CR | F167: 0102021401 | G167: Crediti v/ASL della Regione | H167: =SUMIF('00 Alimenta'!$B:$B,'00 PDC SP'!$F167,'00 Alimenta'!D:D) -> 0 | I167: =SUMIF('00 Alimenta'!$B:$B,'00 PDC SP'!$F167,'00 Alimenta'!E:E) -> 0 | J167: =SUMIF('00 Alimenta'!$B:$B,'00 PDC SP'!$F167,'00 Alimenta'!F:F) -> 0 | K167: =SUMIF('00 Alimenta'!$B:$B,'00 PDC SP'!$F167,'00 Alimenta'!G:G) -> 0 | L167: =SUMIF('00 Alimenta'!$B:$B,'00 PDC SP'!$F167,'00 Alimenta'!H:H) -> 0 | M167: =SUMIF('00 Alimenta'!$B:$B,'00 PDC SP'!$F167,'00 Alimenta'!I:I) -> 0 | N167: 0
A168: ABA560CR | B168: AB | C168: ABA560 | D168: 27 | E168: CR | F168: 0102021402 | G168: Crediti v/ASL Avezzano Sulmona L'Aquila per mobilità in compensazione | H168: =SUMIF('00 Alimenta'!$B:$B,'00 PDC SP'!$F168,'00 Alimenta'!D:D) -> 0 | I168: =SUMIF('00 Alimenta'!$B:$B,'00 PDC SP'!$F168,'00 Alimenta'!E:E) -> 0 | J168: =SUMIF('00 Alimenta'!$B:$B,'00 PDC SP'!$F168,'00 Alimenta'!F:F) -> 0 | K168: =SUMIF('00 Alimenta'!$B:$B,'00 PDC SP'!$F168,'00 Alimenta'!G:G) -> 0 | L168: =SUMIF('00 Alimenta'!$B:$B,'00 PDC SP'!$F168,'00 Alimenta'!H:H) -> 0 | M168: =SUMIF('00 Alimenta'!$B:$B,'00 PDC SP'!$F168,'00 Alimenta'!I:I) -> 0 | N168: 0
A169: ABA560FE | B169: AB | C169: ABA560 | D169: 27 | E169: FE | F169: 0102021403 | G169: Fatture da emettere v/ASL Avezzano Sulmona L'Aquila per mobilità in compensazione | H169: =SUMIF('00 Alimenta'!$B:$B,'00 PDC SP'!$F169,'00 Alimenta'!D:D) -> 0 | I169: =SUMIF('00 Alimenta'!$B:$B,'00 PDC SP'!$F169,'00 Alimenta'!E:E) -> 0 | J169: =SUMIF('00 Alimenta'!$B:$B,'00 PDC SP'!$F169,'00 Alimenta'!F:F) -> 0 | K169: =SUMIF('00 Alimenta'!$B:$B,'00 PDC SP'!$F169,'00 Alimenta'!G:G) -> 0 | L169: =SUMIF('00 Alimenta'!$B:$B,'00 PDC SP'!$F169,'00 Alimenta'!H:H) -> 0 | M169: =SUMIF('00 Alimenta'!$B:$B,'00 PDC SP'!$F169,'00 Alimenta'!I:I) -> 0 | N169: 0
A170: ABA560CR | B170: AB | C170: ABA560 | D170: 27 | E170: CR | F170: 0102021404 | G170: Crediti v/ASL Lanciano Vasto Chieti per mobilità in compensazione | H170: =SUMIF('00 Alimenta'!$B:$B,'00 PDC SP'!$F170,'00 Alimenta'!D:D) -> 0 | I170: =SUMIF('00 Alimenta'!$B:$B,'00 PDC SP'!$F170,'00 Alimenta'!E:E) -> 0 | J170: =SUMIF('00 Alimenta'!$B:$B,'00 PDC SP'!$F170,'00 Alimenta'!F:F) -> 0 | K170: =SUMIF('00 Alimenta'!$B:$B,'00 PDC SP'!$F170,'00 Alimenta'!G:G) -> 0 | L170: =SUMIF('00 Alimenta'!$B:$B,'00 PDC SP'!$F170,'00 Alimenta'!H:H) -> 0 | M170: =SUMIF('00 Alimenta'!$B:$B,'00 PDC SP'!$F170,'00 Alimenta'!I:I) -> 0 | N170: 0
A171: ABA560FE | B171: AB | C171: ABA560 | D171: 27 | E171: FE | F171: 0102021405 | G171: Fatture da emettere v/ASL Lanciano Vasto Chieti per mobilità in compensazione | H171: =SUMIF('00 Alimenta'!$B:$B,'00 PDC SP'!$F171,'00 Alimenta'!D:D) -> 0 | I171: =SUMIF('00 Alimenta'!$B:$B,'00 PDC SP'!$F171,'00 Alimenta'!E:E) -> 0 | J171: =SUMIF('00 Alimenta'!$B:$B,'00 PDC SP'!$F171,'00 Alimenta'!F:F) -> 0 | K171: =SUMIF('00 Alimenta'!$B:$B,'00 PDC SP'!$F171,'00 Alimenta'!G:G) -> 0 | L171: =SUMIF('00 Alimenta'!$B:$B,'00 PDC SP'!$F171,'00 Alimenta'!H:H) -> 0 | M171: =SUMIF('00 Alimenta'!$B:$B,'00 PDC SP'!$F171,'00 Alimenta'!I:I) -> 0 | N171: 0
A172: ABA560CR | B172: AB | C172: ABA560 | D172: 27 | E172: CR | F172: 0102021406 | G172: Crediti v/ASL Pescara per mobilità in compensazione | H172: =SUMIF('00 Alimenta'!$B:$B,'00 PDC SP'!$F172,'00 Alimenta'!D:D) -> 0 | I172: =SUMIF('00 Alimenta'!$B:$B,'00 PDC SP'!$F172,'00 Alimenta'!E:E) -> 0 | J172: =SUMIF('00 Alimenta'!$B:$B,'00 PDC SP'!$F172,'00 Alimenta'!F:F) -> 0 | K172: =SUMIF('00 Alimenta'!$B:$B,'00 PDC SP'!$F172,'00 Alimenta'!G:G) -> 0 | L172: =SUMIF('00 Alimenta'!$B:$B,'00 PDC SP'!$F172,'00 Alimenta'!H:H) -> 0 | M172: =SUMIF('00 Alimenta'!$B:$B,'00 PDC SP'!$F172,'00 Alimenta'!I:I) -> 0 | N172: 0
A173: ABA560FE | B173: AB | C173: ABA560 | D173: 27 | E173: FE | F173: 0102021407 | G173: Fatture da emettere v/ASL Pescara per mobilità in compensazione | H173: =SUMIF('00 Alimenta'!$B:$B,'00 PDC SP'!$F173,'00 Alimenta'!D:D) -> 0 | I173: =SUMIF('00 Alimenta'!$B:$B,'00 PDC SP'!$F173,'00 Alimenta'!E:E) -> 0 | J173: =SUMIF('00 Alimenta'!$B:$B,'00 PDC SP'!$F173,'00 Alimenta'!F:F) -> 0 | K173: =SUMIF('00 Alimenta'!$B:$B,'00 PDC SP'!$F173,'00 Alimenta'!G:G) -> 0 | L173: =SUMIF('00 Alimenta'!$B:$B,'00 PDC SP'!$F173,'00 Alimenta'!H:H) -> 0 | M173: =SUMIF('00 Alimenta'!$B:$B,'00 PDC SP'!$F173,'00 Alimenta'!I:I) -> 0 | N173: 0
A174: ABA560CR | B174: AB | C174: ABA560 | D174: 27 | E174: CR | F174: 0102021408 | G174: Crediti v/ASL Teramo per mobilità in compensazione | H174: =SUMIF('00 Alimenta'!$B:$B,'00 PDC SP'!$F174,'00 Alimenta'!D:D) -> 0 | I174: =SUMIF('00 Alimenta'!$B:$B,'00 PDC SP'!$F174,'00 Alimenta'!E:E) -> 0 | J174: =SUMIF('00 Alimenta'!$B:$B,'00 PDC SP'!$F174,'00 Alimenta'!F:F) -> 0 | K174: =SUMIF('00 Alimenta'!$B:$B,'00 PDC SP'!$F174,'00 Alimenta'!G:G) -> 0 | L174: =SUMIF('00 Alimenta'!$B:$B,'00 PDC SP'!$F174,'00 Alimenta'!H:H) -> 0 | M174: =SUMIF('00 Alimenta'!$B:$B,'00 PDC SP'!$F174,'00 Alimenta'!I:I) -> 0 | N174: 0
A175: ABA560FE | B175: AB | C175: ABA560 | D175: 27 | E175: FE | F175: 0102021409 | G175: Fatture da emettere v/ASL Teramo per mobilità in compensazione | H175: =SUMIF('00 Alimenta'!$B:$B,'00 PDC SP'!$F175,'00 Alimenta'!D:D) -> 0 | I175: =SUMIF('00 Alimenta'!$B:$B,'00 PDC SP'!$F175,'00 Alimenta'!E:E) -> 0 | J175: =SUMIF('00 Alimenta'!$B:$B,'00 PDC SP'!$F175,'00 Alimenta'!F:F) -> 0 | K175: =SUMIF('00 Alimenta'!$B:$B,'00 PDC SP'!$F175,'00 Alimenta'!G:G) -> 0 | L175: =SUMIF('00 Alimenta'!$B:$B,'00 PDC SP'!$F175,'00 Alimenta'!H:H) -> 0 | M175: =SUMIF('00 Alimenta'!$B:$B,'00 PDC SP'!$F175,'00 Alimenta'!I:I) -> 0 | N175: 0
A176: ABA570CR | B176: AB | C176: ABA570 | D176: 27 | E176: CR | F176: 0102021410 | G176: Crediti v/asl Avezzano Sulmona L'Aquila per mobilità non in compensazione | H176: =SUMIF('00 Alimenta'!$B:$B,'00 PDC SP'!$F176,'00 Alimenta'!D:D) -> 0 | I176: =SUMIF('00 Alimenta'!$B:$B,'00 PDC SP'!$F176,'00 Alimenta'!E:E) -> 0 | J176: =SUMIF('00 Alimenta'!$B:$B,'00 PDC SP'!$F176,'00 Alimenta'!F:F) -> 0 | K176: =SUMIF('00 Alimenta'!$B:$B,'00 PDC SP'!$F176,'00 Alimenta'!G:G) -> 0 | L176: =SUMIF('00 Alimenta'!$B:$B,'00 PDC SP'!$F176,'00 Alimenta'!H:H) -> 0 | M176: =SUMIF('00 Alimenta'!$B:$B,'00 PDC SP'!$F176,'00 Alimenta'!I:I) -> 0 | N176: 0
A177: ABA570FE | B177: AB | C177: ABA570 | D177: 27 | E177: FE | F177: 0102021411 | G177: Fatture da emettere v/ASL Avezzano Sulmona L'Aquila per mobilità non in compensazione | H177: =SUMIF('00 Alimenta'!$B:$B,'00 PDC SP'!$F177,'00 Alimenta'!D:D) -> 0 | I177: =SUMIF('00 Alimenta'!$B:$B,'00 PDC SP'!$F177,'00 Alimenta'!E:E) -> 0 | J177: =SUMIF('00 Alimenta'!$B:$B,'00 PDC SP'!$F177,'00 Alimenta'!F:F) -> 0 | K177: =SUMIF('00 Alimenta'!$B:$B,'00 PDC SP'!$F177,'00 Alimenta'!G:G) -> 0 | L177: =SUMIF('00 Alimenta'!$B:$B,'00 PDC SP'!$F177,'00 Alimenta'!H:H) -> 0 | M177: =SUMIF('00 Alimenta'!$B:$B,'00 PDC SP'!$F177,'00 Alimenta'!I:I) -> 0 | N177: 0
A178: ABA570CR | B178: AB | C178: ABA570 | D178: 27 | E178: CR | F178: 0102021412 | G178: Crediti v/ASL Lanciano Vasto Chieti per mobilità non in compensazione | H178: =SUMIF('00 Alimenta'!$B:$B,'00 PDC SP'!$F178,'00 Alimenta'!D:D) -> 0 | I178: =SUMIF('00 Alimenta'!$B:$B,'00 PDC SP'!$F178,'00 Alimenta'!E:E) -> 0 | J178: =SUMIF('00 Alimenta'!$B:$B,'00 PDC SP'!$F178,'00 Alimenta'!F:F) -> 0 | K178: =SUMIF('00 Alimenta'!$B:$B,'00 PDC SP'!$F178,'00 Alimenta'!G:G) -> 0 | L178: =SUMIF('00 Alimenta'!$B:$B,'00 PDC SP'!$F178,'00 Alimenta'!H:H) -> 0 | M178: =SUMIF('00 Alimenta'!$B:$B,'00 PDC SP'!$F178,'00 Alimenta'!I:I) -> 0 | N178: 0
A179: ABA570FE | B179: AB | C179: ABA570 | D179: 27 | E179: FE | F179: 0102021413 | G179: Fatture da emettere v/ASL Lanciano Vasto Chieti per mobilità non in compensazione | H179: =SUMIF('00 Alimenta'!$B:$B,'00 PDC SP'!$F179,'00 Alimenta'!D:D) -> 0 | I179: =SUMIF('00 Alimenta'!$B:$B,'00 PDC SP'!$F179,'00 Alimenta'!E:E) -> 0 | J179: =SUMIF('00 Alimenta'!$B:$B,'00 PDC SP'!$F179,'00 Alimenta'!F:F) -> 0 | K179: =SUMIF('00 Alimenta'!$B:$B,'00 PDC SP'!$F179,'00 Alimenta'!G:G) -> 0 | L179: =SUMIF('00 Alimenta'!$B:$B,'00 PDC SP'!$F179,'00 Alimenta'!H:H) -> 0 | M179: =SUMIF('00 Alimenta'!$B:$B,'00 PDC SP'!$F179,'00 Alimenta'!I:I) -> 0 | N179: 0
A180: ABA570CR | B180: AB | C180: ABA570 | D180: 27 | E180: CR | F180: 0102021414 | G180: Crediti v/ASL Pescara per mobilità non in compensazione | H180: =SUMIF('00 Alimenta'!$B:$B,'00 PDC SP'!$F180,'00 Alimenta'!D:D) -> 0 | I180: =SUMIF('00 Alimenta'!$B:$B,'00 PDC SP'!$F180,'00 Alimenta'!E:E) -> 0 | J180: =SUMIF('00 Alimenta'!$B:$B,'00 PDC SP'!$F180,'00 Alimenta'!F:F) -> 0 | K180: =SUMIF('00 Alimenta'!$B:$B,'00 PDC SP'!$F180,'00 Alimenta'!G:G) -> 0 | L180: =SUMIF('00 Alimenta'!$B:$B,'00 PDC SP'!$F180,'00 Alimenta'!H:H) -> 0 | M180: =SUMIF('00 Alimenta'!$B:$B,'00 PDC SP'!$F180,'00 Alimenta'!I:I) -> 0 | N180: 0
A181: ABA570FE | B181: AB | C181: ABA570 | D181: 27 | E181: FE | F181: 0102021415 | G181: Fatture da emettere v/ASL Pescara per mobilità non in compensazione | H181: =SUMIF('00 Alimenta'!$B:$B,'00 PDC SP'!$F181,'00 Alimenta'!D:D) -> 0 | I181: =SUMIF('00 Alimenta'!$B:$B,'00 PDC SP'!$F181,'00 Alimenta'!E:E) -> 0 | J181: =SUMIF('00 Alimenta'!$B:$B,'00 PDC SP'!$F181,'00 Alimenta'!F:F) -> 0 | K181: =SUMIF('00 Alimenta'!$B:$B,'00 PDC SP'!$F181,'00 Alimenta'!G:G) -> 0 | L181: =SUMIF('00 Alimenta'!$B:$B,'00 PDC SP'!$F181,'00 Alimenta'!H:H) -> 0 | M181: =SUMIF('00 Alimenta'!$B:$B,'00 PDC SP'!$F181,'00 Alimenta'!I:I) -> 0 | N181: 0
A182: ABA570CR | B182: AB | C182: ABA570 | D182: 27 | E182: CR | F182: 0102021416 | G182: Crediti v/ASL Teramo per mobilità non in compensazione | H182: =SUMIF('00 Alimenta'!$B:$B,'00 PDC SP'!$F182,'00 Alimenta'!D:D) -> 0 | I182: =SUMIF('00 Alimenta'!$B:$B,'00 PDC SP'!$F182,'00 Alimenta'!E:E) -> 0 | J182: =SUMIF('00 Alimenta'!$B:$B,'00 PDC SP'!$F182,'00 Alimenta'!F:F) -> 0 | K182: =SUMIF('00 Alimenta'!$B:$B,'00 PDC SP'!$F182,'00 Alimenta'!G:G) -> 0 | L182: =SUMIF('00 Alimenta'!$B:$B,'00 PDC SP'!$F182,'00 Alimenta'!H:H) -> 0 | M182: =SUMIF('00 Alimenta'!$B:$B,'00 PDC SP'!$F182,'00 Alimenta'!I:I) -> 0 | N182: 0
A183: ABA570FE | B183: AB | C183: ABA570 | D183: 27 | E183: FE | F183: 0102021417 | G183: Fatture da emettere v/ASL Teramo per mobilità non in compensazione | H183: =SUMIF('00 Alimenta'!$B:$B,'00 PDC SP'!$F183,'00 Alimenta'!D:D) -> 0 | I183: =SUMIF('00 Alimenta'!$B:$B,'00 PDC SP'!$F183,'00 Alimenta'!E:E) -> 0 | J183: =SUMIF('00 Alimenta'!$B:$B,'00 PDC SP'!$F183,'00 Alimenta'!F:F) -> 0 | K183: =SUMIF('00 Alimenta'!$B:$B,'00 PDC SP'!$F183,'00 Alimenta'!G:G) -> 0 | L183: =SUMIF('00 Alimenta'!$B:$B,'00 PDC SP'!$F183,'00 Alimenta'!H:H) -> 0 | M183: =SUMIF('00 Alimenta'!$B:$B,'00 PDC SP'!$F183,'00 Alimenta'!I:I) -> 0 | N183: 0
A184: ABA580CR | B184: AB | C184: ABA580 | D184: 27 | E184: CR | F184: 0102021418 | G184: Crediti v/ASL Avezzano Sulmona L'Aquila per altre prestazioni | H184: =SUMIF('00 Alimenta'!$B:$B,'00 PDC SP'!$F184,'00 Alimenta'!D:D) -> 677413.43 | I184: =SUMIF('00 Alimenta'!$B:$B,'00 PDC SP'!$F184,'00 Alimenta'!E:E) -> 4655668.13 | J184: =SUMIF('00 Alimenta'!$B:$B,'00 PDC SP'!$F184,'00 Alimenta'!F:F) -> 4847041.6 | K184: =SUMIF('00 Alimenta'!$B:$B,'00 PDC SP'!$F184,'00 Alimenta'!G:G) -> 486039.96 | L184: =SUMIF('00 Alimenta'!$B:$B,'00 PDC SP'!$F184,'00 Alimenta'!H:H) -> 214056.28 | M184: =SUMIF('00 Alimenta'!$B:$B,'00 PDC SP'!$F184,'00 Alimenta'!I:I) -> 210042.87 | N184: 490053.37
A185: ABA580FE | B185: AB | C185: ABA580 | D185: 27 | E185: FE | F185: 0102021419 | G185: Fatture da emettere v/ASL Avezzano Sulmona L'Aquila per altre prestazioni | H185: =SUMIF('00 Alimenta'!$B:$B,'00 PDC SP'!$F185,'00 Alimenta'!D:D) -> 18535.41 | I185: =SUMIF('00 Alimenta'!$B:$B,'00 PDC SP'!$F185,'00 Alimenta'!E:E) -> 8143.77 | J185: =SUMIF('00 Alimenta'!$B:$B,'00 PDC SP'!$F185,'00 Alimenta'!F:F) -> 18535.41 | K185: =SUMIF('00 Alimenta'!$B:$B,'00 PDC SP'!$F185,'00 Alimenta'!G:G) -> 8143.77 | L185: =SUMIF('00 Alimenta'!$B:$B,'00 PDC SP'!$F185,'00 Alimenta'!H:H) -> 37721.2 | M185: =SUMIF('00 Alimenta'!$B:$B,'00 PDC SP'!$F185,'00 Alimenta'!I:I) -> 8143.77 | N185: 37721.2
A186: ABA580CR | B186: AB | C186: ABA580 | D186: 27 | E186: CR | F186: 0102021420 | G186: Crediti v/ASL Lanciano Vasto Chieti per altre prestazioni | H186: =SUMIF('00 Alimenta'!$B:$B,'00 PDC SP'!$F186,'00 Alimenta'!D:D) -> 281885.16 | I186: =SUMIF('00 Alimenta'!$B:$B,'00 PDC SP'!$F186,'00 Alimenta'!E:E) -> 127601.11 | J186: =SUMIF('00 Alimenta'!$B:$B,'00 PDC SP'!$F186,'00 Alimenta'!F:F) -> 175640.8 | K186: =SUMIF('00 Alimenta'!$B:$B,'00 PDC SP'!$F186,'00 Alimenta'!G:G) -> 233845.47 | L186: =SUMIF('00 Alimenta'!$B:$B,'00 PDC SP'!$F186,'00 Alimenta'!H:H) -> 110654.79 | M186: =SUMIF('00 Alimenta'!$B:$B,'00 PDC SP'!$F186,'00 Alimenta'!I:I) -> 99868.92 | N186: 244631.34
A187: ABA580FE | B187: AB | C187: ABA580 | D187: 27 | E187: FE | F187: 0102021421 | G187: Fatture da emettere v/ASL Lanciano Vasto Chieti per altre prestazioni | H187: =SUMIF('00 Alimenta'!$B:$B,'00 PDC SP'!$F187,'00 Alimenta'!D:D) -> 5700.13 | I187: =SUMIF('00 Alimenta'!$B:$B,'00 PDC SP'!$F187,'00 Alimenta'!E:E) -> 1282.71 | J187: =SUMIF('00 Alimenta'!$B:$B,'00 PDC SP'!$F187,'00 Alimenta'!F:F) -> 5700.13 | K187: =SUMIF('00 Alimenta'!$B:$B,'00 PDC SP'!$F187,'00 Alimenta'!G:G) -> 1282.71 | L187: =SUMIF('00 Alimenta'!$B:$B,'00 PDC SP'!$F187,'00 Alimenta'!H:H) -> 25919.58 | M187: =SUMIF('00 Alimenta'!$B:$B,'00 PDC SP'!$F187,'00 Alimenta'!I:I) -> 1282.71 | N187: 25919.58
A188: ABA580CR | B188: AB | C188: ABA580 | D188: 27 | E188: CR | F188: 0102021422 | G188: Crediti v/ASL Pescara per altre prestazioni | H188: =SUMIF('00 Alimenta'!$B:$B,'00 PDC SP'!$F188,'00 Alimenta'!D:D) -> 0 | I188: =SUMIF('00 Alimenta'!$B:$B,'00 PDC SP'!$F188,'00 Alimenta'!E:E) -> 0 | J188: =SUMIF('00 Alimenta'!$B:$B,'00 PDC SP'!$F188,'00 Alimenta'!F:F) -> 0 | K188: =SUMIF('00 Alimenta'!$B:$B,'00 PDC SP'!$F188,'00 Alimenta'!G:G) -> 0 | L188: =SUMIF('00 Alimenta'!$B:$B,'00 PDC SP'!$F188,'00 Alimenta'!H:H) -> 0 | M188: =SUMIF('00 Alimenta'!$B:$B,'00 PDC SP'!$F188,'00 Alimenta'!I:I) -> 0 | N188: 0
A189: ABA580FE | B189: AB | C189: ABA580 | D189: 27 | E189: FE | F189: 0102021423 | G189: Fatture da emettere v/ASL Pescara per altre prestazioni | H189: =SUMIF('00 Alimenta'!$B:$B,'00 PDC SP'!$F189,'00 Alimenta'!D:D) -> 0 | I189: =SUMIF('00 Alimenta'!$B:$B,'00 PDC SP'!$F189,'00 Alimenta'!E:E) -> 0 | J189: =SUMIF('00 Alimenta'!$B:$B,'00 PDC SP'!$F189,'00 Alimenta'!F:F) -> 0 | K189: =SUMIF('00 Alimenta'!$B:$B,'00 PDC SP'!$F189,'00 Alimenta'!G:G) -> 0 | L189: =SUMIF('00 Alimenta'!$B:$B,'00 PDC SP'!$F189,'00 Alimenta'!H:H) -> 0 | M189: =SUMIF('00 Alimenta'!$B:$B,'00 PDC SP'!$F189,'00 Alimenta'!I:I) -> 0 | N189: 0
A190: ABA580CR | B190: AB | C190: ABA580 | D190: 27 | E190: CR | F190: 0102021424 | G190: Crediti v/ASL Teramo per altre prestazioni | H190: =SUMIF('00 Alimenta'!$B:$B,'00 PDC SP'!$F190,'00 Alimenta'!D:D) -> 4005697.04 | I190: =SUMIF('00 Alimenta'!$B:$B,'00 PDC SP'!$F190,'00 Alimenta'!E:E) -> 62418.61 | J190: =SUMIF('00 Alimenta'!$B:$B,'00 PDC SP'!$F190,'00 Alimenta'!F:F) -> 212668.34 | K190: =SUMIF('00 Alimenta'!$B:$B,'00 PDC SP'!$F190,'00 Alimenta'!G:G) -> 3855447.31 | L190: =SUMIF('00 Alimenta'!$B:$B,'00 PDC SP'!$F190,'00 Alimenta'!H:H) -> 11975.84 | M190: =SUMIF('00 Alimenta'!$B:$B,'00 PDC SP'!$F190,'00 Alimenta'!I:I) -> 29003.38 | N190: 3838419.77
A191: ABA580FE | B191: AB | C191: ABA580 | D191: 27 | E191: FE | F191: 0102021425 | G191: Fatture da emettere v/ASL Teramo per altre prestazioni | H191: =SUMIF('00 Alimenta'!$B:$B,'00 PDC SP'!$F191,'00 Alimenta'!D:D) -> 563.75 | I191: =SUMIF('00 Alimenta'!$B:$B,'00 PDC SP'!$F191,'00 Alimenta'!E:E) -> 5559.81 | J191: =SUMIF('00 Alimenta'!$B:$B,'00 PDC SP'!$F191,'00 Alimenta'!F:F) -> 563.75 | K191: =SUMIF('00 Alimenta'!$B:$B,'00 PDC SP'!$F191,'00 Alimenta'!G:G) -> 5559.81 | L191: =SUMIF('00 Alimenta'!$B:$B,'00 PDC SP'!$F191,'00 Alimenta'!H:H) -> 4159.83 | M191: =SUMIF('00 Alimenta'!$B:$B,'00 PDC SP'!$F191,'00 Alimenta'!I:I) -> 5559.81 | N191: 4159.83
A192: ABA590CR | B192: AB | C192: ABA590 | D192: 27 | E192: CR | F192: 0102021501 | G192: Acconto quota FSR da distribuire | H192: =SUMIF('00 Alimenta'!$B:$B,'00 PDC SP'!$F192,'00 Alimenta'!D:D) -> 0 | I192: =SUMIF('00 Alimenta'!$B:$B,'00 PDC SP'!$F192,'00 Alimenta'!E:E) -> 0 | J192: =SUMIF('00 Alimenta'!$B:$B,'00 PDC SP'!$F192,'00 Alimenta'!F:F) -> 0 | K192: =SUMIF('00 Alimenta'!$B:$B,'00 PDC SP'!$F192,'00 Alimenta'!G:G) -> 0 | L192: =SUMIF('00 Alimenta'!$B:$B,'00 PDC SP'!$F192,'00 Alimenta'!H:H) -> 0 | M192: =SUMIF('00 Alimenta'!$B:$B,'00 PDC SP'!$F192,'00 Alimenta'!I:I) -> 0 | N192: 0
A193: ABA600CR | B193: AB | C193: ABA600 | D193: 27 | E193: CR | F193: 0102021601 | G193: Crediti v/Aziende sanitarie pubbliche Extraregione | H193: =SUMIF('00 Alimenta'!$B:$B,'00 PDC SP'!$F193,'00 Alimenta'!D:D) -> 153298.79 | I193: =SUMIF('00 Alimenta'!$B:$B,'00 PDC SP'!$F193,'00 Alimenta'!E:E) -> 161597.98 | J193: =SUMIF('00 Alimenta'!$B:$B,'00 PDC SP'!$F193,'00 Alimenta'!F:F) -> 186310.75 | K193: =SUMIF('00 Alimenta'!$B:$B,'00 PDC SP'!$F193,'00 Alimenta'!G:G) -> 128586.02 | L193: =SUMIF('00 Alimenta'!$B:$B,'00 PDC SP'!$F193,'00 Alimenta'!H:H) -> 238832 | M193: =SUMIF('00 Alimenta'!$B:$B,'00 PDC SP'!$F193,'00 Alimenta'!I:I) -> 210160.77 | N193: 157257.25
A194: ABA600FE | B194: AB | C194: ABA600 | D194: 27 | E194: FE | F194: 0102021602 | G194: Fatture da emettere v/Aziende Sanitarie Pubbliche Extraregione | H194: =SUMIF('00 Alimenta'!$B:$B,'00 PDC SP'!$F194,'00 Alimenta'!D:D) -> 47833.03 | I194: =SUMIF('00 Alimenta'!$B:$B,'00 PDC SP'!$F194,'00 Alimenta'!E:E) -> 85649.52 | J194: =SUMIF('00 Alimenta'!$B:$B,'00 PDC SP'!$F194,'00 Alimenta'!F:F) -> 47833.03 | K194: =SUMIF('00 Alimenta'!$B:$B,'00 PDC SP'!$F194,'00 Alimenta'!G:G) -> 85649.52 | L194: =SUMIF('00 Alimenta'!$B:$B,'00 PDC SP'!$F194,'00 Alimenta'!H:H) -> 44097.25 | M194: =SUMIF('00 Alimenta'!$B:$B,'00 PDC SP'!$F194,'00 Alimenta'!I:I) -> 85649.52 | N194: 44097.25
A195: ABA620CR | B195: AB | C195: ABA620 | D195: 28 | E195: CR | F195: 0102021701 | G195: Crediti v/ARTA | H195: =SUMIF('00 Alimenta'!$B:$B,'00 PDC SP'!$F195,'00 Alimenta'!D:D) -> 5931.31 | I195: =SUMIF('00 Alimenta'!$B:$B,'00 PDC SP'!$F195,'00 Alimenta'!E:E) -> 0 | J195: =SUMIF('00 Alimenta'!$B:$B,'00 PDC SP'!$F195,'00 Alimenta'!F:F) -> 0 | K195: =SUMIF('00 Alimenta'!$B:$B,'00 PDC SP'!$F195,'00 Alimenta'!G:G) -> 5931.31 | L195: =SUMIF('00 Alimenta'!$B:$B,'00 PDC SP'!$F195,'00 Alimenta'!H:H) -> 0 | M195: =SUMIF('00 Alimenta'!$B:$B,'00 PDC SP'!$F195,'00 Alimenta'!I:I) -> 0 | N195: 5931.31
A196: ABA620FE | B196: AB | C196: ABA620 | D196: 28 | E196: FE | F196: 0102021702 | G196: Fatture da emettere v/ARTA | H196: =SUMIF('00 Alimenta'!$B:$B,'00 PDC SP'!$F196,'00 Alimenta'!D:D) -> 0 | I196: =SUMIF('00 Alimenta'!$B:$B,'00 PDC SP'!$F196,'00 Alimenta'!E:E) -> 0 | J196: =SUMIF('00 Alimenta'!$B:$B,'00 PDC SP'!$F196,'00 Alimenta'!F:F) -> 0 | K196: =SUMIF('00 Alimenta'!$B:$B,'00 PDC SP'!$F196,'00 Alimenta'!G:G) -> 0 | L196: =SUMIF('00 Alimenta'!$B:$B,'00 PDC SP'!$F196,'00 Alimenta'!H:H) -> 0 | M196: =SUMIF('00 Alimenta'!$B:$B,'00 PDC SP'!$F196,'00 Alimenta'!I:I) -> 0 | N196: 0
A197: ABA620CR | B197: AB | C197: ABA620 | D197: 28 | E197: CR | F197: 0102021703 | G197: Crediti v/Società controllate e collegate (enti regionali) | H197: =SUMIF('00 Alimenta'!$B:$B,'00 PDC SP'!$F197,'00 Alimenta'!D:D) -> 0 | I197: =SUMIF('00 Alimenta'!$B:$B,'00 PDC SP'!$F197,'00 Alimenta'!E:E) -> 0 | J197: =SUMIF('00 Alimenta'!$B:$B,'00 PDC SP'!$F197,'00 Alimenta'!F:F) -> 0 | K197: =SUMIF('00 Alimenta'!$B:$B,'00 PDC SP'!$F197,'00 Alimenta'!G:G) -> 0 | L197: =SUMIF('00 Alimenta'!$B:$B,'00 PDC SP'!$F197,'00 Alimenta'!H:H) -> 0 | M197: =SUMIF('00 Alimenta'!$B:$B,'00 PDC SP'!$F197,'00 Alimenta'!I:I) -> 0 | N197: 0
A198: ABA620FE | B198: AB | C198: ABA620 | D198: 28 | E198: FE | F198: 0102021704 | G198: Fatture da emetterev/Società controllate e collegate | H198: =SUMIF('00 Alimenta'!$B:$B,'00 PDC SP'!$F198,'00 Alimenta'!D:D) -> 0 | I198: =SUMIF('00 Alimenta'!$B:$B,'00 PDC SP'!$F198,'00 Alimenta'!E:E) -> 0 | J198: =SUMIF('00 Alimenta'!$B:$B,'00 PDC SP'!$F198,'00 Alimenta'!F:F) -> 0 | K198: =SUMIF('00 Alimenta'!$B:$B,'00 PDC SP'!$F198,'00 Alimenta'!G:G) -> 0 | L198: =SUMIF('00 Alimenta'!$B:$B,'00 PDC SP'!$F198,'00 Alimenta'!H:H) -> 0 | M198: =SUMIF('00 Alimenta'!$B:$B,'00 PDC SP'!$F198,'00 Alimenta'!I:I) -> 0 | N198: 0
A199: ABA620CR | B199: AB | C199: ABA620 | D199: 28 | E199: CR | F199: 0102021705 | G199: Crediti v/enti regionali | H199: =SUMIF('00 Alimenta'!$B:$B,'00 PDC SP'!$F199,'00 Alimenta'!D:D) -> 0 | I199: =SUMIF('00 Alimenta'!$B:$B,'00 PDC SP'!$F199,'00 Alimenta'!E:E) -> 0 | J199: =SUMIF('00 Alimenta'!$B:$B,'00 PDC SP'!$F199,'00 Alimenta'!F:F) -> 0 | K199: =SUMIF('00 Alimenta'!$B:$B,'00 PDC SP'!$F199,'00 Alimenta'!G:G) -> 0 | L199: =SUMIF('00 Alimenta'!$B:$B,'00 PDC SP'!$F199,'00 Alimenta'!H:H) -> 0 | M199: =SUMIF('00 Alimenta'!$B:$B,'00 PDC SP'!$F199,'00 Alimenta'!I:I) -> 0 | N199: 0
A200: =IF(E200="",C200,C200&E200) -> ABA620FE | B200: =LEFT(C200,2) -> AB | C200: ABA620 | D200: 28 | E200: FE | F200: 0102021706 | G200: Fatture da emettere v/enti regionali | H200: =SUMIF('00 Alimenta'!$B:$B,'00 PDC SP'!$F200,'00 Alimenta'!D:D) -> 0 | I200: =SUMIF('00 Alimenta'!$B:$B,'00 PDC SP'!$F200,'00 Alimenta'!E:E) -> 0 | J200: =SUMIF('00 Alimenta'!$B:$B,'00 PDC SP'!$F200,'00 Alimenta'!F:F) -> 0 | K200: =SUMIF('00 Alimenta'!$B:$B,'00 PDC SP'!$F200,'00 Alimenta'!G:G) -> 0 | L200: =SUMIF('00 Alimenta'!$B:$B,'00 PDC SP'!$F200,'00 Alimenta'!H:H) -> 0 | M200: =SUMIF('00 Alimenta'!$B:$B,'00 PDC SP'!$F200,'00 Alimenta'!I:I) -> 0 | N200: =K200+L200-M200 -> 0
A201: ABA630CR | B201: AB | C201: ABA630 | D201: 28 | E201: CR | F201: 0102021801 | G201: Crediti v/sperimentazioni gestionali | H201: =SUMIF('00 Alimenta'!$B:$B,'00 PDC SP'!$F201,'00 Alimenta'!D:D) -> 0 | I201: =SUMIF('00 Alimenta'!$B:$B,'00 PDC SP'!$F201,'00 Alimenta'!E:E) -> 0 | J201: =SUMIF('00 Alimenta'!$B:$B,'00 PDC SP'!$F201,'00 Alimenta'!F:F) -> 0 | K201: =SUMIF('00 Alimenta'!$B:$B,'00 PDC SP'!$F201,'00 Alimenta'!G:G) -> 0 | L201: =SUMIF('00 Alimenta'!$B:$B,'00 PDC SP'!$F201,'00 Alimenta'!H:H) -> 0 | M201: =SUMIF('00 Alimenta'!$B:$B,'00 PDC SP'!$F201,'00 Alimenta'!I:I) -> 0 | N201: 0
A202: ABA630FE | B202: AB | C202: ABA630 | D202: 28 | E202: FE | F202: 0102021802 | G202: Fatture da emettere v/sperimentazioni gestionali | H202: =SUMIF('00 Alimenta'!$B:$B,'00 PDC SP'!$F202,'00 Alimenta'!D:D) -> 0 | I202: =SUMIF('00 Alimenta'!$B:$B,'00 PDC SP'!$F202,'00 Alimenta'!E:E) -> 0 | J202: =SUMIF('00 Alimenta'!$B:$B,'00 PDC SP'!$F202,'00 Alimenta'!F:F) -> 0 | K202: =SUMIF('00 Alimenta'!$B:$B,'00 PDC SP'!$F202,'00 Alimenta'!G:G) -> 0 | L202: =SUMIF('00 Alimenta'!$B:$B,'00 PDC SP'!$F202,'00 Alimenta'!H:H) -> 0 | M202: =SUMIF('00 Alimenta'!$B:$B,'00 PDC SP'!$F202,'00 Alimenta'!I:I) -> 0 | N202: 0
... 503 more rows

Sheet 00 SP
A2: CODICE | B2: DESCRIZIONE | D2: CODICE | E2: RF | F2: ='00 PDC SP'!H4 -> Esercizio 2016 | G2: ='00 PDC SP'!I4 -> Incrementi 2017 | H2: ='00 PDC SP'!J4 -> Decrementi 2017 | I2: ='00 PDC SP'!K4 -> Esercizio 2017 | J2: ='00 PDC SP'!L4 -> Incrementi 2018 | K2: ='00 PDC SP'!M4 -> Decrementi 2018 | L2: ='00 PDC SP'!N4 -> Esercizio 2018
A3: AAZ999 | B3: A) IMMOBILIZZAZIONI | C3: S | D3: AAZ999 | F3: =F4+F31+F68 -> 109631979.3 | G3: -911643.55 | H3: 410876.02 | I3: 108309459.8 | J3: -1490066.47 | K3: 3978813.77 | L3: 102840579.5
A4: AAA000 | B4: A.I) IMMOBILIZZAZIONI IMMATERIALI | C4: S | D4: AAA000 | F4: =F5+F8+F11+F16+F17+F26 -> 426807.22 | G4: 73289.2 | H4: 7129.38 | I4: 492967.04 | J4: -29741.25 | K4: 0 | L4: 463225.79
A5: AAA010 | B5: A.I.1) Costi di impianto e di ampliamento | C5: S | D5: AAA010 | F5: =SUM(F6:F7) -> 0 | G5: 0 | H5: 0 | I5: 0 | J5: 0 | K5: 0 | L5: 0
A6: AAA020 | B6: A.I.1.a) Costi di impianto e di ampliamento | D6: AAA020 | E6: 34 | F6: =SUMIF('00 PDC SP'!$C:$C,'00 SP'!$D6,'00 PDC SP'!H:H) -> 0 | G6: =SUMIF('00 PDC SP'!$C:$C,'00 SP'!$D6,'00 PDC SP'!I:I) -> 0 | H6: =SUMIF('00 PDC SP'!$C:$C,'00 SP'!$D6,'00 PDC SP'!J:J) -> 0 | I6: =SUMIF('00 PDC SP'!$C:$C,'00 SP'!$D6,'00 PDC SP'!K:K) -> 0 | J6: =SUMIF('00 PDC SP'!$C:$C,'00 SP'!$D6,'00 PDC SP'!L:L) -> 0 | K6: =SUMIF('00 PDC SP'!$C:$C,'00 SP'!$D6,'00 PDC SP'!M:M) -> 0 | L6: =SUMIF('00 PDC SP'!$C:$C,'00 SP'!$D6,'00 PDC SP'!N:N) -> 0
A7: AAA030 | B7: A.I.1.b) F.do Amm.to costi di impianto e di ampliamento | D7: AAA030 | E7: 4 | F7: =SUMIF('00 PDC SP'!$C:$C,'00 SP'!$D7,'00 PDC SP'!H:H) -> 0 | G7: =SUMIF('00 PDC SP'!$C:$C,'00 SP'!$D7,'00 PDC SP'!I:I) -> 0 | H7: =SUMIF('00 PDC SP'!$C:$C,'00 SP'!$D7,'00 PDC SP'!J:J) -> 0 | I7: =SUMIF('00 PDC SP'!$C:$C,'00 SP'!$D7,'00 PDC SP'!K:K) -> 0 | J7: =SUMIF('00 PDC SP'!$C:$C,'00 SP'!$D7,'00 PDC SP'!L:L) -> 0 | K7: =SUMIF('00 PDC SP'!$C:$C,'00 SP'!$D7,'00 PDC SP'!M:M) -> 0 | L7: =SUMIF('00 PDC SP'!$C:$C,'00 SP'!$D7,'00 PDC SP'!N:N) -> 0
A8: AAA040 | B8: A.I.2) Costi di ricerca e sviluppo | C8: S | D8: AAA040 | F8: =SUM(F9:F10) -> 0 | G8: 0 | H8: 0 | I8: 0 | J8: 0 | K8: 0 | L8: 0
A9: AAA050 | B9: A.I.2.a) Costi di ricerca e sviluppo | D9: AAA050 | E9: 35 | F9: =SUMIF('00 PDC SP'!$C:$C,'00 SP'!$D9,'00 PDC SP'!H:H) -> 0 | G9: =SUMIF('00 PDC SP'!$C:$C,'00 SP'!$D9,'00 PDC SP'!I:I) -> 0 | H9: =SUMIF('00 PDC SP'!$C:$C,'00 SP'!$D9,'00 PDC SP'!J:J) -> 0 | I9: =SUMIF('00 PDC SP'!$C:$C,'00 SP'!$D9,'00 PDC SP'!K:K) -> 0 | J9: =SUMIF('00 PDC SP'!$C:$C,'00 SP'!$D9,'00 PDC SP'!L:L) -> 0 | K9: =SUMIF('00 PDC SP'!$C:$C,'00 SP'!$D9,'00 PDC SP'!M:M) -> 0 | L9: =SUMIF('00 PDC SP'!$C:$C,'00 SP'!$D9,'00 PDC SP'!N:N) -> 0
A10: AAA060 | B10: A.I.2.b) F.do Amm.to costi di ricerca e sviluppo | D10: AAA060 | E10: 4 | F10: =SUMIF('00 PDC SP'!$C:$C,'00 SP'!$D10,'00 PDC SP'!H:H) -> 0 | G10: =SUMIF('00 PDC SP'!$C:$C,'00 SP'!$D10,'00 PDC SP'!I:I) -> 0 | H10: =SUMIF('00 PDC SP'!$C:$C,'00 SP'!$D10,'00 PDC SP'!J:J) -> 0 | I10: =SUMIF('00 PDC SP'!$C:$C,'00 SP'!$D10,'00 PDC SP'!K:K) -> 0 | J10: =SUMIF('00 PDC SP'!$C:$C,'00 SP'!$D10,'00 PDC SP'!L:L) -> 0 | K10: =SUMIF('00 PDC SP'!$C:$C,'00 SP'!$D10,'00 PDC SP'!M:M) -> 0 | L10: =SUMIF('00 PDC SP'!$C:$C,'00 SP'!$D10,'00 PDC SP'!N:N) -> 0
A11: AAA070 | B11: A.I.3) Diritti di brevetto e diritti di utilizzazione delle opere d'ingegno | C11: S | D11: AAA070 | F11: =SUM(F12:F15) -> 0 | G11: 0 | H11: 0 | I11: 0 | J11: 0 | K11: 0 | L11: 0
A12: AAA080 | B12: A.I.3.a) Diritti di brevetto e diritti di utilizzazione delle opere d'ingegno - derivanti dall'attività di ricerca | D12: AAA080 | E12: 36 | F12: =SUMIF('00 PDC SP'!$C:$C,'00 SP'!$D12,'00 PDC SP'!H:H) -> 0 | G12: =SUMIF('00 PDC SP'!$C:$C,'00 SP'!$D12,'00 PDC SP'!I:I) -> 0 | H12: =SUMIF('00 PDC SP'!$C:$C,'00 SP'!$D12,'00 PDC SP'!J:J) -> 0 | I12: =SUMIF('00 PDC SP'!$C:$C,'00 SP'!$D12,'00 PDC SP'!K:K) -> 0 | J12: =SUMIF('00 PDC SP'!$C:$C,'00 SP'!$D12,'00 PDC SP'!L:L) -> 0 | K12: =SUMIF('00 PDC SP'!$C:$C,'00 SP'!$D12,'00 PDC SP'!M:M) -> 0 | L12: =SUMIF('00 PDC SP'!$C:$C,'00 SP'!$D12,'00 PDC SP'!N:N) -> 0
A13: AAA090 | B13: A.I.3.b) F.do Amm.to diritti di brevetto e diritti di utilizzazione delle opere d'ingegno - derivanti dall'attività di ricerca | D13: AAA090 | E13: 4 | F13: =SUMIF('00 PDC SP'!$C:$C,'00 SP'!$D13,'00 PDC SP'!H:H) -> 0 | G13: =SUMIF('00 PDC SP'!$C:$C,'00 SP'!$D13,'00 PDC SP'!I:I) -> 0 | H13: =SUMIF('00 PDC SP'!$C:$C,'00 SP'!$D13,'00 PDC SP'!J:J) -> 0 | I13: =SUMIF('00 PDC SP'!$C:$C,'00 SP'!$D13,'00 PDC SP'!K:K) -> 0 | J13: =SUMIF('00 PDC SP'!$C:$C,'00 SP'!$D13,'00 PDC SP'!L:L) -> 0 | K13: =SUMIF('00 PDC SP'!$C:$C,'00 SP'!$D13,'00 PDC SP'!M:M) -> 0 | L13: =SUMIF('00 PDC SP'!$C:$C,'00 SP'!$D13,'00 PDC SP'!N:N) -> 0
A14: AAA100 | B14: A.I.3.c) Diritti di brevetto e diritti di utilizzazione delle opere d'ingegno - altri | D14: AAA100 | E14: 36 | F14: =SUMIF('00 PDC SP'!$C:$C,'00 SP'!$D14,'00 PDC SP'!H:H) -> 0 | G14: =SUMIF('00 PDC SP'!$C:$C,'00 SP'!$D14,'00 PDC SP'!I:I) -> 0 | H14: =SUMIF('00 PDC SP'!$C:$C,'00 SP'!$D14,'00 PDC SP'!J:J) -> 0 | I14: =SUMIF('00 PDC SP'!$C:$C,'00 SP'!$D14,'00 PDC SP'!K:K) -> 0 | J14: =SUMIF('00 PDC SP'!$C:$C,'00 SP'!$D14,'00 PDC SP'!L:L) -> 0 | K14: =SUMIF('00 PDC SP'!$C:$C,'00 SP'!$D14,'00 PDC SP'!M:M) -> 0 | L14: =SUMIF('00 PDC SP'!$C:$C,'00 SP'!$D14,'00 PDC SP'!N:N) -> 0
A15: AAA110 | B15: A.I.3.d) F.do Amm.to diritti di brevetto e diritti di utilizzazione delle opere d'ingegno - altri | D15: AAA110 | E15: 4 | F15: =SUMIF('00 PDC SP'!$C:$C,'00 SP'!$D15,'00 PDC SP'!H:H) -> 0 | G15: =SUMIF('00 PDC SP'!$C:$C,'00 SP'!$D15,'00 PDC SP'!I:I) -> 0 | H15: =SUMIF('00 PDC SP'!$C:$C,'00 SP'!$D15,'00 PDC SP'!J:J) -> 0 | I15: =SUMIF('00 PDC SP'!$C:$C,'00 SP'!$D15,'00 PDC SP'!K:K) -> 0 | J15: =SUMIF('00 PDC SP'!$C:$C,'00 SP'!$D15,'00 PDC SP'!L:L) -> 0 | K15: =SUMIF('00 PDC SP'!$C:$C,'00 SP'!$D15,'00 PDC SP'!M:M) -> 0 | L15: =SUMIF('00 PDC SP'!$C:$C,'00 SP'!$D15,'00 PDC SP'!N:N) -> 0
A16: AAA120 | B16: A.I.4) Immobilizzazioni immateriali in corso e acconti | D16: AAA120 | E16: 37 | F16: =SUMIF('00 PDC SP'!$C:$C,'00 SP'!$D16,'00 PDC SP'!H:H) -> 0 | G16: =SUMIF('00 PDC SP'!$C:$C,'00 SP'!$D16,'00 PDC SP'!I:I) -> 0 | H16: =SUMIF('00 PDC SP'!$C:$C,'00 SP'!$D16,'00 PDC SP'!J:J) -> 0 | I16: =SUMIF('00 PDC SP'!$C:$C,'00 SP'!$D16,'00 PDC SP'!K:K) -> 0 | J16: =SUMIF('00 PDC SP'!$C:$C,'00 SP'!$D16,'00 PDC SP'!L:L) -> 0 | K16: =SUMIF('00 PDC SP'!$C:$C,'00 SP'!$D16,'00 PDC SP'!M:M) -> 0 | L16: =SUMIF('00 PDC SP'!$C:$C,'00 SP'!$D16,'00 PDC SP'!N:N) -> 0
A17: AAA130 | B17: A.I.5) Altre immobilizzazioni immateriali | C17: S | D17: AAA130 | F17: =SUM(F18:F25) -> 426807.22 | G17: 73289.2 | H17: 7129.38 | I17: 492967.04 | J17: -29741.25 | K17: 0 | L17: 463225.79
A18: AAA140 | B18: A.I.5.a) Concessioni, licenze, marchi e diritti simili | D18: AAA140 | E18: 38 | F18: =SUMIF('00 PDC SP'!$C:$C,'00 SP'!$D18,'00 PDC SP'!H:H) -> 1985432.37 | G18: =SUMIF('00 PDC SP'!$C:$C,'00 SP'!$D18,'00 PDC SP'!I:I) -> 209841.59 | H18: =SUMIF('00 PDC SP'!$C:$C,'00 SP'!$D18,'00 PDC SP'!J:J) -> 7129.38 | I18: =SUMIF('00 PDC SP'!$C:$C,'00 SP'!$D18,'00 PDC SP'!K:K) -> 2188144.58 | J18: =SUMIF('00 PDC SP'!$C:$C,'00 SP'!$D18,'00 PDC SP'!L:L) -> 131197.56 | K18: =SUMIF('00 PDC SP'!$C:$C,'00 SP'!$D18,'00 PDC SP'!M:M) -> 11461.65 | L18: =SUMIF('00 PDC SP'!$C:$C,'00 SP'!$D18,'00 PDC SP'!N:N) -> 2307880.49
A19: AAA150 | B19: A.I.5.b) F.do Amm.to concessioni, licenze, marchi e diritti simili | D19: AAA150 | E19: 4 | F19: =SUMIF('00 PDC SP'!$C:$C,'00 SP'!$D19,'00 PDC SP'!H:H) -> -1558625.15 | G19: =SUMIF('00 PDC SP'!$C:$C,'00 SP'!$D19,'00 PDC SP'!I:I) -> -136552.39 | H19: =SUMIF('00 PDC SP'!$C:$C,'00 SP'!$D19,'00 PDC SP'!J:J) -> 0 | I19: =SUMIF('00 PDC SP'!$C:$C,'00 SP'!$D19,'00 PDC SP'!K:K) -> -1695177.54 | J19: =SUMIF('00 PDC SP'!$C:$C,'00 SP'!$D19,'00 PDC SP'!L:L) -> -160938.81 | K19: =SUMIF('00 PDC SP'!$C:$C,'00 SP'!$D19,'00 PDC SP'!M:M) -> -11461.65 | L19: =SUMIF('00 PDC SP'!$C:$C,'00 SP'!$D19,'00 PDC SP'!N:N) -> -1844654.7
A20: AAA160 | B20: A.I.5.c) Migliorie su beni di terzi | D20: AAA160 | E20: 38 | F20: =SUMIF('00 PDC SP'!$C:$C,'00 SP'!$D20,'00 PDC SP'!H:H) -> 0 | G20: =SUMIF('00 PDC SP'!$C:$C,'00 SP'!$D20,'00 PDC SP'!I:I) -> 0 | H20: =SUMIF('00 PDC SP'!$C:$C,'00 SP'!$D20,'00 PDC SP'!J:J) -> 0 | I20: =SUMIF('00 PDC SP'!$C:$C,'00 SP'!$D20,'00 PDC SP'!K:K) -> 0 | J20: =SUMIF('00 PDC SP'!$C:$C,'00 SP'!$D20,'00 PDC SP'!L:L) -> 0 | K20: =SUMIF('00 PDC SP'!$C:$C,'00 SP'!$D20,'00 PDC SP'!M:M) -> 0 | L20: =SUMIF('00 PDC SP'!$C:$C,'00 SP'!$D20,'00 PDC SP'!N:N) -> 0
A21: AAA170 | B21: A.I.5.d) F.do Amm.to migliorie su beni di terzi | D21: AAA170 | E21: 4 | F21: =SUMIF('00 PDC SP'!$C:$C,'00 SP'!$D21,'00 PDC SP'!H:H) -> 0 | G21: =SUMIF('00 PDC SP'!$C:$C,'00 SP'!$D21,'00 PDC SP'!I:I) -> 0 | H21: =SUMIF('00 PDC SP'!$C:$C,'00 SP'!$D21,'00 PDC SP'!J:J) -> 0 | I21: =SUMIF('00 PDC SP'!$C:$C,'00 SP'!$D21,'00 PDC SP'!K:K) -> 0 | J21: =SUMIF('00 PDC SP'!$C:$C,'00 SP'!$D21,'00 PDC SP'!L:L) -> 0 | K21: =SUMIF('00 PDC SP'!$C:$C,'00 SP'!$D21,'00 PDC SP'!M:M) -> 0 | L21: =SUMIF('00 PDC SP'!$C:$C,'00 SP'!$D21,'00 PDC SP'!N:N) -> 0
A22: AAA180 | B22: A.I.5.e) Pubblicità | D22: AAA180 | E22: 38 | F22: =SUMIF('00 PDC SP'!$C:$C,'00 SP'!$D22,'00 PDC SP'!H:H) -> 0 | G22: =SUMIF('00 PDC SP'!$C:$C,'00 SP'!$D22,'00 PDC SP'!I:I) -> 0 | H22: =SUMIF('00 PDC SP'!$C:$C,'00 SP'!$D22,'00 PDC SP'!J:J) -> 0 | I22: =SUMIF('00 PDC SP'!$C:$C,'00 SP'!$D22,'00 PDC SP'!K:K) -> 0 | J22: =SUMIF('00 PDC SP'!$C:$C,'00 SP'!$D22,'00 PDC SP'!L:L) -> 0 | K22: =SUMIF('00 PDC SP'!$C:$C,'00 SP'!$D22,'00 PDC SP'!M:M) -> 0 | L22: =SUMIF('00 PDC SP'!$C:$C,'00 SP'!$D22,'00 PDC SP'!N:N) -> 0
A23: AAA190 | B23: A.I.5.f) F.do Amm.to pubblicità | D23: AAA190 | E23: 4 | F23: =SUMIF('00 PDC SP'!$C:$C,'00 SP'!$D23,'00 PDC SP'!H:H) -> 0 | G23: =SUMIF('00 PDC SP'!$C:$C,'00 SP'!$D23,'00 PDC SP'!I:I) -> 0 | H23: =SUMIF('00 PDC SP'!$C:$C,'00 SP'!$D23,'00 PDC SP'!J:J) -> 0 | I23: =SUMIF('00 PDC SP'!$C:$C,'00 SP'!$D23,'00 PDC SP'!K:K) -> 0 | J23: =SUMIF('00 PDC SP'!$C:$C,'00 SP'!$D23,'00 PDC SP'!L:L) -> 0 | K23: =SUMIF('00 PDC SP'!$C:$C,'00 SP'!$D23,'00 PDC SP'!M:M) -> 0 | L23: =SUMIF('00 PDC SP'!$C:$C,'00 SP'!$D23,'00 PDC SP'!N:N) -> 0
A24: AAA200 | B24: A.I.5.g) Altre immobilizzazioni immateriali | D24: AAA200 | E24: 38 | F24: =SUMIF('00 PDC SP'!$C:$C,'00 SP'!$D24,'00 PDC SP'!H:H) -> 0 | G24: =SUMIF('00 PDC SP'!$C:$C,'00 SP'!$D24,'00 PDC SP'!I:I) -> 0 | H24: =SUMIF('00 PDC SP'!$C:$C,'00 SP'!$D24,'00 PDC SP'!J:J) -> 0 | I24: =SUMIF('00 PDC SP'!$C:$C,'00 SP'!$D24,'00 PDC SP'!K:K) -> 0 | J24: =SUMIF('00 PDC SP'!$C:$C,'00 SP'!$D24,'00 PDC SP'!L:L) -> 0 | K24: =SUMIF('00 PDC SP'!$C:$C,'00 SP'!$D24,'00 PDC SP'!M:M) -> 0 | L24: =SUMIF('00 PDC SP'!$C:$C,'00 SP'!$D24,'00 PDC SP'!N:N) -> 0
A25: AAA210 | B25: A.I.5.h) F.do Amm.to altre immobilizzazioni immateriali | D25: AAA210 | E25: 4 | F25: =SUMIF('00 PDC SP'!$C:$C,'00 SP'!$D25,'00 PDC SP'!H:H) -> 0 | G25: =SUMIF('00 PDC SP'!$C:$C,'00 SP'!$D25,'00 PDC SP'!I:I) -> 0 | H25: =SUMIF('00 PDC SP'!$C:$C,'00 SP'!$D25,'00 PDC SP'!J:J) -> 0 | I25: =SUMIF('00 PDC SP'!$C:$C,'00 SP'!$D25,'00 PDC SP'!K:K) -> 0 | J25: =SUMIF('00 PDC SP'!$C:$C,'00 SP'!$D25,'00 PDC SP'!L:L) -> 0 | K25: =SUMIF('00 PDC SP'!$C:$C,'00 SP'!$D25,'00 PDC SP'!M:M) -> 0 | L25: =SUMIF('00 PDC SP'!$C:$C,'00 SP'!$D25,'00 PDC SP'!N:N) -> 0
A26: AAA220 | B26: A.I.6) Fondo Svalutazione immobilizzazioni immateriali | C26: S | D26: AAA220 | F26: =SUM(F27:F30) -> 0 | G26: 0 | H26: 0 | I26: 0 | J26: 0 | K26: 0 | L26: 0
A27: AAA230 | B27: A.I.6.a) F.do Svalut. Costi di impianto e di ampliamento | D27: AAA230 | E27: 34 | F27: =SUMIF('00 PDC SP'!$C:$C,'00 SP'!$D27,'00 PDC SP'!H:H) -> 0 | G27: =SUMIF('00 PDC SP'!$C:$C,'00 SP'!$D27,'00 PDC SP'!I:I) -> 0 | H27: =SUMIF('00 PDC SP'!$C:$C,'00 SP'!$D27,'00 PDC SP'!J:J) -> 0 | I27: =SUMIF('00 PDC SP'!$C:$C,'00 SP'!$D27,'00 PDC SP'!K:K) -> 0 | J27: =SUMIF('00 PDC SP'!$C:$C,'00 SP'!$D27,'00 PDC SP'!L:L) -> 0 | K27: =SUMIF('00 PDC SP'!$C:$C,'00 SP'!$D27,'00 PDC SP'!M:M) -> 0 | L27: =SUMIF('00 PDC SP'!$C:$C,'00 SP'!$D27,'00 PDC SP'!N:N) -> 0
A28: AAA240 | B28: A.I.6.b) F.do Svalut. Costi di ricerca e sviluppo | D28: AAA240 | E28: 35 | F28: =SUMIF('00 PDC SP'!$C:$C,'00 SP'!$D28,'00 PDC SP'!H:H) -> 0 | G28: =SUMIF('00 PDC SP'!$C:$C,'00 SP'!$D28,'00 PDC SP'!I:I) -> 0 | H28: =SUMIF('00 PDC SP'!$C:$C,'00 SP'!$D28,'00 PDC SP'!J:J) -> 0 | I28: =SUMIF('00 PDC SP'!$C:$C,'00 SP'!$D28,'00 PDC SP'!K:K) -> 0 | J28: =SUMIF('00 PDC SP'!$C:$C,'00 SP'!$D28,'00 PDC SP'!L:L) -> 0 | K28: =SUMIF('00 PDC SP'!$C:$C,'00 SP'!$D28,'00 PDC SP'!M:M) -> 0 | L28: =SUMIF('00 PDC SP'!$C:$C,'00 SP'!$D28,'00 PDC SP'!N:N) -> 0
A29: AAA250 | B29: A.I.6.c) F.do Svalut. Diritti di brevetto e diritti di utilizzazione delle opere d'ingegno | D29: AAA250 | E29: 36 | F29: =SUMIF('00 PDC SP'!$C:$C,'00 SP'!$D29,'00 PDC SP'!H:H) -> 0 | G29: =SUMIF('00 PDC SP'!$C:$C,'00 SP'!$D29,'00 PDC SP'!I:I) -> 0 | H29: =SUMIF('00 PDC SP'!$C:$C,'00 SP'!$D29,'00 PDC SP'!J:J) -> 0 | I29: =SUMIF('00 PDC SP'!$C:$C,'00 SP'!$D29,'00 PDC SP'!K:K) -> 0 | J29: =SUMIF('00 PDC SP'!$C:$C,'00 SP'!$D29,'00 PDC SP'!L:L) -> 0 | K29: =SUMIF('00 PDC SP'!$C:$C,'00 SP'!$D29,'00 PDC SP'!M:M) -> 0 | L29: =SUMIF('00 PDC SP'!$C:$C,'00 SP'!$D29,'00 PDC SP'!N:N) -> 0
A30: AAA260 | B30: A.I.6.d) F.do Svalut. Altre immobilizzazioni immateriali | D30: AAA260 | E30: 38 | F30: =SUMIF('00 PDC SP'!$C:$C,'00 SP'!$D30,'00 PDC SP'!H:H) -> 0 | G30: =SUMIF('00 PDC SP'!$C:$C,'00 SP'!$D30,'00 PDC SP'!I:I) -> 0 | H30: =SUMIF('00 PDC SP'!$C:$C,'00 SP'!$D30,'00 PDC SP'!J:J) -> 0 | I30: =SUMIF('00 PDC SP'!$C:$C,'00 SP'!$D30,'00 PDC SP'!K:K) -> 0 | J30: =SUMIF('00 PDC SP'!$C:$C,'00 SP'!$D30,'00 PDC SP'!L:L) -> 0 | K30: =SUMIF('00 PDC SP'!$C:$C,'00 SP'!$D30,'00 PDC SP'!M:M) -> 0 | L30: =SUMIF('00 PDC SP'!$C:$C,'00 SP'!$D30,'00 PDC SP'!N:N) -> 0
A31: AAA270 | B31: A.II) IMMOBILIZZAZIONI MATERIALI | C31: S | D31: AAA270 | F31: =F32+F35+F42+F45+F48+F51+F54+F55+F58+F59 -> 109191135.6 | G31: -984932.75 | H31: 403746.64 | I31: 107802456.3 | J31: -1460325.22 | K31: 3978813.77 | L31: 102363317.3
A32: AAA280 | B32: A.II.1) Terreni | C32: S | D32: AAA280 | F32: =SUM(F33:F34) -> 942655.12 | G32: 0 | H32: 0 | I32: 942655.12 | J32: 0 | K32: 0 | L32: 942655.12
A33: AAA290 | B33: A.II.1.a) Terreni disponibili | D33: AAA290 | E33: 39 | F33: =SUMIF('00 PDC SP'!$C:$C,'00 SP'!$D33,'00 PDC SP'!H:H) -> 0 | G33: =SUMIF('00 PDC SP'!$C:$C,'00 SP'!$D33,'00 PDC SP'!I:I) -> 0 | H33: =SUMIF('00 PDC SP'!$C:$C,'00 SP'!$D33,'00 PDC SP'!J:J) -> 0 | I33: =SUMIF('00 PDC SP'!$C:$C,'00 SP'!$D33,'00 PDC SP'!K:K) -> 0 | J33: =SUMIF('00 PDC SP'!$C:$C,'00 SP'!$D33,'00 PDC SP'!L:L) -> 0 | K33: =SUMIF('00 PDC SP'!$C:$C,'00 SP'!$D33,'00 PDC SP'!M:M) -> 0 | L33: =SUMIF('00 PDC SP'!$C:$C,'00 SP'!$D33,'00 PDC SP'!N:N) -> 0
A34: AAA300 | B34: A.II.1.b) Terreni indisponibili | D34: AAA300 | E34: 39 | F34: =SUMIF('00 PDC SP'!$C:$C,'00 SP'!$D34,'00 PDC SP'!H:H) -> 942655.12 | G34: =SUMIF('00 PDC SP'!$C:$C,'00 SP'!$D34,'00 PDC SP'!I:I) -> 0 | H34: =SUMIF('00 PDC SP'!$C:$C,'00 SP'!$D34,'00 PDC SP'!J:J) -> 0 | I34: =SUMIF('00 PDC SP'!$C:$C,'00 SP'!$D34,'00 PDC SP'!K:K) -> 942655.12 | J34: =SUMIF('00 PDC SP'!$C:$C,'00 SP'!$D34,'00 PDC SP'!L:L) -> 0 | K34: =SUMIF('00 PDC SP'!$C:$C,'00 SP'!$D34,'00 PDC SP'!M:M) -> 0 | L34: =SUMIF('00 PDC SP'!$C:$C,'00 SP'!$D34,'00 PDC SP'!N:N) -> 942655.12
A35: AAA310 | B35: A.II.2) Fabbricati | C35: S | D35: AAA310 | F35: =F36+F39 -> 83185071.94 | G35: -4970287.05 | H35: 0 | I35: 78214784.89 | J35: -2883228.61 | K35: 0 | L35: 75331556.28
A36: AAA320 | B36: A.II.2.a) Fabbricati non strumentali (disponibili) | C36: S | D36: AAA320 | F36: =SUM(F37:F38) -> 0 | G36: 0 | H36: 0 | I36: 0 | J36: 0 | K36: 0 | L36: 0
A37: AAA330 | B37: A.II.2.a.1) Fabbricati non strumentali (disponibili) | D37: AAA330 | E37: 40 | F37: =SUMIF('00 PDC SP'!$C:$C,'00 SP'!$D37,'00 PDC SP'!H:H) -> 0 | G37: =SUMIF('00 PDC SP'!$C:$C,'00 SP'!$D37,'00 PDC SP'!I:I) -> 0 | H37: =SUMIF('00 PDC SP'!$C:$C,'00 SP'!$D37,'00 PDC SP'!J:J) -> 0 | I37: =SUMIF('00 PDC SP'!$C:$C,'00 SP'!$D37,'00 PDC SP'!K:K) -> 0 | J37: =SUMIF('00 PDC SP'!$C:$C,'00 SP'!$D37,'00 PDC SP'!L:L) -> 0 | K37: =SUMIF('00 PDC SP'!$C:$C,'00 SP'!$D37,'00 PDC SP'!M:M) -> 0 | L37: =SUMIF('00 PDC SP'!$C:$C,'00 SP'!$D37,'00 PDC SP'!N:N) -> 0
A38: AAA340 | B38: A.II.2.a.2) F.do Amm.to Fabbricati non strumentali (disponibili) | D38: AAA340 | E38: 2 | F38: =SUMIF('00 PDC SP'!$C:$C,'00 SP'!$D38,'00 PDC SP'!H:H) -> 0 | G38: =SUMIF('00 PDC SP'!$C:$C,'00 SP'!$D38,'00 PDC SP'!I:I) -> 0 | H38: =SUMIF('00 PDC SP'!$C:$C,'00 SP'!$D38,'00 PDC SP'!J:J) -> 0 | I38: =SUMIF('00 PDC SP'!$C:$C,'00 SP'!$D38,'00 PDC SP'!K:K) -> 0 | J38: =SUMIF('00 PDC SP'!$C:$C,'00 SP'!$D38,'00 PDC SP'!L:L) -> 0 | K38: =SUMIF('00 PDC SP'!$C:$C,'00 SP'!$D38,'00 PDC SP'!M:M) -> 0 | L38: =SUMIF('00 PDC SP'!$C:$C,'00 SP'!$D38,'00 PDC SP'!N:N) -> 0
A39: AAA350 | B39: A.II.2.b) Fabbricati strumentali (indisponibili) | C39: S | D39: AAA350 | F39: =SUM(F40:F41) -> 83185071.94 | G39: -4970287.05 | H39: 0 | I39: 78214784.89 | J39: -2883228.61 | K39: 0 | L39: 75331556.28
A40: AAA360 | B40: A.II.2.b.1) Fabbricati strumentali (indisponibili) | D40: AAA360 | E40: 40 | F40: =SUMIF('00 PDC SP'!$C:$C,'00 SP'!$D40,'00 PDC SP'!H:H) -> 169096559.2 | G40: =SUMIF('00 PDC SP'!$C:$C,'00 SP'!$D40,'00 PDC SP'!I:I) -> 0 | H40: =SUMIF('00 PDC SP'!$C:$C,'00 SP'!$D40,'00 PDC SP'!J:J) -> 0 | I40: =SUMIF('00 PDC SP'!$C:$C,'00 SP'!$D40,'00 PDC SP'!K:K) -> 169096559.2 | J40: =SUMIF('00 PDC SP'!$C:$C,'00 SP'!$D40,'00 PDC SP'!L:L) -> 2087230 | K40: =SUMIF('00 PDC SP'!$C:$C,'00 SP'!$D40,'00 PDC SP'!M:M) -> 0 | L40: =SUMIF('00 PDC SP'!$C:$C,'00 SP'!$D40,'00 PDC SP'!N:N) -> 171183789.2
A41: AAA370 | B41: A.II.2.b.2) F.do Amm.to Fabbricati strumentali (indisponibili) | D41: AAA370 | E41: 2 | F41: =SUMIF('00 PDC SP'!$C:$C,'00 SP'!$D41,'00 PDC SP'!H:H) -> -85911487.29 | G41: =SUMIF('00 PDC SP'!$C:$C,'00 SP'!$D41,'00 PDC SP'!I:I) -> -4970287.05 | H41: =SUMIF('00 PDC SP'!$C:$C,'00 SP'!$D41,'00 PDC SP'!J:J) -> 0 | I41: =SUMIF('00 PDC SP'!$C:$C,'00 SP'!$D41,'00 PDC SP'!K:K) -> -90881774.34 | J41: =SUMIF('00 PDC SP'!$C:$C,'00 SP'!$D41,'00 PDC SP'!L:L) -> -4970458.61 | K41: =SUMIF('00 PDC SP'!$C:$C,'00 SP'!$D41,'00 PDC SP'!M:M) -> 0 | L41: =SUMIF('00 PDC SP'!$C:$C,'00 SP'!$D41,'00 PDC SP'!N:N) -> -95852232.95
A42: AAA380 | B42: A.II.3) Impianti e macchinari | C42: S | D42: AAA380 | F42: =SUM(F43:F44) -> 1058936.29 | G42: -43083.69 | H42: 171.65 | I42: 1015680.95 | J42: 410185.98 | K42: 17402.93 | L42: 1408464
A43: AAA390 | B43: A.II.3.a) Impianti e macchinari | D43: AAA390 | E43: 41 | F43: =SUMIF('00 PDC SP'!$C:$C,'00 SP'!$D43,'00 PDC SP'!H:H) -> 5947030.48 | G43: =SUMIF('00 PDC SP'!$C:$C,'00 SP'!$D43,'00 PDC SP'!I:I) -> 219918.7 | H43: =SUMIF('00 PDC SP'!$C:$C,'00 SP'!$D43,'00 PDC SP'!J:J) -> 171.65 | I43: =SUMIF('00 PDC SP'!$C:$C,'00 SP'!$D43,'00 PDC SP'!K:K) -> 6166777.53 | J43: =SUMIF('00 PDC SP'!$C:$C,'00 SP'!$D43,'00 PDC SP'!L:L) -> 653192.51 | K43: =SUMIF('00 PDC SP'!$C:$C,'00 SP'!$D43,'00 PDC SP'!M:M) -> 17647.73 | L43: =SUMIF('00 PDC SP'!$C:$C,'00 SP'!$D43,'00 PDC SP'!N:N) -> 6802322.31
A44: AAA400 | B44: A.II.3.b) F.do Amm.to Impianti e macchinari | D44: AAA400 | E44: 3 | F44: =SUMIF('00 PDC SP'!$C:$C,'00 SP'!$D44,'00 PDC SP'!H:H) -> -4888094.19 | G44: =SUMIF('00 PDC SP'!$C:$C,'00 SP'!$D44,'00 PDC SP'!I:I) -> -263002.39 | H44: =SUMIF('00 PDC SP'!$C:$C,'00 SP'!$D44,'00 PDC SP'!J:J) -> 0 | I44: =SUMIF('00 PDC SP'!$C:$C,'00 SP'!$D44,'00 PDC SP'!K:K) -> -5151096.58 | J44: =SUMIF('00 PDC SP'!$C:$C,'00 SP'!$D44,'00 PDC SP'!L:L) -> -243006.53 | K44: =SUMIF('00 PDC SP'!$C:$C,'00 SP'!$D44,'00 PDC SP'!M:M) -> -244.8 | L44: =SUMIF('00 PDC SP'!$C:$C,'00 SP'!$D44,'00 PDC SP'!N:N) -> -5393858.31
A45: AAA410 | B45: A.II.4) Attrezzature sanitarie e scientifiche | C45: S | D45: AAA410 | F45: =SUM(F46:F47) -> 12717953.26 | G45: 1649118.94 | H45: 146622.02 | I45: 14220450.18 | J45: -503898.62 | K45: 16889.68 | L45: 13699661.88
A46: AAA420 | B46: A.II.4.a) Attrezzature sanitarie e scientifiche | D46: AAA420 | E46: 42 | F46: =SUMIF('00 PDC SP'!$C:$C,'00 SP'!$D46,'00 PDC SP'!H:H) -> 79051702.27 | G46: =SUMIF('00 PDC SP'!$C:$C,'00 SP'!$D46,'00 PDC SP'!I:I) -> 5812839.07 | H46: =SUMIF('00 PDC SP'!$C:$C,'00 SP'!$D46,'00 PDC SP'!J:J) -> 146692.8 | I46: =SUMIF('00 PDC SP'!$C:$C,'00 SP'!$D46,'00 PDC SP'!K:K) -> 84717848.54 | J46: =SUMIF('00 PDC SP'!$C:$C,'00 SP'!$D46,'00 PDC SP'!L:L) -> 4303427.61 | K46: =SUMIF('00 PDC SP'!$C:$C,'00 SP'!$D46,'00 PDC SP'!M:M) -> 5885338.17 | L46: =SUMIF('00 PDC SP'!$C:$C,'00 SP'!$D46,'00 PDC SP'!N:N) -> 83135937.98
A47: AAA430 | B47: A.II.4.b) F.do Amm.to Attrezzature sanitarie e scientifiche | D47: AAA430 | E47: 3 | F47: =SUMIF('00 PDC SP'!$C:$C,'00 SP'!$D47,'00 PDC SP'!H:H) -> -66333749.01 | G47: =SUMIF('00 PDC SP'!$C:$C,'00 SP'!$D47,'00 PDC SP'!I:I) -> -4163720.13 | H47: =SUMIF('00 PDC SP'!$C:$C,'00 SP'!$D47,'00 PDC SP'!J:J) -> -70.78 | I47: =SUMIF('00 PDC SP'!$C:$C,'00 SP'!$D47,'00 PDC SP'!K:K) -> -70497398.36 | J47: =SUMIF('00 PDC SP'!$C:$C,'00 SP'!$D47,'00 PDC SP'!L:L) -> -4807326.23 | K47: =SUMIF('00 PDC SP'!$C:$C,'00 SP'!$D47,'00 PDC SP'!M:M) -> -5868448.49 | L47: =SUMIF('00 PDC SP'!$C:$C,'00 SP'!$D47,'00 PDC SP'!N:N) -> -69436276.1
A48: AAA440 | B48: A.II.5) Mobili e arredi | C48: S | D48: AAA440 | F48: =SUM(F49:F50) -> 1646201.75 | G48: -119794.22 | H48: 12215.84 | I48: 1514191.69 | J48: -15102.34 | K48: 2417.2 | L48: 1496672.15
A49: AAA450 | B49: A.II.5.a) Mobili e arredi | D49: AAA450 | E49: 43 | F49: =SUMIF('00 PDC SP'!$C:$C,'00 SP'!$D49,'00 PDC SP'!H:H) -> 10368797.42 | G49: =SUMIF('00 PDC SP'!$C:$C,'00 SP'!$D49,'00 PDC SP'!I:I) -> 241394.07 | H49: =SUMIF('00 PDC SP'!$C:$C,'00 SP'!$D49,'00 PDC SP'!J:J) -> 12215.84 | I49: =SUMIF('00 PDC SP'!$C:$C,'00 SP'!$D49,'00 PDC SP'!K:K) -> 10597975.65 | J49: =SUMIF('00 PDC SP'!$C:$C,'00 SP'!$D49,'00 PDC SP'!L:L) -> 339281.25 | K49: =SUMIF('00 PDC SP'!$C:$C,'00 SP'!$D49,'00 PDC SP'!M:M) -> 91861.65 | L49: =SUMIF('00 PDC SP'!$C:$C,'00 SP'!$D49,'00 PDC SP'!N:N) -> 10845395.25
A50: AAA460 | B50: A.II.5.b) F.do Amm.to Mobili e arredi | D50: AAA460 | E50: 3 | F50: =SUMIF('00 PDC SP'!$C:$C,'00 SP'!$D50,'00 PDC SP'!H:H) -> -8722595.67 | G50: =SUMIF('00 PDC SP'!$C:$C,'00 SP'!$D50,'00 PDC SP'!I:I) -> -361188.29 | H50: =SUMIF('00 PDC SP'!$C:$C,'00 SP'!$D50,'00 PDC SP'!J:J) -> 0 | I50: =SUMIF('00 PDC SP'!$C:$C,'00 SP'!$D50,'00 PDC SP'!K:K) -> -9083783.96 | J50: =SUMIF('00 PDC SP'!$C:$C,'00 SP'!$D50,'00 PDC SP'!L:L) -> -354383.59 | K50: =SUMIF('00 PDC SP'!$C:$C,'00 SP'!$D50,'00 PDC SP'!M:M) -> -89444.45 | L50: =SUMIF('00 PDC SP'!$C:$C,'00 SP'!$D50,'00 PDC SP'!N:N) -> -9348723.1
A51: AAA470 | B51: A.II.6) Automezzi | C51: S | D51: AAA470 | F51: =SUM(F52:F53) -> 234150 | G51: 288.8 | H51: 0 | I51: 234438.8 | J51: -342.13 | K51: 0 | L51: 234096.67
A52: AAA480 | B52: A.II.6.a) Automezzi | D52: AAA480 | E52: 44 | F52: =SUMIF('00 PDC SP'!$C:$C,'00 SP'!$D52,'00 PDC SP'!H:H) -> 1839959.11 | G52: =SUMIF('00 PDC SP'!$C:$C,'00 SP'!$D52,'00 PDC SP'!I:I) -> 123029.66 | H52: =SUMIF('00 PDC SP'!$C:$C,'00 SP'!$D52,'00 PDC SP'!J:J) -> 0 | I52: =SUMIF('00 PDC SP'!$C:$C,'00 SP'!$D52,'00 PDC SP'!K:K) -> 1962988.77 | J52: =SUMIF('00 PDC SP'!$C:$C,'00 SP'!$D52,'00 PDC SP'!L:L) -> 93196.97 | K52: =SUMIF('00 PDC SP'!$C:$C,'00 SP'!$D52,'00 PDC SP'!M:M) -> 149825.11 | L52: =SUMIF('00 PDC SP'!$C:$C,'00 SP'!$D52,'00 PDC SP'!N:N) -> 1906360.63
A53: AAA490 | B53: A.II.6.b) F.do Amm.to Automezzi | D53: AAA490 | E53: 3 | F53: =SUMIF('00 PDC SP'!$C:$C,'00 SP'!$D53,'00 PDC SP'!H:H) -> -1605809.11 | G53: =SUMIF('00 PDC SP'!$C:$C,'00 SP'!$D53,'00 PDC SP'!I:I) -> -122740.86 | H53: =SUMIF('00 PDC SP'!$C:$C,'00 SP'!$D53,'00 PDC SP'!J:J) -> 0 | I53: =SUMIF('00 PDC SP'!$C:$C,'00 SP'!$D53,'00 PDC SP'!K:K) -> -1728549.97 | J53: =SUMIF('00 PDC SP'!$C:$C,'00 SP'!$D53,'00 PDC SP'!L:L) -> -93539.1 | K53: =SUMIF('00 PDC SP'!$C:$C,'00 SP'!$D53,'00 PDC SP'!M:M) -> -149825.11 | L53: =SUMIF('00 PDC SP'!$C:$C,'00 SP'!$D53,'00 PDC SP'!N:N) -> -1672263.96
A54: AAA500 | B54: A.II.7) Oggetti d'arte | D54: AAA500 | E54: 45 | F54: =SUMIF('00 PDC SP'!$C:$C,'00 SP'!$D54,'00 PDC SP'!H:H) -> 0 | G54: =SUMIF('00 PDC SP'!$C:$C,'00 SP'!$D54,'00 PDC SP'!I:I) -> 0 | H54: =SUMIF('00 PDC SP'!$C:$C,'00 SP'!$D54,'00 PDC SP'!J:J) -> 0 | I54: =SUMIF('00 PDC SP'!$C:$C,'00 SP'!$D54,'00 PDC SP'!K:K) -> 0 | J54: =SUMIF('00 PDC SP'!$C:$C,'00 SP'!$D54,'00 PDC SP'!L:L) -> 0 | K54: =SUMIF('00 PDC SP'!$C:$C,'00 SP'!$D54,'00 PDC SP'!M:M) -> 0 | L54: =SUMIF('00 PDC SP'!$C:$C,'00 SP'!$D54,'00 PDC SP'!N:N) -> 0
A55: AAA510 | B55: A.II.8) Altre immobilizzazioni materiali | C55: S | D55: AAA510 | F55: =SUM(F56:F57) -> 641271.71 | G55: 21030.35 | H55: 0 | I55: 662302.06 | J55: 16012.8 | K55: 18304.45 | L55: 660010.41
A56: AAA520 | B56: A.II.8.a) Altre immobilizzazioni materiali | D56: AAA520 | E56: 45 | F56: =SUMIF('00 PDC SP'!$C:$C,'00 SP'!$D56,'00 PDC SP'!H:H) -> 5654090.78 | G56: =SUMIF('00 PDC SP'!$C:$C,'00 SP'!$D56,'00 PDC SP'!I:I) -> 265917 | H56: =SUMIF('00 PDC SP'!$C:$C,'00 SP'!$D56,'00 PDC SP'!J:J) -> 2012.8 | I56: =SUMIF('00 PDC SP'!$C:$C,'00 SP'!$D56,'00 PDC SP'!K:K) -> 5917994.98 | J56: =SUMIF('00 PDC SP'!$C:$C,'00 SP'!$D56,'00 PDC SP'!L:L) -> 267797.77 | K56: =SUMIF('00 PDC SP'!$C:$C,'00 SP'!$D56,'00 PDC SP'!M:M) -> 330490.18 | L56: =SUMIF('00 PDC SP'!$C:$C,'00 SP'!$D56,'00 PDC SP'!N:N) -> 5855302.57
A57: AAA530 | B57: A.II.8.b) F.do Amm.to Altre immobilizzazioni materiali | D57: AAA530 | E57: 3 | F57: =SUMIF('00 PDC SP'!$C:$C,'00 SP'!$D57,'00 PDC SP'!H:H) -> -5012819.07 | G57: =SUMIF('00 PDC SP'!$C:$C,'00 SP'!$D57,'00 PDC SP'!I:I) -> -244886.65 | H57: =SUMIF('00 PDC SP'!$C:$C,'00 SP'!$D57,'00 PDC SP'!J:J) -> -2012.8 | I57: =SUMIF('00 PDC SP'!$C:$C,'00 SP'!$D57,'00 PDC SP'!K:K) -> -5255692.92 | J57: =SUMIF('00 PDC SP'!$C:$C,'00 SP'!$D57,'00 PDC SP'!L:L) -> -251784.97 | K57: =SUMIF('00 PDC SP'!$C:$C,'00 SP'!$D57,'00 PDC SP'!M:M) -> -312185.73 | L57: =SUMIF('00 PDC SP'!$C:$C,'00 SP'!$D57,'00 PDC SP'!N:N) -> -5195292.16
A58: AAA540 | B58: A.II.9) Immobilizzazioni materiali in corso e acconti | D58: AAA540 | E58: 45 | F58: =SUMIF('00 PDC SP'!$C:$C,'00 SP'!$D58,'00 PDC SP'!H:H) -> 8764895.58 | G58: =SUMIF('00 PDC SP'!$C:$C,'00 SP'!$D58,'00 PDC SP'!I:I) -> 2477794.12 | H58: =SUMIF('00 PDC SP'!$C:$C,'00 SP'!$D58,'00 PDC SP'!J:J) -> 244737.13 | I58: =SUMIF('00 PDC SP'!$C:$C,'00 SP'!$D58,'00 PDC SP'!K:K) -> 10997952.57 | J58: =SUMIF('00 PDC SP'!$C:$C,'00 SP'!$D58,'00 PDC SP'!L:L) -> 1516047.7 | K58: =SUMIF('00 PDC SP'!$C:$C,'00 SP'!$D58,'00 PDC SP'!M:M) -> 3923799.51 | L58: =SUMIF('00 PDC SP'!$C:$C,'00 SP'!$D58,'00 PDC SP'!N:N) -> 8590200.76
A59: AAA550 | B59: A.II.10) Fondo Svalutazione immobilizzazioni materiali | C59: S | D59: AAA550 | F59: =SUM(F60:F67) -> 0 | G59: 0 | H59: 0 | I59: 0 | J59: 0 | K59: 0 | L59: 0
A60: AAA560 | B60: A.II.10.a) F.do Svalut. Terreni | D60: AAA560 | E60: 39 | F60: =SUMIF('00 PDC SP'!$C:$C,'00 SP'!$D60,'00 PDC SP'!H:H) -> 0 | G60: =SUMIF('00 PDC SP'!$C:$C,'00 SP'!$D60,'00 PDC SP'!I:I) -> 0 | H60: =SUMIF('00 PDC SP'!$C:$C,'00 SP'!$D60,'00 PDC SP'!J:J) -> 0 | I60: =SUMIF('00 PDC SP'!$C:$C,'00 SP'!$D60,'00 PDC SP'!K:K) -> 0 | J60: =SUMIF('00 PDC SP'!$C:$C,'00 SP'!$D60,'00 PDC SP'!L:L) -> 0 | K60: =SUMIF('00 PDC SP'!$C:$C,'00 SP'!$D60,'00 PDC SP'!M:M) -> 0 | L60: =SUMIF('00 PDC SP'!$C:$C,'00 SP'!$D60,'00 PDC SP'!N:N) -> 0
A61: AAA570 | B61: A.II.10.b) F.do Svalut. Fabbricati | D61: AAA570 | E61: 40 | F61: =SUMIF('00 PDC SP'!$C:$C,'00 SP'!$D61,'00 PDC SP'!H:H) -> 0 | G61: =SUMIF('00 PDC SP'!$C:$C,'00 SP'!$D61,'00 PDC SP'!I:I) -> 0 | H61: =SUMIF('00 PDC SP'!$C:$C,'00 SP'!$D61,'00 PDC SP'!J:J) -> 0 | I61: =SUMIF('00 PDC SP'!$C:$C,'00 SP'!$D61,'00 PDC SP'!K:K) -> 0 | J61: =SUMIF('00 PDC SP'!$C:$C,'00 SP'!$D61,'00 PDC SP'!L:L) -> 0 | K61: =SUMIF('00 PDC SP'!$C:$C,'00 SP'!$D61,'00 PDC SP'!M:M) -> 0 | L61: =SUMIF('00 PDC SP'!$C:$C,'00 SP'!$D61,'00 PDC SP'!N:N) -> 0
A62: AAA580 | B62: A.II.10.c) F.do Svalut. Impianti e macchinari | D62: AAA580 | E62: 41 | F62: =SUMIF('00 PDC SP'!$C:$C,'00 SP'!$D62,'00 PDC SP'!H:H) -> 0 | G62: =SUMIF('00 PDC SP'!$C:$C,'00 SP'!$D62,'00 PDC SP'!I:I) -> 0 | H62: =SUMIF('00 PDC SP'!$C:$C,'00 SP'!$D62,'00 PDC SP'!J:J) -> 0 | I62: =SUMIF('00 PDC SP'!$C:$C,'00 SP'!$D62,'00 PDC SP'!K:K) -> 0 | J62: =SUMIF('00 PDC SP'!$C:$C,'00 SP'!$D62,'00 PDC SP'!L:L) -> 0 | K62: =SUMIF('00 PDC SP'!$C:$C,'00 SP'!$D62,'00 PDC SP'!M:M) -> 0 | L62: =SUMIF('00 PDC SP'!$C:$C,'00 SP'!$D62,'00 PDC SP'!N:N) -> 0
A63: AAA590 | B63: A.II.10.d) F.do Svalut. Attrezzature sanitarie e scientifiche | D63: AAA590 | E63: 42 | F63: =SUMIF('00 PDC SP'!$C:$C,'00 SP'!$D63,'00 PDC SP'!H:H) -> 0 | G63: =SUMIF('00 PDC SP'!$C:$C,'00 SP'!$D63,'00 PDC SP'!I:I) -> 0 | H63: =SUMIF('00 PDC SP'!$C:$C,'00 SP'!$D63,'00 PDC SP'!J:J) -> 0 | I63: =SUMIF('00 PDC SP'!$C:$C,'00 SP'!$D63,'00 PDC SP'!K:K) -> 0 | J63: =SUMIF('00 PDC SP'!$C:$C,'00 SP'!$D63,'00 PDC SP'!L:L) -> 0 | K63: =SUMIF('00 PDC SP'!$C:$C,'00 SP'!$D63,'00 PDC SP'!M:M) -> 0 | L63: =SUMIF('00 PDC SP'!$C:$C,'00 SP'!$D63,'00 PDC SP'!N:N) -> 0
A64: AAA600 | B64: A.II.10.e) F.do Svalut. Mobili e arredi | D64: AAA600 | E64: 43 | F64: =SUMIF('00 PDC SP'!$C:$C,'00 SP'!$D64,'00 PDC SP'!H:H) -> 0 | G64: =SUMIF('00 PDC SP'!$C:$C,'00 SP'!$D64,'00 PDC SP'!I:I) -> 0 | H64: =SUMIF('00 PDC SP'!$C:$C,'00 SP'!$D64,'00 PDC SP'!J:J) -> 0 | I64: =SUMIF('00 PDC SP'!$C:$C,'00 SP'!$D64,'00 PDC SP'!K:K) -> 0 | J64: =SUMIF('00 PDC SP'!$C:$C,'00 SP'!$D64,'00 PDC SP'!L:L) -> 0 | K64: =SUMIF('00 PDC SP'!$C:$C,'00 SP'!$D64,'00 PDC SP'!M:M) -> 0 | L64: =SUMIF('00 PDC SP'!$C:$C,'00 SP'!$D64,'00 PDC SP'!N:N) -> 0
A65: AAA610 | B65: A.II.10.f) F.do Svalut. Automezzi | D65: AAA610 | E65: 44 | F65: =SUMIF('00 PDC SP'!$C:$C,'00 SP'!$D65,'00 PDC SP'!H:H) -> 0 | G65: =SUMIF('00 PDC SP'!$C:$C,'00 SP'!$D65,'00 PDC SP'!I:I) -> 0 | H65: =SUMIF('00 PDC SP'!$C:$C,'00 SP'!$D65,'00 PDC SP'!J:J) -> 0 | I65: =SUMIF('00 PDC SP'!$C:$C,'00 SP'!$D65,'00 PDC SP'!K:K) -> 0 | J65: =SUMIF('00 PDC SP'!$C:$C,'00 SP'!$D65,'00 PDC SP'!L:L) -> 0 | K65: =SUMIF('00 PDC SP'!$C:$C,'00 SP'!$D65,'00 PDC SP'!M:M) -> 0 | L65: =SUMIF('00 PDC SP'!$C:$C,'00 SP'!$D65,'00 PDC SP'!N:N) -> 0
A66: AAA620 | B66: A.II.10.g) F.do Svalut. Oggetti d'arte | D66: AAA620 | E66: 45 | F66: =SUMIF('00 PDC SP'!$C:$C,'00 SP'!$D66,'00 PDC SP'!H:H) -> 0 | G66: =SUMIF('00 PDC SP'!$C:$C,'00 SP'!$D66,'00 PDC SP'!I:I) -> 0 | H66: =SUMIF('00 PDC SP'!$C:$C,'00 SP'!$D66,'00 PDC SP'!J:J) -> 0 | I66: =SUMIF('00 PDC SP'!$C:$C,'00 SP'!$D66,'00 PDC SP'!K:K) -> 0 | J66: =SUMIF('00 PDC SP'!$C:$C,'00 SP'!$D66,'00 PDC SP'!L:L) -> 0 | K66: =SUMIF('00 PDC SP'!$C:$C,'00 SP'!$D66,'00 PDC SP'!M:M) -> 0 | L66: =SUMIF('00 PDC SP'!$C:$C,'00 SP'!$D66,'00 PDC SP'!N:N) -> 0
A67: AAA630 | B67: A.II.10.h) F.do Svalut. Altre immobilizzazioni materiali | D67: AAA630 | E67: 45 | F67: =SUMIF('00 PDC SP'!$C:$C,'00 SP'!$D67,'00 PDC SP'!H:H) -> 0 | G67: =SUMIF('00 PDC SP'!$C:$C,'00 SP'!$D67,'00 PDC SP'!I:I) -> 0 | H67: =SUMIF('00 PDC SP'!$C:$C,'00 SP'!$D67,'00 PDC SP'!J:J) -> 0 | I67: =SUMIF('00 PDC SP'!$C:$C,'00 SP'!$D67,'00 PDC SP'!K:K) -> 0 | J67: =SUMIF('00 PDC SP'!$C:$C,'00 SP'!$D67,'00 PDC SP'!L:L) -> 0 | K67: =SUMIF('00 PDC SP'!$C:$C,'00 SP'!$D67,'00 PDC SP'!M:M) -> 0 | L67: =SUMIF('00 PDC SP'!$C:$C,'00 SP'!$D67,'00 PDC SP'!N:N) -> 0
A68: AAA640 | B68: A.III) IMMOBILIZZAZIONI FINANZIARIE | C68: S | D68: AAA640 | F68: =F69+F74 -> 14036.45 | G68: 0 | H68: 0 | I68: 14036.45 | J68: 0 | K68: 0 | L68: 14036.45
A69: AAA650 | B69: A.III.1) Crediti finanziari | C69: S | D69: AAA650 | F69: =SUM(F70:F73) -> 14036.45 | G69: 0 | H69: 0 | I69: 14036.45 | J69: 0 | K69: 0 | L69: 14036.45
A70: AAA660 | B70: A.III.1.a) Crediti finanziari v/Stato | D70: AAA660 | E70: 46 | F70: =SUMIF('00 PDC SP'!$C:$C,'00 SP'!$D70,'00 PDC SP'!H:H) -> 0 | G70: =SUMIF('00 PDC SP'!$C:$C,'00 SP'!$D70,'00 PDC SP'!I:I) -> 0 | H70: =SUMIF('00 PDC SP'!$C:$C,'00 SP'!$D70,'00 PDC SP'!J:J) -> 0 | I70: =SUMIF('00 PDC SP'!$C:$C,'00 SP'!$D70,'00 PDC SP'!K:K) -> 0 | J70: =SUMIF('00 PDC SP'!$C:$C,'00 SP'!$D70,'00 PDC SP'!L:L) -> 0 | K70: =SUMIF('00 PDC SP'!$C:$C,'00 SP'!$D70,'00 PDC SP'!M:M) -> 0 | L70: =SUMIF('00 PDC SP'!$C:$C,'00 SP'!$D70,'00 PDC SP'!N:N) -> 0
A71: AAA670 | B71: A.III.1.b) Crediti finanziari v/Regione | D71: AAA670 | E71: 46 | F71: =SUMIF('00 PDC SP'!$C:$C,'00 SP'!$D71,'00 PDC SP'!H:H) -> 0 | G71: =SUMIF('00 PDC SP'!$C:$C,'00 SP'!$D71,'00 PDC SP'!I:I) -> 0 | H71: =SUMIF('00 PDC SP'!$C:$C,'00 SP'!$D71,'00 PDC SP'!J:J) -> 0 | I71: =SUMIF('00 PDC SP'!$C:$C,'00 SP'!$D71,'00 PDC SP'!K:K) -> 0 | J71: =SUMIF('00 PDC SP'!$C:$C,'00 SP'!$D71,'00 PDC SP'!L:L) -> 0 | K71: =SUMIF('00 PDC SP'!$C:$C,'00 SP'!$D71,'00 PDC SP'!M:M) -> 0 | L71: =SUMIF('00 PDC SP'!$C:$C,'00 SP'!$D71,'00 PDC SP'!N:N) -> 0
A72: AAA680 | B72: A.III.1.c) Crediti finanziari v/partecipate | D72: AAA680 | E72: 46 | F72: =SUMIF('00 PDC SP'!$C:$C,'00 SP'!$D72,'00 PDC SP'!H:H) -> 0 | G72: =SUMIF('00 PDC SP'!$C:$C,'00 SP'!$D72,'00 PDC SP'!I:I) -> 0 | H72: =SUMIF('00 PDC SP'!$C:$C,'00 SP'!$D72,'00 PDC SP'!J:J) -> 0 | I72: =SUMIF('00 PDC SP'!$C:$C,'00 SP'!$D72,'00 PDC SP'!K:K) -> 0 | J72: =SUMIF('00 PDC SP'!$C:$C,'00 SP'!$D72,'00 PDC SP'!L:L) -> 0 | K72: =SUMIF('00 PDC SP'!$C:$C,'00 SP'!$D72,'00 PDC SP'!M:M) -> 0 | L72: =SUMIF('00 PDC SP'!$C:$C,'00 SP'!$D72,'00 PDC SP'!N:N) -> 0
A73: AAA690 | B73: A.III.1.d) Crediti finanziari v/altri | D73: AAA690 | E73: 46 | F73: =SUMIF('00 PDC SP'!$C:$C,'00 SP'!$D73,'00 PDC SP'!H:H) -> 14036.45 | G73: =SUMIF('00 PDC SP'!$C:$C,'00 SP'!$D73,'00 PDC SP'!I:I) -> 0 | H73: =SUMIF('00 PDC SP'!$C:$C,'00 SP'!$D73,'00 PDC SP'!J:J) -> 0 | I73: =SUMIF('00 PDC SP'!$C:$C,'00 SP'!$D73,'00 PDC SP'!K:K) -> 14036.45 | J73: =SUMIF('00 PDC SP'!$C:$C,'00 SP'!$D73,'00 PDC SP'!L:L) -> 0 | K73: =SUMIF('00 PDC SP'!$C:$C,'00 SP'!$D73,'00 PDC SP'!M:M) -> 0 | L73: =SUMIF('00 PDC SP'!$C:$C,'00 SP'!$D73,'00 PDC SP'!N:N) -> 14036.45
A74: AAA700 | B74: A.III.2) Titoli | C74: S | D74: AAA700 | F74: =F75+F76 -> 0 | G74: 0 | H74: 0 | I74: 0 | J74: 0 | K74: 0 | L74: 0
A75: AAA710 | B75: A.III.2.a) Partecipazioni | D75: AAA710 | E75: 47 | F75: =SUMIF('00 PDC SP'!$C:$C,'00 SP'!$D75,'00 PDC SP'!H:H) -> 0 | G75: =SUMIF('00 PDC SP'!$C:$C,'00 SP'!$D75,'00 PDC SP'!I:I) -> 0 | H75: =SUMIF('00 PDC SP'!$C:$C,'00 SP'!$D75,'00 PDC SP'!J:J) -> 0 | I75: =SUMIF('00 PDC SP'!$C:$C,'00 SP'!$D75,'00 PDC SP'!K:K) -> 0 | J75: =SUMIF('00 PDC SP'!$C:$C,'00 SP'!$D75,'00 PDC SP'!L:L) -> 0 | K75: =SUMIF('00 PDC SP'!$C:$C,'00 SP'!$D75,'00 PDC SP'!M:M) -> 0 | L75: =SUMIF('00 PDC SP'!$C:$C,'00 SP'!$D75,'00 PDC SP'!N:N) -> 0
A76: AAA720 | B76: A.III.2.b) Altri titoli | C76: S | D76: AAA720 | F76: =SUM(F77:F80) -> 0 | G76: 0 | H76: 0 | I76: 0 | J76: 0 | K76: 0 | L76: 0
A77: AAA730 | B77: A.III.2.b.1) Titoli di Stato | D77: AAA730 | E77: 47 | F77: =SUMIF('00 PDC SP'!$C:$C,'00 SP'!$D77,'00 PDC SP'!H:H) -> 0 | G77: =SUMIF('00 PDC SP'!$C:$C,'00 SP'!$D77,'00 PDC SP'!I:I) -> 0 | H77: =SUMIF('00 PDC SP'!$C:$C,'00 SP'!$D77,'00 PDC SP'!J:J) -> 0 | I77: =SUMIF('00 PDC SP'!$C:$C,'00 SP'!$D77,'00 PDC SP'!K:K) -> 0 | J77: =SUMIF('00 PDC SP'!$C:$C,'00 SP'!$D77,'00 PDC SP'!L:L) -> 0 | K77: =SUMIF('00 PDC SP'!$C:$C,'00 SP'!$D77,'00 PDC SP'!M:M) -> 0 | L77: =SUMIF('00 PDC SP'!$C:$C,'00 SP'!$D77,'00 PDC SP'!N:N) -> 0
A78: AAA740 | B78: A.III.2.b.2) Altre Obbligazioni | D78: AAA740 | E78: 47 | F78: =SUMIF('00 PDC SP'!$C:$C,'00 SP'!$D78,'00 PDC SP'!H:H) -> 0 | G78: =SUMIF('00 PDC SP'!$C:$C,'00 SP'!$D78,'00 PDC SP'!I:I) -> 0 | H78: =SUMIF('00 PDC SP'!$C:$C,'00 SP'!$D78,'00 PDC SP'!J:J) -> 0 | I78: =SUMIF('00 PDC SP'!$C:$C,'00 SP'!$D78,'00 PDC SP'!K:K) -> 0 | J78: =SUMIF('00 PDC SP'!$C:$C,'00 SP'!$D78,'00 PDC SP'!L:L) -> 0 | K78: =SUMIF('00 PDC SP'!$C:$C,'00 SP'!$D78,'00 PDC SP'!M:M) -> 0 | L78: =SUMIF('00 PDC SP'!$C:$C,'00 SP'!$D78,'00 PDC SP'!N:N) -> 0
A79: AAA750 | B79: A.III.2.b.3) Titoli azionari quotati in Borsa | D79: AAA750 | E79: 47 | F79: =SUMIF('00 PDC SP'!$C:$C,'00 SP'!$D79,'00 PDC SP'!H:H) -> 0 | G79: =SUMIF('00 PDC SP'!$C:$C,'00 SP'!$D79,'00 PDC SP'!I:I) -> 0 | H79: =SUMIF('00 PDC SP'!$C:$C,'00 SP'!$D79,'00 PDC SP'!J:J) -> 0 | I79: =SUMIF('00 PDC SP'!$C:$C,'00 SP'!$D79,'00 PDC SP'!K:K) -> 0 | J79: =SUMIF('00 PDC SP'!$C:$C,'00 SP'!$D79,'00 PDC SP'!L:L) -> 0 | K79: =SUMIF('00 PDC SP'!$C:$C,'00 SP'!$D79,'00 PDC SP'!M:M) -> 0 | L79: =SUMIF('00 PDC SP'!$C:$C,'00 SP'!$D79,'00 PDC SP'!N:N) -> 0
A80: AAA760 | B80: A.III.2.b.4) Titoli diversi | D80: AAA760 | E80: 47 | F80: =SUMIF('00 PDC SP'!$C:$C,'00 SP'!$D80,'00 PDC SP'!H:H) -> 0 | G80: =SUMIF('00 PDC SP'!$C:$C,'00 SP'!$D80,'00 PDC SP'!I:I) -> 0 | H80: =SUMIF('00 PDC SP'!$C:$C,'00 SP'!$D80,'00 PDC SP'!J:J) -> 0 | I80: =SUMIF('00 PDC SP'!$C:$C,'00 SP'!$D80,'00 PDC SP'!K:K) -> 0 | J80: =SUMIF('00 PDC SP'!$C:$C,'00 SP'!$D80,'00 PDC SP'!L:L) -> 0 | K80: =SUMIF('00 PDC SP'!$C:$C,'00 SP'!$D80,'00 PDC SP'!M:M) -> 0 | L80: =SUMIF('00 PDC SP'!$C:$C,'00 SP'!$D80,'00 PDC SP'!N:N) -> 0
A81: ABZ999 | B81: B) ATTIVO CIRCOLANTE | C81: S | D81: ABZ999 | F81: =F82+F101+F154+F157 -> 260562718.9 | G81: 2005032561 | H81: 1999341648 | I81: 266253631.1 | J81: 2107441962 | K81: 2090110564 | L81: 283585028.4
A82: ABA000 | B82: B.I) RIMANENZE | C82: S | D82: ABA000 | F82: =F83+F93 -> 10622628.8 | G82: 11844723.25 | H82: 10622628.8 | I82: 11844723.25 | J82: 16855724.81 | K82: 11844723.25 | L82: 16855724.81
A83: ABA010 | B83: B.I.1) Rimanenze beni sanitari | C83: S | D83: ABA010 | F83: =SUM(F84:F92) -> 10166401.24 | G83: 11334105.08 | H83: 10166401.24 | I83: 11334105.08 | J83: 16457605.35 | K83: 11334105.08 | L83: 16457605.35
A84: ABA020 | B84: B.I.1.a) Prodotti farmaceutici ed emoderivati | D84: ABA020 | E84: 31 | F84: =SUMIF('00 PDC SP'!$C:$C,'00 SP'!$D84,'00 PDC SP'!H:H) -> 5481808.89 | G84: =SUMIF('00 PDC SP'!$C:$C,'00 SP'!$D84,'00 PDC SP'!I:I) -> 5834132.12 | H84: =SUMIF('00 PDC SP'!$C:$C,'00 SP'!$D84,'00 PDC SP'!J:J) -> 5481808.89 | I84: =SUMIF('00 PDC SP'!$C:$C,'00 SP'!$D84,'00 PDC SP'!K:K) -> 5834132.12 | J84: =SUMIF('00 PDC SP'!$C:$C,'00 SP'!$D84,'00 PDC SP'!L:L) -> 10541532.87 | K84: =SUMIF('00 PDC SP'!$C:$C,'00 SP'!$D84,'00 PDC SP'!M:M) -> 5834132.12 | L84: =SUMIF('00 PDC SP'!$C:$C,'00 SP'!$D84,'00 PDC SP'!N:N) -> 10541532.87
A85: ABA030 | B85: B.I.1.b) Sangue ed emocomponenti | D85: ABA030 | E85: 31 | F85: =SUMIF('00 PDC SP'!$C:$C,'00 SP'!$D85,'00 PDC SP'!H:H) -> 0 | G85: =SUMIF('00 PDC SP'!$C:$C,'00 SP'!$D85,'00 PDC SP'!I:I) -> 0 | H85: =SUMIF('00 PDC SP'!$C:$C,'00 SP'!$D85,'00 PDC SP'!J:J) -> 0 | I85: =SUMIF('00 PDC SP'!$C:$C,'00 SP'!$D85,'00 PDC SP'!K:K) -> 0 | J85: =SUMIF('00 PDC SP'!$C:$C,'00 SP'!$D85,'00 PDC SP'!L:L) -> 0 | K85: =SUMIF('00 PDC SP'!$C:$C,'00 SP'!$D85,'00 PDC SP'!M:M) -> 0 | L85: =SUMIF('00 PDC SP'!$C:$C,'00 SP'!$D85,'00 PDC SP'!N:N) -> 0
A86: ABA040 | B86: B.I.1.c) Dispositivi medici | D86: ABA040 | E86: 31 | F86: =SUMIF('00 PDC SP'!$C:$C,'00 SP'!$D86,'00 PDC SP'!H:H) -> 4404910.21 | G86: =SUMIF('00 PDC SP'!$C:$C,'00 SP'!$D86,'00 PDC SP'!I:I) -> 5139047.93 | H86: =SUMIF('00 PDC SP'!$C:$C,'00 SP'!$D86,'00 PDC SP'!J:J) -> 4404910.21 | I86: =SUMIF('00 PDC SP'!$C:$C,'00 SP'!$D86,'00 PDC SP'!K:K) -> 5139047.93 | J86: =SUMIF('00 PDC SP'!$C:$C,'00 SP'!$D86,'00 PDC SP'!L:L) -> 5544382.73 | K86: =SUMIF('00 PDC SP'!$C:$C,'00 SP'!$D86,'00 PDC SP'!M:M) -> 5139047.93 | L86: =SUMIF('00 PDC SP'!$C:$C,'00 SP'!$D86,'00 PDC SP'!N:N) -> 5544382.73
A87: ABA050 | B87: B.I.1.d) Prodotti dietetici | D87: ABA050 | E87: 31 | F87: =SUMIF('00 PDC SP'!$C:$C,'00 SP'!$D87,'00 PDC SP'!H:H) -> 68269.16 | G87: =SUMIF('00 PDC SP'!$C:$C,'00 SP'!$D87,'00 PDC SP'!I:I) -> 63620.12 | H87: =SUMIF('00 PDC SP'!$C:$C,'00 SP'!$D87,'00 PDC SP'!J:J) -> 68269.16 | I87: =SUMIF('00 PDC SP'!$C:$C,'00 SP'!$D87,'00 PDC SP'!K:K) -> 63620.12 | J87: =SUMIF('00 PDC SP'!$C:$C,'00 SP'!$D87,'00 PDC SP'!L:L) -> 71649.81 | K87: =SUMIF('00 PDC SP'!$C:$C,'00 SP'!$D87,'00 PDC SP'!M:M) -> 63620.12 | L87: =SUMIF('00 PDC SP'!$C:$C,'00 SP'!$D87,'00 PDC SP'!N:N) -> 71649.81
A88: ABA060 | B88: B.I.1.e) Materiali per la profilassi (vaccini) | D88: ABA060 | E88: 31 | F88: =SUMIF('00 PDC SP'!$C:$C,'00 SP'!$D88,'00 PDC SP'!H:H) -> 0 | G88: =SUMIF('00 PDC SP'!$C:$C,'00 SP'!$D88,'00 PDC SP'!I:I) -> 1112.76 | H88: =SUMIF('00 PDC SP'!$C:$C,'00 SP'!$D88,'00 PDC SP'!J:J) -> 0 | I88: =SUMIF('00 PDC SP'!$C:$C,'00 SP'!$D88,'00 PDC SP'!K:K) -> 1112.76 | J88: =SUMIF('00 PDC SP'!$C:$C,'00 SP'!$D88,'00 PDC SP'!L:L) -> 2856.7 | K88: =SUMIF('00 PDC SP'!$C:$C,'00 SP'!$D88,'00 PDC SP'!M:M) -> 1112.76 | L88: =SUMIF('00 PDC SP'!$C:$C,'00 SP'!$D88,'00 PDC SP'!N:N) -> 2856.7
A89: ABA070 | B89: B.I.1.f) Prodotti chimici | D89: ABA070 | E89: 31 | F89: =SUMIF('00 PDC SP'!$C:$C,'00 SP'!$D89,'00 PDC SP'!H:H) -> 0 | G89: =SUMIF('00 PDC SP'!$C:$C,'00 SP'!$D89,'00 PDC SP'!I:I) -> 0 | H89: =SUMIF('00 PDC SP'!$C:$C,'00 SP'!$D89,'00 PDC SP'!J:J) -> 0 | I89: =SUMIF('00 PDC SP'!$C:$C,'00 SP'!$D89,'00 PDC SP'!K:K) -> 0 | J89: =SUMIF('00 PDC SP'!$C:$C,'00 SP'!$D89,'00 PDC SP'!L:L) -> 0 | K89: =SUMIF('00 PDC SP'!$C:$C,'00 SP'!$D89,'00 PDC SP'!M:M) -> 0 | L89: =SUMIF('00 PDC SP'!$C:$C,'00 SP'!$D89,'00 PDC SP'!N:N) -> 0
A90: ABA080 | B90: B.I.1.g) Materiali e prodotti per uso veterinario | D90: ABA080 | E90: 31 | F90: =SUMIF('00 PDC SP'!$C:$C,'00 SP'!$D90,'00 PDC SP'!H:H) -> 0 | G90: =SUMIF('00 PDC SP'!$C:$C,'00 SP'!$D90,'00 PDC SP'!I:I) -> 0 | H90: =SUMIF('00 PDC SP'!$C:$C,'00 SP'!$D90,'00 PDC SP'!J:J) -> 0 | I90: =SUMIF('00 PDC SP'!$C:$C,'00 SP'!$D90,'00 PDC SP'!K:K) -> 0 | J90: =SUMIF('00 PDC SP'!$C:$C,'00 SP'!$D90,'00 PDC SP'!L:L) -> 0 | K90: =SUMIF('00 PDC SP'!$C:$C,'00 SP'!$D90,'00 PDC SP'!M:M) -> 0 | L90: =SUMIF('00 PDC SP'!$C:$C,'00 SP'!$D90,'00 PDC SP'!N:N) -> 0
A91: ABA090 | B91: B.I.1.h) Altri beni e prodotti sanitari | D91: ABA090 | E91: 31 | F91: =SUMIF('00 PDC SP'!$C:$C,'00 SP'!$D91,'00 PDC SP'!H:H) -> 211412.98 | G91: =SUMIF('00 PDC SP'!$C:$C,'00 SP'!$D91,'00 PDC SP'!I:I) -> 296192.15 | H91: =SUMIF('00 PDC SP'!$C:$C,'00 SP'!$D91,'00 PDC SP'!J:J) -> 211412.98 | I91: =SUMIF('00 PDC SP'!$C:$C,'00 SP'!$D91,'00 PDC SP'!K:K) -> 296192.15 | J91: =SUMIF('00 PDC SP'!$C:$C,'00 SP'!$D91,'00 PDC SP'!L:L) -> 297183.24 | K91: =SUMIF('00 PDC SP'!$C:$C,'00 SP'!$D91,'00 PDC SP'!M:M) -> 296192.15 | L91: =SUMIF('00 PDC SP'!$C:$C,'00 SP'!$D91,'00 PDC SP'!N:N) -> 297183.24
A92: ABA100 | B92: B.I.1.i) Acconti per acquisto di beni e prodotti sanitari | D92: ABA100 | E92: 32 | F92: =SUMIF('00 PDC SP'!$C:$C,'00 SP'!$D92,'00 PDC SP'!H:H) -> 0 | G92: =SUMIF('00 PDC SP'!$C:$C,'00 SP'!$D92,'00 PDC SP'!I:I) -> 0 | H92: =SUMIF('00 PDC SP'!$C:$C,'00 SP'!$D92,'00 PDC SP'!J:J) -> 0 | I92: =SUMIF('00 PDC SP'!$C:$C,'00 SP'!$D92,'00 PDC SP'!K:K) -> 0 | J92: =SUMIF('00 PDC SP'!$C:$C,'00 SP'!$D92,'00 PDC SP'!L:L) -> 0 | K92: =SUMIF('00 PDC SP'!$C:$C,'00 SP'!$D92,'00 PDC SP'!M:M) -> 0 | L92: =SUMIF('00 PDC SP'!$C:$C,'00 SP'!$D92,'00 PDC SP'!N:N) -> 0
A93: ABA110 | B93: B.I.2) Rimanenze beni non sanitari | C93: S | D93: ABA110 | F93: =SUM(F94:F100) -> 456227.56 | G93: 510618.17 | H93: 456227.56 | I93: 510618.17 | J93: 398119.46 | K93: 510618.17 | L93: 398119.46
A94: ABA120 | B94: B.I.2.a) Prodotti alimentari | D94: ABA120 | E94: 31 | F94: =SUMIF('00 PDC SP'!$C:$C,'00 SP'!$D94,'00 PDC SP'!H:H) -> 0 | G94: =SUMIF('00 PDC SP'!$C:$C,'00 SP'!$D94,'00 PDC SP'!I:I) -> 0 | H94: =SUMIF('00 PDC SP'!$C:$C,'00 SP'!$D94,'00 PDC SP'!J:J) -> 0 | I94: =SUMIF('00 PDC SP'!$C:$C,'00 SP'!$D94,'00 PDC SP'!K:K) -> 0 | J94: =SUMIF('00 PDC SP'!$C:$C,'00 SP'!$D94,'00 PDC SP'!L:L) -> 0 | K94: =SUMIF('00 PDC SP'!$C:$C,'00 SP'!$D94,'00 PDC SP'!M:M) -> 0 | L94: =SUMIF('00 PDC SP'!$C:$C,'00 SP'!$D94,'00 PDC SP'!N:N) -> 0
A95: ABA130 | B95: B.I.2.b) Materiali di guardaroba, di pulizia, e di convivenza in genere | D95: ABA130 | E95: 31 | F95: =SUMIF('00 PDC SP'!$C:$C,'00 SP'!$D95,'00 PDC SP'!H:H) -> 35073.03 | G95: =SUMIF('00 PDC SP'!$C:$C,'00 SP'!$D95,'00 PDC SP'!I:I) -> 29727.94 | H95: =SUMIF('00 PDC SP'!$C:$C,'00 SP'!$D95,'00 PDC SP'!J:J) -> 35073.03 | I95: =SUMIF('00 PDC SP'!$C:$C,'00 SP'!$D95,'00 PDC SP'!K:K) -> 29727.94 | J95: =SUMIF('00 PDC SP'!$C:$C,'00 SP'!$D95,'00 PDC SP'!L:L) -> 29504.9 | K95: =SUMIF('00 PDC SP'!$C:$C,'00 SP'!$D95,'00 PDC SP'!M:M) -> 29727.94 | L95: =SUMIF('00 PDC SP'!$C:$C,'00 SP'!$D95,'00 PDC SP'!N:N) -> 29504.9
A96: ABA140 | B96: B.I.2.c) Combustibili, carburanti e lubrificanti | D96: ABA140 | E96: 31 | F96: =SUMIF('00 PDC SP'!$C:$C,'00 SP'!$D96,'00 PDC SP'!H:H) -> 0 | G96: =SUMIF('00 PDC SP'!$C:$C,'00 SP'!$D96,'00 PDC SP'!I:I) -> 0 | H96: =SUMIF('00 PDC SP'!$C:$C,'00 SP'!$D96,'00 PDC SP'!J:J) -> 0 | I96: =SUMIF('00 PDC SP'!$C:$C,'00 SP'!$D96,'00 PDC SP'!K:K) -> 0 | J96: =SUMIF('00 PDC SP'!$C:$C,'00 SP'!$D96,'00 PDC SP'!L:L) -> 0 | K96: =SUMIF('00 PDC SP'!$C:$C,'00 SP'!$D96,'00 PDC SP'!M:M) -> 0 | L96: =SUMIF('00 PDC SP'!$C:$C,'00 SP'!$D96,'00 PDC SP'!N:N) -> 0
A97: ABA150 | B97: B.I.2.d) Supporti informatici e cancelleria | D97: ABA150 | E97: 31 | F97: =SUMIF('00 PDC SP'!$C:$C,'00 SP'!$D97,'00 PDC SP'!H:H) -> 333136.13 | G97: =SUMIF('00 PDC SP'!$C:$C,'00 SP'!$D97,'00 PDC SP'!I:I) -> 362290.35 | H97: =SUMIF('00 PDC SP'!$C:$C,'00 SP'!$D97,'00 PDC SP'!J:J) -> 333136.13 | I97: =SUMIF('00 PDC SP'!$C:$C,'00 SP'!$D97,'00 PDC SP'!K:K) -> 362290.35 | J97: =SUMIF('00 PDC SP'!$C:$C,'00 SP'!$D97,'00 PDC SP'!L:L) -> 209556.43 | K97: =SUMIF('00 PDC SP'!$C:$C,'00 SP'!$D97,'00 PDC SP'!M:M) -> 362290.35 | L97: =SUMIF('00 PDC SP'!$C:$C,'00 SP'!$D97,'00 PDC SP'!N:N) -> 209556.43
A98: ABA160 | B98: B.I.2.e) Materiale per la manutenzione | D98: ABA160 | E98: 31 | F98: =SUMIF('00 PDC SP'!$C:$C,'00 SP'!$D98,'00 PDC SP'!H:H) -> 85148.94 | G98: =SUMIF('00 PDC SP'!$C:$C,'00 SP'!$D98,'00 PDC SP'!I:I) -> 117370.14 | H98: =SUMIF('00 PDC SP'!$C:$C,'00 SP'!$D98,'00 PDC SP'!J:J) -> 85148.94 | I98: =SUMIF('00 PDC SP'!$C:$C,'00 SP'!$D98,'00 PDC SP'!K:K) -> 117370.14 | J98: =SUMIF('00 PDC SP'!$C:$C,'00 SP'!$D98,'00 PDC SP'!L:L) -> 158555.7 | K98: =SUMIF('00 PDC SP'!$C:$C,'00 SP'!$D98,'00 PDC SP'!M:M) -> 117370.14 | L98: =SUMIF('00 PDC SP'!$C:$C,'00 SP'!$D98,'00 PDC SP'!N:N) -> 158555.7
A99: ABA170 | B99: B.I.2.f) Altri beni e prodotti non sanitari | D99: ABA170 | E99: 31 | F99: =SUMIF('00 PDC SP'!$C:$C,'00 SP'!$D99,'00 PDC SP'!H:H) -> 2869.46 | G99: =SUMIF('00 PDC SP'!$C:$C,'00 SP'!$D99,'00 PDC SP'!I:I) -> 1229.74 | H99: =SUMIF('00 PDC SP'!$C:$C,'00 SP'!$D99,'00 PDC SP'!J:J) -> 2869.46 | I99: =SUMIF('00 PDC SP'!$C:$C,'00 SP'!$D99,'00 PDC SP'!K:K) -> 1229.74 | J99: =SUMIF('00 PDC SP'!$C:$C,'00 SP'!$D99,'00 PDC SP'!L:L) -> 502.43 | K99: =SUMIF('00 PDC SP'!$C:$C,'00 SP'!$D99,'00 PDC SP'!M:M) -> 1229.74 | L99: =SUMIF('00 PDC SP'!$C:$C,'00 SP'!$D99,'00 PDC SP'!N:N) -> 502.43
A100: ABA180 | B100: B.I.2.g) Acconti per acquisto di beni e prodotti non sanitari | D100: ABA180 | E100: 32 | F100: =SUMIF('00 PDC SP'!$C:$C,'00 SP'!$D100,'00 PDC SP'!H:H) -> 0 | G100: =SUMIF('00 PDC SP'!$C:$C,'00 SP'!$D100,'00 PDC SP'!I:I) -> 0 | H100: =SUMIF('00 PDC SP'!$C:$C,'00 SP'!$D100,'00 PDC SP'!J:J) -> 0 | I100: =SUMIF('00 PDC SP'!$C:$C,'00 SP'!$D100,'00 PDC SP'!K:K) -> 0 | J100: =SUMIF('00 PDC SP'!$C:$C,'00 SP'!$D100,'00 PDC SP'!L:L) -> 0 | K100: =SUMIF('00 PDC SP'!$C:$C,'00 SP'!$D100,'00 PDC SP'!M:M) -> 0 | L100: =SUMIF('00 PDC SP'!$C:$C,'00 SP'!$D100,'00 PDC SP'!N:N) -> 0
A101: ABA190 | B101: B.II) CREDITI | C101: S | D101: ABA190 | F101: =F102+F117+F135+F136+F143+F147+F148 -> 221460198.9 | G101: 1317339060 | H101: 1357196933 | I101: 181602325.3 | J101: 1463465368 | K101: 1425846498 | L101: 219221194.8
A102: ABA200 | B102: B.II.1) Crediti v/Stato | C102: S | D102: ABA200 | F102: =SUM(F103:F111)+F116 -> 104053 | G102: 12202.45 | H102: 18172.71 | I102: 98082.74 | J102: 154584.84 | K102: 245746.06 | L102: 6921.52
A103: ABA210 | B103: B.II.1.a) Crediti v/Stato per spesa corrente - Integrazione a norma del D.L.vo 56/2000 | D103: ABA210 | E103: 21 | F103: =SUMIF('00 PDC SP'!$C:$C,'00 SP'!$D103,'00 PDC SP'!H:H) -> 5970.26 | G103: =SUMIF('00 PDC SP'!$C:$C,'00 SP'!$D103,'00 PDC SP'!I:I) -> 12202.45 | H103: =SUMIF('00 PDC SP'!$C:$C,'00 SP'!$D103,'00 PDC SP'!J:J) -> 18172.71 | I103: =SUMIF('00 PDC SP'!$C:$C,'00 SP'!$D103,'00 PDC SP'!K:K) -> 0 | J103: =SUMIF('00 PDC SP'!$C:$C,'00 SP'!$D103,'00 PDC SP'!L:L) -> 50822.1 | K103: =SUMIF('00 PDC SP'!$C:$C,'00 SP'!$D103,'00 PDC SP'!M:M) -> 48520.58 | L103: =SUMIF('00 PDC SP'!$C:$C,'00 SP'!$D103,'00 PDC SP'!N:N) -> 2301.52
A104: ABA220 | B104: B.II.1.b) Crediti v/Stato per spesa corrente - FSN | D104: ABA220 | E104: 21 | F104: =SUMIF('00 PDC SP'!$C:$C,'00 SP'!$D104,'00 PDC SP'!H:H) -> 0 | G104: =SUMIF('00 PDC SP'!$C:$C,'00 SP'!$D104,'00 PDC SP'!I:I) -> 0 | H104: =SUMIF('00 PDC SP'!$C:$C,'00 SP'!$D104,'00 PDC SP'!J:J) -> 0 | I104: =SUMIF('00 PDC SP'!$C:$C,'00 SP'!$D104,'00 PDC SP'!K:K) -> 0 | J104: =SUMIF('00 PDC SP'!$C:$C,'00 SP'!$D104,'00 PDC SP'!L:L) -> 0 | K104: =SUMIF('00 PDC SP'!$C:$C,'00 SP'!$D104,'00 PDC SP'!M:M) -> 0 | L104: =SUMIF('00 PDC SP'!$C:$C,'00 SP'!$D104,'00 PDC SP'!N:N) -> 0
A105: ABA230 | B105: B.II.1.c) Crediti v/Stato per mobilità attiva extraregionale | D105: ABA230 | E105: 21 | F105: =SUMIF('00 PDC SP'!$C:$C,'00 SP'!$D105,'00 PDC SP'!H:H) -> 0 | G105: =SUMIF('00 PDC SP'!$C:$C,'00 SP'!$D105,'00 PDC SP'!I:I) -> 0 | H105: =SUMIF('00 PDC SP'!$C:$C,'00 SP'!$D105,'00 PDC SP'!J:J) -> 0 | I105: =SUMIF('00 PDC SP'!$C:$C,'00 SP'!$D105,'00 PDC SP'!K:K) -> 0 | J105: =SUMIF('00 PDC SP'!$C:$C,'00 SP'!$D105,'00 PDC SP'!L:L) -> 0 | K105: =SUMIF('00 PDC SP'!$C:$C,'00 SP'!$D105,'00 PDC SP'!M:M) -> 0 | L105: =SUMIF('00 PDC SP'!$C:$C,'00 SP'!$D105,'00 PDC SP'!N:N) -> 0
A106: ABA240 | B106: B.II.1.d) Crediti v/Stato per mobilità attiva internazionale | D106: ABA240 | E106: 21 | F106: =SUMIF('00 PDC SP'!$C:$C,'00 SP'!$D106,'00 PDC SP'!H:H) -> 0 | G106: =SUMIF('00 PDC SP'!$C:$C,'00 SP'!$D106,'00 PDC SP'!I:I) -> 0 | H106: =SUMIF('00 PDC SP'!$C:$C,'00 SP'!$D106,'00 PDC SP'!J:J) -> 0 | I106: =SUMIF('00 PDC SP'!$C:$C,'00 SP'!$D106,'00 PDC SP'!K:K) -> 0 | J106: =SUMIF('00 PDC SP'!$C:$C,'00 SP'!$D106,'00 PDC SP'!L:L) -> 0 | K106: =SUMIF('00 PDC SP'!$C:$C,'00 SP'!$D106,'00 PDC SP'!M:M) -> 0 | L106: =SUMIF('00 PDC SP'!$C:$C,'00 SP'!$D106,'00 PDC SP'!N:N) -> 0
A107: ABA250 | B107: B.II.1.e) Crediti v/Stato per acconto quota fabbisogno sanitario regionale standard | D107: ABA250 | E107: 21 | F107: =SUMIF('00 PDC SP'!$C:$C,'00 SP'!$D107,'00 PDC SP'!H:H) -> 0 | G107: =SUMIF('00 PDC SP'!$C:$C,'00 SP'!$D107,'00 PDC SP'!I:I) -> 0 | H107: =SUMIF('00 PDC SP'!$C:$C,'00 SP'!$D107,'00 PDC SP'!J:J) -> 0 | I107: =SUMIF('00 PDC SP'!$C:$C,'00 SP'!$D107,'00 PDC SP'!K:K) -> 0 | J107: =SUMIF('00 PDC SP'!$C:$C,'00 SP'!$D107,'00 PDC SP'!L:L) -> 0 | K107: =SUMIF('00 PDC SP'!$C:$C,'00 SP'!$D107,'00 PDC SP'!M:M) -> 0 | L107: =SUMIF('00 PDC SP'!$C:$C,'00 SP'!$D107,'00 PDC SP'!N:N) -> 0
A108: ABA260 | B108: B.II.1.f) Crediti v/Stato per finanziamento sanitario aggiuntivo corrente | D108: ABA260 | E108: 21 | F108: =SUMIF('00 PDC SP'!$C:$C,'00 SP'!$D108,'00 PDC SP'!H:H) -> 0 | G108: =SUMIF('00 PDC SP'!$C:$C,'00 SP'!$D108,'00 PDC SP'!I:I) -> 0 | H108: =SUMIF('00 PDC SP'!$C:$C,'00 SP'!$D108,'00 PDC SP'!J:J) -> 0 | I108: =SUMIF('00 PDC SP'!$C:$C,'00 SP'!$D108,'00 PDC SP'!K:K) -> 0 | J108: =SUMIF('00 PDC SP'!$C:$C,'00 SP'!$D108,'00 PDC SP'!L:L) -> 0 | K108: =SUMIF('00 PDC SP'!$C:$C,'00 SP'!$D108,'00 PDC SP'!M:M) -> 0 | L108: =SUMIF('00 PDC SP'!$C:$C,'00 SP'!$D108,'00 PDC SP'!N:N) -> 0
A109: ABA270 | B109: B.II.1.g) Crediti v/Stato per spesa corrente - altro | D109: ABA270 | E109: 21 | F109: =SUMIF('00 PDC SP'!$C:$C,'00 SP'!$D109,'00 PDC SP'!H:H) -> 0 | G109: =SUMIF('00 PDC SP'!$C:$C,'00 SP'!$D109,'00 PDC SP'!I:I) -> 0 | H109: =SUMIF('00 PDC SP'!$C:$C,'00 SP'!$D109,'00 PDC SP'!J:J) -> 0 | I109: =SUMIF('00 PDC SP'!$C:$C,'00 SP'!$D109,'00 PDC SP'!K:K) -> 0 | J109: =SUMIF('00 PDC SP'!$C:$C,'00 SP'!$D109,'00 PDC SP'!L:L) -> 0 | K109: =SUMIF('00 PDC SP'!$C:$C,'00 SP'!$D109,'00 PDC SP'!M:M) -> 0 | L109: =SUMIF('00 PDC SP'!$C:$C,'00 SP'!$D109,'00 PDC SP'!N:N) -> 0
A110: ABA280 | B110: B.II.1.h) Crediti v/Stato per finanziamenti per investimenti | D110: ABA280 | E110: 48 | F110: =SUMIF('00 PDC SP'!$C:$C,'00 SP'!$D110,'00 PDC SP'!H:H) -> 0 | G110: =SUMIF('00 PDC SP'!$C:$C,'00 SP'!$D110,'00 PDC SP'!I:I) -> 0 | H110: =SUMIF('00 PDC SP'!$C:$C,'00 SP'!$D110,'00 PDC SP'!J:J) -> 0 | I110: =SUMIF('00 PDC SP'!$C:$C,'00 SP'!$D110,'00 PDC SP'!K:K) -> 0 | J110: =SUMIF('00 PDC SP'!$C:$C,'00 SP'!$D110,'00 PDC SP'!L:L) -> 0 | K110: =SUMIF('00 PDC SP'!$C:$C,'00 SP'!$D110,'00 PDC SP'!M:M) -> 0 | L110: =SUMIF('00 PDC SP'!$C:$C,'00 SP'!$D110,'00 PDC SP'!N:N) -> 0
A111: ABA290 | B111: B.II.1.i) Crediti v/Stato per ricerca | C111: S | D111: ABA290 | F111: =SUM(F112:F115) -> 4620 | G111: 0 | H111: 0 | I111: 4620 | J111: 10300 | K111: 10300 | L111: 4620
A112: ABA300 | B112: B.II.1.i.1) Crediti v/Stato per ricerca corrente - Ministero della Salute | D112: ABA300 | E112: 21 | F112: =SUMIF('00 PDC SP'!$C:$C,'00 SP'!$D112,'00 PDC SP'!H:H) -> 0 | G112: =SUMIF('00 PDC SP'!$C:$C,'00 SP'!$D112,'00 PDC SP'!I:I) -> 0 | H112: =SUMIF('00 PDC SP'!$C:$C,'00 SP'!$D112,'00 PDC SP'!J:J) -> 0 | I112: =SUMIF('00 PDC SP'!$C:$C,'00 SP'!$D112,'00 PDC SP'!K:K) -> 0 | J112: =SUMIF('00 PDC SP'!$C:$C,'00 SP'!$D112,'00 PDC SP'!L:L) -> 0 | K112: =SUMIF('00 PDC SP'!$C:$C,'00 SP'!$D112,'00 PDC SP'!M:M) -> 0 | L112: =SUMIF('00 PDC SP'!$C:$C,'00 SP'!$D112,'00 PDC SP'!N:N) -> 0
A113: ABA310 | B113: B.II.1.i.2) Crediti v/Stato per ricerca finalizzata - Ministero della Salute | D113: ABA310 | E113: 21 | F113: =SUMIF('00 PDC SP'!$C:$C,'00 SP'!$D113,'00 PDC SP'!H:H) -> 4620 | G113: =SUMIF('00 PDC SP'!$C:$C,'00 SP'!$D113,'00 PDC SP'!I:I) -> 0 | H113: =SUMIF('00 PDC SP'!$C:$C,'00 SP'!$D113,'00 PDC SP'!J:J) -> 0 | I113: =SUMIF('00 PDC SP'!$C:$C,'00 SP'!$D113,'00 PDC SP'!K:K) -> 4620 | J113: =SUMIF('00 PDC SP'!$C:$C,'00 SP'!$D113,'00 PDC SP'!L:L) -> 10300 | K113: =SUMIF('00 PDC SP'!$C:$C,'00 SP'!$D113,'00 PDC SP'!M:M) -> 10300 | L113: =SUMIF('00 PDC SP'!$C:$C,'00 SP'!$D113,'00 PDC SP'!N:N) -> 4620
A114: ABA320 | B114: B.II.1.i.3) Crediti v/Stato per ricerca - altre Amministrazioni centrali | D114: ABA320 | E114: 21 | F114: =SUMIF('00 PDC SP'!$C:$C,'00 SP'!$D114,'00 PDC SP'!H:H) -> 0 | G114: =SUMIF('00 PDC SP'!$C:$C,'00 SP'!$D114,'00 PDC SP'!I:I) -> 0 | H114: =SUMIF('00 PDC SP'!$C:$C,'00 SP'!$D114,'00 PDC SP'!J:J) -> 0 | I114: =SUMIF('00 PDC SP'!$C:$C,'00 SP'!$D114,'00 PDC SP'!K:K) -> 0 | J114: =SUMIF('00 PDC SP'!$C:$C,'00 SP'!$D114,'00 PDC SP'!L:L) -> 0 | K114: =SUMIF('00 PDC SP'!$C:$C,'00 SP'!$D114,'00 PDC SP'!M:M) -> 0 | L114: =SUMIF('00 PDC SP'!$C:$C,'00 SP'!$D114,'00 PDC SP'!N:N) -> 0
A115: ABA330 | B115: B.II.1.i.4) Crediti v/Stato per ricerca - finanziamenti per investimenti | D115: ABA330 | E115: 21 | F115: =SUMIF('00 PDC SP'!$C:$C,'00 SP'!$D115,'00 PDC SP'!H:H) -> 0 | G115: =SUMIF('00 PDC SP'!$C:$C,'00 SP'!$D115,'00 PDC SP'!I:I) -> 0 | H115: =SUMIF('00 PDC SP'!$C:$C,'00 SP'!$D115,'00 PDC SP'!J:J) -> 0 | I115: =SUMIF('00 PDC SP'!$C:$C,'00 SP'!$D115,'00 PDC SP'!K:K) -> 0 | J115: =SUMIF('00 PDC SP'!$C:$C,'00 SP'!$D115,'00 PDC SP'!L:L) -> 0 | K115: =SUMIF('00 PDC SP'!$C:$C,'00 SP'!$D115,'00 PDC SP'!M:M) -> 0 | L115: =SUMIF('00 PDC SP'!$C:$C,'00 SP'!$D115,'00 PDC SP'!N:N) -> 0
A116: ABA340 | B116: B.II.1.l) Crediti v/prefetture | D116: ABA340 | E116: 21 | F116: =SUMIF('00 PDC SP'!$C:$C,'00 SP'!$D116,'00 PDC SP'!H:H) -> 93462.74 | G116: =SUMIF('00 PDC SP'!$C:$C,'00 SP'!$D116,'00 PDC SP'!I:I) -> 0 | H116: =SUMIF('00 PDC SP'!$C:$C,'00 SP'!$D116,'00 PDC SP'!J:J) -> 0 | I116: =SUMIF('00 PDC SP'!$C:$C,'00 SP'!$D116,'00 PDC SP'!K:K) -> 93462.74 | J116: =SUMIF('00 PDC SP'!$C:$C,'00 SP'!$D116,'00 PDC SP'!L:L) -> 93462.74 | K116: =SUMIF('00 PDC SP'!$C:$C,'00 SP'!$D116,'00 PDC SP'!M:M) -> 186925.48 | L116: =SUMIF('00 PDC SP'!$C:$C,'00 SP'!$D116,'00 PDC SP'!N:N) -> 0
A117: ABA350 | B117: B.II.2) Crediti v/Regione o Provincia Autonoma | C117: S | D117: ABA350 | F117: =F118+F129 -> 215874017.3 | G117: 1293654186 | H117: 1333105859 | I117: 176422344.8 | J117: 1441602435 | K117: 1403682649 | L117: 214342131.2
A118: ABA360 | B118: B.II.2.a) Crediti v/Regione o Provincia Autonoma per spesa corrente | C118: S | D118: ABA360 | F118: =SUM(F119:F128) -> 194233702.7 | G118: 1279389476 | H118: 1311503799 | I118: 162119379.8 | J118: 1427992811 | K118: 1403682649 | L118: 186429542.2
A119: ABA370 | B119: B.II.2.a.1) Crediti v/Regione o Provincia Autonoma per spesa corrente - IRAP | D119: ABA370 | E119: 25 | F119: =SUMIF('00 PDC SP'!$C:$C,'00 SP'!$D119,'00 PDC SP'!H:H) -> 0 | G119: =SUMIF('00 PDC SP'!$C:$C,'00 SP'!$D119,'00 PDC SP'!I:I) -> 0 | H119: =SUMIF('00 PDC SP'!$C:$C,'00 SP'!$D119,'00 PDC SP'!J:J) -> 0 | I119: =SUMIF('00 PDC SP'!$C:$C,'00 SP'!$D119,'00 PDC SP'!K:K) -> 0 | J119: =SUMIF('00 PDC SP'!$C:$C,'00 SP'!$D119,'00 PDC SP'!L:L) -> 0 | K119: =SUMIF('00 PDC SP'!$C:$C,'00 SP'!$D119,'00 PDC SP'!M:M) -> 0 | L119: =SUMIF('00 PDC SP'!$C:$C,'00 SP'!$D119,'00 PDC SP'!N:N) -> 0
A120: ABA380 | B120: B.II.2.a.2) Crediti v/Regione o Provincia Autonoma per spesa corrente - Addizionale IRPEF | D120: ABA380 | E120: 25 | F120: =SUMIF('00 PDC SP'!$C:$C,'00 SP'!$D120,'00 PDC SP'!H:H) -> 0 | G120: =SUMIF('00 PDC SP'!$C:$C,'00 SP'!$D120,'00 PDC SP'!I:I) -> 0 | H120: =SUMIF('00 PDC SP'!$C:$C,'00 SP'!$D120,'00 PDC SP'!J:J) -> 0 | I120: =SUMIF('00 PDC SP'!$C:$C,'00 SP'!$D120,'00 PDC SP'!K:K) -> 0 | J120: =SUMIF('00 PDC SP'!$C:$C,'00 SP'!$D120,'00 PDC SP'!L:L) -> 0 | K120: =SUMIF('00 PDC SP'!$C:$C,'00 SP'!$D120,'00 PDC SP'!M:M) -> 0 | L120: =SUMIF('00 PDC SP'!$C:$C,'00 SP'!$D120,'00 PDC SP'!N:N) -> 0
A121: ABA390 | B121: B.II.2.a.3) Crediti v/Regione o Provincia Autonoma per quota FSR | D121: ABA390 | E121: 25 | F121: =SUMIF('00 PDC SP'!$C:$C,'00 SP'!$D121,'00 PDC SP'!H:H) -> 146422877.2 | G121: =SUMIF('00 PDC SP'!$C:$C,'00 SP'!$D121,'00 PDC SP'!I:I) -> 611234256.9 | H121: =SUMIF('00 PDC SP'!$C:$C,'00 SP'!$D121,'00 PDC SP'!J:J) -> 641777089 | I121: =SUMIF('00 PDC SP'!$C:$C,'00 SP'!$D121,'00 PDC SP'!K:K) -> 115880045.1 | J121: =SUMIF('00 PDC SP'!$C:$C,'00 SP'!$D121,'00 PDC SP'!L:L) -> 699144829.1 | K121: =SUMIF('00 PDC SP'!$C:$C,'00 SP'!$D121,'00 PDC SP'!M:M) -> 673828882.2 | L121: =SUMIF('00 PDC SP'!$C:$C,'00 SP'!$D121,'00 PDC SP'!N:N) -> 141195992
A122: ABA400 | B122: B.II.2.a.4) Crediti v/Regione o Provincia Autonoma per mobilità attiva intraregionale | D122: ABA400 | E122: 25 | F122: =SUMIF('00 PDC SP'!$C:$C,'00 SP'!$D122,'00 PDC SP'!H:H) -> 16936850.38 | G122: =SUMIF('00 PDC SP'!$C:$C,'00 SP'!$D122,'00 PDC SP'!I:I) -> 98488215.59 | H122: =SUMIF('00 PDC SP'!$C:$C,'00 SP'!$D122,'00 PDC SP'!J:J) -> 98575322.59 | I122: =SUMIF('00 PDC SP'!$C:$C,'00 SP'!$D122,'00 PDC SP'!K:K) -> 16849743.38 | J122: =SUMIF('00 PDC SP'!$C:$C,'00 SP'!$D122,'00 PDC SP'!L:L) -> 99510381.01 | K122: =SUMIF('00 PDC SP'!$C:$C,'00 SP'!$D122,'00 PDC SP'!M:M) -> 99510381 | L122: =SUMIF('00 PDC SP'!$C:$C,'00 SP'!$D122,'00 PDC SP'!N:N) -> 16849743.39
A123: ABA410 | B123: B.II.2.a.5) Crediti v/Regione o Provincia Autonoma per mobilità attiva extraregionale | D123: ABA410 | E123: 25 | F123: =SUMIF('00 PDC SP'!$C:$C,'00 SP'!$D123,'00 PDC SP'!H:H) -> 19005500.29 | G123: =SUMIF('00 PDC SP'!$C:$C,'00 SP'!$D123,'00 PDC SP'!I:I) -> 17628432.4 | H123: =SUMIF('00 PDC SP'!$C:$C,'00 SP'!$D123,'00 PDC SP'!J:J) -> 17628432.4 | I123: =SUMIF('00 PDC SP'!$C:$C,'00 SP'!$D123,'00 PDC SP'!K:K) -> 19005500.29 | J123: =SUMIF('00 PDC SP'!$C:$C,'00 SP'!$D123,'00 PDC SP'!L:L) -> 23288119.72 | K123: =SUMIF('00 PDC SP'!$C:$C,'00 SP'!$D123,'00 PDC SP'!M:M) -> 23288119.72 | L123: =SUMIF('00 PDC SP'!$C:$C,'00 SP'!$D123,'00 PDC SP'!N:N) -> 19005500.29
A124: ABA420 | B124: B.II.2.a.6) Crediti v/Regione o Provincia Autonoma per acconto quota FSR | D124: ABA420 | E124: 25 | F124: =SUMIF('00 PDC SP'!$C:$C,'00 SP'!$D124,'00 PDC SP'!H:H) -> 0 | G124: =SUMIF('00 PDC SP'!$C:$C,'00 SP'!$D124,'00 PDC SP'!I:I) -> 546891755 | H124: =SUMIF('00 PDC SP'!$C:$C,'00 SP'!$D124,'00 PDC SP'!J:J) -> 546891755 | I124: =SUMIF('00 PDC SP'!$C:$C,'00 SP'!$D124,'00 PDC SP'!K:K) -> 0 | J124: =SUMIF('00 PDC SP'!$C:$C,'00 SP'!$D124,'00 PDC SP'!L:L) -> 603150469.8 | K124: =SUMIF('00 PDC SP'!$C:$C,'00 SP'!$D124,'00 PDC SP'!M:M) -> 603150469.8 | L124: =SUMIF('00 PDC SP'!$C:$C,'00 SP'!$D124,'00 PDC SP'!N:N) -> 0
A125: ABA430 | B125: B.II.2.a.7) Crediti v/Regione o Provincia Autonoma per finanziamento sanitario aggiuntivo corrente LEA | D125: ABA430 | E125: 25 | F125: =SUMIF('00 PDC SP'!$C:$C,'00 SP'!$D125,'00 PDC SP'!H:H) -> 11868474.89 | G125: =SUMIF('00 PDC SP'!$C:$C,'00 SP'!$D125,'00 PDC SP'!I:I) -> 5146816.37 | H125: =SUMIF('00 PDC SP'!$C:$C,'00 SP'!$D125,'00 PDC SP'!J:J) -> 6631200.24 | I125: =SUMIF('00 PDC SP'!$C:$C,'00 SP'!$D125,'00 PDC SP'!K:K) -> 10384091.02 | J125: =SUMIF('00 PDC SP'!$C:$C,'00 SP'!$D125,'00 PDC SP'!L:L) -> 2899011.66 | K125: =SUMIF('00 PDC SP'!$C:$C,'00 SP'!$D125,'00 PDC SP'!M:M) -> 3904796.15 | L125: =SUMIF('00 PDC SP'!$C:$C,'00 SP'!$D125,'00 PDC SP'!N:N) -> 9378306.53
A126: ABA440 | B126: B.II.2.a.8) Crediti v/Regione o Provincia Autonoma per finanziamento sanitario aggiuntivo corrente extra LEA | D126: ABA440 | E126: 25 | F126: =SUMIF('00 PDC SP'!$C:$C,'00 SP'!$D126,'00 PDC SP'!H:H) -> 0 | G126: =SUMIF('00 PDC SP'!$C:$C,'00 SP'!$D126,'00 PDC SP'!I:I) -> 0 | H126: =SUMIF('00 PDC SP'!$C:$C,'00 SP'!$D126,'00 PDC SP'!J:J) -> 0 | I126: =SUMIF('00 PDC SP'!$C:$C,'00 SP'!$D126,'00 PDC SP'!K:K) -> 0 | J126: =SUMIF('00 PDC SP'!$C:$C,'00 SP'!$D126,'00 PDC SP'!L:L) -> 0 | K126: =SUMIF('00 PDC SP'!$C:$C,'00 SP'!$D126,'00 PDC SP'!M:M) -> 0 | L126: =SUMIF('00 PDC SP'!$C:$C,'00 SP'!$D126,'00 PDC SP'!N:N) -> 0
A127: ABA450 | B127: B.II.2.a.9) Crediti v/Regione o Provincia Autonoma per spesa corrente - altro | D127: ABA450 | E127: 25 | F127: =SUMIF('00 PDC SP'!$C:$C,'00 SP'!$D127,'00 PDC SP'!H:H) -> 0 | G127: =SUMIF('00 PDC SP'!$C:$C,'00 SP'!$D127,'00 PDC SP'!I:I) -> 0 | H127: =SUMIF('00 PDC SP'!$C:$C,'00 SP'!$D127,'00 PDC SP'!J:J) -> 0 | I127: =SUMIF('00 PDC SP'!$C:$C,'00 SP'!$D127,'00 PDC SP'!K:K) -> 0 | J127: =SUMIF('00 PDC SP'!$C:$C,'00 SP'!$D127,'00 PDC SP'!L:L) -> 0 | K127: =SUMIF('00 PDC SP'!$C:$C,'00 SP'!$D127,'00 PDC SP'!M:M) -> 0 | L127: =SUMIF('00 PDC SP'!$C:$C,'00 SP'!$D127,'00 PDC SP'!N:N) -> 0
A128: ABA460 | B128: B.II.2.a.10) Crediti v/Regione o Provincia Autonoma per ricerca | D128: ABA460 | E128: 25 | F128: =SUMIF('00 PDC SP'!$C:$C,'00 SP'!$D128,'00 PDC SP'!H:H) -> 0 | G128: =SUMIF('00 PDC SP'!$C:$C,'00 SP'!$D128,'00 PDC SP'!I:I) -> 0 | H128: =SUMIF('00 PDC SP'!$C:$C,'00 SP'!$D128,'00 PDC SP'!J:J) -> 0 | I128: =SUMIF('00 PDC SP'!$C:$C,'00 SP'!$D128,'00 PDC SP'!K:K) -> 0 | J128: =SUMIF('00 PDC SP'!$C:$C,'00 SP'!$D128,'00 PDC SP'!L:L) -> 0 | K128: =SUMIF('00 PDC SP'!$C:$C,'00 SP'!$D128,'00 PDC SP'!M:M) -> 0 | L128: =SUMIF('00 PDC SP'!$C:$C,'00 SP'!$D128,'00 PDC SP'!N:N) -> 0
A129: ABA470 | B129: B.II.2.b) Crediti v/Regione o Provincia Autonoma per versamenti a patrimonio netto | C129: S | D129: ABA470 | F129: =SUM(F130:F134) -> 21640314.57 | G129: 14264710 | H129: 21602059.57 | I129: 14302965 | J129: 13609624 | K129: 0 | L129: 27912589
A130: ABA480 | B130: B.II.2.b.1) Crediti v/Regione o Provincia Autonoma per finanziamenti per investimenti | D130: ABA480 | E130: 49 | F130: =SUMIF('00 PDC SP'!$C:$C,'00 SP'!$D130,'00 PDC SP'!H:H) -> 38255 | G130: =SUMIF('00 PDC SP'!$C:$C,'00 SP'!$D130,'00 PDC SP'!I:I) -> 0 | H130: =SUMIF('00 PDC SP'!$C:$C,'00 SP'!$D130,'00 PDC SP'!J:J) -> 0 | I130: =SUMIF('00 PDC SP'!$C:$C,'00 SP'!$D130,'00 PDC SP'!K:K) -> 38255 | J130: =SUMIF('00 PDC SP'!$C:$C,'00 SP'!$D130,'00 PDC SP'!L:L) -> 0 | K130: =SUMIF('00 PDC SP'!$C:$C,'00 SP'!$D130,'00 PDC SP'!M:M) -> 0 | L130: =SUMIF('00 PDC SP'!$C:$C,'00 SP'!$D130,'00 PDC SP'!N:N) -> 38255
A131: ABA490 | B131: B.II.2.b.2) Crediti v/Regione o Provincia Autonoma per incremento fondo dotazione | D131: ABA490 | E131: 50 | F131: =SUMIF('00 PDC SP'!$C:$C,'00 SP'!$D131,'00 PDC SP'!H:H) -> 0 | G131: =SUMIF('00 PDC SP'!$C:$C,'00 SP'!$D131,'00 PDC SP'!I:I) -> 0 | H131: =SUMIF('00 PDC SP'!$C:$C,'00 SP'!$D131,'00 PDC SP'!J:J) -> 0 | I131: =SUMIF('00 PDC SP'!$C:$C,'00 SP'!$D131,'00 PDC SP'!K:K) -> 0 | J131: =SUMIF('00 PDC SP'!$C:$C,'00 SP'!$D131,'00 PDC SP'!L:L) -> 0 | K131: =SUMIF('00 PDC SP'!$C:$C,'00 SP'!$D131,'00 PDC SP'!M:M) -> 0 | L131: =SUMIF('00 PDC SP'!$C:$C,'00 SP'!$D131,'00 PDC SP'!N:N) -> 0
A132: ABA500 | B132: B.II.2.b.3) Crediti v/Regione o Provincia Autonoma per ripiano perdite | D132: ABA500 | E132: 51 | F132: =SUMIF('00 PDC SP'!$C:$C,'00 SP'!$D132,'00 PDC SP'!H:H) -> 21602059.57 | G132: =SUMIF('00 PDC SP'!$C:$C,'00 SP'!$D132,'00 PDC SP'!I:I) -> 14264710 | H132: =SUMIF('00 PDC SP'!$C:$C,'00 SP'!$D132,'00 PDC SP'!J:J) -> 21602059.57 | I132: =SUMIF('00 PDC SP'!$C:$C,'00 SP'!$D132,'00 PDC SP'!K:K) -> 14264710 | J132: =SUMIF('00 PDC SP'!$C:$C,'00 SP'!$D132,'00 PDC SP'!L:L) -> 13609624 | K132: =SUMIF('00 PDC SP'!$C:$C,'00 SP'!$D132,'00 PDC SP'!M:M) -> 0 | L132: =SUMIF('00 PDC SP'!$C:$C,'00 SP'!$D132,'00 PDC SP'!N:N) -> 27874334
A133: ABA510 | B133: B.II.2.b.4) Crediti v/Regione per copertura debiti al 31/12/2005 | D133: ABA510 | E133: 52 | F133: =SUMIF('00 PDC SP'!$C:$C,'00 SP'!$D133,'00 PDC SP'!H:H) -> 0 | G133: =SUMIF('00 PDC SP'!$C:$C,'00 SP'!$D133,'00 PDC SP'!I:I) -> 0 | H133: =SUMIF('00 PDC SP'!$C:$C,'00 SP'!$D133,'00 PDC SP'!J:J) -> 0 | I133: =SUMIF('00 PDC SP'!$C:$C,'00 SP'!$D133,'00 PDC SP'!K:K) -> 0 | J133: =SUMIF('00 PDC SP'!$C:$C,'00 SP'!$D133,'00 PDC SP'!L:L) -> 0 | K133: =SUMIF('00 PDC SP'!$C:$C,'00 SP'!$D133,'00 PDC SP'!M:M) -> 0 | L133: =SUMIF('00 PDC SP'!$C:$C,'00 SP'!$D133,'00 PDC SP'!N:N) -> 0
A134: ABA520 | B134: B.II.2.b.5) Crediti v/Regione o Provincia Autonoma per ricostituzione risorse da investimenti esercizi precedenti | D134: ABA520 | E134: 49 | F134: =SUMIF('00 PDC SP'!$C:$C,'00 SP'!$D134,'00 PDC SP'!H:H) -> 0 | G134: =SUMIF('00 PDC SP'!$C:$C,'00 SP'!$D134,'00 PDC SP'!I:I) -> 0 | H134: =SUMIF('00 PDC SP'!$C:$C,'00 SP'!$D134,'00 PDC SP'!J:J) -> 0 | I134: =SUMIF('00 PDC SP'!$C:$C,'00 SP'!$D134,'00 PDC SP'!K:K) -> 0 | J134: =SUMIF('00 PDC SP'!$C:$C,'00 SP'!$D134,'00 PDC SP'!L:L) -> 0 | K134: =SUMIF('00 PDC SP'!$C:$C,'00 SP'!$D134,'00 PDC SP'!M:M) -> 0 | L134: =SUMIF('00 PDC SP'!$C:$C,'00 SP'!$D134,'00 PDC SP'!N:N) -> 0
A135: ABA530 | B135: B.II.3) Crediti v/Comuni | D135: ABA530 | E135: 26 | F135: =SUMIF('00 PDC SP'!$C:$C,'00 SP'!$D135,'00 PDC SP'!H:H) -> 88306.98 | G135: =SUMIF('00 PDC SP'!$C:$C,'00 SP'!$D135,'00 PDC SP'!I:I) -> 172187.78 | H135: =SUMIF('00 PDC SP'!$C:$C,'00 SP'!$D135,'00 PDC SP'!J:J) -> 40166.41 | I135: =SUMIF('00 PDC SP'!$C:$C,'00 SP'!$D135,'00 PDC SP'!K:K) -> 220328.35 | J135: =SUMIF('00 PDC SP'!$C:$C,'00 SP'!$D135,'00 PDC SP'!L:L) -> 165199.79 | K135: =SUMIF('00 PDC SP'!$C:$C,'00 SP'!$D135,'00 PDC SP'!M:M) -> 148773.66 | L135: =SUMIF('00 PDC SP'!$C:$C,'00 SP'!$D135,'00 PDC SP'!N:N) -> 236754.48
A136: ABA540 | B136: B.II.4) Crediti v/Aziende sanitarie pubbliche | C136: S | D136: ABA540 | F136: =F137+F141+F142 -> 1931000.04 | G136: 5107921.64 | H136: 5494293.81 | I136: 1544627.87 | J136: 682163.99 | K136: 649711.75 | L136: 1577080.11
A137: ABA550 | B137: B.II.4.a) Crediti v/Aziende sanitarie pubbliche della Regione | C137: S | D137: ABA550 | F137: =SUM(F138:F140) -> 1729868.22 | G137: 4860674.14 | H137: 5260150.03 | I137: 1330392.33 | J137: 404487.52 | K137: 353901.46 | L137: 1380978.39
A138: ABA560 | B138: B.II.4.a.1) Crediti v/Aziende sanitarie pubbliche della Regione - per mobilità in compensazione | D138: ABA560 | E138: 27 | F138: =SUMIF('00 PDC SP'!$C:$C,'00 SP'!$D138,'00 PDC SP'!H:H) -> 0 | G138: =SUMIF('00 PDC SP'!$C:$C,'00 SP'!$D138,'00 PDC SP'!I:I) -> 0 | H138: =SUMIF('00 PDC SP'!$C:$C,'00 SP'!$D138,'00 PDC SP'!J:J) -> 0 | I138: =SUMIF('00 PDC SP'!$C:$C,'00 SP'!$D138,'00 PDC SP'!K:K) -> 0 | J138: =SUMIF('00 PDC SP'!$C:$C,'00 SP'!$D138,'00 PDC SP'!L:L) -> 0 | K138: =SUMIF('00 PDC SP'!$C:$C,'00 SP'!$D138,'00 PDC SP'!M:M) -> 0 | L138: =SUMIF('00 PDC SP'!$C:$C,'00 SP'!$D138,'00 PDC SP'!N:N) -> 0
A139: ABA570 | B139: B.II.4.a.2) Crediti v/Aziende sanitarie pubbliche della Regione - per mobilità non in compensazione | D139: ABA570 | E139: 27 | F139: =SUMIF('00 PDC SP'!$C:$C,'00 SP'!$D139,'00 PDC SP'!H:H) -> 0 | G139: =SUMIF('00 PDC SP'!$C:$C,'00 SP'!$D139,'00 PDC SP'!I:I) -> 0 | H139: =SUMIF('00 PDC SP'!$C:$C,'00 SP'!$D139,'00 PDC SP'!J:J) -> 0 | I139: =SUMIF('00 PDC SP'!$C:$C,'00 SP'!$D139,'00 PDC SP'!K:K) -> 0 | J139: =SUMIF('00 PDC SP'!$C:$C,'00 SP'!$D139,'00 PDC SP'!L:L) -> 0 | K139: =SUMIF('00 PDC SP'!$C:$C,'00 SP'!$D139,'00 PDC SP'!M:M) -> 0 | L139: =SUMIF('00 PDC SP'!$C:$C,'00 SP'!$D139,'00 PDC SP'!N:N) -> 0
A140: ABA580 | B140: B.II.4.a.3) Crediti v/Aziende sanitarie pubbliche della Regione - per altre prestazioni | D140: ABA580 | E140: 27 | F140: =SUMIF('00 PDC SP'!$C:$C,'00 SP'!$D140,'00 PDC SP'!H:H) -> 1729868.22 | G140: =SUMIF('00 PDC SP'!$C:$C,'00 SP'!$D140,'00 PDC SP'!I:I) -> 4860674.14 | H140: =SUMIF('00 PDC SP'!$C:$C,'00 SP'!$D140,'00 PDC SP'!J:J) -> 5260150.03 | I140: =SUMIF('00 PDC SP'!$C:$C,'00 SP'!$D140,'00 PDC SP'!K:K) -> 1330392.33 | J140: =SUMIF('00 PDC SP'!$C:$C,'00 SP'!$D140,'00 PDC SP'!L:L) -> 404487.52 | K140: =SUMIF('00 PDC SP'!$C:$C,'00 SP'!$D140,'00 PDC SP'!M:M) -> 353901.46 | L140: =SUMIF('00 PDC SP'!$C:$C,'00 SP'!$D140,'00 PDC SP'!N:N) -> 1380978.39
A141: ABA590 | B141: B.II.4.b) Acconto quota FSR da distribuire | D141: ABA590 | E141: 27 | F141: =SUMIF('00 PDC SP'!$C:$C,'00 SP'!$D141,'00 PDC SP'!H:H) -> 0 | G141: =SUMIF('00 PDC SP'!$C:$C,'00 SP'!$D141,'00 PDC SP'!I:I) -> 0 | H141: =SUMIF('00 PDC SP'!$C:$C,'00 SP'!$D141,'00 PDC SP'!J:J) -> 0 | I141: =SUMIF('00 PDC SP'!$C:$C,'00 SP'!$D141,'00 PDC SP'!K:K) -> 0 | J141: =SUMIF('00 PDC SP'!$C:$C,'00 SP'!$D141,'00 PDC SP'!L:L) -> 0 | K141: =SUMIF('00 PDC SP'!$C:$C,'00 SP'!$D141,'00 PDC SP'!M:M) -> 0 | L141: =SUMIF('00 PDC SP'!$C:$C,'00 SP'!$D141,'00 PDC SP'!N:N) -> 0
A142: ABA600 | B142: B.II.4.c) Crediti v/Aziende sanitarie pubbliche Extraregione | D142: ABA600 | E142: 27 | F142: =SUMIF('00 PDC SP'!$C:$C,'00 SP'!$D142,'00 PDC SP'!H:H) -> 201131.82 | G142: =SUMIF('00 PDC SP'!$C:$C,'00 SP'!$D142,'00 PDC SP'!I:I) -> 247247.5 | H142: =SUMIF('00 PDC SP'!$C:$C,'00 SP'!$D142,'00 PDC SP'!J:J) -> 234143.78 | I142: =SUMIF('00 PDC SP'!$C:$C,'00 SP'!$D142,'00 PDC SP'!K:K) -> 214235.54 | J142: =SUMIF('00 PDC SP'!$C:$C,'00 SP'!$D142,'00 PDC SP'!L:L) -> 277676.47 | K142: =SUMIF('00 PDC SP'!$C:$C,'00 SP'!$D142,'00 PDC SP'!M:M) -> 295810.29 | L142: =SUMIF('00 PDC SP'!$C:$C,'00 SP'!$D142,'00 PDC SP'!N:N) -> 196101.72
A143: ABA610 | B143: B.II.5) Crediti v/società partecipate e/o enti dipendenti della Regione | C143: S | D143: ABA610 | F143: =SUM(F144:F146) -> 5931.31 | G143: 0 | H143: 0 | I143: 5931.31 | J143: 0 | K143: 0 | L143: 5931.31
A144: ABA620 | B144: B.II.5.a) Crediti v/enti regionali | D144: ABA620 | E144: 28 | F144: =SUMIF('00 PDC SP'!$C:$C,'00 SP'!$D144,'00 PDC SP'!H:H) -> 5931.31 | G144: =SUMIF('00 PDC SP'!$C:$C,'00 SP'!$D144,'00 PDC SP'!I:I) -> 0 | H144: =SUMIF('00 PDC SP'!$C:$C,'00 SP'!$D144,'00 PDC SP'!J:J) -> 0 | I144: =SUMIF('00 PDC SP'!$C:$C,'00 SP'!$D144,'00 PDC SP'!K:K) -> 5931.31 | J144: =SUMIF('00 PDC SP'!$C:$C,'00 SP'!$D144,'00 PDC SP'!L:L) -> 0 | K144: =SUMIF('00 PDC SP'!$C:$C,'00 SP'!$D144,'00 PDC SP'!M:M) -> 0 | L144: =SUMIF('00 PDC SP'!$C:$C,'00 SP'!$D144,'00 PDC SP'!N:N) -> 5931.31
A145: ABA630 | B145: B.II.5.b) Crediti v/sperimentazioni gestionali | D145: ABA630 | E145: 28 | F145: =SUMIF('00 PDC SP'!$C:$C,'00 SP'!$D145,'00 PDC SP'!H:H) -> 0 | G145: =SUMIF('00 PDC SP'!$C:$C,'00 SP'!$D145,'00 PDC SP'!I:I) -> 0 | H145: =SUMIF('00 PDC SP'!$C:$C,'00 SP'!$D145,'00 PDC SP'!J:J) -> 0 | I145: =SUMIF('00 PDC SP'!$C:$C,'00 SP'!$D145,'00 PDC SP'!K:K) -> 0 | J145: =SUMIF('00 PDC SP'!$C:$C,'00 SP'!$D145,'00 PDC SP'!L:L) -> 0 | K145: =SUMIF('00 PDC SP'!$C:$C,'00 SP'!$D145,'00 PDC SP'!M:M) -> 0 | L145: =SUMIF('00 PDC SP'!$C:$C,'00 SP'!$D145,'00 PDC SP'!N:N) -> 0
A146: ABA640 | B146: B.II.5.c) Crediti v/altre partecipate | D146: ABA640 | E146: 28 | F146: =SUMIF('00 PDC SP'!$C:$C,'00 SP'!$D146,'00 PDC SP'!H:H) -> 0 | G146: =SUMIF('00 PDC SP'!$C:$C,'00 SP'!$D146,'00 PDC SP'!I:I) -> 0 | H146: =SUMIF('00 PDC SP'!$C:$C,'00 SP'!$D146,'00 PDC SP'!J:J) -> 0 | I146: =SUMIF('00 PDC SP'!$C:$C,'00 SP'!$D146,'00 PDC SP'!K:K) -> 0 | J146: =SUMIF('00 PDC SP'!$C:$C,'00 SP'!$D146,'00 PDC SP'!L:L) -> 0 | K146: =SUMIF('00 PDC SP'!$C:$C,'00 SP'!$D146,'00 PDC SP'!M:M) -> 0 | L146: =SUMIF('00 PDC SP'!$C:$C,'00 SP'!$D146,'00 PDC SP'!N:N) -> 0
A147: ABA650 | B147: B.II.6) Crediti v/Erario | D147: ABA650 | E147: 29 | F147: =SUMIF('00 PDC SP'!$C:$C,'00 SP'!$D147,'00 PDC SP'!H:H) -> 12007.16 | G147: =SUMIF('00 PDC SP'!$C:$C,'00 SP'!$D147,'00 PDC SP'!I:I) -> 496878.45 | H147: =SUMIF('00 PDC SP'!$C:$C,'00 SP'!$D147,'00 PDC SP'!J:J) -> 500676.57 | I147: =SUMIF('00 PDC SP'!$C:$C,'00 SP'!$D147,'00 PDC SP'!K:K) -> 8209.04 | J147: =SUMIF('00 PDC SP'!$C:$C,'00 SP'!$D147,'00 PDC SP'!L:L) -> 505567.5 | K147: =SUMIF('00 PDC SP'!$C:$C,'00 SP'!$D147,'00 PDC SP'!M:M) -> 496872 | L147: =SUMIF('00 PDC SP'!$C:$C,'00 SP'!$D147,'00 PDC SP'!N:N) -> 16904.54
A148: ABA660 | B148: B.II.7) Crediti v/altri | C148: S | D148: ABA660 | F148: =SUM(F149:F153) -> 3444883.13 | G148: 17895683.13 | H148: 18037765.05 | I148: 3302801.21 | J148: 20355416.4 | K148: 20622745.92 | L148: 3035471.69
A149: ABA670 | B149: B.II.7.a) Crediti v/clienti privati | D149: ABA670 | E149: 30 | F149: =SUMIF('00 PDC SP'!$C:$C,'00 SP'!$D149,'00 PDC SP'!H:H) -> 2186539.4 | G149: =SUMIF('00 PDC SP'!$C:$C,'00 SP'!$D149,'00 PDC SP'!I:I) -> 15852276.68 | H149: =SUMIF('00 PDC SP'!$C:$C,'00 SP'!$D149,'00 PDC SP'!J:J) -> 16016405.82 | I149: =SUMIF('00 PDC SP'!$C:$C,'00 SP'!$D149,'00 PDC SP'!K:K) -> 2022410.26 | J149: =SUMIF('00 PDC SP'!$C:$C,'00 SP'!$D149,'00 PDC SP'!L:L) -> 19327870 | K149: =SUMIF('00 PDC SP'!$C:$C,'00 SP'!$D149,'00 PDC SP'!M:M) -> 19097757.98 | L149: =SUMIF('00 PDC SP'!$C:$C,'00 SP'!$D149,'00 PDC SP'!N:N) -> 2252522.28
A150: ABA680 | B150: B.II.7.b) Crediti v/gestioni liquidatorie | D150: ABA680 | E150: 30 | F150: =SUMIF('00 PDC SP'!$C:$C,'00 SP'!$D150,'00 PDC SP'!H:H) -> 0 | G150: =SUMIF('00 PDC SP'!$C:$C,'00 SP'!$D150,'00 PDC SP'!I:I) -> 0 | H150: =SUMIF('00 PDC SP'!$C:$C,'00 SP'!$D150,'00 PDC SP'!J:J) -> 0 | I150: =SUMIF('00 PDC SP'!$C:$C,'00 SP'!$D150,'00 PDC SP'!K:K) -> 0 | J150: =SUMIF('00 PDC SP'!$C:$C,'00 SP'!$D150,'00 PDC SP'!L:L) -> 0 | K150: =SUMIF('00 PDC SP'!$C:$C,'00 SP'!$D150,'00 PDC SP'!M:M) -> 0 | L150: =SUMIF('00 PDC SP'!$C:$C,'00 SP'!$D150,'00 PDC SP'!N:N) -> 0
A151: ABA690 | B151: B.II.7.c) Crediti v/altri soggetti pubblici | D151: ABA690 | E151: 30 | F151: =SUMIF('00 PDC SP'!$C:$C,'00 SP'!$D151,'00 PDC SP'!H:H) -> 377206.68 | G151: =SUMIF('00 PDC SP'!$C:$C,'00 SP'!$D151,'00 PDC SP'!I:I) -> 422007.95 | H151: =SUMIF('00 PDC SP'!$C:$C,'00 SP'!$D151,'00 PDC SP'!J:J) -> 404678.64 | I151: =SUMIF('00 PDC SP'!$C:$C,'00 SP'!$D151,'00 PDC SP'!K:K) -> 394535.99 | J151: =SUMIF('00 PDC SP'!$C:$C,'00 SP'!$D151,'00 PDC SP'!L:L) -> 288535.49 | K151: =SUMIF('00 PDC SP'!$C:$C,'00 SP'!$D151,'00 PDC SP'!M:M) -> 465524.77 | L151: =SUMIF('00 PDC SP'!$C:$C,'00 SP'!$D151,'00 PDC SP'!N:N) -> 217546.71
A152: ABA700 | B152: B.II.7.d) Crediti v/altri soggetti pubblici per ricerca | D152: ABA700 | E152: 30 | F152: =SUMIF('00 PDC SP'!$C:$C,'00 SP'!$D152,'00 PDC SP'!H:H) -> 0 | G152: =SUMIF('00 PDC SP'!$C:$C,'00 SP'!$D152,'00 PDC SP'!I:I) -> 0 | H152: =SUMIF('00 PDC SP'!$C:$C,'00 SP'!$D152,'00 PDC SP'!J:J) -> 0 | I152: =SUMIF('00 PDC SP'!$C:$C,'00 SP'!$D152,'00 PDC SP'!K:K) -> 0 | J152: =SUMIF('00 PDC SP'!$C:$C,'00 SP'!$D152,'00 PDC SP'!L:L) -> 0 | K152: =SUMIF('00 PDC SP'!$C:$C,'00 SP'!$D152,'00 PDC SP'!M:M) -> 0 | L152: =SUMIF('00 PDC SP'!$C:$C,'00 SP'!$D152,'00 PDC SP'!N:N) -> 0
A153: ABA710 | B153: B.II.7.e) Altri crediti diversi | D153: ABA710 | E153: 30 | F153: =SUMIF('00 PDC SP'!$C:$C,'00 SP'!$D153,'00 PDC SP'!H:H) -> 881137.05 | G153: =SUMIF('00 PDC SP'!$C:$C,'00 SP'!$D153,'00 PDC SP'!I:I) -> 1621398.5 | H153: =SUMIF('00 PDC SP'!$C:$C,'00 SP'!$D153,'00 PDC SP'!J:J) -> 1616680.59 | I153: =SUMIF('00 PDC SP'!$C:$C,'00 SP'!$D153,'00 PDC SP'!K:K) -> 885854.96 | J153: =SUMIF('00 PDC SP'!$C:$C,'00 SP'!$D153,'00 PDC SP'!L:L) -> 739010.91 | K153: =SUMIF('00 PDC SP'!$C:$C,'00 SP'!$D153,'00 PDC SP'!M:M) -> 1059463.17 | L153: =SUMIF('00 PDC SP'!$C:$C,'00 SP'!$D153,'00 PDC SP'!N:N) -> 565402.7
A154: ABA720 | B154: B.III) ATTIVITA' FINANZIARIE CHE NON COSTITUISCONO IMMOBILIZZAZIONI | C154: S | D154: ABA720 | F154: =SUM(F155:F156) -> 0 | G154: 0 | H154: 0 | I154: 0 | J154: 0 | K154: 0 | L154: 0
A155: ABA730 | B155: B.III.1) Partecipazioni che non costituiscono immobilizzazioni | D155: ABA730 | E155: 9 | F155: =SUMIF('00 PDC SP'!$C:$C,'00 SP'!$D155,'00 PDC SP'!H:H) -> 0 | G155: =SUMIF('00 PDC SP'!$C:$C,'00 SP'!$D155,'00 PDC SP'!I:I) -> 0 | H155: =SUMIF('00 PDC SP'!$C:$C,'00 SP'!$D155,'00 PDC SP'!J:J) -> 0 | I155: =SUMIF('00 PDC SP'!$C:$C,'00 SP'!$D155,'00 PDC SP'!K:K) -> 0 | J155: =SUMIF('00 PDC SP'!$C:$C,'00 SP'!$D155,'00 PDC SP'!L:L) -> 0 | K155: =SUMIF('00 PDC SP'!$C:$C,'00 SP'!$D155,'00 PDC SP'!M:M) -> 0 | L155: =SUMIF('00 PDC SP'!$C:$C,'00 SP'!$D155,'00 PDC SP'!N:N) -> 0
A156: ABA740 | B156: B.III.2) Altri titoli che non costituiscono immobilizzazioni | D156: ABA740 | E156: 9 | F156: =SUMIF('00 PDC SP'!$C:$C,'00 SP'!$D156,'00 PDC SP'!H:H) -> 0 | G156: =SUMIF('00 PDC SP'!$C:$C,'00 SP'!$D156,'00 PDC SP'!I:I) -> 0 | H156: =SUMIF('00 PDC SP'!$C:$C,'00 SP'!$D156,'00 PDC SP'!J:J) -> 0 | I156: =SUMIF('00 PDC SP'!$C:$C,'00 SP'!$D156,'00 PDC SP'!K:K) -> 0 | J156: =SUMIF('00 PDC SP'!$C:$C,'00 SP'!$D156,'00 PDC SP'!L:L) -> 0 | K156: =SUMIF('00 PDC SP'!$C:$C,'00 SP'!$D156,'00 PDC SP'!M:M) -> 0 | L156: =SUMIF('00 PDC SP'!$C:$C,'00 SP'!$D156,'00 PDC SP'!N:N) -> 0
A157: ABA750 | B157: B.IV) DISPONIBILITA' LIQUIDE | C157: S | D157: ABA750 | F157: =SUM(F158:F161) -> 28479891.14 | G157: 675848777.7 | H157: 631522086.3 | I157: 72806582.52 | J157: 627120869.2 | K157: 652419343 | L157: 47508108.73
A158: ABA760 | B158: B.IV.1) Cassa | D158: ABA760 | E158: 57 | F158: =SUMIF('00 PDC SP'!$C:$C,'00 SP'!$D158,'00 PDC SP'!H:H) -> 20000 | G158: =SUMIF('00 PDC SP'!$C:$C,'00 SP'!$D158,'00 PDC SP'!I:I) -> 90884.92 | H158: =SUMIF('00 PDC SP'!$C:$C,'00 SP'!$D158,'00 PDC SP'!J:J) -> 90884.92 | I158: =SUMIF('00 PDC SP'!$C:$C,'00 SP'!$D158,'00 PDC SP'!K:K) -> 20000 | J158: =SUMIF('00 PDC SP'!$C:$C,'00 SP'!$D158,'00 PDC SP'!L:L) -> 52671.15 | K158: =SUMIF('00 PDC SP'!$C:$C,'00 SP'!$D158,'00 PDC SP'!M:M) -> 52671.15 | L158: =SUMIF('00 PDC SP'!$C:$C,'00 SP'!$D158,'00 PDC SP'!N:N) -> 20000
A159: ABA770 | B159: B.IV.2) Istituto Tesoriere | D159: ABA770 | E159: 57 | F159: =SUMIF('00 PDC SP'!$C:$C,'00 SP'!$D159,'00 PDC SP'!H:H) -> 26889884.4 | G159: =SUMIF('00 PDC SP'!$C:$C,'00 SP'!$D159,'00 PDC SP'!I:I) -> 674025083 | H159: =SUMIF('00 PDC SP'!$C:$C,'00 SP'!$D159,'00 PDC SP'!J:J) -> 631356001 | I159: =SUMIF('00 PDC SP'!$C:$C,'00 SP'!$D159,'00 PDC SP'!K:K) -> 69558966.35 | J159: =SUMIF('00 PDC SP'!$C:$C,'00 SP'!$D159,'00 PDC SP'!L:L) -> 625609944.8 | K159: =SUMIF('00 PDC SP'!$C:$C,'00 SP'!$D159,'00 PDC SP'!M:M) -> 648972836.8 | L159: =SUMIF('00 PDC SP'!$C:$C,'00 SP'!$D159,'00 PDC SP'!N:N) -> 46196074.32
A160: ABA780 | B160: B.IV.3) Tesoreria Unica | D160: ABA780 | E160: 57 | F160: =SUMIF('00 PDC SP'!$C:$C,'00 SP'!$D160,'00 PDC SP'!H:H) -> 0 | G160: =SUMIF('00 PDC SP'!$C:$C,'00 SP'!$D160,'00 PDC SP'!I:I) -> 0 | H160: =SUMIF('00 PDC SP'!$C:$C,'00 SP'!$D160,'00 PDC SP'!J:J) -> 0 | I160: =SUMIF('00 PDC SP'!$C:$C,'00 SP'!$D160,'00 PDC SP'!K:K) -> 0 | J160: =SUMIF('00 PDC SP'!$C:$C,'00 SP'!$D160,'00 PDC SP'!L:L) -> 0 | K160: =SUMIF('00 PDC SP'!$C:$C,'00 SP'!$D160,'00 PDC SP'!M:M) -> 0 | L160: =SUMIF('00 PDC SP'!$C:$C,'00 SP'!$D160,'00 PDC SP'!N:N) -> 0
A161: ABA790 | B161: B.IV.4) Conto corrente postale | D161: ABA790 | E161: 57 | F161: =SUMIF('00 PDC SP'!$C:$C,'00 SP'!$D161,'00 PDC SP'!H:H) -> 1570006.74 | G161: =SUMIF('00 PDC SP'!$C:$C,'00 SP'!$D161,'00 PDC SP'!I:I) -> 1732809.77 | H161: =SUMIF('00 PDC SP'!$C:$C,'00 SP'!$D161,'00 PDC SP'!J:J) -> 75200.34 | I161: =SUMIF('00 PDC SP'!$C:$C,'00 SP'!$D161,'00 PDC SP'!K:K) -> 3227616.17 | J161: =SUMIF('00 PDC SP'!$C:$C,'00 SP'!$D161,'00 PDC SP'!L:L) -> 1458253.24 | K161: =SUMIF('00 PDC SP'!$C:$C,'00 SP'!$D161,'00 PDC SP'!M:M) -> 3393835 | L161: =SUMIF('00 PDC SP'!$C:$C,'00 SP'!$D161,'00 PDC SP'!N:N) -> 1292034.41
A162: ACZ999 | B162: C) RATEI E RISCONTI ATTIVI | C162: S | D162: ACZ999 | F162: =F163+F166 -> 1502862.22 | G162: 8698.51 | H162: 1502862.22 | I162: 8698.51 | J162: 10533.97 | K162: 8698.51 | L162: 10533.97
A163: ACA000 | B163: C.I) RATEI ATTIVI | C163: S | D163: ACA000 | F163: =SUM(F164:F165) -> 0 | G163: 0 | H163: 0 | I163: 0 | J163: 0 | K163: 0 | L163: 0
A164: ACA010 | B164: C.I.1) Ratei attivi | D164: ACA010 | E164: 33 | F164: =SUMIF('00 PDC SP'!$C:$C,'00 SP'!$D164,'00 PDC SP'!H:H) -> 0 | G164: =SUMIF('00 PDC SP'!$C:$C,'00 SP'!$D164,'00 PDC SP'!I:I) -> 0 | H164: =SUMIF('00 PDC SP'!$C:$C,'00 SP'!$D164,'00 PDC SP'!J:J) -> 0 | I164: =SUMIF('00 PDC SP'!$C:$C,'00 SP'!$D164,'00 PDC SP'!K:K) -> 0 | J164: =SUMIF('00 PDC SP'!$C:$C,'00 SP'!$D164,'00 PDC SP'!L:L) -> 0 | K164: =SUMIF('00 PDC SP'!$C:$C,'00 SP'!$D164,'00 PDC SP'!M:M) -> 0 | L164: =SUMIF('00 PDC SP'!$C:$C,'00 SP'!$D164,'00 PDC SP'!N:N) -> 0
A165: ACA020 | B165: C.I.2) Ratei attivi v/Aziende sanitarie pubbliche della Regione | D165: ACA020 | E165: 33 | F165: =SUMIF('00 PDC SP'!$C:$C,'00 SP'!$D165,'00 PDC SP'!H:H) -> 0 | G165: =SUMIF('00 PDC SP'!$C:$C,'00 SP'!$D165,'00 PDC SP'!I:I) -> 0 | H165: =SUMIF('00 PDC SP'!$C:$C,'00 SP'!$D165,'00 PDC SP'!J:J) -> 0 | I165: =SUMIF('00 PDC SP'!$C:$C,'00 SP'!$D165,'00 PDC SP'!K:K) -> 0 | J165: =SUMIF('00 PDC SP'!$C:$C,'00 SP'!$D165,'00 PDC SP'!L:L) -> 0 | K165: =SUMIF('00 PDC SP'!$C:$C,'00 SP'!$D165,'00 PDC SP'!M:M) -> 0 | L165: =SUMIF('00 PDC SP'!$C:$C,'00 SP'!$D165,'00 PDC SP'!N:N) -> 0
A166: ACA030 | B166: C.II) RISCONTI ATTIVI | C166: S | D166: ACA030 | F166: =SUM(F167:F168) -> 1502862.22 | G166: 8698.51 | H166: 1502862.22 | I166: 8698.51 | J166: 10533.97 | K166: 8698.51 | L166: 10533.97
A167: ACA040 | B167: C.II.1) Risconti attivi | D167: ACA040 | E167: 33 | F167: =SUMIF('00 PDC SP'!$C:$C,'00 SP'!$D167,'00 PDC SP'!H:H) -> 1502862.22 | G167: =SUMIF('00 PDC SP'!$C:$C,'00 SP'!$D167,'00 PDC SP'!I:I) -> 8698.51 | H167: =SUMIF('00 PDC SP'!$C:$C,'00 SP'!$D167,'00 PDC SP'!J:J) -> 1502862.22 | I167: =SUMIF('00 PDC SP'!$C:$C,'00 SP'!$D167,'00 PDC SP'!K:K) -> 8698.51 | J167: =SUMIF('00 PDC SP'!$C:$C,'00 SP'!$D167,'00 PDC SP'!L:L) -> 10533.97 | K167: =SUMIF('00 PDC SP'!$C:$C,'00 SP'!$D167,'00 PDC SP'!M:M) -> 8698.51 | L167: =SUMIF('00 PDC SP'!$C:$C,'00 SP'!$D167,'00 PDC SP'!N:N) -> 10533.97
A168: ACA050 | B168: C.II.2) Risconti attivi v/Aziende sanitarie pubbliche della Regione | D168: ACA050 | E168: 33 | F168: =SUMIF('00 PDC SP'!$C:$C,'00 SP'!$D168,'00 PDC SP'!H:H) -> 0 | G168: =SUMIF('00 PDC SP'!$C:$C,'00 SP'!$D168,'00 PDC SP'!I:I) -> 0 | H168: =SUMIF('00 PDC SP'!$C:$C,'00 SP'!$D168,'00 PDC SP'!J:J) -> 0 | I168: =SUMIF('00 PDC SP'!$C:$C,'00 SP'!$D168,'00 PDC SP'!K:K) -> 0 | J168: =SUMIF('00 PDC SP'!$C:$C,'00 SP'!$D168,'00 PDC SP'!L:L) -> 0 | K168: =SUMIF('00 PDC SP'!$C:$C,'00 SP'!$D168,'00 PDC SP'!M:M) -> 0 | L168: =SUMIF('00 PDC SP'!$C:$C,'00 SP'!$D168,'00 PDC SP'!N:N) -> 0
A169: ADZ999 | B169: D) CONTI D'ORDINE | C169: S | D169: ADZ999 | F169: =SUM(F170:F173) -> 0 | G169: 0 | H169: 0 | I169: 0 | J169: 0 | K169: 0 | L169: 0
A170: ADA000 | B170: D.I) CANONI DI LEASING ANCORA DA PAGARE | D170: ADA000 | F170: =SUMIF('00 PDC SP'!$C:$C,'00 SP'!$D170,'00 PDC SP'!H:H) -> 0 | G170: =SUMIF('00 PDC SP'!$C:$C,'00 SP'!$D170,'00 PDC SP'!I:I) -> 0 | H170: =SUMIF('00 PDC SP'!$C:$C,'00 SP'!$D170,'00 PDC SP'!J:J) -> 0 | I170: =SUMIF('00 PDC SP'!$C:$C,'00 SP'!$D170,'00 PDC SP'!K:K) -> 0 | J170: =SUMIF('00 PDC SP'!$C:$C,'00 SP'!$D170,'00 PDC SP'!L:L) -> 0 | K170: =SUMIF('00 PDC SP'!$C:$C,'00 SP'!$D170,'00 PDC SP'!M:M) -> 0 | L170: =SUMIF('00 PDC SP'!$C:$C,'00 SP'!$D170,'00 PDC SP'!N:N) -> 0
A171: ADA010 | B171: D.II) DEPOSITI CAUZIONALI | D171: ADA010 | F171: =SUMIF('00 PDC SP'!$C:$C,'00 SP'!$D171,'00 PDC SP'!H:H) -> 0 | G171: =SUMIF('00 PDC SP'!$C:$C,'00 SP'!$D171,'00 PDC SP'!I:I) -> 0 | H171: =SUMIF('00 PDC SP'!$C:$C,'00 SP'!$D171,'00 PDC SP'!J:J) -> 0 | I171: =SUMIF('00 PDC SP'!$C:$C,'00 SP'!$D171,'00 PDC SP'!K:K) -> 0 | J171: =SUMIF('00 PDC SP'!$C:$C,'00 SP'!$D171,'00 PDC SP'!L:L) -> 0 | K171: =SUMIF('00 PDC SP'!$C:$C,'00 SP'!$D171,'00 PDC SP'!M:M) -> 0 | L171: =SUMIF('00 PDC SP'!$C:$C,'00 SP'!$D171,'00 PDC SP'!N:N) -> 0
A172: ADA020 | B172: D.III) BENI IN COMODATO | D172: ADA020 | F172: =SUMIF('00 PDC SP'!$C:$C,'00 SP'!$D172,'00 PDC SP'!H:H) -> 0 | G172: =SUMIF('00 PDC SP'!$C:$C,'00 SP'!$D172,'00 PDC SP'!I:I) -> 0 | H172: =SUMIF('00 PDC SP'!$C:$C,'00 SP'!$D172,'00 PDC SP'!J:J) -> 0 | I172: =SUMIF('00 PDC SP'!$C:$C,'00 SP'!$D172,'00 PDC SP'!K:K) -> 0 | J172: =SUMIF('00 PDC SP'!$C:$C,'00 SP'!$D172,'00 PDC SP'!L:L) -> 0 | K172: =SUMIF('00 PDC SP'!$C:$C,'00 SP'!$D172,'00 PDC SP'!M:M) -> 0 | L172: =SUMIF('00 PDC SP'!$C:$C,'00 SP'!$D172,'00 PDC SP'!N:N) -> 0
A173: ADA030 | B173: D.IV) ALTRI CONTI D'ORDINE | D173: ADA030 | F173: =SUMIF('00 PDC SP'!$C:$C,'00 SP'!$D173,'00 PDC SP'!H:H) -> 0 | G173: =SUMIF('00 PDC SP'!$C:$C,'00 SP'!$D173,'00 PDC SP'!I:I) -> 0 | H173: =SUMIF('00 PDC SP'!$C:$C,'00 SP'!$D173,'00 PDC SP'!J:J) -> 0 | I173: =SUMIF('00 PDC SP'!$C:$C,'00 SP'!$D173,'00 PDC SP'!K:K) -> 0 | J173: =SUMIF('00 PDC SP'!$C:$C,'00 SP'!$D173,'00 PDC SP'!L:L) -> 0 | K173: =SUMIF('00 PDC SP'!$C:$C,'00 SP'!$D173,'00 PDC SP'!M:M) -> 0 | L173: =SUMIF('00 PDC SP'!$C:$C,'00 SP'!$D173,'00 PDC SP'!N:N) -> 0
A174: PAZ999 | B174: A) PATRIMONIO NETTO | C174: S | D174: PAZ999 | F174: =F175+F176+F185+F186+F192+F196+F197 -> 110947191 | G174: 66014604.99 | H174: 68477454.54 | I174: 108484341.5 | J174: 33821651.93 | K174: 24101299.18 | L174: 118204694.2
A175: PAA000 | B175: A.I) FONDO DI DOTAZIONE | D175: PAA000 | E175: 53 | F175: =SUMIF('00 PDC SP'!$C:$C,'00 SP'!$D175,'00 PDC SP'!H:H) -> 0 | G175: =SUMIF('00 PDC SP'!$C:$C,'00 SP'!$D175,'00 PDC SP'!I:I) -> 0 | H175: =SUMIF('00 PDC SP'!$C:$C,'00 SP'!$D175,'00 PDC SP'!J:J) -> 0 | I175: =SUMIF('00 PDC SP'!$C:$C,'00 SP'!$D175,'00 PDC SP'!K:K) -> 0 | J175: =SUMIF('00 PDC SP'!$C:$C,'00 SP'!$D175,'00 PDC SP'!L:L) -> 0 | K175: =SUMIF('00 PDC SP'!$C:$C,'00 SP'!$D175,'00 PDC SP'!M:M) -> 0 | L175: =SUMIF('00 PDC SP'!$C:$C,'00 SP'!$D175,'00 PDC SP'!N:N) -> 0
A176: PAA010 | B176: A.II) FINANZIAMENTI PER INVESTIMENTI | C176: S | D176: PAA010 | F176: =F177+F178+F182+F183+F184 -> 122310905.7 | G176: 6628571.39 | H176: 9776707.08 | I176: 119162770.1 | J176: 6486693.45 | K176: 10436920.89 | L176: 115212542.6
A177: PAA020 | B177: A.II.1) Finanziamenti per beni di prima dotazione | D177: PAA020 | E177: 5 | F177: =SUMIF('00 PDC SP'!$C:$C,'00 SP'!$D177,'00 PDC SP'!H:H) -> 67286349.67 | G177: =SUMIF('00 PDC SP'!$C:$C,'00 SP'!$D177,'00 PDC SP'!I:I) -> 0 | H177: =SUMIF('00 PDC SP'!$C:$C,'00 SP'!$D177,'00 PDC SP'!J:J) -> 3577467.93 | I177: =SUMIF('00 PDC SP'!$C:$C,'00 SP'!$D177,'00 PDC SP'!K:K) -> 63708881.74 | J177: =SUMIF('00 PDC SP'!$C:$C,'00 SP'!$D177,'00 PDC SP'!L:L) -> 0 | K177: =SUMIF('00 PDC SP'!$C:$C,'00 SP'!$D177,'00 PDC SP'!M:M) -> 3577467.93 | L177: =SUMIF('00 PDC SP'!$C:$C,'00 SP'!$D177,'00 PDC SP'!N:N) -> 60131413.81
A178: PAA030 | B178: A.II.2) Finanziamenti da Stato per investimenti | C178: S | D178: PAA030 | F178: =SUM(F179:F181) -> 0 | G178: 0 | H178: 0 | I178: 0 | J178: 0 | K178: 0 | L178: 0
A179: PAA040 | B179: A.II.2.a) Finanziamenti da Stato per investimenti - ex art. 20 legge 67/88 | D179: PAA040 | E179: 5 | F179: =SUMIF('00 PDC SP'!$C:$C,'00 SP'!$D179,'00 PDC SP'!H:H) -> 0 | G179: =SUMIF('00 PDC SP'!$C:$C,'00 SP'!$D179,'00 PDC SP'!I:I) -> 0 | H179: =SUMIF('00 PDC SP'!$C:$C,'00 SP'!$D179,'00 PDC SP'!J:J) -> 0 | I179: =SUMIF('00 PDC SP'!$C:$C,'00 SP'!$D179,'00 PDC SP'!K:K) -> 0 | J179: =SUMIF('00 PDC SP'!$C:$C,'00 SP'!$D179,'00 PDC SP'!L:L) -> 0 | K179: =SUMIF('00 PDC SP'!$C:$C,'00 SP'!$D179,'00 PDC SP'!M:M) -> 0 | L179: =SUMIF('00 PDC SP'!$C:$C,'00 SP'!$D179,'00 PDC SP'!N:N) -> 0
A180: PAA050 | B180: A.II.2.b) Finanziamenti da Stato per investimenti - ricerca | D180: PAA050 | E180: 5 | F180: =SUMIF('00 PDC SP'!$C:$C,'00 SP'!$D180,'00 PDC SP'!H:H) -> 0 | G180: =SUMIF('00 PDC SP'!$C:$C,'00 SP'!$D180,'00 PDC SP'!I:I) -> 0 | H180: =SUMIF('00 PDC SP'!$C:$C,'00 SP'!$D180,'00 PDC SP'!J:J) -> 0 | I180: =SUMIF('00 PDC SP'!$C:$C,'00 SP'!$D180,'00 PDC SP'!K:K) -> 0 | J180: =SUMIF('00 PDC SP'!$C:$C,'00 SP'!$D180,'00 PDC SP'!L:L) -> 0 | K180: =SUMIF('00 PDC SP'!$C:$C,'00 SP'!$D180,'00 PDC SP'!M:M) -> 0 | L180: =SUMIF('00 PDC SP'!$C:$C,'00 SP'!$D180,'00 PDC SP'!N:N) -> 0
A181: PAA060 | B181: A.II.2.c) Finanziamenti da Stato per investimenti - altro | D181: PAA060 | E181: 5 | F181: =SUMIF('00 PDC SP'!$C:$C,'00 SP'!$D181,'00 PDC SP'!H:H) -> 0 | G181: =SUMIF('00 PDC SP'!$C:$C,'00 SP'!$D181,'00 PDC SP'!I:I) -> 0 | H181: =SUMIF('00 PDC SP'!$C:$C,'00 SP'!$D181,'00 PDC SP'!J:J) -> 0 | I181: =SUMIF('00 PDC SP'!$C:$C,'00 SP'!$D181,'00 PDC SP'!K:K) -> 0 | J181: =SUMIF('00 PDC SP'!$C:$C,'00 SP'!$D181,'00 PDC SP'!L:L) -> 0 | K181: =SUMIF('00 PDC SP'!$C:$C,'00 SP'!$D181,'00 PDC SP'!M:M) -> 0 | L181: =SUMIF('00 PDC SP'!$C:$C,'00 SP'!$D181,'00 PDC SP'!N:N) -> 0
A182: PAA070 | B182: A.II.3) Finanziamenti da Regione per investimenti | D182: PAA070 | E182: 5 | F182: =SUMIF('00 PDC SP'!$C:$C,'00 SP'!$D182,'00 PDC SP'!H:H) -> 38902957.8 | G182: =SUMIF('00 PDC SP'!$C:$C,'00 SP'!$D182,'00 PDC SP'!I:I) -> 122252.5 | H182: =SUMIF('00 PDC SP'!$C:$C,'00 SP'!$D182,'00 PDC SP'!J:J) -> 1468544.84 | I182: =SUMIF('00 PDC SP'!$C:$C,'00 SP'!$D182,'00 PDC SP'!K:K) -> 37556665.46 | J182: =SUMIF('00 PDC SP'!$C:$C,'00 SP'!$D182,'00 PDC SP'!L:L) -> 2138846.64 | K182: =SUMIF('00 PDC SP'!$C:$C,'00 SP'!$D182,'00 PDC SP'!M:M) -> 1674245.68 | L182: =SUMIF('00 PDC SP'!$C:$C,'00 SP'!$D182,'00 PDC SP'!N:N) -> 38021266.42
A183: PAA080 | B183: A.II.4) Finanziamenti da altri soggetti pubblici per investimenti | D183: PAA080 | E183: 5 | F183: =SUMIF('00 PDC SP'!$C:$C,'00 SP'!$D183,'00 PDC SP'!H:H) -> 0 | G183: =SUMIF('00 PDC SP'!$C:$C,'00 SP'!$D183,'00 PDC SP'!I:I) -> 0 | H183: =SUMIF('00 PDC SP'!$C:$C,'00 SP'!$D183,'00 PDC SP'!J:J) -> 0 | I183: =SUMIF('00 PDC SP'!$C:$C,'00 SP'!$D183,'00 PDC SP'!K:K) -> 0 | J183: =SUMIF('00 PDC SP'!$C:$C,'00 SP'!$D183,'00 PDC SP'!L:L) -> 0 | K183: =SUMIF('00 PDC SP'!$C:$C,'00 SP'!$D183,'00 PDC SP'!M:M) -> 0 | L183: =SUMIF('00 PDC SP'!$C:$C,'00 SP'!$D183,'00 PDC SP'!N:N) -> 0
A184: PAA090 | B184: A.II.5) Finanziamenti per investimenti da rettifica contributi in conto esercizio | D184: PAA090 | E184: 5 | F184: =SUMIF('00 PDC SP'!$C:$C,'00 SP'!$D184,'00 PDC SP'!H:H) -> 16121598.27 | G184: =SUMIF('00 PDC SP'!$C:$C,'00 SP'!$D184,'00 PDC SP'!I:I) -> 6506318.89 | H184: =SUMIF('00 PDC SP'!$C:$C,'00 SP'!$D184,'00 PDC SP'!J:J) -> 4730694.31 | I184: =SUMIF('00 PDC SP'!$C:$C,'00 SP'!$D184,'00 PDC SP'!K:K) -> 17897222.85 | J184: =SUMIF('00 PDC SP'!$C:$C,'00 SP'!$D184,'00 PDC SP'!L:L) -> 4347846.81 | K184: =SUMIF('00 PDC SP'!$C:$C,'00 SP'!$D184,'00 PDC SP'!M:M) -> 5185207.28 | L184: =SUMIF('00 PDC SP'!$C:$C,'00 SP'!$D184,'00 PDC SP'!N:N) -> 17059862.38
A185: PAA100 | B185: A.III) RISERVE DA DONAZIONI E LASCITI VINCOLATI AD INVESTIMENTI | D185: PAA100 | E185: 53 | F185: =SUMIF('00 PDC SP'!$C:$C,'00 SP'!$D185,'00 PDC SP'!H:H) -> 170994.85 | G185: =SUMIF('00 PDC SP'!$C:$C,'00 SP'!$D185,'00 PDC SP'!I:I) -> 78486.47 | H185: =SUMIF('00 PDC SP'!$C:$C,'00 SP'!$D185,'00 PDC SP'!J:J) -> 48286.07 | I185: =SUMIF('00 PDC SP'!$C:$C,'00 SP'!$D185,'00 PDC SP'!K:K) -> 201195.25 | J185: =SUMIF('00 PDC SP'!$C:$C,'00 SP'!$D185,'00 PDC SP'!L:L) -> 114032.88 | K185: =SUMIF('00 PDC SP'!$C:$C,'00 SP'!$D185,'00 PDC SP'!M:M) -> 54754.03 | L185: =SUMIF('00 PDC SP'!$C:$C,'00 SP'!$D185,'00 PDC SP'!N:N) -> 260474.1
A186: PAA110 | B186: A.IV) ALTRE RISERVE | C186: S | D186: PAA110 | F186: =SUM(F187:F191) -> 2730000 | G186: 0 | H186: 0 | I186: 2730000 | J186: 0 | K186: 0 | L186: 2730000
A187: PAA120 | B187: A.IV.1) Riserve da rivalutazioni | D187: PAA120 | E187: 6 | F187: =SUMIF('00 PDC SP'!$C:$C,'00 SP'!$D187,'00 PDC SP'!H:H) -> 0 | G187: =SUMIF('00 PDC SP'!$C:$C,'00 SP'!$D187,'00 PDC SP'!I:I) -> 0 | H187: =SUMIF('00 PDC SP'!$C:$C,'00 SP'!$D187,'00 PDC SP'!J:J) -> 0 | I187: =SUMIF('00 PDC SP'!$C:$C,'00 SP'!$D187,'00 PDC SP'!K:K) -> 0 | J187: =SUMIF('00 PDC SP'!$C:$C,'00 SP'!$D187,'00 PDC SP'!L:L) -> 0 | K187: =SUMIF('00 PDC SP'!$C:$C,'00 SP'!$D187,'00 PDC SP'!M:M) -> 0 | L187: =SUMIF('00 PDC SP'!$C:$C,'00 SP'!$D187,'00 PDC SP'!N:N) -> 0
A188: PAA130 | B188: A.IV.2) Riserve da plusvalenze da reinvestire | D188: PAA130 | E188: 6 | F188: =SUMIF('00 PDC SP'!$C:$C,'00 SP'!$D188,'00 PDC SP'!H:H) -> 0 | G188: =SUMIF('00 PDC SP'!$C:$C,'00 SP'!$D188,'00 PDC SP'!I:I) -> 0 | H188: =SUMIF('00 PDC SP'!$C:$C,'00 SP'!$D188,'00 PDC SP'!J:J) -> 0 | I188: =SUMIF('00 PDC SP'!$C:$C,'00 SP'!$D188,'00 PDC SP'!K:K) -> 0 | J188: =SUMIF('00 PDC SP'!$C:$C,'00 SP'!$D188,'00 PDC SP'!L:L) -> 0 | K188: =SUMIF('00 PDC SP'!$C:$C,'00 SP'!$D188,'00 PDC SP'!M:M) -> 0 | L188: =SUMIF('00 PDC SP'!$C:$C,'00 SP'!$D188,'00 PDC SP'!N:N) -> 0
A189: PAA140 | B189: A.IV.3) Contributi da reinvestire | D189: PAA140 | E189: 6 | F189: =SUMIF('00 PDC SP'!$C:$C,'00 SP'!$D189,'00 PDC SP'!H:H) -> 0 | G189: =SUMIF('00 PDC SP'!$C:$C,'00 SP'!$D189,'00 PDC SP'!I:I) -> 0 | H189: =SUMIF('00 PDC SP'!$C:$C,'00 SP'!$D189,'00 PDC SP'!J:J) -> 0 | I189: =SUMIF('00 PDC SP'!$C:$C,'00 SP'!$D189,'00 PDC SP'!K:K) -> 0 | J189: =SUMIF('00 PDC SP'!$C:$C,'00 SP'!$D189,'00 PDC SP'!L:L) -> 0 | K189: =SUMIF('00 PDC SP'!$C:$C,'00 SP'!$D189,'00 PDC SP'!M:M) -> 0 | L189: =SUMIF('00 PDC SP'!$C:$C,'00 SP'!$D189,'00 PDC SP'!N:N) -> 0
A190: PAA150 | B190: A.IV.4) Riserve da utili di esercizio destinati ad investimenti | D190: PAA150 | E190: 6 | F190: =SUMIF('00 PDC SP'!$C:$C,'00 SP'!$D190,'00 PDC SP'!H:H) -> 0 | G190: =SUMIF('00 PDC SP'!$C:$C,'00 SP'!$D190,'00 PDC SP'!I:I) -> 0 | H190: =SUMIF('00 PDC SP'!$C:$C,'00 SP'!$D190,'00 PDC SP'!J:J) -> 0 | I190: =SUMIF('00 PDC SP'!$C:$C,'00 SP'!$D190,'00 PDC SP'!K:K) -> 0 | J190: =SUMIF('00 PDC SP'!$C:$C,'00 SP'!$D190,'00 PDC SP'!L:L) -> 0 | K190: =SUMIF('00 PDC SP'!$C:$C,'00 SP'!$D190,'00 PDC SP'!M:M) -> 0 | L190: =SUMIF('00 PDC SP'!$C:$C,'00 SP'!$D190,'00 PDC SP'!N:N) -> 0
A191: PAA160 | B191: A.IV.5) Riserve diverse | D191: PAA160 | E191: 6 | F191: =SUMIF('00 PDC SP'!$C:$C,'00 SP'!$D191,'00 PDC SP'!H:H) -> 2730000 | G191: =SUMIF('00 PDC SP'!$C:$C,'00 SP'!$D191,'00 PDC SP'!I:I) -> 0 | H191: =SUMIF('00 PDC SP'!$C:$C,'00 SP'!$D191,'00 PDC SP'!J:J) -> 0 | I191: =SUMIF('00 PDC SP'!$C:$C,'00 SP'!$D191,'00 PDC SP'!K:K) -> 2730000 | J191: =SUMIF('00 PDC SP'!$C:$C,'00 SP'!$D191,'00 PDC SP'!L:L) -> 0 | K191: =SUMIF('00 PDC SP'!$C:$C,'00 SP'!$D191,'00 PDC SP'!M:M) -> 0 | L191: =SUMIF('00 PDC SP'!$C:$C,'00 SP'!$D191,'00 PDC SP'!N:N) -> 2730000
A192: PAA170 | B192: A.V) CONTRIBUTI PER RIPIANO PERDITE | C192: S | D192: PAA170 | F192: =SUM(F193:F195) -> 30778127.57 | G192: 14264710 | H192: 30778127.57 | I192: 14264710 | J192: 13609624 | K192: 0 | L192: 27874334
A193: PAA180 | B193: A.V.1) Contributi per copertura debiti al 31/12/2005 | D193: PAA180 | E193: 53 | F193: =SUMIF('00 PDC SP'!$C:$C,'00 SP'!$D193,'00 PDC SP'!H:H) -> 0 | G193: =SUMIF('00 PDC SP'!$C:$C,'00 SP'!$D193,'00 PDC SP'!I:I) -> 0 | H193: =SUMIF('00 PDC SP'!$C:$C,'00 SP'!$D193,'00 PDC SP'!J:J) -> 0 | I193: =SUMIF('00 PDC SP'!$C:$C,'00 SP'!$D193,'00 PDC SP'!K:K) -> 0 | J193: =SUMIF('00 PDC SP'!$C:$C,'00 SP'!$D193,'00 PDC SP'!L:L) -> 0 | K193: =SUMIF('00 PDC SP'!$C:$C,'00 SP'!$D193,'00 PDC SP'!M:M) -> 0 | L193: =SUMIF('00 PDC SP'!$C:$C,'00 SP'!$D193,'00 PDC SP'!N:N) -> 0
A194: PAA190 | B194: A.V.2) Contributi per ricostituzione risorse da investimenti esercizi precedenti | D194: PAA190 | E194: 53 | F194: =SUMIF('00 PDC SP'!$C:$C,'00 SP'!$D194,'00 PDC SP'!H:H) -> 0 | G194: =SUMIF('00 PDC SP'!$C:$C,'00 SP'!$D194,'00 PDC SP'!I:I) -> 0 | H194: =SUMIF('00 PDC SP'!$C:$C,'00 SP'!$D194,'00 PDC SP'!J:J) -> 0 | I194: =SUMIF('00 PDC SP'!$C:$C,'00 SP'!$D194,'00 PDC SP'!K:K) -> 0 | J194: =SUMIF('00 PDC SP'!$C:$C,'00 SP'!$D194,'00 PDC SP'!L:L) -> 0 | K194: =SUMIF('00 PDC SP'!$C:$C,'00 SP'!$D194,'00 PDC SP'!M:M) -> 0 | L194: =SUMIF('00 PDC SP'!$C:$C,'00 SP'!$D194,'00 PDC SP'!N:N) -> 0
A195: PAA200 | B195: A.V.3) Altro | D195: PAA200 | E195: 53 | F195: =SUMIF('00 PDC SP'!$C:$C,'00 SP'!$D195,'00 PDC SP'!H:H) -> 30778127.57 | G195: =SUMIF('00 PDC SP'!$C:$C,'00 SP'!$D195,'00 PDC SP'!I:I) -> 14264710 | H195: =SUMIF('00 PDC SP'!$C:$C,'00 SP'!$D195,'00 PDC SP'!J:J) -> 30778127.57 | I195: =SUMIF('00 PDC SP'!$C:$C,'00 SP'!$D195,'00 PDC SP'!K:K) -> 14264710 | J195: =SUMIF('00 PDC SP'!$C:$C,'00 SP'!$D195,'00 PDC SP'!L:L) -> 13609624 | K195: =SUMIF('00 PDC SP'!$C:$C,'00 SP'!$D195,'00 PDC SP'!M:M) -> 0 | L195: =SUMIF('00 PDC SP'!$C:$C,'00 SP'!$D195,'00 PDC SP'!N:N) -> 27874334
A196: PAA210 | B196: A.VI) UTILI (PERDITE) PORTATI A NUOVO | D196: PAA210 | E196: 53 | F196: =SUMIF('00 PDC SP'!$C:$C,'00 SP'!$D196,'00 PDC SP'!H:H) -> -30778127.57 | G196: =SUMIF('00 PDC SP'!$C:$C,'00 SP'!$D196,'00 PDC SP'!I:I) -> 30778127.57 | H196: =SUMIF('00 PDC SP'!$C:$C,'00 SP'!$D196,'00 PDC SP'!J:J) -> 14264709.56 | I196: =SUMIF('00 PDC SP'!$C:$C,'00 SP'!$D196,'00 PDC SP'!K:K) -> -14264709.56 | J196: =SUMIF('00 PDC SP'!$C:$C,'00 SP'!$D196,'00 PDC SP'!L:L) -> 0 | K196: =SUMIF('00 PDC SP'!$C:$C,'00 SP'!$D196,'00 PDC SP'!M:M) -> 13609624.26 | L196: =SUMIF('00 PDC SP'!$C:$C,'00 SP'!$D196,'00 PDC SP'!N:N) -> -27874333.82
A197: PAA220 | B197: A.VII) UTILE (PERDITA) D'ESERCIZIO | D197: PAA220 | E197: 53 | F197: =SUMIF('00 PDC SP'!$C:$C,'00 SP'!$D197,'00 PDC SP'!H:H) -> -14264709.56 | G197: =SUMIF('00 PDC SP'!$C:$C,'00 SP'!$D197,'00 PDC SP'!I:I) -> 14264709.56 | H197: =SUMIF('00 PDC SP'!$C:$C,'00 SP'!$D197,'00 PDC SP'!J:J) -> 13609624.26 | I197: =SUMIF('00 PDC SP'!$C:$C,'00 SP'!$D197,'00 PDC SP'!K:K) -> -13609624.26 | J197: =SUMIF('00 PDC SP'!$C:$C,'00 SP'!$D197,'00 PDC SP'!L:L) -> 13611301.6 | K197: =SUMIF('00 PDC SP'!$C:$C,'00 SP'!$D197,'00 PDC SP'!M:M) -> 0 | L197: =SUMIF('00 PDC SP'!$C:$C,'00 SP'!$D197,'00 PDC SP'!N:N) -> 1677.34
A198: PBZ999 | B198: B) FONDI PER RISCHI E ONERI | C198: S | D198: PBZ999 | F198: =F199+F200+F206+F214+F219 -> 70986748.23 | G198: 27369043.7 | H198: 12603218.6 | I198: 85752573.33 | J198: 18073168.95 | K198: 20991484.87 | L198: 82834257.41
A199: PBA000 | B199: B.I) FONDI PER IMPOSTE, ANCHE DIFFERITE | D199: PBA000 | E199: 11 | F199: =SUMIF('00 PDC SP'!$C:$C,'00 SP'!$D199,'00 PDC SP'!H:H)*-1 -> 0 | G199: =SUMIF('00 PDC SP'!$C:$C,'00 SP'!$D199,'00 PDC SP'!I:I)*-1 -> 0 | H199: =SUMIF('00 PDC SP'!$C:$C,'00 SP'!$D199,'00 PDC SP'!J:J)*-1 -> 0 | I199: =SUMIF('00 PDC SP'!$C:$C,'00 SP'!$D199,'00 PDC SP'!K:K)*-1 -> 0 | J199: =SUMIF('00 PDC SP'!$C:$C,'00 SP'!$D199,'00 PDC SP'!L:L)*-1 -> 0 | K199: =SUMIF('00 PDC SP'!$C:$C,'00 SP'!$D199,'00 PDC SP'!M:M)*-1 -> 0 | L199: =SUMIF('00 PDC SP'!$C:$C,'00 SP'!$D199,'00 PDC SP'!N:N)*-1 -> 0
A200: PBA010 | B200: B.II) FONDI PER RISCHI | C200: S | D200: PBA010 | F200: =SUM(F201:F205) -> 36530382.34 | G200: =SUM(G201:G205) -> 17313713.75 | H200: 7504037.58 | I200: 46340058.51 | J200: 3927713.96 | K200: 10442430.95 | L200: 39825341.52
A201: PBA020 | B201: B.II.1) Fondo rischi per cause civili ed oneri processuali | D201: PBA020 | E201: 11 | F201: =SUMIF('00 PDC SP'!$C:$C,'00 SP'!$D201,'00 PDC SP'!H:H)*-1 -> 7150000 | G201: =SUMIF('00 PDC SP'!$C:$C,'00 SP'!$D201,'00 PDC SP'!I:I)*-1 -> 9280260.16 | H201: =SUMIF('00 PDC SP'!$C:$C,'00 SP'!$D201,'00 PDC SP'!J:J)*-1 -> 165038.16 | I201: =SUMIF('00 PDC SP'!$C:$C,'00 SP'!$D201,'00 PDC SP'!K:K)*-1 -> 16265222 | J201: =SUMIF('00 PDC SP'!$C:$C,'00 SP'!$D201,'00 PDC SP'!L:L)*-1 -> 1357811.38 | K201: =SUMIF('00 PDC SP'!$C:$C,'00 SP'!$D201,'00 PDC SP'!M:M)*-1 -> 6579085.16 | L201: =SUMIF('00 PDC SP'!$C:$C,'00 SP'!$D201,'00 PDC SP'!N:N)*-1 -> 11043948.22
... 84 more rows

Sheet 01 Rendiconto Finanziario
D2: Rendiconto Finanziario | F2: ='00 SP'!L2 -> Esercizio 2018 | G2: ='00 SP'!I2 -> Esercizio 2017 | I2: NOTE
D4: OPERAZIONI DI GESTIONE REDDITUALE
A5: 1 | B5: SP | C5: 1 | D5: (+) | E5: risultato di esercizio | F5: =SUMIF('00 PDC SP'!$D:$D,'01 Rendiconto Finanziario'!$A5,'00 PDC SP'!N:N)*'01 Rendiconto Finanziario'!$C5 -> 1677.34 | G5: =SUMIF('00 PDC SP'!$D:$D,'01 Rendiconto Finanziario'!$A5,'00 PDC SP'!K:K)*'01 Rendiconto Finanziario'!$C5 -> -13609624.26
D6: Voci che non hanno effetto sulla liquidità: costi e ricavi non monetari
A7: 2 | B7: VP | C7: -1 | D7: (+) | E7: ammortamenti fabbricati | F7: =(SUMIF('00 PDC SP'!$D:$D,'01 Rendiconto Finanziario'!$A7,'00 PDC SP'!L:L)-SUMIF('00 PDC SP'!$D:$D,'01 Rendiconto Finanziario'!$A7,'00 PDC SP'!M:M))*'01 Rendiconto Finanziario'!$C7 -> 4970458.61 | G7: =(SUMIF('00 PDC SP'!$D:$D,'01 Rendiconto Finanziario'!$A7,'00 PDC SP'!I:I)-SUMIF('00 PDC SP'!$D:$D,'01 Rendiconto Finanziario'!$A7,'00 PDC SP'!J:J))*'01 Rendiconto Finanziario'!$C7 -> 4970287.05
A8: 3 | B8: VP | C8: -1 | D8: (+) | E8: ammortamenti altre immobilizzazioni materiali | F8: =(SUMIF('00 PDC SP'!$D:$D,'01 Rendiconto Finanziario'!$A8,'00 PDC SP'!L:L)-SUMIF('00 PDC SP'!$D:$D,'01 Rendiconto Finanziario'!$A8,'00 PDC SP'!M:M))*'01 Rendiconto Finanziario'!$C8 -> -670108.16 | G8: =(SUMIF('00 PDC SP'!$D:$D,'01 Rendiconto Finanziario'!$A8,'00 PDC SP'!I:I)-SUMIF('00 PDC SP'!$D:$D,'01 Rendiconto Finanziario'!$A8,'00 PDC SP'!J:J))*'01 Rendiconto Finanziario'!C8 -> 5153454.74
A9: 4 | B9: VP | C9: -1 | D9: (+) | E9: ammortamenti immobilizzazioni immateriali | F9: =(SUMIF('00 PDC SP'!$D:$D,'01 Rendiconto Finanziario'!$A9,'00 PDC SP'!L:L)-SUMIF('00 PDC SP'!$D:$D,'01 Rendiconto Finanziario'!$A9,'00 PDC SP'!M:M))*'01 Rendiconto Finanziario'!$C9 -> 149477.16 | G9: =(SUMIF('00 PDC SP'!$D:$D,'01 Rendiconto Finanziario'!$A9,'00 PDC SP'!I:I)-SUMIF('00 PDC SP'!$D:$D,'01 Rendiconto Finanziario'!$A9,'00 PDC SP'!J:J))*'01 Rendiconto Finanziario'!C9 -> 136552.39
D10: Ammortamenti | F10: =SUM(F7:F9) -> 4449827.61 | G10: =SUM(G7:G9) -> 10260294.18
A11: 5 | B11: DP | C11: -1 | D11: (-) | E11: Utilizzo finanziamenti per investimenti | F11: =(SUMIF('00 PDC SP'!$D:$D,'01 Rendiconto Finanziario'!$A11,'00 PDC SP'!M:M))*'01 Rendiconto Finanziario'!$C11 -> -10436920.89 | G11: =(SUMIF('00 PDC SP'!$D:$D,'01 Rendiconto Finanziario'!$A11,'00 PDC SP'!J:J))*'01 Rendiconto Finanziario'!C11 -> -9776707.08
A12: 6 | B12: DP | C12: -1 | D12: (-) | E12: Utilizzo fondi riserva: investimenti, incentivi al personale, successioni e donaz., plusvalenze da reinvestire | F12: 0 | G12: =(SUMIF('00 PDC SP'!$D:$D,'01 Rendiconto Finanziario'!$A12,'00 PDC SP'!J:J))*'01 Rendiconto Finanziario'!C12 -> 0
D13: Utilizzo contributi in c/capitale e fondi riserva | F13: =SUM(F11:F12) -> -10436920.89 | G13: =SUM(G11:G12) -> -9776707.08
A14: 7 | B14: IP | C14: -1 | D14: (+) | E14: accantonamenti SUMAI | F14: =(SUMIF('00 PDC SP'!$D:$D,'01 Rendiconto Finanziario'!$A14,'00 PDC SP'!L:L))*'01 Rendiconto Finanziario'!$C14 -> 264664.11 | G14: =(SUMIF('00 PDC SP'!$D:$D,'01 Rendiconto Finanziario'!$A14,'00 PDC SP'!I:I))*'01 Rendiconto Finanziario'!C14 -> 223015.56
A15: 7 | B15: DP | C15: 1 | D15: (-) | E15: pagamenti SUMAI | F15: =(SUMIF('00 PDC SP'!$D:$D,'01 Rendiconto Finanziario'!$A15,'00 PDC SP'!M:M))*'01 Rendiconto Finanziario'!$C15 -> -197944.41 | G15: =(SUMIF('00 PDC SP'!$D:$D,'01 Rendiconto Finanziario'!$A15,'00 PDC SP'!J:J))*'01 Rendiconto Finanziario'!C15 -> -217866.17
A16: 8 | B16: IP | C16: -1 | D16: (+) | E16: accantonamenti TFR | F16: =(SUMIF('00 PDC SP'!$D:$D,'01 Rendiconto Finanziario'!$A16,'00 PDC SP'!L:L))*'01 Rendiconto Finanziario'!$C16 -> 0 | G16: =(SUMIF('00 PDC SP'!$D:$D,'01 Rendiconto Finanziario'!$A16,'00 PDC SP'!J:J))*'01 Rendiconto Finanziario'!C16 -> 0
A17: 8 | B17: DP | C17: 1 | D17: (-) | E17: pagamenti TFR | F17: =(SUMIF('00 PDC SP'!$D:$D,'01 Rendiconto Finanziario'!$A17,'00 PDC SP'!M:M))*'01 Rendiconto Finanziario'!$C17 -> 0 | G17: =(SUMIF('00 PDC SP'!$D:$D,'01 Rendiconto Finanziario'!$A17,'00 PDC SP'!J:J))*'01 Rendiconto Finanziario'!C17 -> 0
D18: - Premio operosità medici SUMAI + TFR | F18: =SUM(F14:F17) -> 66719.7 | G18: =SUM(G14:G17) -> 5149.39
A19: 9 | B19: VA | C19: 1 | D19: (+/-) | E19: Rivalutazioni/svalutazioni di attività finanziarie | F19: =(SUMIF('00 PDC SP'!$D:$D,'01 Rendiconto Finanziario'!$A19,'00 PDC SP'!L:L)-SUMIF('00 PDC SP'!$D:$D,'01 Rendiconto Finanziario'!$A19,'00 PDC SP'!M:M))*'01 Rendiconto Finanziario'!$C19 -> 0 | G19: =(SUMIF('00 PDC SP'!$D:$D,'01 Rendiconto Finanziario'!$A19,'00 PDC SP'!I:I)-SUMIF('00 PDC SP'!$D:$D,'01 Rendiconto Finanziario'!$A19,'00 PDC SP'!J:J))*'01 Rendiconto Finanziario'!C19 -> 0
A20: 10 | B20: IP | C20: -1 | D20: (+) | E20: accantonamenti a fondi svalutazioni | F20: =(SUMIF('00 PDC SP'!$D:$D,'01 Rendiconto Finanziario'!$A20,'00 PDC SP'!L:L))*'01 Rendiconto Finanziario'!$C20 -> 0 | G20: =(SUMIF('00 PDC SP'!$D:$D,'01 Rendiconto Finanziario'!$A20,'00 PDC SP'!I:I))*'01 Rendiconto Finanziario'!C20 -> 300000
A21: 10 | B21: DP | C21: 1 | D21: (-) | E21: utilizzo fondi svalutazioni (*) | F21: =(SUMIF('00 PDC SP'!$D:$D,'01 Rendiconto Finanziario'!$A21,'00 PDC SP'!M:M))*'01 Rendiconto Finanziario'!$C21 -> 0 | G21: =(SUMIF('00 PDC SP'!$D:$D,'01 Rendiconto Finanziario'!$A21,'00 PDC SP'!J:J))*'01 Rendiconto Finanziario'!C21 -> 0
D22: - Fondi svalutazione di attività | F22: =SUM(F19:F21) -> 0 | G22: =SUM(G19:G21) -> 300000
A23: 11 | B23: IP | C23: -1 | D23: (+) | E23: accantonamenti a fondi per rischi e oneri | F23: =(SUMIF('00 PDC SP'!$D:$D,'01 Rendiconto Finanziario'!$A23,'00 PDC SP'!L:L))*'01 Rendiconto Finanziario'!$C23 -> 18073168.95 | G23: =(SUMIF('00 PDC SP'!$D:$D,'01 Rendiconto Finanziario'!$A23,'00 PDC SP'!I:I))*'01 Rendiconto Finanziario'!C23 -> 27369043.7
A24: 11 | B24: DP | C24: 1 | D24: (-) | E24: utilizzo fondi per rischi e oneri | F24: =(SUMIF('00 PDC SP'!$D:$D,'01 Rendiconto Finanziario'!$A24,'00 PDC SP'!M:M))*'01 Rendiconto Finanziario'!$C24 -> -20991484.87 | G24: =(SUMIF('00 PDC SP'!$D:$D,'01 Rendiconto Finanziario'!$A24,'00 PDC SP'!J:J))*'01 Rendiconto Finanziario'!C24 -> -12603218.6
D25: - Fondo per rischi ed oneri futuri | F25: =SUM(F23:F24) -> -2918315.92 | G25: =SUM(G23:G24) -> 14765825.1
D26: TOTALE Flusso di CCN della gestione corrente | F26: =F5+F10+F13+F18+F22+F25 -> -8837012.16 | G26: =G5+G10+G13+G18+G22+G25 -> 1944937.33
A27: 12 | B27: VP | C27: -1 | D27: (+)/(-) | E27: aumento/diminuzione debiti verso regione e provincia autonoma, esclusa la variazione relativa a debiti per acquisto di beni strumentali | F27: =((SUMIF('00 PDC SP'!$D:$D,'01 Rendiconto Finanziario'!$A27,'00 PDC SP'!L:L)-SUMIF('00 PDC SP'!$D:$D,'01 Rendiconto Finanziario'!$A27,'00 PDC SP'!M:M))*'01 Rendiconto Finanziario'!C27) -> 0 | G27: =((SUMIF('00 PDC SP'!$D:$D,'01 Rendiconto Finanziario'!$A27,'00 PDC SP'!I:I)-SUMIF('00 PDC SP'!$D:$D,'01 Rendiconto Finanziario'!$A27,'00 PDC SP'!J:J))*'01 Rendiconto Finanziario'!C27) -> -689
A28: 13 | B28: VP | C28: -1 | D28: (+)/(-) | E28: aumento/diminuzione debiti verso comune | F28: =((SUMIF('00 PDC SP'!$D:$D,'01 Rendiconto Finanziario'!$A28,'00 PDC SP'!L:L)-SUMIF('00 PDC SP'!$D:$D,'01 Rendiconto Finanziario'!$A28,'00 PDC SP'!M:M))*'01 Rendiconto Finanziario'!C28) -> 0 | G28: =(SUMIF('00 PDC SP'!$D:$D,'01 Rendiconto Finanziario'!$A28,'00 PDC SP'!I:I)-SUMIF('00 PDC SP'!$D:$D,'01 Rendiconto Finanziario'!$A28,'00 PDC SP'!J:J))*'01 Rendiconto Finanziario'!C28 -> 0
A29: 14 | B29: VP | C29: -1 | D29: (+)/(-) | E29: aumento/diminuzione debiti verso aziende sanitarie pubbliche | F29: =((SUMIF('00 PDC SP'!$D:$D,'01 Rendiconto Finanziario'!$A29,'00 PDC SP'!L:L)-SUMIF('00 PDC SP'!$D:$D,'01 Rendiconto Finanziario'!$A29,'00 PDC SP'!M:M))*'01 Rendiconto Finanziario'!C29) -> 273946.56 | G29: =(SUMIF('00 PDC SP'!$D:$D,'01 Rendiconto Finanziario'!$A29,'00 PDC SP'!I:I)-SUMIF('00 PDC SP'!$D:$D,'01 Rendiconto Finanziario'!$A29,'00 PDC SP'!J:J))*'01 Rendiconto Finanziario'!C29 -> 199235.53
A30: 15 | B30: VP | C30: -1 | D30: (+)/(-) | E30: aumento/diminuzione debiti verso arpa | F30: =((SUMIF('00 PDC SP'!$D:$D,'01 Rendiconto Finanziario'!$A30,'00 PDC SP'!L:L)-SUMIF('00 PDC SP'!$D:$D,'01 Rendiconto Finanziario'!$A30,'00 PDC SP'!M:M))*'01 Rendiconto Finanziario'!C30) -> 0 | G30: =(SUMIF('00 PDC SP'!$D:$D,'01 Rendiconto Finanziario'!$A30,'00 PDC SP'!I:I)-SUMIF('00 PDC SP'!$D:$D,'01 Rendiconto Finanziario'!$A30,'00 PDC SP'!J:J))*'01 Rendiconto Finanziario'!C30 -> 0
A31: 16 | B31: VP | C31: -1 | D31: (+)/(-) | E31: aumento/diminuzione debiti verso fornitori | F31: =((SUMIF('00 PDC SP'!$D:$D,'01 Rendiconto Finanziario'!$A31,'00 PDC SP'!L:L)-SUMIF('00 PDC SP'!$D:$D,'01 Rendiconto Finanziario'!$A31,'00 PDC SP'!M:M))*'01 Rendiconto Finanziario'!C31)-F91 -> 690526.99 | G31: =((SUMIF('00 PDC SP'!$D:$D,'01 Rendiconto Finanziario'!$A31,'00 PDC SP'!I:I)-SUMIF('00 PDC SP'!$D:$D,'01 Rendiconto Finanziario'!$A31,'00 PDC SP'!J:J))*'01 Rendiconto Finanziario'!C31)-G91 -> -6966055.13 | I31: IMPOSTATA FORMULA DI SOTTRAZIONE VS CODICE DI AGGREGAZIONE 58
A32: 17 | B32: VP | C32: -1 | D32: (+)/(-) | E32: aumento/diminuzione debiti tributari | F32: =((SUMIF('00 PDC SP'!$D:$D,'01 Rendiconto Finanziario'!$A32,'00 PDC SP'!L:L)-SUMIF('00 PDC SP'!$D:$D,'01 Rendiconto Finanziario'!$A32,'00 PDC SP'!M:M))*'01 Rendiconto Finanziario'!C32) -> 1060979.63 | G32: =(SUMIF('00 PDC SP'!$D:$D,'01 Rendiconto Finanziario'!$A32,'00 PDC SP'!I:I)-SUMIF('00 PDC SP'!$D:$D,'01 Rendiconto Finanziario'!$A32,'00 PDC SP'!J:J))*'01 Rendiconto Finanziario'!C32 -> -1298784.59
A33: 18 | B33: VP | C33: -1 | D33: (+)/(-) | E33: aumento/diminuzione debiti verso istituti di previdenza | F33: =((SUMIF('00 PDC SP'!$D:$D,'01 Rendiconto Finanziario'!$A33,'00 PDC SP'!L:L)-SUMIF('00 PDC SP'!$D:$D,'01 Rendiconto Finanziario'!$A33,'00 PDC SP'!M:M))*'01 Rendiconto Finanziario'!C33) -> 1924.43 | G33: =(SUMIF('00 PDC SP'!$D:$D,'01 Rendiconto Finanziario'!$A33,'00 PDC SP'!I:I)-SUMIF('00 PDC SP'!$D:$D,'01 Rendiconto Finanziario'!$A33,'00 PDC SP'!J:J))*'01 Rendiconto Finanziario'!C33 -> 125982.9
A34: 19 | B34: VP | C34: -1 | D34: (+)/(-) | E34: aumento/diminuzione altri debiti | F34: =((SUMIF('00 PDC SP'!$D:$D,'01 Rendiconto Finanziario'!$A34,'00 PDC SP'!L:L)-SUMIF('00 PDC SP'!$D:$D,'01 Rendiconto Finanziario'!$A34,'00 PDC SP'!M:M))*'01 Rendiconto Finanziario'!C34) -> 1916513.36 | G34: =(SUMIF('00 PDC SP'!$D:$D,'01 Rendiconto Finanziario'!$A34,'00 PDC SP'!I:I)-SUMIF('00 PDC SP'!$D:$D,'01 Rendiconto Finanziario'!$A34,'00 PDC SP'!J:J))*'01 Rendiconto Finanziario'!C34 -> -1493585.72
D35: (+)/(-) | E35: aumento/diminuzione debiti (escl. forn. di immob. e C/C bancari e istituto tesoriere) | F35: =SUM(F27:F34) -> 3943890.97 | G35: =SUM(G27:G34) -> -9433896.01
A36: 20 | B36: VP | C36: -1 | D36: (+)/(-) | E36: aumento/diminuzione ratei e risconti passivi | F36: =((SUMIF('00 PDC SP'!$D:$D,'01 Rendiconto Finanziario'!$A36,'00 PDC SP'!L:L)-SUMIF('00 PDC SP'!$D:$D,'01 Rendiconto Finanziario'!$A36,'00 PDC SP'!M:M))*'01 Rendiconto Finanziario'!C36) -> 0 | G36: =(SUMIF('00 PDC SP'!$D:$D,'01 Rendiconto Finanziario'!$A36,'00 PDC SP'!I:I)-SUMIF('00 PDC SP'!$D:$D,'01 Rendiconto Finanziario'!$A36,'00 PDC SP'!J:J))*'01 Rendiconto Finanziario'!C36 -> 0
A37: 21 | B37: VA | C37: -1 | D37: (+)/(-) | E37: diminuzione/aumento crediti parte corrente v/Stato quote indistinte | F37: =((SUMIF('00 PDC SP'!$D:$D,'01 Rendiconto Finanziario'!$A37,'00 PDC SP'!L:L)-SUMIF('00 PDC SP'!$D:$D,'01 Rendiconto Finanziario'!$A37,'00 PDC SP'!M:M))*'01 Rendiconto Finanziario'!C37)-F38 -> 91161.22 | G37: =((SUMIF('00 PDC SP'!$D:$D,'01 Rendiconto Finanziario'!$A37,'00 PDC SP'!I:I)-SUMIF('00 PDC SP'!$D:$D,'01 Rendiconto Finanziario'!$A37,'00 PDC SP'!J:J))*'01 Rendiconto Finanziario'!C37)-G38 -> 5970.26 | I37: IMPOSTATA FORMULA DI SOTTRAZIONE VS CODICE DI AGGREGAZIONE 22
A38: 22 | B38: VA | C38: -1 | D38: (+)/(-) | E38: diminuzione/aumento crediti parte corrente v/Stato quote vincolate | F38: =((SUMIF('00 PDC SP'!$D:$D,'01 Rendiconto Finanziario'!$A38,'00 PDC SP'!L:L)-SUMIF('00 PDC SP'!$D:$D,'01 Rendiconto Finanziario'!$A38,'00 PDC SP'!M:M))*'01 Rendiconto Finanziario'!C38) -> 0 | G38: =(SUMIF('00 PDC SP'!$D:$D,'01 Rendiconto Finanziario'!$A38,'00 PDC SP'!I:I)-SUMIF('00 PDC SP'!$D:$D,'01 Rendiconto Finanziario'!$A38,'00 PDC SP'!J:J))*'01 Rendiconto Finanziario'!C38 -> 0 | I38: CODICE 22 - DA INSERIRE MANUALMENTE
A39: 23 | B39: VA | C39: -1 | D39: (+)/(-) | E39: diminuzione/aumento crediti parte corrente v/Regione per gettito addizionali Irpef e Irap | F39: =((SUMIF('00 PDC SP'!$D:$D,'01 Rendiconto Finanziario'!$A39,'00 PDC SP'!L:L)-SUMIF('00 PDC SP'!$D:$D,'01 Rendiconto Finanziario'!$A39,'00 PDC SP'!M:M))*'01 Rendiconto Finanziario'!C39) -> 0 | G39: =(SUMIF('00 PDC SP'!$D:$D,'01 Rendiconto Finanziario'!$A39,'00 PDC SP'!I:I)-SUMIF('00 PDC SP'!$D:$D,'01 Rendiconto Finanziario'!$A39,'00 PDC SP'!J:J))*'01 Rendiconto Finanziario'!C39 -> 0 | I39: CODICE 23 - DA INSERIRE MANUALMENTE
A40: 23 | B40: VA | C40: -1 | D40: (+)/(-) | E40: diminuzione/aumento crediti parte corrente v/Regione per partecipazioni regioni a Statuto speciale | F40: =((SUMIF('00 PDC SP'!$D:$D,'01 Rendiconto Finanziario'!$A40,'00 PDC SP'!L:L)-SUMIF('00 PDC SP'!$D:$D,'01 Rendiconto Finanziario'!$A40,'00 PDC SP'!M:M))*'01 Rendiconto Finanziario'!C40) -> 0 | G40: =(SUMIF('00 PDC SP'!$D:$D,'01 Rendiconto Finanziario'!$A40,'00 PDC SP'!I:I)-SUMIF('00 PDC SP'!$D:$D,'01 Rendiconto Finanziario'!$A40,'00 PDC SP'!J:J))*'01 Rendiconto Finanziario'!C40 -> 0 | I40: CODICE 23 - DA INSERIRE MANUALMENTE
A41: 23 | B41: VA | C41: -1 | D41: (+)/(-) | E41: diminuzione/aumento crediti parte corrente v/Regione - vincolate per partecipazioni regioni a Statuto speciale | F41: =((SUMIF('00 PDC SP'!$D:$D,'01 Rendiconto Finanziario'!$A41,'00 PDC SP'!L:L)-SUMIF('00 PDC SP'!$D:$D,'01 Rendiconto Finanziario'!$A41,'00 PDC SP'!M:M))*'01 Rendiconto Finanziario'!C41) -> 0 | G41: =(SUMIF('00 PDC SP'!$D:$D,'01 Rendiconto Finanziario'!$A41,'00 PDC SP'!I:I)-SUMIF('00 PDC SP'!$D:$D,'01 Rendiconto Finanziario'!$A41,'00 PDC SP'!J:J))*'01 Rendiconto Finanziario'!C41 -> 0 | I41: CODICE 23 - DA INSERIRE MANUALMENTE
A42: 23 | B42: VA | C42: -1 | D42: (+)/(-) | E42: diminuzione/aumento crediti parte corrente v/Regione - gettito fiscalità regionale | F42: =((SUMIF('00 PDC SP'!$D:$D,'01 Rendiconto Finanziario'!$A42,'00 PDC SP'!L:L)-SUMIF('00 PDC SP'!$D:$D,'01 Rendiconto Finanziario'!$A42,'00 PDC SP'!M:M))*'01 Rendiconto Finanziario'!C42) -> 0 | G42: =(SUMIF('00 PDC SP'!$D:$D,'01 Rendiconto Finanziario'!$A42,'00 PDC SP'!I:I)-SUMIF('00 PDC SP'!$D:$D,'01 Rendiconto Finanziario'!$A42,'00 PDC SP'!J:J))*'01 Rendiconto Finanziario'!C42 -> 0 | I42: CODICE 23 - DA INSERIRE MANUALMENTE
A43: 23 | B43: VA | C43: -1 | D43: (+)/(-) | E43: diminuzione/aumento crediti parte corrente v/Regione - altri contributi extrafondo | F43: =((SUMIF('00 PDC SP'!$D:$D,'01 Rendiconto Finanziario'!$A43,'00 PDC SP'!L:L)-SUMIF('00 PDC SP'!$D:$D,'01 Rendiconto Finanziario'!$A43,'00 PDC SP'!M:M))*'01 Rendiconto Finanziario'!C43) -> 0 | G43: =(SUMIF('00 PDC SP'!$D:$D,'01 Rendiconto Finanziario'!$A43,'00 PDC SP'!I:I)-SUMIF('00 PDC SP'!$D:$D,'01 Rendiconto Finanziario'!$A43,'00 PDC SP'!J:J))*'01 Rendiconto Finanziario'!C43 -> 0 | I43: CODICE 23 - DA INSERIRE MANUALMENTE
A44: 25 | B44: VA | C44: -1 | D44: (+)/(-) | E44: diminuzione/aumento crediti parte corrente v/Regione | F44: =((SUMIF('00 PDC SP'!$D:$D,'01 Rendiconto Finanziario'!$A44,'00 PDC SP'!L:L)-SUMIF('00 PDC SP'!$D:$D,'01 Rendiconto Finanziario'!$A44,'00 PDC SP'!M:M))*'01 Rendiconto Finanziario'!C44)-(F39+F40+F41+F42+F43) -> -24310162.38 | G44: =((SUMIF('00 PDC SP'!$D:$D,'01 Rendiconto Finanziario'!$A44,'00 PDC SP'!I:I)-SUMIF('00 PDC SP'!$D:$D,'01 Rendiconto Finanziario'!$A44,'00 PDC SP'!J:J))*'01 Rendiconto Finanziario'!C44)-(G39+G40+G41+G42+G43) -> 32114322.95 | I44: IMPOSTATA FORMULA DI SOTTRAZIONE VS CODICE DI AGGREGAZIONE 23
A45: 26 | B45: VA | C45: -1 | D45: (+)/(-) | E45: diminuzione/aumento crediti parte corrente v/Comune | F45: =((SUMIF('00 PDC SP'!$D:$D,'01 Rendiconto Finanziario'!$A45,'00 PDC SP'!L:L)-SUMIF('00 PDC SP'!$D:$D,'01 Rendiconto Finanziario'!$A45,'00 PDC SP'!M:M))*'01 Rendiconto Finanziario'!C45) -> -16426.13 | G45: =(SUMIF('00 PDC SP'!$D:$D,'01 Rendiconto Finanziario'!$A45,'00 PDC SP'!I:I)-SUMIF('00 PDC SP'!$D:$D,'01 Rendiconto Finanziario'!$A45,'00 PDC SP'!J:J))*'01 Rendiconto Finanziario'!C45 -> -132021.37
A46: 27 | B46: VA | C46: -1 | D46: (+)/(-) | E46: diminuzione/aumento crediti parte corrente v/Asl-Ao | F46: =((SUMIF('00 PDC SP'!$D:$D,'01 Rendiconto Finanziario'!$A46,'00 PDC SP'!L:L)-SUMIF('00 PDC SP'!$D:$D,'01 Rendiconto Finanziario'!$A46,'00 PDC SP'!M:M))*'01 Rendiconto Finanziario'!C46) -> -32452.24 | G46: =(SUMIF('00 PDC SP'!$D:$D,'01 Rendiconto Finanziario'!$A46,'00 PDC SP'!I:I)-SUMIF('00 PDC SP'!$D:$D,'01 Rendiconto Finanziario'!$A46,'00 PDC SP'!J:J))*'01 Rendiconto Finanziario'!C46 -> 386372.17
A47: 28 | B47: VA | C47: -1 | D47: (+)/(-) | E47: diminuzione/aumento crediti parte corrente v/ARPA | F47: =((SUMIF('00 PDC SP'!$D:$D,'01 Rendiconto Finanziario'!$A47,'00 PDC SP'!L:L)-SUMIF('00 PDC SP'!$D:$D,'01 Rendiconto Finanziario'!$A47,'00 PDC SP'!M:M))*'01 Rendiconto Finanziario'!C47) -> 0 | G47: =(SUMIF('00 PDC SP'!$D:$D,'01 Rendiconto Finanziario'!$A47,'00 PDC SP'!I:I)-SUMIF('00 PDC SP'!$D:$D,'01 Rendiconto Finanziario'!$A47,'00 PDC SP'!J:J))*'01 Rendiconto Finanziario'!C47 -> 0
A48: 29 | B48: VA | C48: -1 | D48: (+)/(-) | E48: diminuzione/aumento crediti parte corrente v/Erario | F48: =((SUMIF('00 PDC SP'!$D:$D,'01 Rendiconto Finanziario'!$A48,'00 PDC SP'!L:L)-SUMIF('00 PDC SP'!$D:$D,'01 Rendiconto Finanziario'!$A48,'00 PDC SP'!M:M))*'01 Rendiconto Finanziario'!C48) -> -8695.5 | G48: =(SUMIF('00 PDC SP'!$D:$D,'01 Rendiconto Finanziario'!$A48,'00 PDC SP'!I:I)-SUMIF('00 PDC SP'!$D:$D,'01 Rendiconto Finanziario'!$A48,'00 PDC SP'!J:J))*'01 Rendiconto Finanziario'!C48 -> 3798.12
A49: 30 | B49: VA | C49: -1 | D49: (+)/(-) | E49: diminuzione/aumento crediti parte corrente v/Altri | F49: =((SUMIF('00 PDC SP'!$D:$D,'01 Rendiconto Finanziario'!$A49,'00 PDC SP'!L:L)-SUMIF('00 PDC SP'!$D:$D,'01 Rendiconto Finanziario'!$A49,'00 PDC SP'!M:M))*'01 Rendiconto Finanziario'!C49) -> 267329.52 | G49: =(SUMIF('00 PDC SP'!$D:$D,'01 Rendiconto Finanziario'!$A49,'00 PDC SP'!I:I)-SUMIF('00 PDC SP'!$D:$D,'01 Rendiconto Finanziario'!$A49,'00 PDC SP'!J:J))*'01 Rendiconto Finanziario'!C49 -> -157918.08
D50: (+)/(-) | E50: diminuzione/aumento di crediti | F50: =SUM(F37:F49) -> -24009245.51 | G50: =SUM(G37:G49) -> 32220524.05
A51: 31 | B51: VA | C51: -1 | D51: (+)/(-) | E51: diminuzione/aumento del magazzino | F51: =((SUMIF('00 PDC SP'!$D:$D,'01 Rendiconto Finanziario'!$A51,'00 PDC SP'!L:L)-SUMIF('00 PDC SP'!$D:$D,'01 Rendiconto Finanziario'!$A51,'00 PDC SP'!M:M))*'01 Rendiconto Finanziario'!C51) -> -5011001.56 | G51: =(SUMIF('00 PDC SP'!$D:$D,'01 Rendiconto Finanziario'!$A51,'00 PDC SP'!I:I)-SUMIF('00 PDC SP'!$D:$D,'01 Rendiconto Finanziario'!$A51,'00 PDC SP'!J:J))*'01 Rendiconto Finanziario'!C51 -> -1222094.45
A52: 32 | B52: VA | C52: -1 | D52: (+)/(-) | E52: diminuzione/aumento di acconti a fornitori per magazzino | F52: =((SUMIF('00 PDC SP'!$D:$D,'01 Rendiconto Finanziario'!$A52,'00 PDC SP'!L:L)-SUMIF('00 PDC SP'!$D:$D,'01 Rendiconto Finanziario'!$A52,'00 PDC SP'!M:M))*'01 Rendiconto Finanziario'!C52) -> 0 | G52: =(SUMIF('00 PDC SP'!$D:$D,'01 Rendiconto Finanziario'!$A52,'00 PDC SP'!I:I)-SUMIF('00 PDC SP'!$D:$D,'01 Rendiconto Finanziario'!$A52,'00 PDC SP'!J:J))*'01 Rendiconto Finanziario'!C52 -> 0
D53: (+)/(-) | E53: diminuzione/aumento rimanenze | F53: =SUM(F51:F52) -> -5011001.56 | G53: =SUM(G51:G52) -> -1222094.45
A54: 33 | B54: VA | C54: -1 | D54: (+)/(-) | E54: diminuzione/aumento ratei e risconti attivi | F54: =((SUMIF('00 PDC SP'!$D:$D,'01 Rendiconto Finanziario'!$A54,'00 PDC SP'!L:L)-SUMIF('00 PDC SP'!$D:$D,'01 Rendiconto Finanziario'!$A54,'00 PDC SP'!M:M))*'01 Rendiconto Finanziario'!C54) -> -1835.46 | G54: =(SUMIF('00 PDC SP'!$D:$D,'01 Rendiconto Finanziario'!$A54,'00 PDC SP'!I:I)-SUMIF('00 PDC SP'!$D:$D,'01 Rendiconto Finanziario'!$A54,'00 PDC SP'!J:J))*'01 Rendiconto Finanziario'!C54 -> 1494163.71
D55: A - Totale operazioni di gestione reddituale | F55: =F26+F35+F36+F50+F53+F54 -> -33915203.72 | G55: =G26+G35+G36+G50+G53+G54 -> 25003634.63
D56: ATTIVITA' DI INVESTIMENTO
A57: 34 | B57: IA | C57: -1 | D57: (-) | E57: Acquisto costi di impianto e di ampliamento | F57: =((SUMIF('00 PDC SP'!$D:$D,'01 Rendiconto Finanziario'!$A57,'00 PDC SP'!L:L)))*'01 Rendiconto Finanziario'!C57 -> 0 | G57: =(SUMIF('00 PDC SP'!$D:$D,'01 Rendiconto Finanziario'!$A57,'00 PDC SP'!I:I))*'01 Rendiconto Finanziario'!C57 -> 0
A58: 35 | B58: IA | C58: -1 | D58: (-) | E58: Acquisto costi di ricerca e sviluppo | F58: =((SUMIF('00 PDC SP'!$D:$D,'01 Rendiconto Finanziario'!$A58,'00 PDC SP'!L:L)))*'01 Rendiconto Finanziario'!C58 -> 0 | G58: =(SUMIF('00 PDC SP'!$D:$D,'01 Rendiconto Finanziario'!$A58,'00 PDC SP'!I:I))*'01 Rendiconto Finanziario'!C58 -> 0
A59: 36 | B59: IA | C59: -1 | D59: (-) | E59: Acquisto Diritti di brevetto e diritti di utilizzazione delle opere d'ingegno | F59: =((SUMIF('00 PDC SP'!$D:$D,'01 Rendiconto Finanziario'!$A59,'00 PDC SP'!L:L)))*'01 Rendiconto Finanziario'!C59 -> 0 | G59: =(SUMIF('00 PDC SP'!$D:$D,'01 Rendiconto Finanziario'!$A59,'00 PDC SP'!I:I))*'01 Rendiconto Finanziario'!C59 -> 0
A60: 37 | B60: IA | C60: -1 | D60: (-) | E60: Acquisto immobilizzazioni immateriali in corso | F60: =((SUMIF('00 PDC SP'!$D:$D,'01 Rendiconto Finanziario'!$A60,'00 PDC SP'!L:L)))*'01 Rendiconto Finanziario'!C60 -> 0 | G60: =(SUMIF('00 PDC SP'!$D:$D,'01 Rendiconto Finanziario'!$A60,'00 PDC SP'!I:I))*'01 Rendiconto Finanziario'!C60 -> 0
A61: 38 | B61: IA | C61: -1 | D61: (-) | E61: Acquisto altre immobilizzazioni immateriali | F61: =((SUMIF('00 PDC SP'!$D:$D,'01 Rendiconto Finanziario'!$A61,'00 PDC SP'!L:L)))*'01 Rendiconto Finanziario'!C61 -> -131197.56 | G61: =(SUMIF('00 PDC SP'!$D:$D,'01 Rendiconto Finanziario'!$A61,'00 PDC SP'!I:I))*'01 Rendiconto Finanziario'!C61 -> -209841.59
D62: (-) | E62: Acquisto immobilizzazioni immateriali | F62: =SUM(F57:F61) -> -131197.56 | G62: =SUM(G57:G61) -> -209841.59
A63: 34 | B63: DA | C63: 1 | D63: (+) | E63: Valore netto contabile costi di impianto e di ampliamento dismessi | F63: =((SUMIF('00 PDC SP'!$D:$D,'01 Rendiconto Finanziario'!$A63,'00 PDC SP'!M:M)))*'01 Rendiconto Finanziario'!C63 -> 0 | G63: =(SUMIF('00 PDC SP'!$D:$D,'01 Rendiconto Finanziario'!$A63,'00 PDC SP'!J:J))*'01 Rendiconto Finanziario'!C63 -> 0
A64: 35 | B64: DA | C64: 1 | D64: (+) | E64: Valore netto contabile costi di ricerca e sviluppo dismessi | F64: =((SUMIF('00 PDC SP'!$D:$D,'01 Rendiconto Finanziario'!$A64,'00 PDC SP'!M:M)))*'01 Rendiconto Finanziario'!C64 -> 0 | G64: =(SUMIF('00 PDC SP'!$D:$D,'01 Rendiconto Finanziario'!$A64,'00 PDC SP'!J:J))*'01 Rendiconto Finanziario'!C64 -> 0
A65: 36 | B65: DA | C65: 1 | D65: (+) | E65: Valore netto contabile Diritti di brevetto e diritti di utilizzazione delle opere d'ingegno dismessi | F65: =((SUMIF('00 PDC SP'!$D:$D,'01 Rendiconto Finanziario'!$A65,'00 PDC SP'!M:M)))*'01 Rendiconto Finanziario'!C65 -> 0 | G65: =(SUMIF('00 PDC SP'!$D:$D,'01 Rendiconto Finanziario'!$A65,'00 PDC SP'!J:J))*'01 Rendiconto Finanziario'!C65 -> 0
A66: 37 | B66: DA | C66: 1 | D66: (+) | E66: Valore netto contabile immobilizzazioni immateriali in corso dismesse | F66: =((SUMIF('00 PDC SP'!$D:$D,'01 Rendiconto Finanziario'!$A66,'00 PDC SP'!M:M)))*'01 Rendiconto Finanziario'!C66 -> 0 | G66: =(SUMIF('00 PDC SP'!$D:$D,'01 Rendiconto Finanziario'!$A66,'00 PDC SP'!J:J))*'01 Rendiconto Finanziario'!C66 -> 0
A67: 38 | B67: DA | C67: 1 | D67: (+) | E67: Valore netto contabile altre immobilizzazioni immateriali dismesse | F67: =((SUMIF('00 PDC SP'!$D:$D,'01 Rendiconto Finanziario'!$A67,'00 PDC SP'!M:M)))*'01 Rendiconto Finanziario'!C67 -> 11461.65 | G67: =(SUMIF('00 PDC SP'!$D:$D,'01 Rendiconto Finanziario'!$A67,'00 PDC SP'!J:J))*'01 Rendiconto Finanziario'!C67 -> 7129.38
D68: (+) | E68: Valore netto contabile Immobilizzazioni Immateriali dismesse | F68: =SUM(F63:F67) -> 11461.65 | G68: =SUM(G63:G67) -> 7129.38
A69: 39 | B69: IA | C69: -1 | D69: (-) | E69: Acquisto terreni | F69: =((SUMIF('00 PDC SP'!$D:$D,'01 Rendiconto Finanziario'!$A69,'00 PDC SP'!L:L)))*'01 Rendiconto Finanziario'!C69 -> 0 | G69: =(SUMIF('00 PDC SP'!$D:$D,'01 Rendiconto Finanziario'!$A69,'00 PDC SP'!I:I))*'01 Rendiconto Finanziario'!C69 -> 0
A70: 40 | B70: IA | C70: -1 | D70: (-) | E70: Acquisto fabbricati | F70: =((SUMIF('00 PDC SP'!$D:$D,'01 Rendiconto Finanziario'!$A70,'00 PDC SP'!L:L)))*'01 Rendiconto Finanziario'!C70 -> -2087230 | G70: =(SUMIF('00 PDC SP'!$D:$D,'01 Rendiconto Finanziario'!$A70,'00 PDC SP'!I:I))*'01 Rendiconto Finanziario'!C70 -> 0
A71: 41 | B71: IA | C71: -1 | D71: (-) | E71: Acquisto impianti e macchinari | F71: =((SUMIF('00 PDC SP'!$D:$D,'01 Rendiconto Finanziario'!$A71,'00 PDC SP'!L:L)))*'01 Rendiconto Finanziario'!C71 -> -653192.51 | G71: =(SUMIF('00 PDC SP'!$D:$D,'01 Rendiconto Finanziario'!$A71,'00 PDC SP'!I:I))*'01 Rendiconto Finanziario'!C71 -> -219918.7
A72: 42 | B72: IA | C72: -1 | D72: (-) | E72: Acquisto attrezzature sanitarie e scientifiche | F72: =((SUMIF('00 PDC SP'!$D:$D,'01 Rendiconto Finanziario'!$A72,'00 PDC SP'!L:L)))*'01 Rendiconto Finanziario'!C72 -> -4303427.61 | G72: =(SUMIF('00 PDC SP'!$D:$D,'01 Rendiconto Finanziario'!$A72,'00 PDC SP'!I:I))*'01 Rendiconto Finanziario'!C72 -> -5812839.07
A73: 43 | B73: IA | C73: -1 | D73: (-) | E73: Acquisto mobili e arredi | F73: =((SUMIF('00 PDC SP'!$D:$D,'01 Rendiconto Finanziario'!$A73,'00 PDC SP'!L:L)))*'01 Rendiconto Finanziario'!C73 -> -339281.25 | G73: =(SUMIF('00 PDC SP'!$D:$D,'01 Rendiconto Finanziario'!$A73,'00 PDC SP'!I:I))*'01 Rendiconto Finanziario'!C73 -> -241394.07
A74: 44 | B74: IA | C74: -1 | D74: (-) | E74: Acquisto automezzi | F74: =((SUMIF('00 PDC SP'!$D:$D,'01 Rendiconto Finanziario'!$A74,'00 PDC SP'!L:L)))*'01 Rendiconto Finanziario'!C74 -> -93196.97 | G74: =(SUMIF('00 PDC SP'!$D:$D,'01 Rendiconto Finanziario'!$A74,'00 PDC SP'!I:I))*'01 Rendiconto Finanziario'!C74 -> -123029.66
A75: 45 | B75: IA | C75: -1 | D75: (-) | E75: Acquisto altri beni materiali | F75: =((SUMIF('00 PDC SP'!$D:$D,'01 Rendiconto Finanziario'!$A75,'00 PDC SP'!L:L)))*'01 Rendiconto Finanziario'!C75 -> -1783845.47 | G75: =(SUMIF('00 PDC SP'!$D:$D,'01 Rendiconto Finanziario'!$A75,'00 PDC SP'!I:I))*'01 Rendiconto Finanziario'!C75 -> -2743711.12
D76: (-) | E76: Acquisto Immobilizzazioni Materiali | F76: =SUM(F69:F75) -> -9260173.81 | G76: =SUM(G69:G75) -> -9140892.62
A77: 39 | B77: DA | C77: 1 | D77: (+) | E77: Valore netto contabile terreni dismessi | F77: =((SUMIF('00 PDC SP'!$D:$D,'01 Rendiconto Finanziario'!$A77,'00 PDC SP'!M:M)))*'01 Rendiconto Finanziario'!C77 -> 0 | G77: =(SUMIF('00 PDC SP'!$D:$D,'01 Rendiconto Finanziario'!$A77,'00 PDC SP'!J:J))*'01 Rendiconto Finanziario'!C77 -> 0
A78: 40 | B78: DA | C78: 1 | D78: (+) | E78: Valore netto contabile fabbricati dismessi | F78: =((SUMIF('00 PDC SP'!$D:$D,'01 Rendiconto Finanziario'!$A78,'00 PDC SP'!M:M)))*'01 Rendiconto Finanziario'!C78 -> 0 | G78: =(SUMIF('00 PDC SP'!$D:$D,'01 Rendiconto Finanziario'!$A78,'00 PDC SP'!J:J))*'01 Rendiconto Finanziario'!C78 -> 0
A79: 41 | B79: DA | C79: 1 | D79: (+) | E79: Valore netto contabile impianti e macchinari dismessi | F79: =((SUMIF('00 PDC SP'!$D:$D,'01 Rendiconto Finanziario'!$A79,'00 PDC SP'!M:M)))*'01 Rendiconto Finanziario'!C79 -> 17647.73 | G79: =(SUMIF('00 PDC SP'!$D:$D,'01 Rendiconto Finanziario'!$A79,'00 PDC SP'!J:J))*'01 Rendiconto Finanziario'!C79 -> 171.65
A80: 42 | B80: DA | C80: 1 | D80: (+) | E80: Valore netto contabile attrezzature sanitarie e scientifiche dismesse | F80: =((SUMIF('00 PDC SP'!$D:$D,'01 Rendiconto Finanziario'!$A80,'00 PDC SP'!M:M)))*'01 Rendiconto Finanziario'!C80 -> 5885338.17 | G80: =(SUMIF('00 PDC SP'!$D:$D,'01 Rendiconto Finanziario'!$A80,'00 PDC SP'!J:J))*'01 Rendiconto Finanziario'!C80 -> 146692.8
A81: 43 | B81: DA | C81: 1 | D81: (+) | E81: Valore netto contabile mobili e arredi dismessi | F81: =((SUMIF('00 PDC SP'!$D:$D,'01 Rendiconto Finanziario'!$A81,'00 PDC SP'!M:M)))*'01 Rendiconto Finanziario'!C81 -> 91861.65 | G81: =(SUMIF('00 PDC SP'!$D:$D,'01 Rendiconto Finanziario'!$A81,'00 PDC SP'!J:J))*'01 Rendiconto Finanziario'!C81 -> 12215.84
A82: 44 | B82: DA | C82: 1 | D82: (+) | E82: Valore netto contabile automezzi dismessi | F82: =((SUMIF('00 PDC SP'!$D:$D,'01 Rendiconto Finanziario'!$A82,'00 PDC SP'!M:M)))*'01 Rendiconto Finanziario'!C82 -> 149825.11 | G82: =(SUMIF('00 PDC SP'!$D:$D,'01 Rendiconto Finanziario'!$A82,'00 PDC SP'!J:J))*'01 Rendiconto Finanziario'!C82 -> 0
A83: 45 | B83: DA | C83: 1 | D83: (+) | E83: Valore netto contabile altri beni materiali dismessi | F83: =((SUMIF('00 PDC SP'!$D:$D,'01 Rendiconto Finanziario'!$A83,'00 PDC SP'!M:M)))*'01 Rendiconto Finanziario'!C83 -> 4254289.69 | G83: =(SUMIF('00 PDC SP'!$D:$D,'01 Rendiconto Finanziario'!$A83,'00 PDC SP'!J:J))*'01 Rendiconto Finanziario'!C83 -> 246749.93
D84: (+) | E84: Valore netto contabile Immobilizzazioni Materiali dismesse | F84: =SUM(F77:F83) -> 10398962.35 | G84: =SUM(G77:G83) -> 405830.22
A85: 46 | B85: IA | C85: -1 | D85: (-) | E85: Acquisto crediti finanziari | F85: =((SUMIF('00 PDC SP'!$D:$D,'01 Rendiconto Finanziario'!$A85,'00 PDC SP'!L:L)))*'01 Rendiconto Finanziario'!C85 -> 0 | G85: =(SUMIF('00 PDC SP'!$D:$D,'01 Rendiconto Finanziario'!$A85,'00 PDC SP'!I:I))*'01 Rendiconto Finanziario'!C85 -> 0
A86: 47 | B86: IA | C86: -1 | D86: (-) | E86: Acquisto titoli | F86: =((SUMIF('00 PDC SP'!$D:$D,'01 Rendiconto Finanziario'!$A86,'00 PDC SP'!L:L)))*'01 Rendiconto Finanziario'!C86 -> 0 | G86: =(SUMIF('00 PDC SP'!$D:$D,'01 Rendiconto Finanziario'!$A86,'00 PDC SP'!I:I))*'01 Rendiconto Finanziario'!C86 -> 0 | K86: 2014 | L86: 2734481
D87: (-) | E87: Acquisto Immobilizzazioni Finanziarie | F87: =SUM(F85:F86) -> 0 | G87: =SUM(G85:G86) -> 0 | K87: 2013 | L87: 1682776
A88: 46 | B88: DA | C88: 1 | D88: (+) | E88: Valore netto contabile crediti finanziari dismessi | F88: =((SUMIF('00 PDC SP'!$D:$D,'01 Rendiconto Finanziario'!$A88,'00 PDC SP'!M:M)))*'01 Rendiconto Finanziario'!C88 -> 0 | G88: =(SUMIF('00 PDC SP'!$D:$D,'01 Rendiconto Finanziario'!$A88,'00 PDC SP'!J:J))*'01 Rendiconto Finanziario'!C88 -> 0 | L88: =L86-L87 -> 1051705
A89: 47 | B89: DA | C89: 1 | D89: (+) | E89: Valore netto contabile titoli dismessi | F89: =((SUMIF('00 PDC SP'!$D:$D,'01 Rendiconto Finanziario'!$A89,'00 PDC SP'!M:M)))*'01 Rendiconto Finanziario'!C89 -> 0 | G89: =(SUMIF('00 PDC SP'!$D:$D,'01 Rendiconto Finanziario'!$A89,'00 PDC SP'!J:J))*'01 Rendiconto Finanziario'!C89 -> 0
D90: (+) | E90: Valore netto contabile Immobilizzazioni Finanziarie dismesse | F90: =SUM(F88:F89) -> 0 | G90: =SUM(G88:G89) -> 0
A91: 58 | B91: VP | C91: -1 | D91: (+/-) | E91: Aumento/Diminuzione debiti v/fornitori di immobilizzazioni | F91: 1051705 | G91: 0 | I91: CODICE 58 - DA INSERIRE MANUALMENTE
D92: B - Totale attività di investimento | F92: =F62+F68+F76+F84+F87+F90+F91+0.0000001416 -> 2070757.63 | G92: =G62+G68+G76+G84+G87+G90+G91 -> -8937774.61
D93: ATTIVITA' DI FINANZIAMENTO
A94: 48 | B94: VA | C94: -1 | D94: (+)/(-) | E94: diminuzione/aumento crediti vs Stato (finanziamenti per investimenti) | F94: =((SUMIF('00 PDC SP'!$D:$D,'01 Rendiconto Finanziario'!$A94,'00 PDC SP'!L:L)-SUMIF('00 PDC SP'!$D:$D,'01 Rendiconto Finanziario'!$A94,'00 PDC SP'!M:M))*'01 Rendiconto Finanziario'!C94) -> 0 | G94: =(SUMIF('00 PDC SP'!$D:$D,'01 Rendiconto Finanziario'!$A94,'00 PDC SP'!I:I)-SUMIF('00 PDC SP'!$D:$D,'01 Rendiconto Finanziario'!$A94,'00 PDC SP'!J:J))*'01 Rendiconto Finanziario'!C94 -> 0
A95: 49 | B95: VA | C95: -1 | D95: (+)/(-) | E95: diminuzione/aumento crediti vs Regione (finanziamenti per investimenti) | F95: =((SUMIF('00 PDC SP'!$D:$D,'01 Rendiconto Finanziario'!$A95,'00 PDC SP'!L:L)-SUMIF('00 PDC SP'!$D:$D,'01 Rendiconto Finanziario'!$A95,'00 PDC SP'!M:M))*'01 Rendiconto Finanziario'!C95) -> 0 | G95: =(SUMIF('00 PDC SP'!$D:$D,'01 Rendiconto Finanziario'!$A95,'00 PDC SP'!I:I)-SUMIF('00 PDC SP'!$D:$D,'01 Rendiconto Finanziario'!$A95,'00 PDC SP'!J:J))*'01 Rendiconto Finanziario'!C95 -> 0
A96: 50 | B96: VA | C96: -1 | D96: (+)/(-) | E96: diminuzione/aumento crediti vs Regione (aumento fondo di dotazione) | F96: =((SUMIF('00 PDC SP'!$D:$D,'01 Rendiconto Finanziario'!$A96,'00 PDC SP'!L:L)-SUMIF('00 PDC SP'!$D:$D,'01 Rendiconto Finanziario'!$A96,'00 PDC SP'!M:M))*'01 Rendiconto Finanziario'!C96) -> 0 | G96: =(SUMIF('00 PDC SP'!$D:$D,'01 Rendiconto Finanziario'!$A96,'00 PDC SP'!I:I)-SUMIF('00 PDC SP'!$D:$D,'01 Rendiconto Finanziario'!$A96,'00 PDC SP'!J:J))*'01 Rendiconto Finanziario'!C96 -> 0
A97: 51 | B97: VA | C97: -1 | D97: (+)/(-) | E97: diminuzione/aumento crediti vs Regione (ripiano perdite) | F97: =((SUMIF('00 PDC SP'!$D:$D,'01 Rendiconto Finanziario'!$A97,'00 PDC SP'!L:L)-SUMIF('00 PDC SP'!$D:$D,'01 Rendiconto Finanziario'!$A97,'00 PDC SP'!M:M))*'01 Rendiconto Finanziario'!C97) -> -13609624 | G97: =(SUMIF('00 PDC SP'!$D:$D,'01 Rendiconto Finanziario'!$A97,'00 PDC SP'!I:I)-SUMIF('00 PDC SP'!$D:$D,'01 Rendiconto Finanziario'!$A97,'00 PDC SP'!J:J))*'01 Rendiconto Finanziario'!C97 -> 7337349.57
A98: 52 | B98: VA | C98: -1 | D98: (+)/(-) | E98: diminuzione/aumento crediti vs Regione (copertura debiti al 31.12.2005) | F98: =((SUMIF('00 PDC SP'!$D:$D,'01 Rendiconto Finanziario'!$A98,'00 PDC SP'!L:L)-SUMIF('00 PDC SP'!$D:$D,'01 Rendiconto Finanziario'!$A98,'00 PDC SP'!M:M))*'01 Rendiconto Finanziario'!C98) -> 0 | G98: =(SUMIF('00 PDC SP'!$D:$D,'01 Rendiconto Finanziario'!$A98,'00 PDC SP'!I:I)-SUMIF('00 PDC SP'!$D:$D,'01 Rendiconto Finanziario'!$A98,'00 PDC SP'!J:J))*'01 Rendiconto Finanziario'!C98 -> 0
D99: (+) | E99: aumento fondo di dotazione | F99: =SUM(F94:F98) -> -13609624 | G99: =SUM(G94:G98) -> 7337349.57
A100: 5 | B100: IP | C100: 1 | D100: (+) | E100: aumento contributi in c/capitale da regione e da altri | F100: =(SUMIF('00 PDC SP'!$D:$D,'01 Rendiconto Finanziario'!$A100,'00 PDC SP'!L:L))*'01 Rendiconto Finanziario'!C100 -> 6486693.45 | G100: =(SUMIF('00 PDC SP'!$D:$D,'01 Rendiconto Finanziario'!$A100,'00 PDC SP'!I:I))*'01 Rendiconto Finanziario'!C100 -> 6628571.39
A101: 6 | B101: IP | C101: 1 | D101: (+) | E101: aumento fondi riserva: investimenti, incentivi al personale, successioni e donaz., plusvalenze da reinvestire | F101: 0 | G101: =(SUMIF('00 PDC SP'!$D:$D,'01 Rendiconto Finanziario'!$A101,'00 PDC SP'!I:I))*'01 Rendiconto Finanziario'!C101 -> 0
A102: 53 | B102: VP | C102: 1 | D102: (+)/(-) | E102: altri aumenti/diminuzioni al patrimonio netto (*) | F102: =((SUMIF('00 PDC SP'!$D:$D,'01 Rendiconto Finanziario'!$A102,'00 PDC SP'!L:L)-SUMIF('00 PDC SP'!$D:$D,'01 Rendiconto Finanziario'!$A102,'00 PDC SP'!M:M))*'01 Rendiconto Finanziario'!C102)-F5 -> 13668902.85 | G102: =((SUMIF('00 PDC SP'!$D:$D,'01 Rendiconto Finanziario'!$A102,'00 PDC SP'!I:I)-SUMIF('00 PDC SP'!$D:$D,'01 Rendiconto Finanziario'!$A102,'00 PDC SP'!J:J))*'01 Rendiconto Finanziario'!C102)-G5 -> 14294910.4
D103: (+)/(-) | E103: aumenti/diminuzioni nette contabili al patrimonio netto | F103: =SUM(F100:F102) -> 20155596.3 | G103: =SUM(G100:G102) -> 20923481.79
A104: 54 | B104: VA | C104: -1 | D104: (+)/(-) | E104: aumenti/diminuzione debiti C/C bancari e istituto tesoriere (*) | F104: =((SUMIF('00 PDC SP'!$D:$D,'01 Rendiconto Finanziario'!$A104,'00 PDC SP'!L:L)-SUMIF('00 PDC SP'!$D:$D,'01 Rendiconto Finanziario'!$A104,'00 PDC SP'!M:M))*'01 Rendiconto Finanziario'!C104) -> 0 | G104: =(SUMIF('00 PDC SP'!$D:$D,'01 Rendiconto Finanziario'!$A104,'00 PDC SP'!I:I)-SUMIF('00 PDC SP'!$D:$D,'01 Rendiconto Finanziario'!$A104,'00 PDC SP'!J:J))*'01 Rendiconto Finanziario'!C104 -> 0
A105: 55 | B105: IP | C105: 1 | D105: (+) | E105: assunzione nuovi mutui (*) | F105: =((SUMIF('00 PDC SP'!$D:$D,'01 Rendiconto Finanziario'!$A105,'00 PDC SP'!L:L))*'01 Rendiconto Finanziario'!C105) -> 0 | G105: =(SUMIF('00 PDC SP'!$D:$D,'01 Rendiconto Finanziario'!$A105,'00 PDC SP'!I:I))*'01 Rendiconto Finanziario'!C105 -> 0
A106: 56 | B106: DP | C106: -1 | D106: (-) | E106: mutui quota capitale rimborsata | F106: =((SUMIF('00 PDC SP'!$D:$D,'01 Rendiconto Finanziario'!$A106,'00 PDC SP'!M:M))*'01 Rendiconto Finanziario'!C106) -> 0 | G106: =(SUMIF('00 PDC SP'!$D:$D,'01 Rendiconto Finanziario'!$A106,'00 PDC SP'!J:J))*'01 Rendiconto Finanziario'!C106 -> 0
D107: C - Totale attività di finanziamento | F107: =F99+F103+F104+F105+F106 -> 6545972.3 | G107: =G99+G103+G104+G105+G106 -> 28260831.36
D108: FLUSSO DI CASSA COMPLESSIVO (A+B+C+) | F108: =F55+F92+F107 -> -25298473.79 | G108: =G55+G92+G107 -> 44326691.38
A109: 57 | B109: VA | C109: 1 | D109: Delta liquidità tra inizio e fine esercizio (al netto dei conti bancari passivi) | F109: =((SUMIF('00 PDC SP'!$D:$D,'01 Rendiconto Finanziario'!$A109,'00 PDC SP'!L:L)-SUMIF('00 PDC SP'!$D:$D,'01 Rendiconto Finanziario'!$A109,'00 PDC SP'!M:M))*'01 Rendiconto Finanziario'!C109) -> -25298473.79 | G109: =(SUMIF('00 PDC SP'!$D:$D,'01 Rendiconto Finanziario'!$A109,'00 PDC SP'!I:I)-SUMIF('00 PDC SP'!$D:$D,'01 Rendiconto Finanziario'!$A109,'00 PDC SP'!J:J))*'01 Rendiconto Finanziario'!C109 -> 44326691.38
D110: Squadratura tra il valore delle disponibilità liquide nello SP e il valore del flusso di cassa complessivo | F110: =F108-F109 -> 6.705522537e-08 | G110: =G108-G109 -> 2.458691597e-07
E112: LEGENDA
D113: SP | E113: Saldo Stato Patrimoniale
D114: IP | E114: Passività - Incrementi
D115: DP | E115: Passività - Decrementi
D116: VA | E116: Attività - Variazione Saldo
D117: VP | E117: Passività - Variazione Saldo
D118: IA | E118: Attività - Incrementi
D119: DA | E119: Attività - Decrementi

Sheet Personale
A1: Dati sull'occupazione al 31.12 XX
A3: PERSONALE DIPENDENTE (Conto Annuale)
B4: T1A | C4: T1C | D4: T1A | E4: T1C
A5: Tipologia di personale | B5: Personale in comando al 31/12/X-1 ad altri enti | C5: Personale in comando al 31/12/X-1 da altri enti | D5: Personale in comando al 31/12/X ad altri enti | E5: Personale in comando al 31/12/X da altri enti
A6: RUOLO SANITARIO
A7: Dirigenza
A8: - Medico veterinaria | B8: 1 | C8: 1 | E8: 1
A9: - Sanitaria
A10: Comparto
A11: - Categoria Ds
A12: - Categoria D | B12: 3 | C12: 7 | D12: 1 | E12: 10
A13: - Categoria C
A14: - Categoria Bs
A15: RUOLO PROFESSIONALE
A16: Dirigenza
A17: Livello dirigenziale
A18: Comparto
A19: - Categoria D
A20: RUOLO TECNICO
A21: Dirigenza
A22: Livello dirigenziale
A23: Comparto
A24: - Categoria Ds
A25: - Categoria D
A26: - Categoria C
A27: - Categoria Bs | E27: 1
A28: - Categoria B
A29: - Categoria A
A30: RUOLO AMMINISTRATIVO
A31: Dirigenza
A32: Livello dirigenziale
A33: Comparto
A34: - Categoria Ds | C34: 1
A35: - Categoria D | B35: 1
A36: - Categoria C
A37: - Categoria Bs
A38: - Categoria B
A39: - Categoria A

Sheet Universitario (hidden)
A2: PERSONALE UNIVERSITARIO (Conto Annuale T1B)
A3: Tipologia di personale | B3: Personale al 31/12/X-1 | C3: di cui Personale a tempo parziale al 31/12/X-1 | D3: Personale al 31/12/X | E3: di cui Personale a tempo parziale al 31/12/X
A4: RUOLO SANITARIO
A5: Dirigenza
A6: Comparto
A7: RUOLO PROFESSIONALE
A8: Dirigenza
A9: Comparto
A10: RUOLO TECNICO
A11: Dirigenza
A12: Comparto
A13: RUOLO AMMINISTRATIVO
A14: Dirigenza
A15: Comparto

Sheet Altro contratto (hidden)
A2: PERSONALE CON ALTRO CONTRATTO - FORMAZIONE LAVORO (Conto Annuale T2)
A3: Tipologia di personale | B3: Uomini-anno anno X -1 | C3: Uomini-anno anno X
A4: RUOLO SANITARIO
A5: Dirigenza
A6: - Medico - Veterinari
A7: - Sanitaria non medica
A8: Comparto
A9: RUOLO PROFESSIONALE
A10: Dirigenza
A11: Comparto
A12: RUOLO TECNICO
A13: Dirigenza
A14: Comparto
A15: RUOLO AMMINISTRATIVO
A16: Dirigenza
A17: Comparto
A19: PERSONALE CON ALTRO CONTRATTO - CONTRATTO DI SOMMINISTRAZIONE (Conto Annuale T2)
A20: Tipologia di personale | B20: Uomini-anno anno X -1 | C20: Uomini-anno anno X
A21: RUOLO SANITARIO
A22: Dirigenza
A23: - Medico - Veterinari
A24: - Sanitaria non medica
A25: Comparto
A26: RUOLO PROFESSIONALE
A27: Dirigenza
A28: Comparto
A29: RUOLO TECNICO
A30: Dirigenza
A31: Comparto
A32: RUOLO AMMINISTRATIVO
A33: Dirigenza
A34: Comparto
A36: PERSONALE CON ALTRO CONTRATTO - LSU (Conto Annuale T2)
A37: Tipologia di personale | B37: Uomini-anno anno X -1 | C37: Uomini-anno anno X
A38: RUOLO SANITARIO
A39: Dirigenza
A40: - Medico - Veterinari
A41: - Sanitaria non medica
A42: Comparto
A43: RUOLO PROFESSIONALE
A44: Dirigenza
A45: Comparto
A46: RUOLO TECNICO
A47: Dirigenza
A48: Comparto
A49: RUOLO AMMINISTRATIVO
A50: Dirigenza
A51: Comparto
A53: PERSONALE IN CONVENZIONE (FLS 12 quadro E per MMG e PLS)
A54: Tipologia di personale | B54: Personale al 31/12/ X-1 | C54: Personale al 31/12/ X
A55: MEDICINA DI BASE
A56: MMG
A57: PLS
A58: Continuità assistenziale
A59: Altro

Sheet Tab 1-2-3-4
D1: 4.4 Immobilizzazioni materiali e immateriali
D3: Tab. 1 – Dettagli e movimentazioni delle immobilizzazioni immateriali
D4: CODICE MOD. SP | E4: IMMOBILIZZAZIONI IMMATERIALI | G4: Costo storico | H4: ESERCIZI PRECEDENTI | L4: MOVIMENTI DELL'ESERCIZIO | T4: Valore Netto Contabile
A5: Costo Storico | B5: F.do Amm.to | C5: F.do Svalutaz | H5: Rivalutaz. (+) | I5: Svalutaz. (-) | J5: Fondo Amm.to (-) | K5: Valore netto iniz. | L5: Giroconti e Riclass. (+/-) | M5: Rivalutaz. (+) | N5: Svalutaz. (-) | O5: Acquisizioni e costruzioni in economia | P5: Manuten. increment. | Q5: Interessi capital. | R5: Dismiss. (valore netto) (-) | S5: Ammort. (-) | V5: Valore SP | W5: Diff | X5: Ctrl
A6: AAA020 | B6: AAA030 | C6: AAA230 | D6: AAA010 | E6: Costi d'impianto e di ampliamento | G6: =SUMIF('00 SP'!$A:$A,'Tab 1-2-3-4'!A6,'00 SP'!I:I) -> 0 | H6: =SUMIF('00 SP'!A:A,'Tab 1-2-3-4'!C6,'00 SP'!H:H)*-1 -> 0 | I6: =SUMIF('00 SP'!A:A,'Tab 1-2-3-4'!C6,'00 SP'!G:G) -> 0 | J6: =SUMIF('00 SP'!A:A,'Tab 1-2-3-4'!B6,'00 SP'!I:I) -> 0 | K6: =G6+H6+I6+J6 -> 0 | L6: 0 | M6: =SUMIF('00 SP'!A:A,'Tab 1-2-3-4'!C6,'00 SP'!K:K)*-1 -> 0 | N6: =SUMIF('00 SP'!A:A,'Tab 1-2-3-4'!C6,'00 SP'!J:J) -> 0 | O6: =SUMIF('00 SP'!A:A,A6,'00 SP'!J:J)-SUMIF('00 SP'!A:A,A6,'00 SP'!K:K)-(P6+Q6+L6) -> 0 | P6: 0 | Q6: 0 | R6: 0 | S6: =(SUMIF('00 SP'!A:A,'Tab 1-2-3-4'!B6,'00 SP'!J:J)-SUMIF('00 SP'!A:A,B6,'00 SP'!K:K)-R6) -> 0 | T6: =K6+L6+M6+N6+O6+P6+Q6+R6+S6 -> 0 | V6: =SUMIF('00 SP'!A:A,'Tab 1-2-3-4'!D6,'00 SP'!L:L) -> 0 | W6: =T6-V6 -> 0 | X6: =IF(W6=0,"OK","CTRL") -> OK
E7: di cui soggetti a sterilizzazione | K7: 0 | T7: 0
A8: AAA050 | B8: AAA060 | C8: AAA240 | D8: AAA040 | E8: Costi di ricerca e sviluppo | G8: =SUMIF('00 SP'!$A:$A,'Tab 1-2-3-4'!A8,'00 SP'!I:I) -> 0 | H8: =SUMIF('00 SP'!A:A,'Tab 1-2-3-4'!C8,'00 SP'!H:H)*-1 -> 0 | I8: =SUMIF('00 SP'!A:A,'Tab 1-2-3-4'!C8,'00 SP'!G:G) -> 0 | J8: =SUMIF('00 SP'!A:A,'Tab 1-2-3-4'!B8,'00 SP'!I:I) -> 0 | K8: 0 | L8: 0 | M8: =SUMIF('00 SP'!A:A,'Tab 1-2-3-4'!C8,'00 SP'!K:K)*-1 -> 0 | N8: =SUMIF('00 SP'!A:A,'Tab 1-2-3-4'!C8,'00 SP'!J:J) -> 0 | O8: =SUMIF('00 SP'!A:A,A8,'00 SP'!J:J)-SUMIF('00 SP'!A:A,A8,'00 SP'!K:K)-(P8+Q8+L8) -> 0 | P8: 0 | Q8: 0 | R8: 0 | S8: =(SUMIF('00 SP'!A:A,'Tab 1-2-3-4'!B8,'00 SP'!J:J)-SUMIF('00 SP'!A:A,B8,'00 SP'!K:K)-R8) -> 0 | T8: 0 | V8: =SUMIF('00 SP'!A:A,'Tab 1-2-3-4'!D8,'00 SP'!L:L) -> 0 | W8: =T8-V8 -> 0 | X8: =IF(W8=0,"OK","CTRL") -> OK
E9: di cui soggetti a sterilizzazione | K9: 0 | T9: 0
